Workbook

Sheet 受委託表 (hidden)
A1: No. | B1: 受委託ID | C1: 受委託名
A2: 1
A3: 2 | B3: 1 | C3: 受託
A4: 3 | B4: 2 | C4: 委託

Sheet 地域表 (hidden)
A1: No. | B1: 地域ID | C1: 地域名
A2: 1 | B2: 1 | C2: 胆沢東部・前沢 | D2: =B2&"_"&C2 -> 1_胆沢東部・前沢
A3: 2 | B3: 2 | C3: 胆沢西部・金ヶ崎西部 | D3: =B3&"_"&C3 -> 2_胆沢西部・金ヶ崎西部
A4: 3 | B4: 3 | C4: 水沢・金ヶ崎東部 | D4: =B4&"_"&C4 -> 3_水沢・金ヶ崎東部

Sheet 技術体系表 (hidden)
A1: No. | B1: 技術体系ID | C1: 技術体系名 | F1: 東部 | G1: 西部 | H1: 水沢
A2: 1 | B2: 001 | C2: 水稲・主食用米(限定ふるさと米，移植，5.1ha規模，胆沢平野／胆沢東部・前沢) | E2: =B2&"_"&"米/移植/５ｈａ" -> 001_米/移植/５ｈａ | F2: 001_米/移植/５ｈａ | G2: 002_米/移植/５ｈａ | H2: 003_米/移植/５ｈａ
A3: 2 | B3: 002 | C3: 水稲・主食用米(限定ふるさと米，移植，5.1ha規模，胆沢平野／胆沢西部・金ケ崎西部) | E3: =B3&"_"&"米/移植/５ｈａ" -> 002_米/移植/５ｈａ | F3: 004_米/移植/１５ｈａ | G3: 005_米/移植/１５ｈａ | H3: 006_米/移植/１５ｈａ
A4: 3 | B4: 003 | C4: 水稲・主食用米(限定ふるさと米，移植，5.1ha規模，胆沢平野／水沢・金ケ崎東部) | E4: =B4&"_"&"米/移植/５ｈａ" -> 003_米/移植/５ｈａ | F4: 007_米/移植/３０ｈａ | G4: 008_米/移植/３０ｈａ | H4: 009_米/移植/３０ｈａ
A5: 4 | B5: 004 | C5: 水稲・主食用米(限定ふるさと米，移植，15ha規模，胆沢平野／胆沢東部・前沢) | E5: =B5&"_"&"米/移植/１５ｈａ" -> 004_米/移植/１５ｈａ | F5: 010_米/直播/１５ｈａ | G5: 011_米/直播/１５ｈａ | H5: 012_米/直播/１５ｈａ
A6: 5 | B6: 005 | C6: 水稲・主食用米(限定ふるさと米，移植，15ha規模，胆沢平野／胆沢西部・金ケ崎西部) | E6: =B6&"_"&"米/移植/１５ｈａ" -> 005_米/移植/１５ｈａ | F6: 013_米/直播/３０ｈａ | G6: 014_米/直播/３０ｈａ | H6: 015_米/直播/３０ｈａ
A7: 6 | B7: 006 | C7: 水稲・主食用米(限定ふるさと米，移植，15ha規模，胆沢平野／水沢・金ケ崎東部) | E7: =B7&"_"&"米/移植/１５ｈａ" -> 006_米/移植/１５ｈａ | F7: 016_飼料用米(専用品種)/移植/１５ｈａ | G7: 016_飼料用米(専用品種)/移植/１５ｈａ | H7: 016_飼料用米(専用品種)/移植/１５ｈａ
A8: 7 | B8: 007 | C8: 水稲・主食用米(限定ふるさと米，移植，30ha規模，胆沢平野／胆沢東部・前沢) | E8: =B8&"_"&"米/移植/３０ｈａ" -> 007_米/移植/３０ｈａ | F8: 017_飼料用米(専用品種)/移植/３０ｈａ | G8: 017_飼料用米(専用品種)/移植/３０ｈａ | H8: 017_飼料用米(専用品種)/移植/３０ｈａ
A9: 8 | B9: 008 | C9: 水稲・主食用米(限定ふるさと米，移植，30ha規模，胆沢平野／胆沢西部・金ケ崎西部) | E9: =B9&"_"&"米/移植/３０ｈａ" -> 008_米/移植/３０ｈａ | F9: 018_飼料用米(専用品種)/直播/１５ｈａ | G9: 018_飼料用米(専用品種)/直播/１５ｈａ | H9: 018_飼料用米(専用品種)/直播/１５ｈａ
A10: 9 | B10: 009 | C10: 水稲・主食用米(限定ふるさと米，移植，30ha規模，胆沢平野／水沢・金ケ崎東部) | E10: =B10&"_"&"米/移植/３０ｈａ" -> 009_米/移植/３０ｈａ | F10: 019_飼料用米(専用品種)/直播/３０ｈａ | G10: 019_飼料用米(専用品種)/直播/３０ｈａ | H10: 019_飼料用米(専用品種)/直播/３０ｈａ
A11: 10 | B11: 010 | C11: 水稲・主食用米(慣行米，直播，15ha規模，胆沢平野／胆沢東部・前沢) | E11: =B11&"_"&"米/直播/１５ｈａ" -> 010_米/直播/１５ｈａ | F11: 022_米/受委託/育苗 | G11: 022_米/受委託/育苗 | H11: 022_米/受委託/育苗
A12: 11 | B12: 011 | C12: 水稲・主食用米(慣行米，直播，15ha規模，胆沢平野／胆沢西部・金ケ崎西部) | E12: =B12&"_"&"米/直播/１５ｈａ" -> 011_米/直播/１５ｈａ | F12: 023_米/受委託/耕起代掻き | G12: 023_米/受委託/耕起代掻き | H12: 023_米/受委託/耕起代掻き
A13: 12 | B13: 012 | C13: 水稲・主食用米(慣行米，直播，15ha規模，胆沢平野／水沢・金ケ崎東部) | E13: =B13&"_"&"米/直播/１５ｈａ" -> 012_米/直播/１５ｈａ | F13: 024_米/受委託/田植 | G13: 024_米/受委託/田植 | H13: 024_米/受委託/田植
A14: 13 | B14: 013 | C14: 水稲・主食用米(慣行米，直播，30ha規模，胆沢平野／胆沢東部・前沢) | E14: =B14&"_"&"米/直播/３０ｈａ" -> 013_米/直播/３０ｈａ | F14: 025_米/受委託/収穫運搬 | G14: 025_米/受委託/収穫運搬 | H14: 025_米/受委託/収穫運搬
A15: 14 | B15: 014 | C15: 水稲・主食用米(慣行米，直播，30ha規模，胆沢平野／胆沢西部・金ケ崎西部) | E15: =B15&"_"&"米/直播/３０ｈａ" -> 014_米/直播/３０ｈａ | F15: 026_米/受委託/乾燥調製 | G15: 026_米/受委託/乾燥調製 | H15: 026_米/受委託/乾燥調製
A16: 15 | B16: 015 | C16: 水稲・主食用米(慣行米，直播，30ha規模，胆沢平野／水沢・金ケ崎東部) | E16: =B16&"_"&"米/直播/３０ｈａ" -> 015_米/直播/３０ｈａ | F16: 020_大豆/小畦立/７ｈａ規模 | G16: 020_大豆/小畦立/７ｈａ規模 | H16: 020_大豆/小畦立/７ｈａ規模
A17: 16 | B17: 016 | C17: 水稲・飼料用米(つぶみのり・つぶゆたか，大区画・移植，15ha規模，胆沢平野) | E17: =B17&"_"&"飼料用米(専用品種)/移植/１５ｈａ" -> 016_飼料用米(専用品種)/移植/１５ｈａ | F17: 021_小麦/慣行/７ｈａ規模 | G17: 021_小麦/慣行/７ｈａ規模 | H17: 021_小麦/慣行/７ｈａ規模
A18: 17 | B18: 017 | C18: 飼料用米(つぶみのり・つぶゆたか，移植，30ha規模，胆沢平野) | E18: =B18&"_"&"飼料用米(専用品種)/移植/３０ｈａ" -> 017_飼料用米(専用品種)/移植/３０ｈａ | F18: 027_WCS(専用品種)/移植/１５ｈａ | G18: 027_WCS(専用品種)/移植/１５ｈａ | H18: 027_WCS(専用品種)/移植/１５ｈａ
A19: 18 | B19: 018 | C19: 水稲・飼料用米(つぶみのり・つぶゆたか，大区画・直播，15ha規模，胆沢平野) | E19: =B19&"_"&"飼料用米(専用品種)/直播/１５ｈａ" -> 018_飼料用米(専用品種)/直播/１５ｈａ | F19: 028_WCS(専用品種)/直播/１５ｈａ | G19: 028_WCS(専用品種)/直播/１５ｈａ | H19: 028_WCS(専用品種)/直播/１５ｈａ
A20: 19 | B20: 019 | C20: 水稲・飼料用米(つぶみのり・つぶゆたか，大区画・直播，30ha規模，胆沢平野) | E20: =B20&"_"&"飼料用米(専用品種)/直播/３０ｈａ" -> 019_飼料用米(専用品種)/直播/３０ｈａ | F20: 029_牧草(生草・乾草)ロールベール/５ｈａ | G20: 029_牧草(生草・乾草)ロールベール/５ｈａ | H20: 029_牧草(生草・乾草)ロールベール/５ｈａ
A21: 20 | B21: 020 | C21: 大豆(ﾘｭｳﾎｳ，水田転作・小畦立，7ha規模，胆沢平野) | E21: =B21&"_"&"大豆/小畦立/７ｈａ規模" -> 020_大豆/小畦立/７ｈａ規模 | F21: 030_牧草(生草・グラスサイレージ)ロールベール/５ｈａ | G21: 030_牧草(生草・グラスサイレージ)ロールベール/５ｈａ | H21: 030_牧草(生草・グラスサイレージ)ロールベール/５ｈａ
A22: 21 | B22: 021 | C22: 小麦(ﾅﾝﾌﾞｺﾑｷﾞ，水田転作，7ha規模，胆沢平野) | E22: =B22&"_"&"小麦/慣行/７ｈａ規模" -> 021_小麦/慣行/７ｈａ規模 | F22: 031_ピーマン/ハウス/３０ａ | G22: 031_ピーマン/ハウス/３０ａ | H22: 031_ピーマン/ハウス/３０ａ
A23: 22 | B23: 022 | C23: 受委託(限定ふるさと米，苗生産・販売，3375箱規模，胆沢平野) | E23: =B23&"_"&"米/受委託/育苗" -> 022_米/受委託/育苗 | F23: 032_ピーマン/露地/１ｈａ | G23: 032_ピーマン/露地/１ｈａ | H23: 032_ピーマン/露地/１ｈａ
A24: 23 | B24: 023 | C24: 受委託(限定ふるさと米，耕起・代掻，15ha規模，胆沢平野) | E24: =B24&"_"&"米/受委託/耕起代掻き" -> 023_米/受委託/耕起代掻き | F24: 033_ | G24: 033_ | H24: 033_
A25: 24 | B25: 024 | C25: 受委託(限定ふるさと米，田植，15ha規模，胆沢平野) | E25: =B25&"_"&"米/受委託/田植" -> 024_米/受委託/田植 | F25: 034_ | G25: 034_ | H25: 034_
A26: 25 | B26: 025 | C26: 受委託(限定ふるさと米，収穫運搬，15ha規模，胆沢平野) | E26: =B26&"_"&"米/受委託/収穫運搬" -> 025_米/受委託/収穫運搬 | F26: 035_ | G26: 035_ | H26: 035_
A27: 26 | B27: 026 | C27: 受委託(限定ふるさと米，乾燥調製，81000kg規模，胆沢平野) | E27: =B27&"_"&"米/受委託/乾燥調製" -> 026_米/受委託/乾燥調製 | F27: 036_ | G27: 036_ | H27: 036_
A28: 27 | B28: 027 | C28: WCS(つぶゆたか，移植，15ha規模，胆沢平野) | E28: =B28&"_"&"WCS(専用品種)/移植/１５ｈａ" -> 027_WCS(専用品種)/移植/１５ｈａ | F28: 037_ | G28: 037_ | H28: 037_
A29: 28 | B29: 028 | C29: WCS(つぶゆたか，直播，15ha規模，胆沢平野) | E29: =B29&"_"&"WCS(専用品種)/直播/１５ｈａ" -> 028_WCS(専用品種)/直播/１５ｈａ | F29: 038_ | G29: 038_ | H29: 038_
A30: 29 | B30: 029 | C30: 牧草(混播牧草，乾草調製(ﾛｰﾙﾍﾞｰﾙ)，5ha規模，胆沢平野) | E30: =B30&"_"&"牧草(生草・乾草)ロールベール/５ｈａ" -> 029_牧草(生草・乾草)ロールベール/５ｈａ | F30: 039_ | G30: 039_ | H30: 039_
A31: 30 | B31: 030 | C31: 牧草(混播牧草，ｸﾞﾗｽｻｲﾚｰｼﾞ(ﾛｰﾙﾍﾞｰﾙ)，5ha規模，胆沢平野) | E31: =B31&"_"&"牧草(生草・グラスサイレージ)ロールベール/５ｈａ" -> 030_牧草(生草・グラスサイレージ)ロールベール/５ｈａ | F31: 040_ | G31: 040_ | H31: 040_
A32: 31 | B32: 031 | C32: ﾋﾟｰﾏﾝ(京鈴，雨よけﾊｳｽ栽培，30a規模，県下全域) | E32: =B32&"_"&"ピーマン/ハウス/３０ａ" -> 031_ピーマン/ハウス/３０ａ | F32: 041_ | G32: 041_ | H32: 041_
A33: 32 | B33: 032 | C33: ﾋﾟｰﾏﾝ(京ゆたか7，露地栽培，1ha規模，県下全域) | E33: =B33&"_"&"ピーマン/露地/１ｈａ" -> 032_ピーマン/露地/１ｈａ | F33: 042_ | G33: 042_ | H33: 042_
A34: 33 | B34: 033 | E34: =B34&"_"&C34 -> 033_ | F34: 043_ | G34: 043_ | H34: 043_
A35: 34 | B35: 034 | E35: 034_ | F35: 044_ | G35: 044_ | H35: 044_
A36: 35 | B36: 035 | E36: 035_ | F36: 045_ | G36: 045_ | H36: 045_
A37: 36 | B37: 036 | E37: 036_ | F37: 046_ | G37: 046_ | H37: 046_
A38: 37 | B38: 037 | E38: 037_ | F38: 047_ | G38: 047_ | H38: 047_
A39: 38 | B39: 038 | E39: 038_ | F39: 048_ | G39: 048_ | H39: 048_
A40: 39 | B40: 039 | E40: 039_ | F40: 049_ | G40: 049_ | H40: 049_
A41: 40 | B41: 040 | E41: 040_ | F41: 050_ | G41: 050_ | H41: 050_
A42: 41 | B42: 041 | E42: 041_ | F42: 051_ | G42: 051_ | H42: 051_
A43: 42 | B43: 042 | E43: 042_ | F43: 052_ | G43: 052_ | H43: 052_
A44: 43 | B44: 043 | E44: 043_ | F44: 053_ | G44: 053_ | H44: 053_
A45: 44 | B45: 044 | E45: 044_ | F45: 054_ | G45: 054_ | H45: 054_
A46: 45 | B46: 045 | E46: 045_ | F46: 055_ | G46: 055_ | H46: 055_
A47: 46 | B47: 046 | E47: 046_ | F47: 056_ | G47: 056_ | H47: 056_
A48: 47 | B48: 047 | E48: 047_ | F48: 057_ | G48: 057_ | H48: 057_
A49: 48 | B49: 048 | E49: 048_ | F49: 058_ | G49: 058_ | H49: 058_
A50: 49 | B50: 049 | E50: 049_ | F50: 059_ | G50: 059_ | H50: 059_
A51: 50 | B51: 050 | E51: 050_ | F51: 060_ | G51: 060_ | H51: 060_
A52: 51 | B52: 051 | E52: 051_
A53: 52 | B53: 052 | E53: 052_
A54: 53 | B54: 053 | E54: 053_
A55: 54 | B55: 054 | E55: 054_
A56: 55 | B56: 055 | E56: 055_
A57: 56 | B57: 056 | E57: 056_
A58: 57 | B58: 057 | E58: 057_
A59: 58 | B59: 058 | E59: 058_
A60: 59 | B60: 059 | E60: 059_
A61: 60 | B61: 060 | E61: 060_

Sheet 試算計画表
I1: 胆沢平野版農業クラウド
I4: 営農計画支援 Ver1.0
B8: ❶ 条 件 選 択 | N8: =NOW() -> 2017-06-23T08:41:11.070
B9: 施設費（法定耐用） | F9: 減価償却費（法定耐用年数法）
B10: No | E10: No.01 | F10: No.02 | G10: No.03 | H10: No.04 | I10: No.05 | J10: No.06 | K10: No.07 | L10: No.08 | M10: No.09 | N10: No.10
B11: 地 域 名 | E11: =IF(ISERROR(LEFT(E12,1)*1),LEFT(E12,1),LEFT(E12,1)*1) -> 1 | F11: =IF(ISERROR(LEFT(F12,1)*1),LEFT(F12,1),LEFT(F12,1)*1) -> 
E12: 1_胆沢東部・前沢
B13: 作 物・規 模 | E13: =LEFT(E14,3) ->  | F13: =LEFT(F14,3) ->  | G13: =LEFT(G14,3) -> 
B15: 作 付 規 模
C16: 単 位 | E16: =IF(E13="022","箱",IF(E13="026","kg","a")) -> a | F16: =IF(F13="022","箱",IF(F13="026","kg","a")) -> a | G16: a | H16: a | I16: a | J16: a | K16: a | L16: a | M16: a | N16: =IF(N13="022","箱",IF(N13="026","kg","a")) -> a
B19: 収益 | C19: 収 量 | O19: =SUMIF(E16:N16,"a",E15:N15) -> 0
C20: 販売単価
C21: 副産物価額
C22: その他収益(※)
C23: 粗 収 益 | E23: =E19*E20+E21+E22 -> 0 | F23: =F19*F20+F21+F22 -> 0 | G23: 0 | H23: 0 | I23: 0 | J23: 0 | K23: 0 | L23: 0 | M23: =M19*M20+M21+M22 -> 0 | N23: =N19*N20+N21+N22 -> 0 | O23: =SUM(E23:N23) -> 0
C24: ※ 「その他収益」とは作付規模に比例する交付金または受託料 ⇒ 修正する場合は「その他収益（修正）」シートへ進んでください | O24: ❸へ
B25: 費用 | C25: 変動費計
C26: =B9 -> 施設費（法定耐用）
C27: 物財費用計 | E27: =E25+E26 -> 0 | F27: =F25+F26 -> 0 | G27: 0 | H27: 0 | I27: 0 | J27: 0 | K27: 0 | L27: 0 | M27: 0 | N27: 0 | O27: =SUM(E27:N27) -> 0
O28: ❹へ
B30: 単位面積等変換係数 | E30: =IF(E16="a",E15/10,IF(E16="kg",E15/1,IF(E16="箱",E15/1,E15))) -> 0 | F30: =IF(F16="a",F15/10,IF(F16="kg",F15/1,IF(F16="箱",F15/1,F15))) -> 0 | G30: 0 | H30: 0 | I30: 0 | J30: 0 | K30: 0 | L30: 0 | M30: 0 | N30: 0
B31: ❷ 目 標 所 得 額
F32: 人数 | H32: 目標所得
B33: 経 営 者 | G33: 人 | H33: =H36*F33 -> 0 | J33: 円
B34: 従 業 員 | G34: 人 | H34: =H37*F34 -> 0 | J34: 円
B35: 合 計 | F35: =SUM(F33:F34) -> 0 | G35: 人 | H35: =SUM(H33:I34) -> 0 | J35: 円
B36: 経 営 者 | J36: 円／年・人
B37: 従 業 員 | J37: 円／年・人
B39: ❸ 収 益
B40: １ 粗 収 益（総売上高）
B41: 粗 収 益 （ 総 売 上 高 ） | G41: =O23 -> 0 | I41: 円 | K41: 【営農計画支援のご利用について】
B42: ２ そ の 他 収 益
B43: 補 助 金 等（作付規模に比例しない補助金等） | I43: 円 | K43: <ご利用方法>
B44: ３ 合 計
B45: 収 益 合 計 | G45: =G41+G43 -> 0 | I45: 円 | K45: 入力項目は | M45: の部分となります。
B47: ❹ 費 用 | K47: ❶条件選択にて施設費および機械費の減価償却方法を選択後
B48: １ 物 財 費 | K48: 地域名と作物・規模を選択し、作付規模を入力します(単位:a)。
B49: 物 財 費（施設費・資材費を含む） | G49: =O27 -> 0 | I49: 円 | K49: 計算ボタンを押すと収益と費用が自動算出されます。
B50: ２ 機 械 経 費
B51: =F9 -> 減価償却費（法定耐用年数法） | G51: =IF(B51="減価償却費（法定耐用年数法）",'収支総括表（設計規模当）'!BK26,IF(B51="減価償却費（実耐用年数法）",'収支総括表（設計規模当）'!BK27,0)) -> 0 | I51: 円 | K51: ❷目標所得額にて従事者の人数と目標とする所得を入力します。
B52: ３ 人 件 費
B53: 経 営 者 | G53: =H33 -> 0 | I53: 円 | K53: ❸収益では、❶で自動算出ができない補助金等を入力します。
B54: 従 業 員 | G54: =H34 -> 0 | I54: 円 | K54: なお、❶では作付規模に比例して交付される交付金または受託料
B55: ４ 労 働 費 | K55: が自動出力されます。
B56: そ の 他 雇 用 者 | I56: 円
B57: ５ 地 代 | K57: ❹労働費と地代、借地面積およびその他費用を入力します。
E58: 地 代 単 価 | I58: 円／10ａ
B59: 支 払 地 代 | G59: =G58*G61/10 -> 0 | I59: 円
C60: 経 営 面 積 | G60: =O19 -> 0 | I60: a | K60: <ご注意>
D61: う ち 借 地 | I61: a | K61: ・このシステムは、岩手県農業研究センターが開発した「営農計画作成
B62: ６ そ の 他 費 用 | K62: 支援シート」を基に、胆沢平野土地改良区が仕様等を変更したもの
B63: そ の 他 費 用 | I63: 円 | K63: です。
B64: ７ 合 計 | K64: ・営農計画支援のデータは、岩手県の生産技術体系を基に胆沢平野
B65: 費 用 合 計 | G65: =G49+G53+G54+G59+G56+G51+G63 -> 0 | I65: 円 | K65: 土地改良区が作成した、管内の標準データが入力されています。
K66: ・利益を確約するものではありませんのでご注意をお願いします。
B67: 税引前当期純利益（経営全体） | G67: =G45-G65 -> 0 | I67: 円
K69: All Rights Reserved,Copyright© 胆沢平野土地改良区 2015

Sheet 月別労働時間
B1: ■ 胆沢平野土地改良区 月別労働時間
B2: No | E2: No.01 | F2: No.02 | G2: No.03 | H2: No.04 | I2: No.05 | J2: No.06 | K2: No.07 | L2: No.08 | M2: No.09 | N2: No.10 | O2: 営農計画 合 計
B3: 地域名 | E3: =試算計画表!E12 -> 1_胆沢東部・前沢 | F3: =試算計画表!F12 -> 0 | G3: =試算計画表!G12 -> 0 | H3: =試算計画表!H12 -> 0 | I3: =試算計画表!I12 -> 0 | J3: =試算計画表!J12 -> 0 | K3: =試算計画表!K12 -> 0 | L3: =試算計画表!L12 -> 0 | M3: =試算計画表!M12 -> 0 | N3: =試算計画表!N12 -> 0
B4: 作物・規模 | E4: =試算計画表!E14 -> 0 | F4: =試算計画表!F14 -> 0 | G4: =試算計画表!G14 -> 0 | H4: =試算計画表!H14 -> 0 | I4: =試算計画表!I14 -> 0 | J4: =試算計画表!J14 -> 0 | K4: =試算計画表!K14 -> 0 | L4: =試算計画表!L14 -> 0 | M4: =試算計画表!M14 -> 0 | N4: =試算計画表!N14 -> 0
B5: 作 付 規 模 | E5: =試算計画表!E15 -> 0 | F5: =試算計画表!F15 -> 0 | G5: =試算計画表!G15 -> 0 | H5: =試算計画表!H15 -> 0 | I5: =試算計画表!I15 -> 0 | J5: =試算計画表!J15 -> 0 | K5: =試算計画表!K15 -> 0 | L5: =試算計画表!L15 -> 0 | M5: =試算計画表!M15 -> 0 | N5: =試算計画表!N15 -> 0
C6: 単 位 | E6: =試算計画表!E16 -> a | F6: =試算計画表!F16 -> a | G6: =試算計画表!G16 -> a | H6: =試算計画表!H16 -> a | I6: =試算計画表!I16 -> a | J6: =試算計画表!J16 -> a | K6: =試算計画表!K16 -> a | L6: =試算計画表!L16 -> a | M6: =試算計画表!M16 -> a | N6: =試算計画表!N16 -> a
B7: 旬 別 労 働 時 間 （ 設 計 規 模 当 ） | C7: 1月 | E7: =SUM('月別労働時間（計算）'!E7)+SUM('月別労働時間（計算）'!E8)+SUM('月別労働時間（計算）'!E9) -> 0 | F7: =SUM('月別労働時間（計算）'!F7)+SUM('月別労働時間（計算）'!F8)+SUM('月別労働時間（計算）'!F9) -> 0 | G7: =SUM('月別労働時間（計算）'!G7)+SUM('月別労働時間（計算）'!G8)+SUM('月別労働時間（計算）'!G9) -> 0 | H7: =SUM('月別労働時間（計算）'!H7)+SUM('月別労働時間（計算）'!H8)+SUM('月別労働時間（計算）'!H9) -> 0 | I7: =SUM('月別労働時間（計算）'!I7)+SUM('月別労働時間（計算）'!I8)+SUM('月別労働時間（計算）'!I9) -> 0 | J7: =SUM('月別労働時間（計算）'!J7)+SUM('月別労働時間（計算）'!J8)+SUM('月別労働時間（計算）'!J9) -> 0 | K7: =SUM('月別労働時間（計算）'!K7)+SUM('月別労働時間（計算）'!K8)+SUM('月別労働時間（計算）'!K9) -> 0 | L7: =SUM('月別労働時間（計算）'!L7)+SUM('月別労働時間（計算）'!L8)+SUM('月別労働時間（計算）'!L9) -> 0 | M7: =SUM('月別労働時間（計算）'!M7)+SUM('月別労働時間（計算）'!M8)+SUM('月別労働時間（計算）'!M9) -> 0 | N7: =SUM('月別労働時間（計算）'!N7)+SUM('月別労働時間（計算）'!N8)+SUM('月別労働時間（計算）'!N9) -> 0 | O7: =SUM(E7:N7) -> 0
C8: 2月 | E8: =SUM('月別労働時間（計算）'!E10)+SUM('月別労働時間（計算）'!E11)+SUM('月別労働時間（計算）'!E12) -> 0 | F8: =SUM('月別労働時間（計算）'!F10)+SUM('月別労働時間（計算）'!F11)+SUM('月別労働時間（計算）'!F12) -> 0 | G8: =SUM('月別労働時間（計算）'!G10)+SUM('月別労働時間（計算）'!G11)+SUM('月別労働時間（計算）'!G12) -> 0 | H8: =SUM('月別労働時間（計算）'!H10)+SUM('月別労働時間（計算）'!H11)+SUM('月別労働時間（計算）'!H12) -> 0 | I8: =SUM('月別労働時間（計算）'!I10)+SUM('月別労働時間（計算）'!I11)+SUM('月別労働時間（計算）'!I12) -> 0 | J8: =SUM('月別労働時間（計算）'!J10)+SUM('月別労働時間（計算）'!J11)+SUM('月別労働時間（計算）'!J12) -> 0 | K8: =SUM('月別労働時間（計算）'!K10)+SUM('月別労働時間（計算）'!K11)+SUM('月別労働時間（計算）'!K12) -> 0 | L8: =SUM('月別労働時間（計算）'!L10)+SUM('月別労働時間（計算）'!L11)+SUM('月別労働時間（計算）'!L12) -> 0 | M8: =SUM('月別労働時間（計算）'!M10)+SUM('月別労働時間（計算）'!M11)+SUM('月別労働時間（計算）'!M12) -> 0 | N8: =SUM('月別労働時間（計算）'!N10)+SUM('月別労働時間（計算）'!N11)+SUM('月別労働時間（計算）'!N12) -> 0 | O8: 0
C9: 3月 | E9: =SUM('月別労働時間（計算）'!E13)+SUM('月別労働時間（計算）'!E14)+SUM('月別労働時間（計算）'!E15) -> 0 | F9: =SUM('月別労働時間（計算）'!F13)+SUM('月別労働時間（計算）'!F14)+SUM('月別労働時間（計算）'!F15) -> 0 | G9: =SUM('月別労働時間（計算）'!G13)+SUM('月別労働時間（計算）'!G14)+SUM('月別労働時間（計算）'!G15) -> 0 | H9: =SUM('月別労働時間（計算）'!H13)+SUM('月別労働時間（計算）'!H14)+SUM('月別労働時間（計算）'!H15) -> 0 | I9: =SUM('月別労働時間（計算）'!I13)+SUM('月別労働時間（計算）'!I14)+SUM('月別労働時間（計算）'!I15) -> 0 | J9: =SUM('月別労働時間（計算）'!J13)+SUM('月別労働時間（計算）'!J14)+SUM('月別労働時間（計算）'!J15) -> 0 | K9: =SUM('月別労働時間（計算）'!K13)+SUM('月別労働時間（計算）'!K14)+SUM('月別労働時間（計算）'!K15) -> 0 | L9: =SUM('月別労働時間（計算）'!L13)+SUM('月別労働時間（計算）'!L14)+SUM('月別労働時間（計算）'!L15) -> 0 | M9: =SUM('月別労働時間（計算）'!M13)+SUM('月別労働時間（計算）'!M14)+SUM('月別労働時間（計算）'!M15) -> 0 | N9: =SUM('月別労働時間（計算）'!N13)+SUM('月別労働時間（計算）'!N14)+SUM('月別労働時間（計算）'!N15) -> 0 | O9: 0
C10: 4月 | E10: =SUM('月別労働時間（計算）'!E16)+SUM('月別労働時間（計算）'!E17)+SUM('月別労働時間（計算）'!E18) -> 0 | F10: =SUM('月別労働時間（計算）'!F16)+SUM('月別労働時間（計算）'!F17)+SUM('月別労働時間（計算）'!F18) -> 0 | G10: =SUM('月別労働時間（計算）'!G16)+SUM('月別労働時間（計算）'!G17)+SUM('月別労働時間（計算）'!G18) -> 0 | H10: =SUM('月別労働時間（計算）'!H16)+SUM('月別労働時間（計算）'!H17)+SUM('月別労働時間（計算）'!H18) -> 0 | I10: =SUM('月別労働時間（計算）'!I16)+SUM('月別労働時間（計算）'!I17)+SUM('月別労働時間（計算）'!I18) -> 0 | J10: =SUM('月別労働時間（計算）'!J16)+SUM('月別労働時間（計算）'!J17)+SUM('月別労働時間（計算）'!J18) -> 0 | K10: =SUM('月別労働時間（計算）'!K16)+SUM('月別労働時間（計算）'!K17)+SUM('月別労働時間（計算）'!K18) -> 0 | L10: =SUM('月別労働時間（計算）'!L16)+SUM('月別労働時間（計算）'!L17)+SUM('月別労働時間（計算）'!L18) -> 0 | M10: =SUM('月別労働時間（計算）'!M16)+SUM('月別労働時間（計算）'!M17)+SUM('月別労働時間（計算）'!M18) -> 0 | N10: =SUM('月別労働時間（計算）'!N16)+SUM('月別労働時間（計算）'!N17)+SUM('月別労働時間（計算）'!N18) -> 0 | O10: 0
C11: 5月 | E11: =SUM('月別労働時間（計算）'!E19)+SUM('月別労働時間（計算）'!E20)+SUM('月別労働時間（計算）'!E21) -> 0 | F11: =SUM('月別労働時間（計算）'!F19)+SUM('月別労働時間（計算）'!F20)+SUM('月別労働時間（計算）'!F21) -> 0 | G11: =SUM('月別労働時間（計算）'!G19)+SUM('月別労働時間（計算）'!G20)+SUM('月別労働時間（計算）'!G21) -> 0 | H11: =SUM('月別労働時間（計算）'!H19)+SUM('月別労働時間（計算）'!H20)+SUM('月別労働時間（計算）'!H21) -> 0 | I11: =SUM('月別労働時間（計算）'!I19)+SUM('月別労働時間（計算）'!I20)+SUM('月別労働時間（計算）'!I21) -> 0 | J11: =SUM('月別労働時間（計算）'!J19)+SUM('月別労働時間（計算）'!J20)+SUM('月別労働時間（計算）'!J21) -> 0 | K11: =SUM('月別労働時間（計算）'!K19)+SUM('月別労働時間（計算）'!K20)+SUM('月別労働時間（計算）'!K21) -> 0 | L11: =SUM('月別労働時間（計算）'!L19)+SUM('月別労働時間（計算）'!L20)+SUM('月別労働時間（計算）'!L21) -> 0 | M11: =SUM('月別労働時間（計算）'!M19)+SUM('月別労働時間（計算）'!M20)+SUM('月別労働時間（計算）'!M21) -> 0 | N11: =SUM('月別労働時間（計算）'!N19)+SUM('月別労働時間（計算）'!N20)+SUM('月別労働時間（計算）'!N21) -> 0 | O11: 0
C12: 6月 | E12: =SUM('月別労働時間（計算）'!E22)+SUM('月別労働時間（計算）'!E23)+SUM('月別労働時間（計算）'!E24) -> 0 | F12: =SUM('月別労働時間（計算）'!F22)+SUM('月別労働時間（計算）'!F23)+SUM('月別労働時間（計算）'!F24) -> 0 | G12: =SUM('月別労働時間（計算）'!G22)+SUM('月別労働時間（計算）'!G23)+SUM('月別労働時間（計算）'!G24) -> 0 | H12: =SUM('月別労働時間（計算）'!H22)+SUM('月別労働時間（計算）'!H23)+SUM('月別労働時間（計算）'!H24) -> 0 | I12: =SUM('月別労働時間（計算）'!I22)+SUM('月別労働時間（計算）'!I23)+SUM('月別労働時間（計算）'!I24) -> 0 | J12: =SUM('月別労働時間（計算）'!J22)+SUM('月別労働時間（計算）'!J23)+SUM('月別労働時間（計算）'!J24) -> 0 | K12: =SUM('月別労働時間（計算）'!K22)+SUM('月別労働時間（計算）'!K23)+SUM('月別労働時間（計算）'!K24) -> 0 | L12: =SUM('月別労働時間（計算）'!L22)+SUM('月別労働時間（計算）'!L23)+SUM('月別労働時間（計算）'!L24) -> 0 | M12: =SUM('月別労働時間（計算）'!M22)+SUM('月別労働時間（計算）'!M23)+SUM('月別労働時間（計算）'!M24) -> 0 | N12: =SUM('月別労働時間（計算）'!N22)+SUM('月別労働時間（計算）'!N23)+SUM('月別労働時間（計算）'!N24) -> 0 | O12: 0
C13: 7月 | E13: =SUM('月別労働時間（計算）'!E25)+SUM('月別労働時間（計算）'!E26)+SUM('月別労働時間（計算）'!E27) -> 0 | F13: =SUM('月別労働時間（計算）'!F25)+SUM('月別労働時間（計算）'!F26)+SUM('月別労働時間（計算）'!F27) -> 0 | G13: =SUM('月別労働時間（計算）'!G25)+SUM('月別労働時間（計算）'!G26)+SUM('月別労働時間（計算）'!G27) -> 0 | H13: =SUM('月別労働時間（計算）'!H25)+SUM('月別労働時間（計算）'!H26)+SUM('月別労働時間（計算）'!H27) -> 0 | I13: =SUM('月別労働時間（計算）'!I25)+SUM('月別労働時間（計算）'!I26)+SUM('月別労働時間（計算）'!I27) -> 0 | J13: =SUM('月別労働時間（計算）'!J25)+SUM('月別労働時間（計算）'!J26)+SUM('月別労働時間（計算）'!J27) -> 0 | K13: =SUM('月別労働時間（計算）'!K25)+SUM('月別労働時間（計算）'!K26)+SUM('月別労働時間（計算）'!K27) -> 0 | L13: =SUM('月別労働時間（計算）'!L25)+SUM('月別労働時間（計算）'!L26)+SUM('月別労働時間（計算）'!L27) -> 0 | M13: =SUM('月別労働時間（計算）'!M25)+SUM('月別労働時間（計算）'!M26)+SUM('月別労働時間（計算）'!M27) -> 0 | N13: =SUM('月別労働時間（計算）'!N25)+SUM('月別労働時間（計算）'!N26)+SUM('月別労働時間（計算）'!N27) -> 0 | O13: 0
C14: 8月 | E14: =SUM('月別労働時間（計算）'!E28)+SUM('月別労働時間（計算）'!E29)+SUM('月別労働時間（計算）'!E30) -> 0 | F14: =SUM('月別労働時間（計算）'!F28)+SUM('月別労働時間（計算）'!F29)+SUM('月別労働時間（計算）'!F30) -> 0 | G14: =SUM('月別労働時間（計算）'!G28)+SUM('月別労働時間（計算）'!G29)+SUM('月別労働時間（計算）'!G30) -> 0 | H14: =SUM('月別労働時間（計算）'!H28)+SUM('月別労働時間（計算）'!H29)+SUM('月別労働時間（計算）'!H30) -> 0 | I14: =SUM('月別労働時間（計算）'!I28)+SUM('月別労働時間（計算）'!I29)+SUM('月別労働時間（計算）'!I30) -> 0 | J14: =SUM('月別労働時間（計算）'!J28)+SUM('月別労働時間（計算）'!J29)+SUM('月別労働時間（計算）'!J30) -> 0 | K14: =SUM('月別労働時間（計算）'!K28)+SUM('月別労働時間（計算）'!K29)+SUM('月別労働時間（計算）'!K30) -> 0 | L14: =SUM('月別労働時間（計算）'!L28)+SUM('月別労働時間（計算）'!L29)+SUM('月別労働時間（計算）'!L30) -> 0 | M14: =SUM('月別労働時間（計算）'!M28)+SUM('月別労働時間（計算）'!M29)+SUM('月別労働時間（計算）'!M30) -> 0 | N14: =SUM('月別労働時間（計算）'!N28)+SUM('月別労働時間（計算）'!N29)+SUM('月別労働時間（計算）'!N30) -> 0 | O14: 0
C15: 9月 | E15: =SUM('月別労働時間（計算）'!E31)+SUM('月別労働時間（計算）'!E32)+SUM('月別労働時間（計算）'!E33) -> 0 | F15: =SUM('月別労働時間（計算）'!F31)+SUM('月別労働時間（計算）'!F32)+SUM('月別労働時間（計算）'!F33) -> 0 | G15: =SUM('月別労働時間（計算）'!G31)+SUM('月別労働時間（計算）'!G32)+SUM('月別労働時間（計算）'!G33) -> 0 | H15: =SUM('月別労働時間（計算）'!H31)+SUM('月別労働時間（計算）'!H32)+SUM('月別労働時間（計算）'!H33) -> 0 | I15: =SUM('月別労働時間（計算）'!I31)+SUM('月別労働時間（計算）'!I32)+SUM('月別労働時間（計算）'!I33) -> 0 | J15: =SUM('月別労働時間（計算）'!J31)+SUM('月別労働時間（計算）'!J32)+SUM('月別労働時間（計算）'!J33) -> 0 | K15: =SUM('月別労働時間（計算）'!K31)+SUM('月別労働時間（計算）'!K32)+SUM('月別労働時間（計算）'!K33) -> 0 | L15: =SUM('月別労働時間（計算）'!L31)+SUM('月別労働時間（計算）'!L32)+SUM('月別労働時間（計算）'!L33) -> 0 | M15: =SUM('月別労働時間（計算）'!M31)+SUM('月別労働時間（計算）'!M32)+SUM('月別労働時間（計算）'!M33) -> 0 | N15: =SUM('月別労働時間（計算）'!N31)+SUM('月別労働時間（計算）'!N32)+SUM('月別労働時間（計算）'!N33) -> 0 | O15: 0
C16: 10月 | E16: =SUM('月別労働時間（計算）'!E34)+SUM('月別労働時間（計算）'!E35)+SUM('月別労働時間（計算）'!E36) -> 0 | F16: =SUM('月別労働時間（計算）'!F34)+SUM('月別労働時間（計算）'!F35)+SUM('月別労働時間（計算）'!F36) -> 0 | G16: =SUM('月別労働時間（計算）'!G34)+SUM('月別労働時間（計算）'!G35)+SUM('月別労働時間（計算）'!G36) -> 0 | H16: =SUM('月別労働時間（計算）'!H34)+SUM('月別労働時間（計算）'!H35)+SUM('月別労働時間（計算）'!H36) -> 0 | I16: =SUM('月別労働時間（計算）'!I34)+SUM('月別労働時間（計算）'!I35)+SUM('月別労働時間（計算）'!I36) -> 0 | J16: =SUM('月別労働時間（計算）'!J34)+SUM('月別労働時間（計算）'!J35)+SUM('月別労働時間（計算）'!J36) -> 0 | K16: =SUM('月別労働時間（計算）'!K34)+SUM('月別労働時間（計算）'!K35)+SUM('月別労働時間（計算）'!K36) -> 0 | L16: =SUM('月別労働時間（計算）'!L34)+SUM('月別労働時間（計算）'!L35)+SUM('月別労働時間（計算）'!L36) -> 0 | M16: =SUM('月別労働時間（計算）'!M34)+SUM('月別労働時間（計算）'!M35)+SUM('月別労働時間（計算）'!M36) -> 0 | N16: =SUM('月別労働時間（計算）'!N34)+SUM('月別労働時間（計算）'!N35)+SUM('月別労働時間（計算）'!N36) -> 0 | O16: 0
C17: 11月 | E17: =SUM('月別労働時間（計算）'!E37)+SUM('月別労働時間（計算）'!E38)+SUM('月別労働時間（計算）'!E39) -> 0 | F17: =SUM('月別労働時間（計算）'!F37)+SUM('月別労働時間（計算）'!F38)+SUM('月別労働時間（計算）'!F39) -> 0 | G17: =SUM('月別労働時間（計算）'!G37)+SUM('月別労働時間（計算）'!G38)+SUM('月別労働時間（計算）'!G39) -> 0 | H17: =SUM('月別労働時間（計算）'!H37)+SUM('月別労働時間（計算）'!H38)+SUM('月別労働時間（計算）'!H39) -> 0 | I17: =SUM('月別労働時間（計算）'!I37)+SUM('月別労働時間（計算）'!I38)+SUM('月別労働時間（計算）'!I39) -> 0 | J17: =SUM('月別労働時間（計算）'!J37)+SUM('月別労働時間（計算）'!J38)+SUM('月別労働時間（計算）'!J39) -> 0 | K17: =SUM('月別労働時間（計算）'!K37)+SUM('月別労働時間（計算）'!K38)+SUM('月別労働時間（計算）'!K39) -> 0 | L17: =SUM('月別労働時間（計算）'!L37)+SUM('月別労働時間（計算）'!L38)+SUM('月別労働時間（計算）'!L39) -> 0 | M17: =SUM('月別労働時間（計算）'!M37)+SUM('月別労働時間（計算）'!M38)+SUM('月別労働時間（計算）'!M39) -> 0 | N17: =SUM('月別労働時間（計算）'!N37)+SUM('月別労働時間（計算）'!N38)+SUM('月別労働時間（計算）'!N39) -> 0 | O17: 0
C18: 12月 | E18: =SUM('月別労働時間（計算）'!E40)+SUM('月別労働時間（計算）'!E41)+SUM('月別労働時間（計算）'!E42) -> 0 | F18: =SUM('月別労働時間（計算）'!F40)+SUM('月別労働時間（計算）'!F41)+SUM('月別労働時間（計算）'!F42) -> 0 | G18: =SUM('月別労働時間（計算）'!G40)+SUM('月別労働時間（計算）'!G41)+SUM('月別労働時間（計算）'!G42) -> 0 | H18: =SUM('月別労働時間（計算）'!H40)+SUM('月別労働時間（計算）'!H41)+SUM('月別労働時間（計算）'!H42) -> 0 | I18: =SUM('月別労働時間（計算）'!I40)+SUM('月別労働時間（計算）'!I41)+SUM('月別労働時間（計算）'!I42) -> 0 | J18: =SUM('月別労働時間（計算）'!J40)+SUM('月別労働時間（計算）'!J41)+SUM('月別労働時間（計算）'!J42) -> 0 | K18: =SUM('月別労働時間（計算）'!K40)+SUM('月別労働時間（計算）'!K41)+SUM('月別労働時間（計算）'!K42) -> 0 | L18: =SUM('月別労働時間（計算）'!L40)+SUM('月別労働時間（計算）'!L41)+SUM('月別労働時間（計算）'!L42) -> 0 | M18: =SUM('月別労働時間（計算）'!M40)+SUM('月別労働時間（計算）'!M41)+SUM('月別労働時間（計算）'!M42) -> 0 | N18: =SUM('月別労働時間（計算）'!N40)+SUM('月別労働時間（計算）'!N41)+SUM('月別労働時間（計算）'!N42) -> 0 | O18: 0
C19: 計 | E19: =SUM(E7:E18) -> 0 | F19: 0 | G19: 0 | H19: 0 | I19: 0 | J19: 0 | K19: 0 | L19: 0 | M19: 0 | N19: 0 | O19: 0
B24: 単位面積等変換係数 | E24: =IF(E6="a",E5/10,IF(OR(E6="玉",E6="本"),E5/1000,E5)) -> 0 | F24: 0 | G24: 0 | H24: 0 | I24: 0 | J24: 0 | K24: 0 | L24: 0 | M24: 0 | N24: 0

Sheet 月別労働時間（計算） (hidden)
B1: ■ 胆沢平野土地改良区 月別労働時間
B2: No | E2: 体系01 | F2: 体系02 | G2: 体系03 | H2: 体系04 | I2: 体系05 | J2: 体系06 | K2: 体系07 | L2: 体系08 | M2: 体系09 | N2: 体系10 | O2: 営農計画 合 計
B3: 地域名 | E3: =試算計画表!E12 -> 1_胆沢東部・前沢 | F3: =試算計画表!F12 -> 0 | G3: =試算計画表!G12 -> 0 | H3: =試算計画表!H12 -> 0 | I3: =試算計画表!I12 -> 0 | J3: =試算計画表!J12 -> 0 | K3: =試算計画表!K12 -> 0 | L3: =試算計画表!L12 -> 0 | M3: =試算計画表!M12 -> 0 | N3: =試算計画表!N12 -> 0
B4: 体系名 | E4: =試算計画表!E14 -> 0 | F4: =試算計画表!F14 -> 0 | G4: =試算計画表!G14 -> 0 | H4: =試算計画表!H14 -> 0 | I4: =試算計画表!I14 -> 0 | J4: =試算計画表!J14 -> 0 | K4: =試算計画表!K14 -> 0 | L4: =試算計画表!L14 -> 0 | M4: =試算計画表!M14 -> 0 | N4: =試算計画表!N14 -> 0
B5: 設 計 規 模 | E5: =試算計画表!E15 -> 0 | F5: =試算計画表!F15 -> 0 | G5: =試算計画表!G15 -> 0 | H5: =試算計画表!H15 -> 0 | I5: =試算計画表!I15 -> 0 | J5: =試算計画表!J15 -> 0 | K5: =試算計画表!K15 -> 0 | L5: =試算計画表!L15 -> 0 | M5: =試算計画表!M15 -> 0 | N5: =試算計画表!N15 -> 0
C6: 単 位 | E6: =試算計画表!E16 -> a | F6: =試算計画表!F16 -> a | G6: =試算計画表!G16 -> a | H6: =試算計画表!H16 -> a | I6: =試算計画表!I16 -> a | J6: =試算計画表!J16 -> a | K6: =試算計画表!K16 -> a | L6: =試算計画表!L16 -> a | M6: =試算計画表!M16 -> a | N6: =試算計画表!N16 -> a
B7: 旬 別 労 働 時 間 （ 設 計 規 模 当 ） | C7: 1月 | O7: =SUM(E7:N7) -> 0
C10: 2月 | O10: =SUM(E10:N10) -> 0
C13: 3月 | O13: =SUM(E13:N13) -> 0
C16: 4月 | O16: =SUM(E16:N16) -> 0
C19: 5月 | O19: =SUM(E19:N19) -> 0
C22: 6月 | O22: =SUM(E22:N22) -> 0
C25: 7月 | O25: =SUM(E25:N25) -> 0
C28: 8月 | O28: =SUM(E28:N28) -> 0
C31: 9月 | O31: =SUM(E31:N31) -> 0
C34: 10月 | O34: =SUM(E34:N34) -> 0
C37: 11月 | O37: =SUM(E37:N37) -> 0
C40: 12月 | O40: =SUM(E40:N40) -> 0
C43: 計 | E43: =SUM(E7:E42) -> 0 | F43: =SUM(F7:F42) -> 0 | G43: =SUM(G7:G42) -> 0 | H43: =SUM(H7:H42) -> 0 | I43: 0 | J43: 0 | K43: 0 | L43: 0 | M43: 0 | N43: 0 | O43: 0
B48: 単位面積等変換係数 | G48: =IF(G6="a",G5/10,IF(OR(G6="玉",G6="本"),G5/1000,G5)) -> 0 | H48: 0 | I48: 0 | J48: 0 | M48: 0 | N48: 0

Sheet 作業別労働時間 (hidden)
B2: ■ 胆沢平野版農業クラウドシステムver.1.0 作業別労働時間
B3: No | E3: 体系01 | F3: 体系02 | G3: 体系03 | H3: 体系04 | I3: 体系05 | J3: 体系06 | K3: 体系07 | L3: 体系08 | M3: 体系09 | N3: 体系10 | O3: 営農計画 合 計
B4: 地域名 | E4: =試算計画表!E12 -> 1_胆沢東部・前沢 | F4: =試算計画表!F12 -> 0 | G4: =試算計画表!G12 -> 0 | H4: =試算計画表!H12 -> 0 | I4: =試算計画表!I12 -> 0 | J4: =試算計画表!J12 -> 0 | K4: =試算計画表!K12 -> 0 | L4: =試算計画表!L12 -> 0 | M4: =試算計画表!M12 -> 0 | N4: =試算計画表!N12 -> 0
B5: 体系名 | E5: =試算計画表!E14 -> 0 | F5: =試算計画表!F14 -> 0 | G5: =試算計画表!G14 -> 0 | H5: =試算計画表!H14 -> 0 | I5: =試算計画表!I14 -> 0 | J5: =試算計画表!J14 -> 0 | K5: =試算計画表!K14 -> 0 | L5: =試算計画表!L14 -> 0 | M5: =試算計画表!M14 -> 0 | N5: =試算計画表!N14 -> 0
B6: 設 計 規 模 | E6: =試算計画表!E15 -> 0 | F6: =試算計画表!F15 -> 0 | G6: =試算計画表!G15 -> 0 | H6: =試算計画表!H15 -> 0 | I6: =試算計画表!I15 -> 0 | J6: =試算計画表!J15 -> 0 | K6: =試算計画表!K15 -> 0 | L6: =試算計画表!L15 -> 0 | M6: =試算計画表!M15 -> 0 | N6: =試算計画表!N15 -> 0
C7: 単 位 | E7: =試算計画表!E16 -> a | F7: =試算計画表!F16 -> a | G7: =試算計画表!G16 -> a | H7: =試算計画表!H16 -> a | I7: =試算計画表!I16 -> a | J7: =試算計画表!J16 -> a | K7: =試算計画表!K16 -> a | L7: =試算計画表!L16 -> a | M7: =試算計画表!M16 -> a | N7: =試算計画表!N16 -> a
B8: 作 業 別 労 働 時 間 | C8: 育苗（移植） または 種子準備（直播） | O8: =SUM(E8:N8) -> 0
C11: 畦畔補修 | O11: =SUM(E11:N11) -> 0
C14: 施肥 | O14: =SUM(E14:N14) -> 0
C17: 耕起 | O17: =SUM(E17:N17) -> 0
C20: 代掻き | O20: =SUM(E20:N20) -> 0
C23: 移植（移植） または 播種（直播） | O23: =SUM(E23:N23) -> 0
C26: 病害虫防除 | O26: =SUM(E26:N26) -> 0
C29: 除草 | O29: =SUM(E29:N29) -> 0
C32: 灌排水 | O32: =SUM(E32:N32) -> 0
C35: 収穫 | O35: =SUM(E35:N35) -> 0
C38: 乾燥調製 | O38: =SUM(E38:N38) -> 0
C41: 計 | E41: =SUM(E8:E40) -> 0 | F41: 0 | G41: 0 | H41: 0 | I41: 0 | J41: 0 | K41: 0 | L41: 0 | M41: 0 | N41: 0 | O41: 0

Sheet 作業別労働時間（計算） (hidden)
B2: ■ 胆沢平野版農業クラウドシステムver.0.1 作業別労働時間
B3: No | E3: 体系01 | F3: 体系02 | G3: 体系03 | H3: 体系04 | I3: 体系05 | J3: 体系06 | K3: 体系07 | L3: 体系08 | M3: 体系09 | N3: 体系10 | O3: 営農計画 合 計
B4: 地域名 | E4: =試算計画表!E12 -> 1_胆沢東部・前沢 | F4: =試算計画表!F12 -> 0 | G4: =試算計画表!G12 -> 0 | H4: =試算計画表!H12 -> 0 | I4: =試算計画表!I12 -> 0 | J4: =試算計画表!J12 -> 0 | K4: =試算計画表!K12 -> 0 | L4: =試算計画表!L12 -> 0 | M4: =試算計画表!M12 -> 0 | N4: =試算計画表!N12 -> 0
B5: 体系名 | E5: =試算計画表!E14 -> 0 | F5: =試算計画表!F14 -> 0 | G5: =試算計画表!G14 -> 0 | H5: =試算計画表!H14 -> 0 | I5: =試算計画表!I14 -> 0 | J5: =試算計画表!J14 -> 0 | K5: =試算計画表!K14 -> 0 | L5: =試算計画表!L14 -> 0 | M5: =試算計画表!M14 -> 0 | N5: =試算計画表!N14 -> 0
B6: 設 計 規 模 | E6: =試算計画表!E15 -> 0 | F6: =試算計画表!F15 -> 0 | G6: =試算計画表!G15 -> 0 | H6: =試算計画表!H15 -> 0 | I6: =試算計画表!I15 -> 0 | J6: =試算計画表!J15 -> 0 | K6: =試算計画表!K15 -> 0 | L6: =試算計画表!L15 -> 0 | M6: =試算計画表!M15 -> 0 | N6: =試算計画表!N15 -> 0
C7: 単 位 | E7: =試算計画表!E16 -> a | F7: =試算計画表!F16 -> a | G7: =試算計画表!G16 -> a | H7: =試算計画表!H16 -> a | I7: =試算計画表!I16 -> a | J7: =試算計画表!J16 -> a | K7: =試算計画表!K16 -> a | L7: =試算計画表!L16 -> a | M7: =試算計画表!M16 -> a | N7: =試算計画表!N16 -> a
B8: 作 業 別 労 働 時 間 | C8: 育苗（移植） または 種子準備（直播） | O8: =SUM(E8:N8) -> 0
C11: 畦畔補修 | O11: =SUM(E11:N11) -> 0
C14: 施肥 | O14: =SUM(E14:N14) -> 0
C17: 耕起 | O17: =SUM(E17:N17) -> 0
C20: 代掻き | O20: =SUM(E20:N20) -> 0
C23: 移植（移植） または 播種（直播） | O23: =SUM(E23:N23) -> 0
C26: 病害虫防除 | O26: =SUM(E26:N26) -> 0
C29: 除草 | O29: =SUM(E29:N29) -> 0
C32: 灌排水 | O32: =SUM(E32:N32) -> 0
C35: 収穫 | O35: =SUM(E35:N35) -> 0
C38: 乾燥調製 | O38: =SUM(E38:N38) -> 0
C41: 計 | E41: =SUM(E8:E40) -> 0 | F41: 0 | G41: 0 | H41: 0 | I41: 0 | J41: 0 | K41: 0 | L41: 0 | M41: 0 | N41: 0 | O41: 0
B57: ■ 胆沢平野版農業クラウドシステム（詳細版）■期間別労働時間

Sheet 費目別コスト
B2: ■ 胆沢平野土地改良区 費目別コスト
B5: No | E5: No.01 | F5: No.02 | G5: No.03 | H5: No.04 | I5: No.05 | J5: No.06 | K5: No.07 | L5: No.08 | M5: No.09 | N5: No.10 | O5: 合計
B6: 地域名 | E6: =試算計画表!E12 -> 1_胆沢東部・前沢 | F6: =試算計画表!F12 -> 0 | G6: =試算計画表!G12 -> 0 | H6: =試算計画表!H12 -> 0 | I6: =試算計画表!I12 -> 0 | J6: =試算計画表!J12 -> 0 | K6: =試算計画表!K12 -> 0 | L6: =試算計画表!L12 -> 0 | M6: =試算計画表!M12 -> 0 | N6: =試算計画表!N12 -> 0
B7: 作物・規模 | E7: =試算計画表!E14 -> 0 | F7: =試算計画表!F14 -> 0 | G7: =試算計画表!G14 -> 0 | H7: =試算計画表!H14 -> 0 | I7: =試算計画表!I14 -> 0 | J7: =試算計画表!J14 -> 0 | K7: =試算計画表!K14 -> 0 | L7: =試算計画表!L14 -> 0 | M7: =試算計画表!M14 -> 0 | N7: =試算計画表!N14 -> 0
B8: 費 目 別 コ ス ト | C8: 種苗費 | O8: =SUM(E8:N8) -> 0
C9: 肥料費 | O9: 0
C10: 農薬費 | O10: 0
C11: 光熱費 | O11: 0
C12: 諸材料費 | O12: 0
C13: 小農具費 | O13: 0
C14: その他資材費 | O14: 0
C15: 機械費 | O15: 0
C16: 施設費 | O16: 0
C17: 水利費等 | O17: 0
C18: 賃借料 | O18: 0
C19: 共済費 | O19: 0
C20: 計 | E20: =SUM(E8:E19) -> 0 | F20: =SUM(F8:F18) -> 0 | G20: 0 | H20: 0 | I20: 0 | J20: 0 | K20: 0 | L20: 0 | M20: 0 | N20: 0 | O20: 0

Sheet 労働時間（単位当） (hidden)
B1: 体系01 | C1: 体系02 | D1: 体系03 | E1: 体系04 | F1: 体系05 | G1: 体系06 | H1: 体系07 | I1: 体系08 | J1: 体系09 | K1: 体系10 | L1: 体系11 | M1: 体系12 | N1: 体系13 | O1: 体系14 | P1: 体系15 | Q1: 体系16 | R1: 体系17 | S1: 体系18 | T1: 体系19 | U1: 体系20 | V1: 体系21 | W1: 体系22 | X1: 体系23 | Y1: 体系24 | Z1: 体系25 | AA1: 体系26 | AB1: 体系27 | AC1: 体系28 | AD1: 体系29 | AE1: 体系30 | AF1: 体系31 | AG1: 体系32 | AH1: 体系33 | AI1: 体系34 | AJ1: 体系35 | AK1: 体系36 | AL1: 体系37 | AM1: 体系38 | AN1: 体系39 | AO1: 体系40 | AP1: 体系41 | AQ1: 体系42 | AR1: 体系43 | AS1: 体系44 | AT1: 体系45 | AU1: 体系46 | AV1: 体系47 | AW1: 体系48 | AX1: 体系49 | AY1: 体系50 | AZ1: 体系51 | BA1: 体系52 | BB1: 体系53 | BC1: 体系54 | BD1: 体系55 | BE1: 体系56 | BF1: 体系57 | BG1: 体系58 | BH1: 体系59 | BI1: 体系60
B2: 10a当 | C2: 10a当 | D2: 10a当 | E2: 10a当 | F2: 10a当 | G2: 10a当 | H2: 10a当 | I2: 10a当 | J2: 10a当 | K2: 10a当 | L2: 10a当 | M2: 10a当 | N2: 10a当 | O2: 10a当 | P2: 10a当 | Q2: 10a当 | R2: 10a当 | S2: 10a当 | T2: 10a当 | U2: 10a当 | V2: 10a当 | W2: 10a当 | X2: 10a当 | Y2: 10a当 | Z2: 10a当 | AA2: 10a当 | AB2: 10a当 | AC2: 10a当 | AD2: 10a当 | AE2: 10a当 | AF2: 10a当 | AG2: 10a当
B3: 0 | C3: 0 | D3: 0 | E3: 0 | F3: 0 | G3: 0 | H3: 0 | I3: 0 | J3: 0 | K3: 0 | L3: 0 | M3: 0 | N3: 0 | O3: 0 | P3: 0 | Q3: 0 | R3: 0 | S3: 0 | T3: 0 | U3: 0 | V3: 0 | W3: 0 | X3: 0 | Y3: 0 | Z3: 0 | AA3: 0 | AB3: 0 | AC3: 0 | AD3: 0 | AE3: 0 | AF3: 0 | AG3: 0
B4: 0 | C4: 0 | D4: 0 | E4: 0 | F4: 0 | G4: 0 | H4: 0 | I4: 0 | J4: 0 | K4: 0 | L4: 0 | M4: 0 | N4: 0 | O4: 0 | P4: 0 | Q4: 0 | R4: 0 | S4: 0 | T4: 0 | U4: 0 | V4: 0 | W4: 0 | X4: 0 | Y4: 0 | Z4: 0 | AA4: 0 | AB4: 0 | AC4: 0 | AD4: 0 | AE4: 0 | AF4: 5.106666667 | AG4: 0
B5: 0 | C5: 0 | D5: 0 | E5: 0 | F5: 0 | G5: 0 | H5: 0 | I5: 0 | J5: 0 | K5: 0 | L5: 0 | M5: 0 | N5: 0 | O5: 0 | P5: 0 | Q5: 0 | R5: 0 | S5: 0 | T5: 0 | U5: 0 | V5: 0 | W5: 0 | X5: 0 | Y5: 0 | Z5: 0 | AA5: 0 | AB5: 0 | AC5: 0 | AD5: 0 | AE5: 0 | AF5: 1.382222222 | AG5: 0
B6: 0 | C6: 0 | D6: 0 | E6: 0 | F6: 0 | G6: 0 | H6: 0 | I6: 0 | J6: 0 | K6: 0 | L6: 0 | M6: 0 | N6: 0 | O6: 0 | P6: 0 | Q6: 0 | R6: 0 | S6: 0 | T6: 0 | U6: 0 | V6: 0 | W6: 0 | X6: 0 | Y6: 0 | Z6: 0 | AA6: 0 | AB6: 0 | AC6: 0 | AD6: 0 | AE6: 0 | AF6: 0.9822222222 | AG6: 2.54
B7: 0 | C7: 0 | D7: 0 | E7: 0 | F7: 0 | G7: 0 | H7: 0 | I7: 0 | J7: 0 | K7: 0 | L7: 0 | M7: 0 | N7: 0 | O7: 0 | P7: 0 | Q7: 0 | R7: 0 | S7: 0 | T7: 0 | U7: 0 | V7: 0 | W7: 0 | X7: 0 | Y7: 0 | Z7: 0 | AA7: 0 | AB7: 0 | AC7: 0 | AD7: 0 | AE7: 0 | AF7: 0.2222222222 | AG7: 2.54
B8: 0 | C8: 0 | D8: 0 | E8: 0 | F8: 0 | G8: 0 | H8: 0 | I8: 0 | J8: 0 | K8: 0 | L8: 0 | M8: 0 | N8: 0 | O8: 0 | P8: 0 | Q8: 0 | R8: 0 | S8: 0 | T8: 0 | U8: 0 | V8: 0 | W8: 0 | X8: 0 | Y8: 0 | Z8: 0 | AA8: 0 | AB8: 0 | AC8: 0 | AD8: 0 | AE8: 0 | AF8: 15.01833333 | AG8: 0.748
B9: 0 | C9: 0 | D9: 0 | E9: 0 | F9: 0 | G9: 0 | H9: 0 | I9: 0 | J9: 0 | K9: 0.0544 | L9: 0.0544 | M9: 0.0544 | N9: 0.0544 | O9: 0.0544 | P9: 0.0544 | Q9: 0 | R9: 0 | S9: 0.0544 | T9: 0.0544 | U9: 0 | V9: 0 | W9: 0 | X9: 0 | Y9: 0 | Z9: 0 | AA9: 0 | AB9: 0 | AC9: 0.0544 | AD9: 0 | AE9: 0 | AF9: 0.945 | AG9: 0.748
B10: 0 | C10: 0 | D10: 0 | E10: 0 | F10: 0 | G10: 0 | H10: 0 | I10: 0 | J10: 0 | K10: 0.0544 | L10: 0.0544 | M10: 0.0544 | N10: 0.0544 | O10: 0.0544 | P10: 0.0544 | Q10: 0 | R10: 0 | S10: 0.0544 | T10: 0.0544 | U10: 0 | V10: 0.04323809524 | W10: 0 | X10: 0 | Y10: 0 | Z10: 0 | AA10: 0 | AB10: 0 | AC10: 0.0544 | AD10: 0 | AE10: 0 | AF10: 5.401666667 | AG10: 0.9505
B11: 0.03660130719 | C11: 0.03660130719 | D11: 0.03660130719 | E11: 0.03733333333 | F11: 0.03733333333 | G11: 0.03733333333 | H11: 0.03733333333 | I11: 0.03733333333 | J11: 0.03733333333 | K11: 0.0544 | L11: 0.0544 | M11: 0.0544 | N11: 0.0544 | O11: 0.0544 | P11: 0.0544 | Q11: 0 | R11: 0 | S11: 0.0544 | T11: 0.0544 | U11: 0 | V11: 0.04323809524 | W11: 0.001659259259 | X11: 0 | Y11: 0 | Z11: 0 | AA11: 0 | AB11: 0 | AC11: 0.0544 | AD11: 0 | AE11: 0 | AF11: 9.821666667 | AG11: 7.888
B12: 0.7141052288 | C12: 0.7096405229 | D12: 0.7096405229 | E12: 0.6643333333 | F12: 0.6643333333 | G12: 0.6643333333 | H12: 0.6608666667 | I12: 0.6608666667 | J12: 0.6608666667 | K12: 0.1175666667 | L12: 0.1175666667 | M12: 0.1175666667 | N12: 0.1125333333 | O12: 0.1125333333 | P12: 0.1125333333 | Q12: 0.3480333333 | R12: 0.3429666667 | S12: 0.1150666667 | T12: 0.1100333333 | U12: 0 | V12: 0.1502380952 | W12: 0.02671703704 | X12: 0 | Y12: 0 | Z12: 0 | AA12: 0 | AB12: 0.3480333333 | AC12: 0.1150666667 | AD12: 0 | AE12: 0 | AF12: 23.49777778 | AG12: 8.819166667
B13: 0.7476346405 | C13: 0.7431699346 | D13: 0.7431699346 | E13: 0.6985333333 | F13: 0.6985333333 | G13: 0.6985333333 | H13: 0.6950666667 | I13: 0.6950666667 | J13: 0.6950666667 | K13: 0.1175666667 | L13: 0.1175666667 | M13: 0.1175666667 | N13: 0.1125333333 | O13: 0.1125333333 | P13: 0.1125333333 | Q13: 0.6618333333 | R13: 0.6583666667 | S13: 0.1150666667 | T13: 0.1100333333 | U13: 0 | V13: 0 | W13: 0.02823703704 | X13: 0 | Y13: 0 | Z13: 0 | AA13: 0 | AB13: 0.6618333333 | AC13: 0.1150666667 | AD13: 0.2933 | AE13: 0.2933 | AF13: 7.644444444 | AG13: 1.041666667
B14: 0.6033333333 | C14: 0.6033333333 | D14: 0.6033333333 | E14: 0.5068666667 | F14: 0.5068666667 | G14: 0.5068666667 | H14: 0.27055 | I14: 0.27055 | J14: 0.27055 | K14: 0.4685333333 | L14: 0.4685333333 | M14: 0.4685333333 | N14: 0.2342666667 | O14: 0.2342666667 | P14: 0.2342666667 | Q14: 0.3853333333 | R14: 0.3869333333 | S14: 0.4718666667 | T14: 0.2359333333 | U14: 0 | V14: 0 | W14: 0.00152 | X14: 0.375 | Y14: 0 | Z14: 0 | AA14: 0 | AB14: 0.3853333333 | AC14: 0.4718666667 | AD14: 0.3933 | AE14: 0.3933 | AF14: 7.644444444 | AG14: 1.881666667
B15: 1.155771242 | C15: 1.155604575 | D15: 1.155604575 | E15: 0.8976777778 | F15: 0.8976777778 | G15: 0.8976777778 | H15: 1.111788889 | I15: 1.111788889 | J15: 1.111788889 | K15: 0.3539777778 | L15: 0.3539777778 | M15: 0.3539777778 | N15: 0.5660055556 | O15: 0.5660055556 | P15: 0.5660055556 | Q15: 0.4970666667 | R15: 0.2656333333 | S15: 0.3539777778 | T15: 0.5676722222 | U15: 0 | V15: 0.1297142857 | W15: 0.00152 | X15: 0.1785666667 | Y15: 0.2643 | Z15: 0 | AA15: 0 | AB15: 0.4989333333 | AC15: 0.3478666667 | AD15: 0 | AE15: 0 | AF15: 5.4 | AG15: 2.671666667
B16: 1.162406536 | C16: 1.162173203 | D16: 1.162173203 | E16: 0.9043444444 | F16: 0.9043444444 | G16: 0.9043444444 | H16: 0.8804388889 | I16: 0.8804388889 | J16: 0.8804388889 | K16: 0.3539777778 | L16: 0.3539777778 | M16: 0.3539777778 | N16: 0.3317388889 | O16: 0.3317388889 | P16: 0.3317388889 | Q16: 0.8976757576 | R16: 1.106871212 | S16: 0.3539777778 | T16: 0.3317388889 | U16: 0 | V16: 0 | W16: 0.00152 | X16: 0.1785666667 | Y16: 0.2643 | Z16: 0 | AA16: 0 | AB16: 0.8976777778 | AC16: 0.3478666667 | AD16: 0 | AE16: 0 | AF16: 35.88666667 | AG16: 2.871666667
B17: 0.5853771242 | C17: 0.5853104575 | D17: 0.5853104575 | E17: 0.5513777778 | F17: 0.5513777778 | G17: 0.5513777778 | H17: 0.5275222222 | I17: 0.5275222222 | J17: 0.5275222222 | K17: 0.08527777778 | L17: 0.08527777778 | M17: 0.08527777778 | N17: 0.06138888889 | O17: 0.06138888889 | P17: 0.06138888889 | Q17: 0.9635090909 | R17: 0.9396045455 | S17: 0.08527777778 | T17: 0.06138888889 | U17: 0.02628571429 | V17: 0.1867142857 | W17: 0.02149333333 | X17: 0 | Y17: 0 | Z17: 0 | AA17: 0 | AB17: 0.9635111111 | AC17: 0.1208333333 | AD17: 0.8861 | AE17: 0.6518 | AF17: 6 | AG17: 2.491666667
B18: 0.09913398693 | C18: 0.09913398693 | D18: 0.09913398693 | E18: 0.06111111111 | F18: 0.06111111111 | G18: 0.06111111111 | H18: 0.03888888889 | I18: 0.03888888889 | J18: 0.03888888889 | K18: 0.1336111111 | L18: 0.1336111111 | M18: 0.1336111111 | N18: 0.1063888889 | O18: 0.1063888889 | P18: 0.1063888889 | Q18: 0.6105424242 | R18: 0.5866878788 | S18: 0.1336111111 | T18: 0.1063888889 | U18: 0.8775 | V18: 0.249 | W18: 0 | X18: 0 | Y18: 0 | Z18: 0 | AA18: 0 | AB18: 0.6105444444 | AC18: 0.2525 | AD18: 0.9861 | AE18: 0.7518 | AF18: 23.52444444 | AG18: 10.915
B19: 0.4603104575 | C19: 0.4603104575 | D19: 0.4603104575 | E19: 0.1465111111 | F19: 0.1465111111 | G19: 0.1465111111 | H19: 0.1243222222 | I19: 0.1243222222 | J19: 0.1243222222 | K19: 0.1465111111 | L19: 0.1465111111 | M19: 0.1465111111 | N19: 0.1243222222 | O19: 0.1243222222 | P19: 0.1243222222 | Q19: 0.1465090909 | R19: 0.1243212121 | S19: 0.1465111111 | T19: 0.1243222222 | U19: 0.8775 | V19: 0 | W19: 0 | X19: 0 | Y19: 0 | Z19: 0 | AA19: 0 | AB19: 0.1465111111 | AC19: 0.1404 | AD19: 0 | AE19: 0 | AF19: 28.52444444 | AG19: 20.35
B20: 0.09913398693 | C20: 0.09913398693 | D20: 0.09913398693 | E20: 0.06111111111 | F20: 0.06111111111 | G20: 0.06111111111 | H20: 0.03888888889 | I20: 0.03888888889 | J20: 0.03888888889 | K20: 0.1927777778 | L20: 0.1927777778 | M20: 0.1927777778 | N20: 0.1672222222 | O20: 0.1672222222 | P20: 0.1672222222 | Q20: 0.06110909091 | R20: 0.03888787879 | S20: 0.1927777778 | T20: 0.1672222222 | U20: 0 | V20: 0.4533571429 | W20: 0 | X20: 0 | Y20: 0 | Z20: 0 | AA20: 0 | AB20: 0.06111111111 | AC20: 0.1866666667 | AD20: 0 | AE20: 0 | AF20: 31.63555556 | AG20: 7.519828537
B21: 0.3066830065 | C21: 0.3066830065 | D21: 0.3066830065 | E21: 0.1250111111 | F21: 0.1250111111 | G21: 0.1250111111 | H21: 0.09610555556 | I21: 0.09610555556 | J21: 0.09610555556 | K21: 0.07611111111 | L21: 0.07611111111 | M21: 0.07611111111 | N21: 0.05055555556 | O21: 0.05055555556 | P21: 0.05055555556 | Q21: 0.1250090909 | R21: 0.09610454545 | S21: 0.07611111111 | T21: 0.05055555556 | U21: 0.1 | V21: 0.5037142857 | W21: 0 | X21: 0 | Y21: 0 | Z21: 0 | AA21: 0 | AB21: 0.07611111111 | AC21: 0.07 | AD21: 0 | AE21: 0 | AF21: 38.06888889 | AG21: 5.303160302
B22: 0.2447908497 | C22: 0.2447222222 | D22: 0.2447222222 | E22: 0.1016777778 | F22: 0.1016777778 | G22: 0.1016777778 | H22: 0.07777222222 | I22: 0.07777222222 | J22: 0.07777222222 | K22: 0.07611111111 | L22: 0.07611111111 | M22: 0.07611111111 | N22: 0.05055555556 | O22: 0.05055555556 | P22: 0.05055555556 | Q22: 0.2431090909 | R22: 0.2175045455 | S22: 0.07611111111 | T22: 0.05055555556 | U22: 0.3625 | V22: 0.05035714286 | W22: 0 | X22: 0 | Y22: 0 | Z22: 0 | AA22: 0 | AB22: 0.2242111111 | AC22: 0.07 | AD22: 0 | AE22: 0 | AF22: 38.62444444 | AG22: 20.30315324
B23: 0.4670457516 | C23: 0.4669771242 | D23: 0.4669771242 | E23: 0.1531777778 | F23: 0.1531777778 | G23: 0.1531777778 | H23: 0.1293222222 | I23: 0.1293222222 | J23: 0.1293222222 | K23: 0.2123444444 | L23: 0.2123444444 | M23: 0.2123444444 | N23: 0.1884888889 | O23: 0.1884888889 | P23: 0.1884888889 | Q23: 0.2946090909 | R23: 0.2690545455 | S23: 0.2123444444 | T23: 0.1884888889 | U23: 0.2625 | V23: 0 | W23: 0 | X23: 0 | Y23: 0 | Z23: 0 | AA23: 0 | AB23: 0.2946111111 | AC23: 0.2062333333 | AD23: 0.6056 | AE23: 0.4456 | AF23: 39.48888889 | AG23: 23.69870697
B24: 0.09913398693 | C24: 0.09913398693 | D24: 0.09913398693 | E24: 0.06111111111 | F24: 0.06111111111 | G24: 0.06111111111 | H24: 0.03888888889 | I24: 0.03888888889 | J24: 0.03888888889 | K24: 0.1269444444 | L24: 0.1269444444 | M24: 0.1269444444 | N24: 0.1030555556 | O24: 0.1030555556 | P24: 0.1030555556 | Q24: 0.06110909091 | R24: 0.03888787879 | S24: 0.1269444444 | T24: 0.1030555556 | U24: 0 | V24: 0 | W24: 0 | X24: 0 | Y24: 0 | Z24: 0 | AA24: 0 | AB24: 0.06111111111 | AC24: 0.1208333333 | AD24: 0.7232 | AE24: 0.5632 | AF24: 29.85333333 | AG24: 32.33648109
B25: 0.09913398693 | C25: 0.09913398693 | D25: 0.09913398693 | E25: 0.06111111111 | F25: 0.06111111111 | G25: 0.06111111111 | H25: 0.03888888889 | I25: 0.03888888889 | J25: 0.03888888889 | K25: 0.07694444444 | L25: 0.07694444444 | M25: 0.07694444444 | N25: 0.05305555556 | O25: 0.05305555556 | P25: 0.05305555556 | Q25: 0.06110909091 | R25: 0.03888787879 | S25: 0.06111111111 | T25: 0.03888888889 | U25: 0 | V25: 0 | W25: 0 | X25: 0 | Y25: 0 | Z25: 0 | AA25: 0 | AB25: 0.03083333333 | AC25: 0.015 | AD25: 0.19 | AE25: 0.19 | AF25: 30.18666667 | AG25: 31.78092579
B26: 0.09913398693 | C26: 0.09913398693 | D26: 0.09913398693 | E26: 0.06111111111 | F26: 0.06111111111 | G26: 0.06111111111 | H26: 0.03888888889 | I26: 0.03888888889 | J26: 0.03888888889 | K26: 0.07694444444 | L26: 0.07694444444 | M26: 0.07694444444 | N26: 0.05305555556 | O26: 0.05305555556 | P26: 0.05305555556 | Q26: 0.06110909091 | R26: 0.03888787879 | S26: 0.06111111111 | T26: 0.03888888889 | U26: 0.2622857143 | V26: 0 | W26: 0 | X26: 0 | Y26: 0 | Z26: 0 | AA26: 0 | AB26: 0.01583333333 | AC26: 0 | AD26: 0.3014 | AE26: 0.3014 | AF26: 29.85333333 | AG26: 31.78092579
B27: 0.3783333333 | C27: 0.3783333333 | D27: 0.3783333333 | E27: 0.0929 | F27: 0.0929 | G27: 0.0929 | H27: 0.09126666667 | I27: 0.09126666667 | J27: 0.09126666667 | K27: 0.0929 | L27: 0.0929 | M27: 0.0929 | N27: 0.09126666667 | O27: 0.09126666667 | P27: 0.09126666667 | Q27: 0.0929 | R27: 0.09126666667 | S27: 0.0929 | T27: 0.09126666667 | U27: 0 | V27: 0 | W27: 0 | X27: 0 | Y27: 0 | Z27: 0 | AA27: 0 | AB27: 0.0854 | AC27: 0.0854 | AD27: 0 | AE27: 0 | AF27: 20.72222222 | AG27: 24.83426226
B28: 1.03320915 | C28: 0.990620915 | D28: 1.034228758 | E28: 0.6439355556 | F28: 0.6226555556 | G28: 0.6488955556 | H28: 0.6231377778 | I28: 0.6018777778 | J28: 0.6414511111 | K28: 0.0075 | L28: 0.0075 | M28: 0.0075 | N28: 0.005833333333 | O28: 0.005833333333 | P28: 0.005833333333 | Q28: 0.0075 | R28: 0.005833333333 | S28: 0.0075 | T28: 0.005833333333 | U28: 0 | V28: 0 | W28: 0 | X28: 0 | Y28: 0 | Z28: 0.2772666667 | AA28: 0.0006627572016 | AB28: 0 | AC28: 0 | AD28: 0 | AE28: 0 | AF28: 22.18055556 | AG28: 29.83425991
B29: 1.016052288 | C29: 0.9734640523 | D29: 1.017071895 | E29: 0.6364355556 | F29: 0.6151555556 | G29: 0.6413955556 | H29: 0.6173044444 | I29: 0.5960444444 | J29: 0.6356177778 | K29: 0.6239155556 | L29: 0.6039155556 | M29: 0.6289155556 | N29: 0.6049977778 | O29: 0.5848044444 | P29: 0.6098044444 | Q29: 0 | R29: 0 | S29: 0 | T29: 0 | U29: 0 | V29: 0.2162380952 | W29: 0 | X29: 0 | Y29: 0 | Z29: 0.2772666667 | AA29: 0.0006627572016 | AB29: 0 | AC29: 0 | AD29: 0.6056 | AE29: 0.4456 | AF29: 21.84722222 | AG29: 22.58759638
B30: 1.016052288 | C30: 0.9734640523 | D30: 1.017071895 | E30: 0.6364355556 | F30: 0.6151555556 | G30: 0.6413955556 | H30: 0.6173044444 | I30: 0.5960444444 | J30: 0.6356177778 | K30: 0.6239155556 | L30: 0.6039155556 | M30: 0.6289155556 | N30: 0.6049977778 | O30: 0.5848044444 | P30: 0.6098044444 | Q30: 0 | R30: 0 | S30: 0 | T30: 0 | U30: 0 | V30: 0.5718809524 | W30: 0 | X30: 0 | Y30: 0 | Z30: 0.2772666667 | AA30: 0.0006627572016 | AB30: 0 | AC30: 0 | AD30: 0.8773 | AE30: 0.7173 | AF30: 18.51388889 | AG30: 13.69871167
B31: 0.6353333333 | C31: 0.576372549 | D31: 0.6394901961 | E31: 0.32298 | F31: 0.2930666667 | G31: 0.33049 | H31: 0.3229266667 | I31: 0.2947166667 | J31: 0.3299733333 | K31: 0.7156822222 | L31: 0.6865822222 | M31: 0.7224155556 | N31: 0.6964811111 | O31: 0.6676377778 | P31: 0.7033211111 | Q31: 0.4459 | R31: 0.4425666667 | S31: 0.4459 | T31: 0.4425666667 | U31: 0 | V31: 0.5718809524 | W31: 0 | X31: 0 | Y31: 0 | Z31: 0 | AA31: 0.0005949382716 | AB31: 0 | AC31: 0 | AD31: 0.2717 | AE31: 0.2717 | AF31: 15.18055556 | AG31: 4.809826968
B32: 0.6353333333 | C32: 0.576372549 | D32: 0.6394901961 | E32: 0.32298 | F32: 0.2930666667 | G32: 0.33049 | H32: 0.3229266667 | I32: 0.2947166667 | J32: 0.3299733333 | K32: 0.3055266667 | L32: 0.2764266667 | M32: 0.31226 | N32: 0.3054366667 | O32: 0.2765933333 | P32: 0.3122766667 | Q32: 0.4459 | R32: 0.4425666667 | S32: 0.4459 | T32: 0.4425666667 | U32: 0.4200238095 | V32: 0 | W32: 0 | X32: 0 | Y32: 0 | Z32: 0 | AA32: 0.0005949382716 | AB32: 0 | AC32: 0 | AD32: 0 | AE32: 0 | AF32: 10.72222222 | AG32: 3.143161086
B33: 0.453627451 | C33: 0.437254902 | D33: 0.4567647059 | E33: 0.2842 | F33: 0.2755666667 | G33: 0.28675 | H33: 0.2841666667 | I33: 0.2772166667 | J33: 0.2862333333 | K33: 0.4930266667 | L33: 0.4639266667 | M33: 0.49976 | N33: 0.4929366667 | O33: 0.4640933333 | P33: 0.4997766667 | Q33: 0.1875 | R33: 0.1875 | S33: 0.1875 | T33: 0.1875 | U33: 0.4200238095 | V33: 0 | W33: 0 | X33: 0 | Y33: 0 | Z33: 0 | AA33: 0.0001782716049 | AB33: 0.1875 | AC33: 0.1875 | AD33: 0 | AE33: 0 | AF33: 6.666666667 | AG33: 0
B34: 0.453627451 | C34: 0.437254902 | D34: 0.4567647059 | E34: 0.2842 | F34: 0.2755666667 | G34: 0.28675 | H34: 0.2841666667 | I34: 0.2772166667 | J34: 0.2862333333 | K34: 0.2792666667 | L34: 0.2701666667 | M34: 0.281 | N34: 0.2789833333 | O34: 0.2703333333 | P34: 0.2810166667 | Q34: 0.1875 | R34: 0.1875 | S34: 0.1875 | T34: 0.1875 | U34: 0.1638095238 | V34: 0 | W34: 0 | X34: 0 | Y34: 0 | Z34: 0 | AA34: 0.0001782716049 | AB34: 0.1875 | AC34: 0.1875 | AD34: 0 | AE34: 0 | AF34: 6.666666667 | AG34: 3.7
B35: 0 | C35: 0 | D35: 0 | E35: 0 | F35: 0 | G35: 0 | H35: 0 | I35: 0 | J35: 0 | K35: 0 | L35: 0 | M35: 0 | N35: 0 | O35: 0 | P35: 0 | Q35: 0 | R35: 0 | S35: 0 | T35: 0 | U35: 0.134 | V35: 0.0535 | W35: 0 | X35: 0 | Y35: 0 | Z35: 0 | AA35: 0 | AB35: 0 | AC35: 0 | AD35: 0 | AE35: 0 | AF35: 2.333333333 | AG35: 4.18
B36: 0 | C36: 0 | D36: 0 | E36: 0 | F36: 0 | G36: 0 | H36: 0 | I36: 0 | J36: 0 | K36: 0 | L36: 0 | M36: 0 | N36: 0 | O36: 0 | P36: 0 | Q36: 0 | R36: 0 | S36: 0 | T36: 0 | U36: 0 | V36: 0.1468571429 | W36: 0 | X36: 0 | Y36: 0 | Z36: 0 | AA36: 0 | AB36: 0 | AC36: 0 | AD36: 0 | AE36: 0 | AF36: 0 | AG36: 0
B37: 0 | C37: 0 | D37: 0 | E37: 0 | F37: 0 | G37: 0 | H37: 0 | I37: 0 | J37: 0 | K37: 0 | L37: 0 | M37: 0 | N37: 0 | O37: 0 | P37: 0 | Q37: 0 | R37: 0 | S37: 0 | T37: 0 | U37: 0 | V37: 0.09335714286 | W37: 0 | X37: 0 | Y37: 0 | Z37: 0 | AA37: 0 | AB37: 0 | AC37: 0 | AD37: 0 | AE37: 0 | AF37: 0 | AG37: 0
B38: 0 | C38: 0 | D38: 0 | E38: 0 | F38: 0 | G38: 0 | H38: 0 | I38: 0 | J38: 0 | K38: 0 | L38: 0 | M38: 0 | N38: 0 | O38: 0 | P38: 0 | Q38: 0 | R38: 0 | S38: 0 | T38: 0 | U38: 0 | V38: 0 | W38: 0 | X38: 0 | Y38: 0 | Z38: 0 | AA38: 0 | AB38: 0 | AC38: 0 | AD38: 0 | AE38: 0 | AF38: 0 | AG38: 0
A39: 計 | B39: =SUM(B3:B38) -> 12.60129804 | C39: =SUM(C3:C38) -> 12.31333333 | D39: 12.60941176 | E39: 8.316466667 | F39: 8.175533333 | G39: 8.351466667 | H39: 7.968733333 | I39: 7.834633333 | J39: 8.0419 | K39: 5.920133333 | L39: =SUM(L3:L38) -> 5.783733333 | M39: =SUM(M3:M38) -> 5.952066667 | N39: 5.5593 | O39: 5.423733333 | P39: 5.591466667 | Q39: 6.784866667 | R39: 6.506833333 | S39: 4.112266667 | T39: 3.8056 | U39: 3.906428571 | V39: =SUM(V3:V38) -> 3.463285714 | W39: =SUM(W3:W38) -> 0.08266666667 | X39: 0.7321333333 | Y39: 0.5286 | Z39: 0.8318 | AA39: 0.003534691358 | AB39: 5.7366 | AC39: 3.2038 | AD39: 6.1336 | AE39: 5.025 | AF39: =SUM(AF3:AF38) -> 539.5466667 | AG39: =SUM(AG3:AG38) -> 325.968 | AH39: 0 | AI39: 0 | AJ39: 0 | AK39: 0 | AL39: 0 | AM39: 0 | AN39: 0 | AO39: 0 | AP39: =SUM(AP3:AP38) -> 0 | AQ39: =SUM(AQ3:AQ38) -> 0 | AR39: 0 | AS39: 0 | AT39: 0 | AU39: 0 | AV39: 0 | AW39: 0 | AX39: 0 | AY39: 0 | AZ39: =SUM(AZ3:AZ38) -> 0 | BA39: =SUM(BA3:BA38) -> 0 | BB39: 0 | BC39: 0 | BD39: 0 | BE39: 0 | BF39: 0 | BG39: 0 | BH39: 0 | BI39: 0

Sheet 収支総括表（設計規模当） (hidden)
C1: 体系01 | D1: 体系02 | E1: 体系03 | F1: 体系04 | G1: 体系05 | H1: 体系06 | I1: 体系07 | J1: 体系08 | K1: 体系09 | L1: 体系10 | M1: 体系11 | N1: 体系12 | O1: 体系13 | P1: 体系14 | Q1: 体系15 | R1: 体系16 | S1: 体系17 | T1: 体系18 | U1: 体系19 | V1: 体系20 | W1: 体系21 | X1: 体系22 | Y1: 体系23 | Z1: 体系24 | AA1: 体系25 | AB1: 体系26 | AC1: 体系27 | AD1: 体系28 | AE1: 体系29 | AF1: 体系30 | AG1: 体系31 | AH1: 体系32 | AI1: 体系33 | AJ1: 体系34 | AK1: 体系35 | AL1: 体系36 | AM1: 体系37 | AN1: 体系38 | AO1: 体系39 | AP1: 体系40 | AQ1: 体系41 | AR1: 体系42 | AS1: 体系43 | AT1: 体系44 | AU1: 体系45 | AV1: 体系46 | AW1: 体系47 | AX1: 体系48 | AY1: 体系49 | AZ1: 体系50 | BA1: 体系51 | BB1: 体系52 | BC1: 体系53 | BD1: 体系54 | BE1: 体系55 | BF1: 体系56 | BG1: 体系57 | BH1: 体系58 | BI1: 体系59 | BJ1: 体系60 | BK1: 合計
A2: 想 定 規 模
A3: 収 益 | B3: 収 量
B4: 販売単価
B5: 副産物価額
B6: その他収益
A7: 費 用 | B7: 種 苗 費 | BK7: =SUM(C7:L7) -> 0
B8: 肥 料 費 | BK8: =SUM(C8:L8) -> 0
B9: 農 薬 費 | BK9: 0
B10: 光熱動力費 | BK10: 0
B11: 諸 材 料 費 | BK11: 0
B12: 土地改良及び水利費 | BK12: 0
B13: 賃借料及び料金 | BK13: 0
B14: 小 農 具 費 | BK14: 0
B15: 成 園 費 | BK15: 0
B16: も と 畜 費 | BK16: 0
B17: 種 付 け 料 | BK17: 0
B18: 飼 料 費 | BK18: 0
B19: 敷 料 費 | BK19: 0
B20: 獣医師料及び医薬品費 | BK20: 0
B21: 流 通 経 費 | BK21: 0
B22: 共 済 費 | BK22: 0
B23: その他資材 | BK23: 0
B24: 農業施設費（法定耐用年数法） | BK24: 0
B25: 農業施設費（実耐用年数法） | BK25: 0
B26: 農業機械費（法定耐用年数法） | BK26: 0
B27: 農業機械費（実耐用年数法） | BK27: 0
B28: 変動費計 | C28: =SUM(C7:C23) -> 0 | D28: 0 | E28: 0 | F28: 0 | G28: 0 | H28: 0 | I28: 0 | J28: 0 | K28: 0 | L28: 0 | M28: 0 | N28: =SUM(N7:N23) -> 0 | O28: 0 | P28: 0 | Q28: 0 | R28: 0 | S28: 0 | T28: 0 | U28: 0 | V28: 0 | W28: =SUM(W7:W23) -> 0 | X28: =SUM(X7:X23) -> 0 | Y28: 0 | Z28: 0 | AA28: 0 | AB28: 0 | AC28: 0 | AD28: 0 | AE28: 0 | AF28: 0 | AG28: =SUM(AG7:AG23) -> 0 | AH28: =SUM(AH7:AH23) -> 0 | AI28: 0 | AJ28: 0 | AK28: 0 | AL28: 0 | AM28: 0 | AN28: 0 | AO28: 0 | AP28: 0 | AQ28: =SUM(AQ7:AQ23) -> 0 | AR28: =SUM(AR7:AR23) -> 0 | AS28: 0 | AT28: 0 | AU28: 0 | AV28: 0 | AW28: 0 | AX28: 0 | AY28: 0 | AZ28: 0 | BA28: =SUM(BA7:BA23) -> 0 | BB28: =SUM(BB7:BB23) -> 0 | BC28: 0 | BD28: 0 | BE28: 0 | BF28: 0 | BG28: 0 | BH28: 0 | BI28: 0 | BJ28: 0 | BK28: =SUM(C28:L28) -> 0
B29: 施設+機械（法定耐用年数法） | C29: =C24+C26 -> 0 | D29: 0 | E29: 0 | F29: 0 | G29: 0 | H29: 0 | I29: 0 | J29: 0 | K29: 0 | L29: 0 | M29: 0 | N29: =N24+N26 -> 0 | O29: 0 | P29: 0 | Q29: 0 | R29: 0 | S29: 0 | T29: 0 | U29: 0 | V29: 0 | W29: =W24+W26 -> 0 | X29: =X24+X26 -> 0 | Y29: 0 | Z29: 0 | AA29: 0 | AB29: 0 | AC29: 0 | AD29: 0 | AE29: 0 | AF29: 0 | AG29: =AG24+AG26 -> 0 | AH29: =AH24+AH26 -> 0 | AI29: 0 | AJ29: 0 | AK29: 0 | AL29: 0 | AM29: 0 | AN29: 0 | AO29: 0 | AP29: 0 | AQ29: =AQ24+AQ26 -> 0 | AR29: =AR24+AR26 -> 0 | AS29: 0 | AT29: 0 | AU29: 0 | AV29: 0 | AW29: 0 | AX29: 0 | AY29: 0 | AZ29: 0 | BA29: =BA24+BA26 -> 0 | BB29: =BB24+BB26 -> 0 | BC29: 0 | BD29: 0 | BE29: 0 | BF29: 0 | BG29: 0 | BH29: 0 | BI29: 0 | BJ29: 0 | BK29: =SUM(C29:L29) -> 0
B30: 施設+機械（実耐用年数法） | C30: =C25+C27 -> 0 | D30: 0 | E30: 0 | F30: 0 | G30: 0 | H30: 0 | I30: 0 | J30: 0 | K30: 0 | L30: 0 | M30: 0 | N30: =N25+N27 -> 0 | O30: 0 | P30: 0 | Q30: 0 | R30: 0 | S30: 0 | T30: 0 | U30: 0 | V30: 0 | W30: =W25+W27 -> 0 | X30: =X25+X27 -> 0 | Y30: 0 | Z30: 0 | AA30: 0 | AB30: 0 | AC30: 0 | AD30: 0 | AE30: 0 | AF30: 0 | AG30: =AG25+AG27 -> 0 | AH30: =AH25+AH27 -> 0 | AI30: 0 | AJ30: 0 | AK30: 0 | AL30: 0 | AM30: 0 | AN30: 0 | AO30: 0 | AP30: 0 | AQ30: =AQ25+AQ27 -> 0 | AR30: =AR25+AR27 -> 0 | AS30: 0 | AT30: 0 | AU30: 0 | AV30: 0 | AW30: 0 | AX30: 0 | AY30: 0 | AZ30: 0 | BA30: =BA25+BA27 -> 0 | BB30: =BB25+BB27 -> 0 | BC30: 0 | BD30: 0 | BE30: 0 | BF30: 0 | BG30: 0 | BH30: 0 | BI30: 0 | BJ30: 0 | BK30: =SUM(C30:L30) -> 0

Sheet 収支総括表（単位当） (hidden)
C1: 体系01 | D1: 体系02 | E1: 体系03 | F1: 体系04 | G1: 体系05 | H1: 体系06 | I1: 体系07 | J1: 体系08 | K1: 体系09 | L1: 体系10 | M1: 体系11 | N1: 体系12 | O1: 体系13 | P1: 体系14 | Q1: 体系15 | R1: 体系16 | S1: 体系17 | T1: 体系18 | U1: 体系19 | V1: 体系20 | W1: 体系21 | X1: 体系22 | Y1: 体系23 | Z1: 体系24 | AA1: 体系25 | AB1: 体系26 | AC1: 体系27 | AD1: 体系28 | AE1: 体系29 | AF1: 体系30 | AG1: 体系31 | AH1: 体系32 | AI1: 体系33 | AJ1: 体系34 | AK1: 体系35 | AL1: 体系36 | AM1: 体系37 | AN1: 体系38 | AO1: 体系39 | AP1: 体系40 | AQ1: 体系41 | AR1: 体系42 | AS1: 体系43 | AT1: 体系44 | AU1: 体系45 | AV1: 体系46 | AW1: 体系47 | AX1: 体系48 | AY1: 体系49 | AZ1: 体系50 | BA1: 体系51 | BB1: 体系52 | BC1: 体系53 | BD1: 体系54 | BE1: 体系55 | BF1: 体系56 | BG1: 体系57 | BH1: 体系58 | BI1: 体系59 | BJ1: 体系60
A2: 単 位 | C2: 10a当 | D2: 10a当 | E2: 10a当 | F2: 10a当 | G2: 10a当 | H2: 10a当 | I2: 10a当 | J2: 10a当 | K2: 10a当 | L2: 10a当 | M2: 10a当 | N2: 10a当 | O2: 10a当 | P2: 10a当 | Q2: 10a当 | R2: 10a当 | S2: 10a当 | T2: 10a当 | U2: 10a当 | V2: 10a当 | W2: 10a当 | X2: 10a当 | Y2: 10a当 | Z2: 10a当 | AA2: 10a当 | AB2: 10a当 | AC2: 10a当 | AD2: 10a当 | AE2: 10a当 | AF2: 10a当 | AG2: 10a当 | AH2: 10a当
A3: 収 益 | B3: 収 量 | C3: =売上!$E$7 -> 543 | D3: =売上!$E$16 -> 492 | E3: =売上!$E$25 -> 555 | F3: =売上!$E$34 -> 543 | G3: =売上!$E$43 -> 492 | H3: =売上!$E$52 -> 555 | I3: =売上!$E$61 -> 543 | J3: =売上!$E$70 -> 492 | K3: =売上!$E$79 -> 555 | L3: =売上!$E$88 -> 513 | M3: =売上!$E$97 -> 465 | N3: =売上!$E$106 -> 525 | O3: =売上!$E$115 -> 513 | P3: =売上!$E$124 -> 465 | Q3: =売上!$E$133 -> 525 | R3: =売上!$E$142 -> 683 | S3: =売上!$E$151 -> 683 | T3: =売上!$E$160 -> 649 | U3: =売上!$E$169 -> 649 | V3: =売上!$E$178 -> 198 | W3: =売上!$E$187 -> 219 | X3: =売上!$E$196 -> 0 | Y3: =売上!$E$205 -> 0 | Z3: =売上!$E$214 -> 0 | AA3: =売上!$E$223 -> 0 | AB3: =売上!$E$232 -> 0 | AC3: =売上!$E$241 -> 2400 | AD3: =売上!$E$250 -> 2400 | AE3: =売上!$E$259 -> 880 | AF3: =売上!$E$268 -> 1500 | AG3: =売上!$E$277 -> 9000 | AH3: =売上!$E$286 -> 4000 | AI3: =売上!$E$295 -> 0 | AJ3: =売上!$E$304 -> 0 | AK3: =売上!$E$313 -> 0 | AL3: =売上!$E$322 -> 0 | AM3: =売上!$E$331 -> 0 | AN3: =売上!$E$340 -> 0 | AO3: =売上!$E$349 -> 0 | AP3: =売上!$E$358 -> 0 | AQ3: =売上!$E$367 -> 0 | AR3: =売上!$E$376 -> 0 | AS3: =売上!$E$385 -> 0 | AT3: =売上!$E$394 -> 0 | AU3: =売上!$E$403 -> 0 | AV3: =売上!$E$412 -> 0 | AW3: =売上!$E$421 -> 0 | AX3: =売上!$E$430 -> 0 | AY3: =売上!$E$439 -> 0 | AZ3: =売上!$E$448 -> 0 | BA3: =売上!$E$457 -> 0 | BB3: =売上!$E$466 -> 0 | BC3: =売上!$E$475 -> 0 | BD3: =売上!$E$484 -> 0 | BE3: =売上!$E$493 -> 0 | BF3: =売上!$E$502 -> 0 | BG3: =売上!$E$511 -> 0 | BH3: =売上!$E$520 -> 0 | BI3: =売上!$E$529 -> 0 | BJ3: =売上!$E$538 -> 0
B4: 販売単価 | C4: =売上!$G$7 -> 190 | D4: =売上!$G$16 -> 190 | E4: =売上!$G$25 -> 190 | F4: =売上!$G$34 -> 190 | G4: =売上!$G$43 -> 190 | H4: =売上!$G$52 -> 190 | I4: =売上!$G$61 -> 190 | J4: =売上!$G$70 -> 190 | K4: =売上!$G$79 -> 190 | L4: =売上!$G$88 -> 190 | M4: =売上!$G$97 -> 190 | N4: =売上!$G$106 -> 190 | O4: =売上!$G$115 -> 190 | P4: =売上!$G$124 -> 190 | Q4: =売上!$G$133 -> 190 | R4: =売上!$G$142 -> 30 | S4: =売上!$G$151 -> 30 | T4: =売上!$G$160 -> 30 | U4: =売上!$G$169 -> 30 | V4: =売上!$G$178 -> 85 | W4: =売上!$G$187 -> 13 | X4: =売上!$G$196 -> 0 | Y4: =売上!$G$205 -> 0 | Z4: =売上!$G$214 -> 0 | AA4: =売上!$G$223 -> 0 | AB4: =売上!$G$232 -> 0 | AC4: =売上!$G$241 -> 10 | AD4: =売上!$G$250 -> 10 | AE4: =売上!$G$259 -> 56.6 | AF4: =売上!$G$268 -> 31.2 | AG4: =売上!$G$277 -> 350 | AH4: =売上!$G$286 -> 350 | AI4: =売上!$G$295 -> 0 | AJ4: =売上!$G$304 -> 0 | AK4: =売上!$G$313 -> 0 | AL4: =売上!$G$322 -> 0 | AM4: =売上!$G$331 -> 0 | AN4: =売上!$G$340 -> 0 | AO4: =売上!$G$349 -> 0 | AP4: =売上!$G$358 -> 0 | AQ4: =売上!$G$367 -> 0 | AR4: =売上!$G$376 -> 0 | AS4: =売上!$G$385 -> 0 | AT4: =売上!$G$394 -> 0 | AU4: =売上!$G$403 -> 0 | AV4: =売上!$G$412 -> 0 | AW4: =売上!$G$421 -> 0 | AX4: =売上!$G$430 -> 0 | AY4: =売上!$G$439 -> 0 | AZ4: =売上!$G$448 -> 0 | BA4: =売上!$G$457 -> 0 | BB4: =売上!$G$466 -> 0 | BC4: =売上!$G$475 -> 0 | BD4: =売上!$G$484 -> 0 | BE4: =売上!$G$493 -> 0 | BF4: =売上!$G$502 -> 0 | BG4: =売上!$G$511 -> 0 | BH4: =売上!$G$520 -> 0 | BI4: =売上!$G$529 -> 0 | BJ4: =売上!$G$538 -> 0
B5: 副産物価額 | C5: =売上!$I$11 -> 0 | D5: =売上!$I$20 -> 0 | E5: =売上!$I$29 -> 0 | F5: =売上!$I$38 -> 0 | G5: =売上!$I$47 -> 0 | H5: =売上!$I$56 -> 0 | I5: =売上!$I$65 -> 0 | J5: =売上!$I$74 -> 0 | K5: =売上!$I$83 -> 0 | L5: =売上!$I$92 -> 0 | M5: =売上!$I$101 -> 0 | N5: =売上!$I$110 -> 0 | O5: =売上!$I$119 -> 0 | P5: =売上!$I$128 -> 0 | Q5: =売上!$I$137 -> 0 | R5: =売上!$I$146 -> 0 | S5: =売上!$I$155 -> 0 | T5: =売上!$I$164 -> 0 | U5: =売上!$I$173 -> 0 | V5: =売上!$I$182 -> 0 | W5: =売上!$I$191 -> 0 | X5: =売上!$I$200 -> 0 | Y5: =売上!$I$209 -> 0 | Z5: =売上!$I$218 -> 0 | AA5: =売上!$I$227 -> 0 | AB5: =売上!$I$236 -> 0 | AC5: =売上!$I$245 -> 0 | AD5: =売上!$I$254 -> 0 | AE5: =売上!$I$263 -> 0 | AF5: =売上!$I$272 -> 0 | AG5: =売上!$I$281 -> 0 | AH5: =売上!$I$290 -> 0 | AI5: =売上!$I$299 -> 0 | AJ5: =売上!$I$308 -> 0 | AK5: =売上!$I$317 -> 0 | AL5: =売上!$I$326 -> 0 | AM5: =売上!$I$335 -> 0 | AN5: =売上!$I$344 -> 0 | AO5: =売上!$I$353 -> 0 | AP5: =売上!$I$362 -> 0 | AQ5: =売上!$I$371 -> 0 | AR5: =売上!$I$380 -> 0 | AS5: =売上!$I$389 -> 0 | AT5: =売上!$I$398 -> 0 | AU5: =売上!$I$407 -> 0 | AV5: =売上!$I$416 -> 0 | AW5: =売上!$I$425 -> 0 | AX5: =売上!$I$434 -> 0 | AY5: =売上!$I$443 -> 0 | AZ5: =売上!$I$452 -> 0 | BA5: =売上!$I$461 -> 0 | BB5: =売上!$I$470 -> 0 | BC5: =売上!$I$479 -> 0 | BD5: =売上!$I$488 -> 0 | BE5: =売上!$I$497 -> 0 | BF5: =売上!$I$506 -> 0 | BG5: =売上!$I$515 -> 0 | BH5: =売上!$I$524 -> 0 | BI5: =売上!$I$533 -> 0 | BJ5: =売上!$I$542 -> 0
B6: その他収益 | C6: =その他収益!$G$2 -> 7500 | D6: =その他収益!$G$13 -> 7500 | E6: =その他収益!$G$24 -> 7500 | F6: =その他収益!$G$35 -> 7500 | G6: =その他収益!$G$46 -> 7500 | H6: =その他収益!$G$57 -> 7500 | I6: =その他収益!$G$68 -> 7500 | J6: =その他収益!$G$79 -> 7500 | K6: =その他収益!$G$90 -> 7500 | L6: =その他収益!$G$101 -> 7500 | M6: =その他収益!$G$112 -> 7500 | N6: =その他収益!$G$123 -> 7500 | O6: =その他収益!$G$134 -> 7500 | P6: =その他収益!$G$145 -> 7500 | Q6: =その他収益!$G$156 -> 7500 | R6: =その他収益!$G$167 -> 117000 | S6: =その他収益!$G$178 -> 117000 | T6: =その他収益!$G$189 -> 111333 | U6: =その他収益!$G$200 -> 111333 | V6: =その他収益!$G$211 -> 69979.4 | W6: =その他収益!$G$222 -> 88218.8 | X6: =その他収益!$G$233 -> 756 | Y6: =その他収益!$G$244 -> 13824 | Z6: =その他収益!$G$255 -> 6264 | AA6: =その他収益!$G$266 -> 20520 | AB6: =その他収益!$G$277 -> 26.6 | AC6: =その他収益!$G$288 -> 93000 | AD6: =その他収益!$G$299 -> 93000 | AE6: =その他収益!$G$310 -> 0 | AF6: =その他収益!$G$321 -> 0 | AG6: =その他収益!$G$332 -> 0 | AH6: =その他収益!$G$343 -> 0 | AI6: =その他収益!$G$354 -> 0 | AJ6: =その他収益!$G$365 -> 0 | AK6: =その他収益!$G$376 -> 0 | AL6: =その他収益!$G$387 -> 0 | AM6: =その他収益!$G$398 -> 0 | AN6: =その他収益!$G$409 -> 0 | AO6: =その他収益!$G$420 -> 0 | AP6: =その他収益!$G$431 -> 0 | AQ6: =その他収益!$G$442 -> 0 | AR6: =その他収益!$G$453 -> 0 | AS6: =その他収益!$G$464 -> 0 | AT6: =その他収益!$G$475 -> 0 | AU6: =その他収益!$G$486 -> 0 | AV6: =その他収益!$G$497 -> 0 | AW6: =その他収益!$G$508 -> 0 | AX6: =その他収益!$G$519 -> 0 | AY6: =その他収益!$G$530 -> 0 | AZ6: =その他収益!$G$541 -> 0 | BA6: =その他収益!$G$552 -> 0 | BB6: =その他収益!$G$563 -> 0 | BC6: =その他収益!$G$574 -> 0 | BD6: =その他収益!$G$585 -> 0 | BE6: =その他収益!$G$596 -> 0 | BF6: =その他収益!$G$607 -> 0 | BG6: =その他収益!$G$618 -> 0 | BH6: =その他収益!$G$629 -> 0 | BI6: =その他収益!$G$640 -> 0 | BJ6: =その他収益!$G$651 -> 0
A7: 費 用 | B7: 種 苗 費 | C7: =種苗!$J$2 -> 1825.2 | D7: =種苗!$J$23 -> 1825.2 | E7: =種苗!$J$44 -> 1825.2 | F7: =種苗!$J$65 -> 1825.2 | G7: =種苗!$J$86 -> 1825.2 | H7: =種苗!$J$107 -> 1825.2 | I7: =種苗!$J$128 -> 1825.2 | J7: =種苗!$J$149 -> 1825.2 | K7: =種苗!$J$170 -> 1825.2 | L7: =種苗!$J$191 -> 2028 | M7: =種苗!$J$212 -> 2028 | N7: =種苗!$J$233 -> 2028 | O7: =種苗!$J$254 -> 2028 | P7: =種苗!$J$275 -> 2028 | Q7: =種苗!$J$296 -> 2028 | R7: =種苗!$J$317 -> 1188 | S7: =種苗!$J$338 -> 1188 | T7: =種苗!$J$359 -> 1320 | U7: =種苗!$J$380 -> 1320 | V7: =種苗!$J$401 -> 2660 | W7: =種苗!$J$422 -> 2640 | X7: =種苗!$J$443 -> 81.12 | Y7: =種苗!$J$464 -> 0 | Z7: =種苗!$J$485 -> 0 | AA7: =種苗!$J$506 -> 0 | AB7: =種苗!$J$527 -> 0 | AC7: =種苗!$J$548 -> 1188 | AD7: =種苗!$J$569 -> 1320 | AE7: =種苗!$J$590 -> 1215.2 | AF7: =種苗!$J$611 -> 1215.2 | AG7: =種苗!$J$632 -> 29020 | AH7: =種苗!$J$653 -> 16100 | AI7: =種苗!$J$674 -> 0 | AJ7: =種苗!$J$695 -> 0 | AK7: =種苗!$J$716 -> 0 | AL7: =種苗!$J$737 -> 0 | AM7: =種苗!$J$758 -> 0 | AN7: =種苗!$J$779 -> 0 | AO7: =種苗!$J$800 -> 0 | AP7: =種苗!$J$821 -> 0 | AQ7: =種苗!$J$842 -> 0 | AR7: =種苗!$J$863 -> 0 | AS7: =種苗!$J$884 -> 0 | AT7: =種苗!$J$905 -> 0 | AU7: =種苗!$J$926 -> 0 | AV7: =種苗!$J$947 -> 0 | AW7: =種苗!$J$968 -> 0 | AX7: =種苗!$J$989 -> 0 | AY7: =種苗!$J$1010 -> 0 | AZ7: =種苗!$J$1031 -> 0 | BA7: =種苗!$J$1052 -> 0 | BB7: =種苗!$J$1073 -> 0 | BC7: =種苗!$J$1094 -> 0 | BD7: =種苗!$J$1115 -> 0 | BE7: =種苗!$J$1136 -> 0 | BF7: =種苗!$J$1157 -> 0 | BG7: =種苗!$J$1178 -> 0 | BH7: =種苗!$J$1199 -> 0 | BI7: =種苗!$J$1220 -> 0 | BJ7: =種苗!$J$1241 -> 0
B8: 肥 料 費 | C8: =肥料!$J$2 -> 7172.5 | D8: =肥料!$J$33 -> 7172.5 | E8: =肥料!$J$64 -> 7172.5 | F8: =肥料!$J$95 -> 6567.5 | G8: =肥料!$J$126 -> 6567.5 | H8: =肥料!$J$157 -> 6567.5 | I8: =肥料!$J$188 -> 6567.5 | J8: =肥料!$J$219 -> 6567.5 | K8: =肥料!$J$250 -> 6567.5 | L8: =肥料!$J$281 -> 9117.5 | M8: =肥料!$J$312 -> 9117.5 | N8: =肥料!$J$343 -> 9117.5 | O8: =肥料!$J$374 -> 9117.5 | P8: =肥料!$J$405 -> 9117.5 | Q8: =肥料!$J$436 -> 9117.5 | R8: =肥料!$J$467 -> 5343.92 | S8: =肥料!$J$498 -> 5343.92 | T8: =肥料!$J$529 -> 9898 | U8: =肥料!$J$560 -> 9898 | V8: =肥料!$J$591 -> 5950 | W8: =肥料!$J$622 -> 6950.5 | X8: =肥料!$J$653 -> 0 | Y8: =肥料!$J$684 -> 0 | Z8: =肥料!$J$715 -> 0 | AA8: =肥料!$J$746 -> 0 | AB8: =肥料!$J$777 -> 0 | AC8: =肥料!$J$808 -> 5800.67 | AD8: =肥料!$J$839 -> 9898 | AE8: =肥料!$J$870 -> 15594.5 | AF8: =肥料!$J$901 -> 15594.5 | AG8: =肥料!$J$932 -> 31140.39556 | AH8: =肥料!$J$963 -> 50170.78667 | AI8: =肥料!$J$994 -> 0 | AJ8: =肥料!$J$1025 -> 0 | AK8: =肥料!$J$1056 -> 0 | AL8: =肥料!$J$1087 -> 0 | AM8: =肥料!$J$1118 -> 0 | AN8: =肥料!$J$1149 -> 0 | AO8: =肥料!$J$1180 -> 0 | AP8: =肥料!$J$1211 -> 0 | AQ8: =肥料!$J$1242 -> 0 | AR8: =肥料!$J$1273 -> 0 | AS8: =肥料!$J$1304 -> 0 | AT8: =肥料!$J$1335 -> 0 | AU8: =肥料!$J$1366 -> 0 | AV8: =肥料!$J$1397 -> 0 | AW8: =肥料!$J$1428 -> 0 | AX8: =肥料!$J$1459 -> 0 | AY8: =肥料!$J$1490 -> 0 | AZ8: =肥料!$J$1521 -> 0 | BA8: =肥料!$J$1552 -> 0 | BB8: =肥料!$J$1583 -> 0 | BC8: =肥料!$J$1614 -> 0 | BD8: =肥料!$J$1645 -> 0 | BE8: =肥料!$J$1676 -> 0 | BF8: =肥料!$J$1707 -> 0 | BG8: =肥料!$J$1738 -> 0 | BH8: =肥料!$J$1769 -> 0 | BI8: =肥料!$J$1800 -> 0 | BJ8: =肥料!$J$1831 -> 0
B9: 農 薬 費 | C9: =農薬!$J$2 -> 10614.38039 | D9: =農薬!$J$43 -> 10614.38039 | E9: =農薬!$J$84 -> 10614.38039 | F9: =農薬!$J$125 -> 10612.625 | G9: =農薬!$J$166 -> 10612.625 | H9: =農薬!$J$207 -> 10612.625 | I9: =農薬!$J$248 -> 10612.625 | J9: =農薬!$J$289 -> 10612.625 | K9: =農薬!$J$330 -> 10612.625 | L9: =農薬!$J$371 -> 13126 | M9: =農薬!$J$412 -> 13126 | N9: =農薬!$J$453 -> 13126 | O9: =農薬!$J$494 -> 18532 | P9: =農薬!$J$535 -> 18532 | Q9: =農薬!$J$576 -> 18532 | R9: =農薬!$J$617 -> 12711.475 | S9: =農薬!$J$658 -> 12711.475 | T9: =農薬!$J$699 -> 13272 | U9: =農薬!$J$740 -> 13272 | V9: =農薬!$J$781 -> 4700.516667 | W9: =農薬!$J$822 -> 3211.058 | X9: =農薬!$J$863 -> 0 | Y9: =農薬!$J$904 -> 0 | Z9: =農薬!$J$945 -> 0 | AA9: =農薬!$J$986 -> 0 | AB9: =農薬!$J$1027 -> 0 | AC9: =農薬!$J$1068 -> 12450.1 | AD9: =農薬!$J$1109 -> 16733 | AE9: =農薬!$J$1150 -> 289 | AF9: =農薬!$J$1191 -> 289 | AG9: =農薬!$J$1232 -> 30841.12138 | AH9: =農薬!$J$1273 -> 13955.04597 | AI9: =農薬!$J$1314 -> 0 | AJ9: =農薬!$J$1355 -> 0 | AK9: =農薬!$J$1396 -> 0 | AL9: =農薬!$J$1437 -> 0 | AM9: =農薬!$J$1478 -> 0 | AN9: =農薬!$J$1519 -> 0 | AO9: =農薬!$J$1560 -> 0 | AP9: =農薬!$J$1601 -> 0 | AQ9: =農薬!$J$1642 -> 0 | AR9: =農薬!$J$1683 -> 0 | AS9: =農薬!$J$1724 -> 0 | AT9: =農薬!$J$1765 -> 0 | AU9: =農薬!$J$1806 -> 0 | AV9: =農薬!$J$1847 -> 0 | AW9: =農薬!$J$1888 -> 0 | AX9: =農薬!$J$1929 -> 0 | AY9: =農薬!$J$1970 -> 0 | AZ9: =農薬!$J$2011 -> 0 | BA9: =農薬!$J$2052 -> 0 | BB9: =農薬!$J$2093 -> 0 | BC9: =農薬!$J$2134 -> 0 | BD9: =農薬!$J$2175 -> 0 | BE9: =農薬!$J$2216 -> 0 | BF9: =農薬!$J$2257 -> 0 | BG9: =農薬!$J$2298 -> 0 | BH9: =農薬!$J$2339 -> 0 | BI9: =農薬!$J$2380 -> 0 | BJ9: =農薬!$J$2421 -> 0
B10: 光熱動力費 | C10: =光熱!$J$2 -> 4180.773147 | D10: =光熱!$J$18 -> 4208.201947 | E10: =光熱!$J$34 -> 4180.773147 | F10: =光熱!$J$50 -> 4177.340503 | G10: =光熱!$J$66 -> 4177.340503 | H10: =光熱!$J$82 -> 4177.340503 | I10: =光熱!$J$98 -> 3908.569749 | J10: =光熱!$J$114 -> 3753.481499 | K10: =光熱!$J$130 -> 3908.569749 | L10: =光熱!$J$146 -> 4292.184148 | M10: =光熱!$J$162 -> 4292.184148 | N10: =光熱!$J$178 -> 4292.184148 | O10: =光熱!$J$194 -> 3866.396225 | P10: =光熱!$J$210 -> 3866.396225 | Q10: =光熱!$J$226 -> 3866.396225 | R10: =光熱!$J$242 -> 3216.450812 | S10: =光熱!$J$258 -> 3122.890577 | T10: =光熱!$J$274 -> 3100.039905 | U10: =光熱!$J$290 -> 3000.424757 | V10: =光熱!$J$306 -> 4493.33037 | W10: =光熱!$J$322 -> 4075.335316 | X10: =光熱!$J$338 -> 3.968356395 | Y10: =光熱!$J$354 -> 1072.656332 | Z10: =光熱!$J$370 -> 1692.691009 | AA10: =光熱!$J$386 -> 1692.691009 | AB10: =光熱!$J$402 -> 2.324144483 | AC10: =光熱!$J$418 -> 2648.468751 | AD10: =光熱!$J$434 -> 2690.704369 | AE10: =光熱!$J$450 -> 8905.312504 | AF10: =光熱!$J$466 -> 7295.74725 | AG10: =光熱!$J$482 -> 31962.70087 | AH10: =光熱!$J$498 -> 8806.5603 | AI10: =光熱!$J$514 -> 0 | AJ10: =光熱!$J$530 -> 0 | AK10: =光熱!$J$546 -> 0 | AL10: =光熱!$J$562 -> 0 | AM10: =光熱!$J$578 -> 0 | AN10: =光熱!$J$594 -> 0 | AO10: =光熱!$J$610 -> 0 | AP10: =光熱!$J$626 -> 0 | AQ10: =光熱!$J$642 -> 0 | AR10: =光熱!$J$658 -> 0 | AS10: =光熱!$J$674 -> 0 | AT10: =光熱!$J$690 -> 0 | AU10: =光熱!$J$706 -> 0 | AV10: =光熱!$J$722 -> 0 | AW10: =光熱!$J$738 -> 0 | AX10: =光熱!$J$754 -> 0 | AY10: =光熱!$J$770 -> 0 | AZ10: =光熱!$J$786 -> 0 | BA10: =光熱!$J$802 -> 0 | BB10: =光熱!$J$818 -> 0 | BC10: =光熱!$J$834 -> 0 | BD10: =光熱!$J$850 -> 0 | BE10: =光熱!$J$866 -> 0 | BF10: =光熱!$J$882 -> 0 | BG10: =光熱!$J$898 -> 0 | BH10: =光熱!$J$914 -> 0 | BI10: =光熱!$J$930 -> 0 | BJ10: =光熱!$J$946 -> 0
B11: 諸 材 料 費 | C11: =諸材料!$J$2 -> 2337.370196 | D11: =諸材料!$J$43 -> 2337.370196 | E11: =諸材料!$J$84 -> 2337.370196 | F11: =諸材料!$J$125 -> 2341.3 | G11: =諸材料!$J$166 -> 2341.3 | H11: =諸材料!$J$207 -> 2341.3 | I11: =諸材料!$J$248 -> 2341.3 | J11: =諸材料!$J$289 -> 2341.3 | K11: =諸材料!$J$330 -> 2341.3 | L11: =諸材料!$J$371 -> 854.24 | M11: =諸材料!$J$412 -> 854.24 | N11: =諸材料!$J$453 -> 854.24 | O11: =諸材料!$J$494 -> 854.24 | P11: =諸材料!$J$535 -> 854.24 | Q11: =諸材料!$J$576 -> 854.24 | R11: =諸材料!$J$617 -> 3071.2 | S11: =諸材料!$J$658 -> 3071.2 | T11: =諸材料!$J$699 -> 1060.8 | U11: =諸材料!$J$740 -> 1060.8 | V11: =諸材料!$J$781 -> 12.6 | W11: =諸材料!$J$822 -> 71.4 | X11: =諸材料!$J$863 -> 93.87481481 | Y11: =諸材料!$J$904 -> 0 | Z11: =諸材料!$J$945 -> 0 | AA11: =諸材料!$J$986 -> 0 | AB11: =諸材料!$J$1027 -> 0 | AC11: =諸材料!$J$1068 -> 3071.2 | AD11: =諸材料!$J$1109 -> 1060.8 | AE11: =諸材料!$J$1150 -> 1870.8 | AF11: =諸材料!$J$1191 -> 2133.6 | AG11: =諸材料!$J$1232 -> 113805.7522 | AH11: =諸材料!$J$1273 -> 69824.04918 | AI11: =諸材料!$J$1314 -> 0 | AJ11: =諸材料!$J$1355 -> 0 | AK11: =諸材料!$J$1396 -> 0 | AL11: =諸材料!$J$1437 -> 0 | AM11: =諸材料!$J$1478 -> 0 | AN11: =諸材料!$J$1519 -> 0 | AO11: =諸材料!$J$1560 -> 0 | AP11: =諸材料!$J$1601 -> 0 | AQ11: =諸材料!$J$1642 -> 0 | AR11: =諸材料!$J$1683 -> 0 | AS11: =諸材料!$J$1724 -> 0 | AT11: =諸材料!$J$1765 -> 0 | AU11: =諸材料!$J$1806 -> 0 | AV11: =諸材料!$J$1847 -> 0 | AW11: =諸材料!$J$1888 -> 0 | AX11: =諸材料!$J$1929 -> 0 | AY11: =諸材料!$J$1970 -> 0 | AZ11: =諸材料!$J$2011 -> 0 | BA11: =諸材料!$J$2052 -> 0 | BB11: =諸材料!$J$2093 -> 0 | BC11: =諸材料!$J$2134 -> 0 | BD11: =諸材料!$J$2175 -> 0 | BE11: =諸材料!$J$2216 -> 0 | BF11: =諸材料!$J$2257 -> 0 | BG11: =諸材料!$J$2298 -> 0 | BH11: =諸材料!$J$2339 -> 0 | BI11: =諸材料!$J$2380 -> 0 | BJ11: =諸材料!$J$2421 -> 0
B12: 土地改良及び水利費 | C12: =水利!$H$2 -> 3600 | D12: =水利!$H$8 -> 3600 | E12: =水利!$H$14 -> 3600 | F12: =水利!$H$20 -> 3600 | G12: =水利!$H$26 -> 3600 | H12: =水利!$H$32 -> 3600 | I12: =水利!$H$38 -> 3600 | J12: =水利!$H$44 -> 3600 | K12: =水利!$H$50 -> 3600 | L12: =水利!$H$56 -> 3600 | M12: =水利!$H$62 -> 3600 | N12: =水利!$H$68 -> 3600 | O12: =水利!$H$74 -> 3600 | P12: =水利!$H$80 -> 3600 | Q12: =水利!$H$86 -> 3600 | R12: =水利!$H$92 -> 3600 | S12: =水利!$H$98 -> 3600 | T12: =水利!$H$104 -> 3600 | U12: =水利!$H$110 -> 3600 | V12: =水利!$H$116 -> 3600 | W12: =水利!$H$122 -> 3600 | X12: =水利!$H$128 -> 0 | Y12: =水利!$H$134 -> 0 | Z12: =水利!$H$140 -> 0 | AA12: =水利!$H$146 -> 0 | AB12: =水利!$H$152 -> 0 | AC12: =水利!$H$158 -> 3600 | AD12: =水利!$H$164 -> 3600 | AE12: =水利!$H$170 -> 3672 | AF12: =水利!$H$176 -> 3672 | AG12: =水利!$H$182 -> 3600 | AH12: =水利!$H$188 -> 3600 | AI12: =水利!$H$194 -> 0 | AJ12: =水利!$H$200 -> 0 | AK12: =水利!$H$206 -> 0 | AL12: =水利!$H$212 -> 0 | AM12: =水利!$H$218 -> 0 | AN12: =水利!$H$224 -> 0 | AO12: =水利!$H$230 -> 0 | AP12: =水利!$H$236 -> 0 | AQ12: =水利!$H$242 -> 0 | AR12: =水利!$H$248 -> 0 | AS12: =水利!$H$254 -> 0 | AT12: =水利!$H$260 -> 0 | AU12: =水利!$H$266 -> 0 | AV12: =水利!$H$272 -> 0 | AW12: =水利!$H$278 -> 0 | AX12: =水利!$H$284 -> 0 | AY12: =水利!$H$290 -> 0 | AZ12: =水利!$H$296 -> 0 | BA12: =水利!$H$302 -> 0 | BB12: =水利!$H$308 -> 0 | BC12: =水利!$H$314 -> 0 | BD12: =水利!$H$320 -> 0 | BE12: =水利!$H$326 -> 0 | BF12: =水利!$H$332 -> 0 | BG12: =水利!$H$338 -> 0 | BH12: =水利!$H$344 -> 0 | BI12: =水利!$H$350 -> 0 | BJ12: =水利!$H$356 -> 0
B13: 賃借料及び料金 | C13: =賃借料!$H$2 -> 1950 | D13: =賃借料!$H$13 -> 1950 | E13: =賃借料!$H$24 -> 1950 | F13: =賃借料!$H$35 -> 1950 | G13: =賃借料!$H$46 -> 1950 | H13: =賃借料!$H$57 -> 1950 | I13: =賃借料!$H$68 -> 1950 | J13: =賃借料!$H$79 -> 1950 | K13: =賃借料!$H$90 -> 1950 | L13: =賃借料!$H$101 -> 1950 | M13: =賃借料!$H$112 -> 1950 | N13: =賃借料!$H$123 -> 1950 | O13: =賃借料!$H$134 -> 1950 | P13: =賃借料!$H$145 -> 1950 | Q13: =賃借料!$H$156 -> 1950 | R13: =賃借料!$H$167 -> 1950 | S13: =賃借料!$H$178 -> 1950 | T13: =賃借料!$H$189 -> 1950 | U13: =賃借料!$H$200 -> 1950 | V13: =賃借料!$H$211 -> 0 | W13: =賃借料!$H$222 -> 0 | X13: =賃借料!$H$233 -> 0 | Y13: =賃借料!$H$244 -> 0 | Z13: =賃借料!$H$255 -> 0 | AA13: =賃借料!$H$266 -> 0 | AB13: =賃借料!$H$277 -> 0 | AC13: =賃借料!$H$288 -> 11950 | AD13: =賃借料!$H$299 -> 11950 | AE13: =賃借料!$H$310 -> 0 | AF13: =賃借料!$H$321 -> 0 | AG13: =賃借料!$H$332 -> 0 | AH13: =賃借料!$H$343 -> 0 | AI13: =賃借料!$H$354 -> 0 | AJ13: =賃借料!$H$365 -> 0 | AK13: =賃借料!$H$376 -> 0 | AL13: =賃借料!$H$387 -> 0 | AM13: =賃借料!$H$398 -> 0 | AN13: =賃借料!$H$409 -> 0 | AO13: =賃借料!$H$420 -> 0 | AP13: =賃借料!$H$431 -> 0 | AQ13: =賃借料!$H$442 -> 0 | AR13: =賃借料!$H$453 -> 0 | AS13: =賃借料!$H$464 -> 0 | AT13: =賃借料!$H$475 -> 0 | AU13: =賃借料!$H$486 -> 0 | AV13: =賃借料!$H$497 -> 0 | AW13: =賃借料!$H$508 -> 0 | AX13: =賃借料!$H$519 -> 0 | AY13: =賃借料!$H$530 -> 0 | AZ13: =賃借料!$H$541 -> 0 | BA13: =賃借料!$H$552 -> 0 | BB13: =賃借料!$H$563 -> 0 | BC13: =賃借料!$H$574 -> 0 | BD13: =賃借料!$H$585 -> 0 | BE13: =賃借料!$H$596 -> 0 | BF13: =賃借料!$H$607 -> 0 | BG13: =賃借料!$H$618 -> 0 | BH13: =賃借料!$H$629 -> 0 | BI13: =賃借料!$H$640 -> 0 | BJ13: =賃借料!$H$651 -> 0
B14: 小 農 具 費 | C14: =小農具!$J$2 -> 2064.444444 | D14: =小農具!$J$43 -> 2064.444444 | E14: =小農具!$J$84 -> 2064.444444 | F14: =小農具!$J$125 -> 1510.827778 | G14: =小農具!$J$166 -> 1510.827778 | H14: =小農具!$J$207 -> 1510.827778 | I14: =小農具!$J$248 -> 1317.838889 | J14: =小農具!$J$289 -> 1317.838889 | K14: =小農具!$J$330 -> 1317.838889 | L14: =小農具!$J$371 -> 5.866666667 | M14: =小農具!$J$412 -> 5.866666667 | N14: =小農具!$J$453 -> 5.866666667 | O14: =小農具!$J$494 -> 2.933333333 | P14: =小農具!$J$535 -> 2.933333333 | Q14: =小農具!$J$576 -> 2.933333333 | R14: =小農具!$J$617 -> 1510.827778 | S14: =小農具!$J$658 -> 1317.838889 | T14: =小農具!$J$699 -> 5.866666667 | U14: =小農具!$J$740 -> 2.933333333 | V14: =小農具!$J$781 -> 94.48979592 | W14: =小農具!$J$822 -> 0 | X14: =小農具!$J$863 -> 60.58790123 | Y14: =小農具!$J$904 -> 0 | Z14: =小農具!$J$945 -> 0 | AA14: =小農具!$J$986 -> 0 | AB14: =小農具!$J$1027 -> 0 | AC14: =小農具!$J$1068 -> 1510.827778 | AD14: =小農具!$J$1109 -> 5.866666667 | AE14: =小農具!$J$1150 -> 0 | AF14: =小農具!$J$1191 -> 0 | AG14: =小農具!$J$1232 -> 28991.55556 | AH14: =小農具!$J$1273 -> 9293.333333 | AI14: =小農具!$J$1314 -> 0 | AJ14: =小農具!$J$1355 -> 0 | AK14: =小農具!$J$1396 -> 0 | AL14: =小農具!$J$1437 -> 0 | AM14: =小農具!$J$1478 -> 0 | AN14: =小農具!$J$1519 -> 0 | AO14: =小農具!$J$1560 -> 0 | AP14: =小農具!$J$1601 -> 0 | AQ14: =小農具!$J$1642 -> 0 | AR14: =小農具!$J$1683 -> 0 | AS14: =小農具!$J$1724 -> 0 | AT14: =小農具!$J$1765 -> 0 | AU14: =小農具!$J$1806 -> 0 | AV14: =小農具!$J$1847 -> 0 | AW14: =小農具!$J$1888 -> 0 | AX14: =小農具!$J$1929 -> 0 | AY14: =小農具!$J$1970 -> 0 | AZ14: =小農具!$J$2011 -> 0 | BA14: =小農具!$J$2052 -> 0 | BB14: =小農具!$J$2093 -> 0 | BC14: =小農具!$J$2134 -> 0 | BD14: =小農具!$J$2175 -> 0 | BE14: =小農具!$J$2216 -> 0 | BF14: =小農具!$J$2257 -> 0 | BG14: =小農具!$J$2298 -> 0 | BH14: =小農具!$J$2339 -> 0 | BI14: =小農具!$J$2380 -> 0 | BJ14: =小農具!$J$2421 -> 0
B15: 成 園 費 | C15: =成園!$H$2 -> 0 | D15: =成園!$H$8 -> 0 | E15: =成園!$H$14 -> 0 | F15: =成園!$H$20 -> 0 | G15: =成園!$H$26 -> 0 | H15: =成園!$H$32 -> 0 | I15: =成園!$H$38 -> 0 | J15: =成園!$H$44 -> 0 | K15: =成園!$H$50 -> 0 | L15: =成園!$H$56 -> 0 | M15: =成園!$H$62 -> 0 | N15: =成園!$H$68 -> 0 | O15: =成園!$H$74 -> 0 | P15: =成園!$H$80 -> 0 | Q15: =成園!$H$86 -> 0 | R15: =成園!$H$92 -> 0 | S15: =成園!$H$98 -> 0 | T15: =成園!$H$104 -> 0 | U15: =成園!$H$110 -> 0 | V15: =成園!$H$116 -> 0 | W15: =成園!$H$122 -> 0 | X15: =成園!$H$128 -> 0 | Y15: =成園!$H$134 -> 0 | Z15: =成園!$H$140 -> 0 | AA15: =成園!$H$146 -> 0 | AB15: =成園!$H$152 -> 0 | AC15: =成園!$H$158 -> 0 | AD15: =成園!$H$164 -> 0 | AE15: =成園!$H$170 -> 0 | AF15: =成園!$H$176 -> 0 | AG15: =成園!$H$182 -> 0 | AH15: =成園!$H$188 -> 0 | AI15: =成園!$H$194 -> 0 | AJ15: =成園!$H$200 -> 0 | AK15: =成園!$H$206 -> 0 | AL15: =成園!$H$212 -> 0 | AM15: =成園!$H$218 -> 0 | AN15: =成園!$H$224 -> 0 | AO15: =成園!$H$230 -> 0 | AP15: =成園!$H$236 -> 0 | AQ15: =成園!$H$242 -> 0 | AR15: =成園!$H$248 -> 0 | AS15: =成園!$H$254 -> 0 | AT15: =成園!$H$260 -> 0 | AU15: =成園!$H$266 -> 0 | AV15: =成園!$H$272 -> 0 | AW15: =成園!$H$278 -> 0 | AX15: =成園!$H$284 -> 0 | AY15: =成園!$H$290 -> 0 | AZ15: =成園!$H$296 -> 0 | BA15: =成園!$H$302 -> 0 | BB15: =成園!$H$308 -> 0 | BC15: =成園!$H$314 -> 0 | BD15: =成園!$H$320 -> 0 | BE15: =成園!$H$326 -> 0 | BF15: =成園!$H$332 -> 0 | BG15: =成園!$H$338 -> 0 | BH15: =成園!$H$344 -> 0 | BI15: =成園!$H$350 -> 0 | BJ15: =成園!$H$356 -> 0
B16: も と 畜 費 | C16: =もと畜!$H$2 -> 0 | D16: =もと畜!$H$18 -> 0 | E16: =もと畜!$H$34 -> 0 | F16: =もと畜!$H$50 -> 0 | G16: =もと畜!$H$66 -> 0 | H16: =もと畜!$H$82 -> 0 | I16: =もと畜!$H$98 -> 0 | J16: =もと畜!$H$114 -> 0 | K16: =もと畜!$H$130 -> 0 | L16: =もと畜!$H$146 -> 0 | M16: =もと畜!$H$162 -> 0 | N16: =もと畜!$H$178 -> 0 | O16: =もと畜!$H$194 -> 0 | P16: =もと畜!$H$210 -> 0 | Q16: =もと畜!$H$226 -> 0 | R16: =もと畜!$H$242 -> 0 | S16: =もと畜!$H$258 -> 0 | T16: =もと畜!$H$274 -> 0 | U16: =もと畜!$H$290 -> 0 | V16: =もと畜!$H$306 -> 0 | W16: =もと畜!$H$322 -> 0 | X16: =もと畜!$H$338 -> 0 | Y16: =もと畜!$H$354 -> 0 | Z16: =もと畜!$H$370 -> 0 | AA16: =もと畜!$H$386 -> 0 | AB16: =もと畜!$H$402 -> 0 | AC16: =もと畜!$H$418 -> 0 | AD16: =もと畜!$H$434 -> 0 | AE16: =もと畜!$H$450 -> 0 | AF16: =もと畜!$H$466 -> 0 | AG16: =もと畜!$H$482 -> 0 | AH16: =もと畜!$H$498 -> 0 | AI16: =もと畜!$H$514 -> 0 | AJ16: =もと畜!$H$530 -> 0 | AK16: =もと畜!$H$546 -> 0 | AL16: =もと畜!$H$562 -> 0 | AM16: =もと畜!$H$578 -> 0 | AN16: =もと畜!$H$594 -> 0 | AO16: =もと畜!$H$610 -> 0 | AP16: =もと畜!$H$626 -> 0 | AQ16: =もと畜!$H$642 -> 0 | AR16: =もと畜!$H$658 -> 0 | AS16: =もと畜!$H$674 -> 0 | AT16: =もと畜!$H$690 -> 0 | AU16: =もと畜!$H$706 -> 0 | AV16: =もと畜!$H$722 -> 0 | AW16: =もと畜!$H$738 -> 0 | AX16: =もと畜!$H$754 -> 0 | AY16: =もと畜!$H$770 -> 0 | AZ16: =もと畜!$H$786 -> 0 | BA16: =もと畜!$H$802 -> 0 | BB16: =もと畜!$H$818 -> 0 | BC16: =もと畜!$H$834 -> 0 | BD16: =もと畜!$H$850 -> 0 | BE16: =もと畜!$H$866 -> 0 | BF16: =もと畜!$H$882 -> 0 | BG16: =もと畜!$H$898 -> 0 | BH16: =もと畜!$H$914 -> 0 | BI16: =もと畜!$H$930 -> 0 | BJ16: =もと畜!$H$946 -> 0
B17: 種 付 け 料 | C17: =種付!$I$2 -> 0 | D17: =種付!$I$18 -> 0 | E17: =種付!$I$34 -> 0 | F17: =種付!$I$50 -> 0 | G17: =種付!$I$66 -> 0 | H17: =種付!$I$82 -> 0 | I17: =種付!$I$98 -> 0 | J17: =種付!$I$114 -> 0 | K17: =種付!$I$130 -> 0 | L17: =種付!$I$146 -> 0 | M17: =種付!$I$162 -> 0 | N17: =種付!$I$178 -> 0 | O17: =種付!$I$194 -> 0 | P17: =種付!$I$210 -> 0 | Q17: =種付!$I$226 -> 0 | R17: =種付!$I$242 -> 0 | S17: =種付!$I$258 -> 0 | T17: =種付!$I$274 -> 0 | U17: =種付!$I$290 -> 0 | V17: =種付!$I$306 -> 0 | W17: =種付!$I$322 -> 0 | X17: =種付!$I$338 -> 0 | Y17: =種付!$I$354 -> 0 | Z17: =種付!$I$370 -> 0 | AA17: =種付!$I$386 -> 0 | AB17: =種付!$I$402 -> 0 | AC17: =種付!$I$418 -> 0 | AD17: =種付!$I$434 -> 0 | AE17: =種付!$I$450 -> 0 | AF17: =種付!$I$466 -> 0 | AG17: =種付!$I$482 -> 0 | AH17: =種付!$I$498 -> 0 | AI17: =種付!$I$514 -> 0 | AJ17: =種付!$I$530 -> 0 | AK17: =種付!$I$546 -> 0 | AL17: =種付!$I$562 -> 0 | AM17: =種付!$I$578 -> 0 | AN17: =種付!$I$594 -> 0 | AO17: =種付!$I$610 -> 0 | AP17: =種付!$I$626 -> 0 | AQ17: =種付!$I$642 -> 0 | AR17: =種付!$I$658 -> 0 | AS17: =種付!$I$674 -> 0 | AT17: =種付!$I$690 -> 0 | AU17: =種付!$I$706 -> 0 | AV17: =種付!$I$722 -> 0 | AW17: =種付!$I$738 -> 0 | AX17: =種付!$I$754 -> 0 | AY17: =種付!$I$770 -> 0 | AZ17: =種付!$I$786 -> 0 | BA17: =種付!$I$802 -> 0 | BB17: =種付!$I$818 -> 0 | BC17: =種付!$I$834 -> 0 | BD17: =種付!$I$850 -> 0 | BE17: =種付!$I$866 -> 0 | BF17: =種付!$I$882 -> 0 | BG17: =種付!$I$898 -> 0 | BH17: =種付!$I$914 -> 0 | BI17: =種付!$I$930 -> 0 | BJ17: =種付!$I$946 -> 0
B18: 飼 料 費 | C18: =飼料!$H$2 -> 0 | D18: =飼料!$H$18 -> 0 | E18: =飼料!$H$34 -> 0 | F18: =飼料!$H$50 -> 0 | G18: =飼料!$H$66 -> 0 | H18: =飼料!$H$82 -> 0 | I18: =飼料!$H$98 -> 0 | J18: =飼料!$H$114 -> 0 | K18: =飼料!$H$130 -> 0 | L18: =飼料!$H$146 -> 0 | M18: =飼料!$H$162 -> 0 | N18: =飼料!$H$178 -> 0 | O18: =飼料!$H$194 -> 0 | P18: =飼料!$H$210 -> 0 | Q18: =飼料!$H$226 -> 0 | R18: =飼料!$H$242 -> 0 | S18: =飼料!$H$258 -> 0 | T18: =飼料!$H$274 -> 0 | U18: =飼料!$H$290 -> 0 | V18: =飼料!$H$306 -> 0 | W18: =飼料!$H$322 -> 0 | X18: =飼料!$H$338 -> 0 | Y18: =飼料!$H$354 -> 0 | Z18: =飼料!$H$370 -> 0 | AA18: =飼料!$H$386 -> 0 | AB18: =飼料!$H$402 -> 0 | AC18: =飼料!$H$418 -> 0 | AD18: =飼料!$H$434 -> 0 | AE18: =飼料!$H$450 -> 0 | AF18: =飼料!$H$466 -> 0 | AG18: =飼料!$H$482 -> 0 | AH18: =飼料!$H$498 -> 0 | AI18: =飼料!$H$514 -> 0 | AJ18: =飼料!$H$530 -> 0 | AK18: =飼料!$H$546 -> 0 | AL18: =飼料!$H$562 -> 0 | AM18: =飼料!$H$578 -> 0 | AN18: =飼料!$H$594 -> 0 | AO18: =飼料!$H$610 -> 0 | AP18: =飼料!$H$626 -> 0 | AQ18: =飼料!$H$642 -> 0 | AR18: =飼料!$H$658 -> 0 | AS18: =飼料!$H$674 -> 0 | AT18: =飼料!$H$690 -> 0 | AU18: =飼料!$H$706 -> 0 | AV18: =飼料!$H$722 -> 0 | AW18: =飼料!$H$738 -> 0 | AX18: =飼料!$H$754 -> 0 | AY18: =飼料!$H$770 -> 0 | AZ18: =飼料!$H$786 -> 0 | BA18: =飼料!$H$802 -> 0 | BB18: =飼料!$H$818 -> 0 | BC18: =飼料!$H$834 -> 0 | BD18: =飼料!$H$850 -> 0 | BE18: =飼料!$H$866 -> 0 | BF18: =飼料!$H$882 -> 0 | BG18: =飼料!$H$898 -> 0 | BH18: =飼料!$H$914 -> 0 | BI18: =飼料!$H$930 -> 0 | BJ18: =飼料!$H$946 -> 0
B19: 敷 料 費 | C19: =敷料!$H$2 -> 0 | D19: =敷料!$H$18 -> 0 | E19: =敷料!$H$34 -> 0 | F19: =敷料!$H$50 -> 0 | G19: =敷料!$H$66 -> 0 | H19: =敷料!$H$82 -> 0 | I19: =敷料!$H$98 -> 0 | J19: =敷料!$H$114 -> 0 | K19: =敷料!$H$130 -> 0 | L19: =敷料!$H$146 -> 0 | M19: =敷料!$H$162 -> 0 | N19: =敷料!$H$178 -> 0 | O19: =敷料!$H$194 -> 0 | P19: =敷料!$H$210 -> 0 | Q19: =敷料!$H$226 -> 0 | R19: =敷料!$H$242 -> 0 | S19: =敷料!$H$258 -> 0 | T19: =敷料!$H$274 -> 0 | U19: =敷料!$H$290 -> 0 | V19: =敷料!$H$306 -> 0 | W19: =敷料!$H$322 -> 0 | X19: =敷料!$H$338 -> 0 | Y19: =敷料!$H$354 -> 0 | Z19: =敷料!$H$370 -> 0 | AA19: =敷料!$H$386 -> 0 | AB19: =敷料!$H$402 -> 0 | AC19: =敷料!$H$418 -> 0 | AD19: =敷料!$H$434 -> 0 | AE19: =敷料!$H$450 -> 0 | AF19: =敷料!$H$466 -> 0 | AG19: =敷料!$H$482 -> 0 | AH19: =敷料!$H$498 -> 0 | AI19: =敷料!$H$514 -> 0 | AJ19: =敷料!$H$530 -> 0 | AK19: =敷料!$H$546 -> 0 | AL19: =敷料!$H$562 -> 0 | AM19: =敷料!$H$578 -> 0 | AN19: =敷料!$H$594 -> 0 | AO19: =敷料!$H$610 -> 0 | AP19: =敷料!$H$626 -> 0 | AQ19: =敷料!$H$642 -> 0 | AR19: =敷料!$H$658 -> 0 | AS19: =敷料!$H$674 -> 0 | AT19: =敷料!$H$690 -> 0 | AU19: =敷料!$H$706 -> 0 | AV19: =敷料!$H$722 -> 0 | AW19: =敷料!$H$738 -> 0 | AX19: =敷料!$H$754 -> 0 | AY19: =敷料!$H$770 -> 0 | AZ19: =敷料!$H$786 -> 0 | BA19: =敷料!$H$802 -> 0 | BB19: =敷料!$H$818 -> 0 | BC19: =敷料!$H$834 -> 0 | BD19: =敷料!$H$850 -> 0 | BE19: =敷料!$H$866 -> 0 | BF19: =敷料!$H$882 -> 0 | BG19: =敷料!$H$898 -> 0 | BH19: =敷料!$H$914 -> 0 | BI19: =敷料!$H$930 -> 0 | BJ19: =敷料!$H$946 -> 0
B20: 獣医師料及び医薬品費 | C20: =獣医師!$H$2 -> 0 | D20: =獣医師!$H$18 -> 0 | E20: =獣医師!$H$34 -> 0 | F20: =獣医師!$H$50 -> 0 | G20: =獣医師!$H$66 -> 0 | H20: =獣医師!$H$82 -> 0 | I20: =獣医師!$H$98 -> 0 | J20: =獣医師!$H$114 -> 0 | K20: =獣医師!$H$130 -> 0 | L20: =獣医師!$H$146 -> 0 | M20: =獣医師!$H$162 -> 0 | N20: =獣医師!$H$178 -> 0 | O20: =獣医師!$H$194 -> 0 | P20: =獣医師!$H$210 -> 0 | Q20: =獣医師!$H$226 -> 0 | R20: =獣医師!$H$242 -> 0 | S20: =獣医師!$H$258 -> 0 | T20: =獣医師!$H$274 -> 0 | U20: =獣医師!$H$290 -> 0 | V20: =獣医師!$H$306 -> 0 | W20: =獣医師!$H$322 -> 0 | X20: =獣医師!$H$338 -> 0 | Y20: =獣医師!$H$354 -> 0 | Z20: =獣医師!$H$370 -> 0 | AA20: =獣医師!$H$386 -> 0 | AB20: =獣医師!$H$402 -> 0 | AC20: =獣医師!$H$418 -> 0 | AD20: =獣医師!$H$434 -> 0 | AE20: =獣医師!$H$450 -> 0 | AF20: =獣医師!$H$466 -> 0 | AG20: =獣医師!$H$482 -> 0 | AH20: =獣医師!$H$498 -> 0 | AI20: =獣医師!$H$514 -> 0 | AJ20: =獣医師!$H$530 -> 0 | AK20: =獣医師!$H$546 -> 0 | AL20: =獣医師!$H$562 -> 0 | AM20: =獣医師!$H$578 -> 0 | AN20: =獣医師!$H$594 -> 0 | AO20: =獣医師!$H$610 -> 0 | AP20: =獣医師!$H$626 -> 0 | AQ20: =獣医師!$H$642 -> 0 | AR20: =獣医師!$H$658 -> 0 | AS20: =獣医師!$H$674 -> 0 | AT20: =獣医師!$H$690 -> 0 | AU20: =獣医師!$H$706 -> 0 | AV20: =獣医師!$H$722 -> 0 | AW20: =獣医師!$H$738 -> 0 | AX20: =獣医師!$H$754 -> 0 | AY20: =獣医師!$H$770 -> 0 | AZ20: =獣医師!$H$786 -> 0 | BA20: =獣医師!$H$802 -> 0 | BB20: =獣医師!$H$818 -> 0 | BC20: =獣医師!$H$834 -> 0 | BD20: =獣医師!$H$850 -> 0 | BE20: =獣医師!$H$866 -> 0 | BF20: =獣医師!$H$882 -> 0 | BG20: =獣医師!$H$898 -> 0 | BH20: =獣医師!$H$914 -> 0 | BI20: =獣医師!$H$930 -> 0 | BJ20: =獣医師!$H$946 -> 0
B21: 流 通 経 費 | C21: =流通経費!$G$3 -> 0 | D21: =流通経費!$G$19 -> 0 | E21: =流通経費!$G$35 -> 0 | F21: =流通経費!$G$51 -> 0 | G21: =流通経費!$G$67 -> 0 | H21: =流通経費!$G$83 -> 0 | I21: =流通経費!$G$99 -> 0 | J21: =流通経費!$G$115 -> 0 | K21: =流通経費!$G$131 -> 0 | L21: =流通経費!$G$147 -> 0 | M21: =流通経費!$G$163 -> 0 | N21: =流通経費!$G$179 -> 0 | O21: =流通経費!$G$195 -> 0 | P21: =流通経費!$G$211 -> 0 | Q21: =流通経費!$G$227 -> 0 | R21: =流通経費!$G$243 -> 28207.9 | S21: =流通経費!$G$259 -> 28207.9 | T21: =流通経費!$G$275 -> 26803.7 | U21: =流通経費!$G$291 -> 26803.7 | V21: =流通経費!$G$307 -> 0 | W21: =流通経費!$G$323 -> 0 | X21: =流通経費!$G$339 -> 0 | Y21: =流通経費!$G$355 -> 0 | Z21: =流通経費!$G$371 -> 0 | AA21: =流通経費!$G$387 -> 0 | AB21: =流通経費!$G$403 -> 0 | AC21: =流通経費!$G$419 -> 0 | AD21: =流通経費!$G$435 -> 0 | AE21: =流通経費!$G$451 -> 0 | AF21: =流通経費!$G$467 -> 0 | AG21: =流通経費!$G$483 -> 1441904.267 | AH21: =流通経費!$G$499 -> 534068.2 | AI21: =流通経費!$G$515 -> 0 | AJ21: =流通経費!$G$531 -> 0 | AK21: =流通経費!$G$547 -> 0 | AL21: =流通経費!$G$563 -> 0 | AM21: =流通経費!$G$579 -> 0 | AN21: =流通経費!$G$595 -> 0 | AO21: =流通経費!$G$611 -> 0 | AP21: =流通経費!$G$627 -> 0 | AQ21: =流通経費!$G$643 -> 0 | AR21: =流通経費!$G$659 -> 0 | AS21: =流通経費!$G$675 -> 0 | AT21: =流通経費!$G$691 -> 0 | AU21: =流通経費!$G$707 -> 0 | AV21: =流通経費!$G$723 -> 0 | AW21: =流通経費!$G$739 -> 0 | AX21: =流通経費!$G$755 -> 0 | AY21: =流通経費!$G$771 -> 0 | AZ21: =流通経費!$G$787 -> 0 | BA21: =流通経費!$G$803 -> 0 | BB21: =流通経費!$G$819 -> 0 | BC21: =流通経費!$G$835 -> 0 | BD21: =流通経費!$G$851 -> 0 | BE21: =流通経費!$G$867 -> 0 | BF21: =流通経費!$G$883 -> 0 | BG21: =流通経費!$G$899 -> 0 | BH21: =流通経費!$G$915 -> 0 | BI21: =流通経費!$G$931 -> 0 | BJ21: =流通経費!$G$947 -> 0
B22: 共 済 費 | C22: =共済!$H$2 -> 560 | D22: =共済!$H$8 -> 560 | E22: =共済!$H$14 -> 560 | F22: =共済!$H$20 -> 560 | G22: =共済!$H$26 -> 560 | H22: =共済!$H$32 -> 560 | I22: =共済!$H$38 -> 560 | J22: =共済!$H$44 -> 560 | K22: =共済!$H$50 -> 560 | L22: =共済!$H$56 -> 560 | M22: =共済!$H$62 -> 560 | N22: =共済!$H$68 -> 560 | O22: =共済!$H$74 -> 560 | P22: =共済!$H$80 -> 560 | Q22: =共済!$H$86 -> 560 | R22: =共済!$H$92 -> 560 | S22: =共済!$H$98 -> 560 | T22: =共済!$H$104 -> 560 | U22: =共済!$H$110 -> 560 | V22: =共済!$H$116 -> 795 | W22: =共済!$H$122 -> 653 | X22: =共済!$H$128 -> 0 | Y22: =共済!$H$134 -> 0 | Z22: =共済!$H$140 -> 0 | AA22: =共済!$H$146 -> 0 | AB22: =共済!$H$152 -> 0 | AC22: =共済!$H$158 -> 0 | AD22: =共済!$H$164 -> 0 | AE22: =共済!$H$170 -> 0 | AF22: =共済!$H$176 -> 0 | AG22: =共済!$H$182 -> 0 | AH22: =共済!$H$188 -> 0 | AI22: =共済!$H$194 -> 0 | AJ22: =共済!$H$200 -> 0 | AK22: =共済!$H$206 -> 0 | AL22: =共済!$H$212 -> 0 | AM22: =共済!$H$218 -> 0 | AN22: =共済!$H$224 -> 0 | AO22: =共済!$H$230 -> 0 | AP22: =共済!$H$236 -> 0 | AQ22: =共済!$H$242 -> 0 | AR22: =共済!$H$248 -> 0 | AS22: =共済!$H$254 -> 0 | AT22: =共済!$H$260 -> 0 | AU22: =共済!$H$266 -> 0 | AV22: =共済!$H$272 -> 0 | AW22: =共済!$H$278 -> 0 | AX22: =共済!$H$284 -> 0 | AY22: =共済!$H$290 -> 0 | AZ22: =共済!$H$296 -> 0 | BA22: =共済!$H$302 -> 0 | BB22: =共済!$H$308 -> 0 | BC22: =共済!$H$314 -> 0 | BD22: =共済!$H$320 -> 0 | BE22: =共済!$H$326 -> 0 | BF22: =共済!$H$332 -> 0 | BG22: =共済!$H$338 -> 0 | BH22: =共済!$H$344 -> 0 | BI22: =共済!$H$350 -> 0 | BJ22: =共済!$H$356 -> 0
B23: その他資材 | C23: =その他資材!$J$2 -> 96.73786667 | D23: =その他資材!$J$8 -> 96.73786667 | E23: =その他資材!$J$14 -> 96.73786667 | F23: =その他資材!$J$20 -> 80.170568 | G23: =その他資材!$J$26 -> 80.170568 | H23: =その他資材!$J$32 -> 80.170568 | I23: =その他資材!$J$38 -> 57.26063733 | J23: =その他資材!$J$44 -> 57.26063733 | K23: =その他資材!$J$50 -> 57.26063733 | L23: =その他資材!$J$56 -> 80.170568 | M23: =その他資材!$J$62 -> 80.170568 | N23: =その他資材!$J$68 -> 80.170568 | O23: =その他資材!$J$74 -> 57.26063733 | P23: =その他資材!$J$80 -> 57.26063733 | Q23: =その他資材!$J$86 -> 57.26063733 | R23: =その他資材!$J$92 -> 0 | S23: =その他資材!$J$98 -> 0 | T23: =その他資材!$J$104 -> 0 | U23: =その他資材!$J$110 -> 0 | V23: =その他資材!$J$116 -> 17.85888571 | W23: =その他資材!$J$122 -> 72.84672571 | X23: =その他資材!$J$128 -> 0 | Y23: =その他資材!$J$134 -> 0 | Z23: =その他資材!$J$140 -> 0 | AA23: =その他資材!$J$146 -> 0 | AB23: =その他資材!$J$152 -> 0.1484640148 | AC23: =その他資材!$J$158 -> 0 | AD23: =その他資材!$J$164 -> 0 | AE23: =その他資材!$J$170 -> 0 | AF23: =その他資材!$J$176 -> 0 | AG23: =その他資材!$J$182 -> 15765.184 | AH23: =その他資材!$J$188 -> 3597.7472 | AI23: =その他資材!$J$194 -> 0 | AJ23: =その他資材!$J$200 -> 0 | AK23: =その他資材!$J$206 -> 0 | AL23: =その他資材!$J$212 -> 0 | AM23: =その他資材!$J$218 -> 0 | AN23: =その他資材!$J$224 -> 0 | AO23: =その他資材!$J$230 -> 0 | AP23: =その他資材!$J$236 -> 0 | AQ23: =その他資材!$J$242 -> 0 | AR23: =その他資材!$J$248 -> 0 | AS23: =その他資材!$J$254 -> 0 | AT23: =その他資材!$J$260 -> 0 | AU23: =その他資材!$J$266 -> 0 | AV23: =その他資材!$J$272 -> 0 | AW23: =その他資材!$J$278 -> 0 | AX23: =その他資材!$J$284 -> 0 | AY23: =その他資材!$J$290 -> 0 | AZ23: =その他資材!$J$296 -> 0 | BA23: =その他資材!$J$302 -> 0 | BB23: =その他資材!$J$308 -> 0 | BC23: =その他資材!$J$314 -> 0 | BD23: =その他資材!$J$320 -> 0 | BE23: =その他資材!$J$326 -> 0 | BF23: =その他資材!$J$332 -> 0 | BG23: =その他資材!$J$338 -> 0 | BH23: =その他資材!$J$344 -> 0 | BI23: =その他資材!$J$350 -> 0 | BJ23: =その他資材!$J$356 -> 0
B24: 農業施設費（法定耐用年数法） | C24: =施設!$R$4 -> 2740 | D24: =施設!$R$25 -> 2740 | E24: =施設!$R$46 -> 2740 | F24: =施設!$R$67 -> 2794.8 | G24: =施設!$R$88 -> 2794.8 | H24: =施設!$R$109 -> 2794.8 | I24: =施設!$R$130 -> 2794.8 | J24: =施設!$R$151 -> 2794.8 | K24: =施設!$R$172 -> 2794.8 | L24: =施設!$R$193 -> 0 | M24: =施設!$R$214 -> 0 | N24: =施設!$R$235 -> 0 | O24: =施設!$R$256 -> 0 | P24: =施設!$R$277 -> 0 | Q24: =施設!$R$298 -> 0 | R24: =施設!$R$319 -> 2794.8 | S24: =施設!$R$340 -> 2794.8 | T24: =施設!$R$361 -> 0 | U24: =施設!$R$382 -> 0 | V24: =施設!$R$403 -> 0 | W24: =施設!$R$424 -> 0 | X24: =施設!$R$445 -> 124.2133333 | Y24: =施設!$R$466 -> 0 | Z24: =施設!$R$487 -> 0 | AA24: =施設!$R$508 -> 0 | AB24: =施設!$R$529 -> 0 | AC24: =施設!$R$550 -> 2794.8 | AD24: =施設!$R$571 -> 0 | AE24: =施設!$R$592 -> 0 | AF24: =施設!$R$613 -> 0 | AG24: =施設!$R$634 -> 732493.3333 | AH24: =施設!$R$655 -> 49868 | AI24: =施設!$R$676 -> 0 | AJ24: =施設!$R$697 -> 0 | AK24: =施設!$R$718 -> 0 | AL24: =施設!$R$739 -> 0 | AM24: =施設!$R$760 -> 0 | AN24: =施設!$R$781 -> 0 | AO24: =施設!$R$802 -> 0 | AP24: =施設!$R$823 -> 0 | AQ24: =施設!$R$844 -> 0 | AR24: =施設!$R$865 -> 0 | AS24: =施設!$R$886 -> 0 | AT24: =施設!$R$907 -> 0 | AU24: =施設!$R$928 -> 0 | AV24: =施設!$R$949 -> 0 | AW24: =施設!$R$970 -> 0 | AX24: =施設!$R$991 -> 0 | AY24: =施設!$R$1012 -> 0 | AZ24: =施設!$R$1033 -> 0 | BA24: =施設!$R$1054 -> 0 | BB24: =施設!$R$1075 -> 0 | BC24: =施設!$R$1096 -> 0 | BD24: =施設!$R$1117 -> 0 | BE24: =施設!$R$1138 -> 0 | BF24: =施設!$R$1159 -> 0 | BG24: =施設!$R$1180 -> 0 | BH24: =施設!$R$1201 -> 0 | BI24: =施設!$R$1222 -> 0 | BJ24: =施設!$R$1243 -> 0
B25: 農業施設費（実耐用年数法） | C25: =施設!$Z$4 -> 1906.666667 | D25: =施設!$Z$25 -> 1906.666667 | E25: =施設!$Z$46 -> 1906.666667 | F25: =施設!$Z$67 -> 1944.8 | G25: =施設!$Z$88 -> 1944.8 | H25: =施設!$Z$109 -> 1944.8 | I25: =施設!$Z$130 -> 1944.8 | J25: =施設!$Z$151 -> 1944.8 | K25: =施設!$Z$172 -> 1944.8 | L25: =施設!$Z$193 -> 0 | M25: =施設!$Z$214 -> 0 | N25: =施設!$Z$235 -> 0 | O25: =施設!$Z$256 -> 0 | P25: =施設!$Z$277 -> 0 | Q25: =施設!$Z$298 -> 0 | R25: =施設!$Z$319 -> 1944.8 | S25: =施設!$Z$340 -> 1944.8 | T25: =施設!$Z$361 -> 0 | U25: =施設!$Z$382 -> 0 | V25: =施設!$Z$403 -> 0 | W25: =施設!$Z$424 -> 0 | X25: =施設!$Z$445 -> 86.43555556 | Y25: =施設!$Z$466 -> 0 | Z25: =施設!$Z$487 -> 0 | AA25: =施設!$Z$508 -> 0 | AB25: =施設!$Z$529 -> 0 | AC25: =施設!$Z$550 -> 1944.8 | AD25: =施設!$Z$571 -> 0 | AE25: =施設!$Z$592 -> 0 | AF25: =施設!$Z$613 -> 0 | AG25: =施設!$Z$634 -> 509715.5556 | AH25: =施設!$Z$655 -> 34701.33333 | AI25: =施設!$Z$676 -> 0 | AJ25: =施設!$Z$697 -> 0 | AK25: =施設!$Z$718 -> 0 | AL25: =施設!$Z$739 -> 0 | AM25: =施設!$Z$760 -> 0 | AN25: =施設!$Z$781 -> 0 | AO25: =施設!$Z$802 -> 0 | AP25: =施設!$Z$823 -> 0 | AQ25: =施設!$Z$844 -> 0 | AR25: =施設!$Z$865 -> 0 | AS25: =施設!$Z$886 -> 0 | AT25: =施設!$Z$907 -> 0 | AU25: =施設!$Z$928 -> 0 | AV25: =施設!$Z$949 -> 0 | AW25: =施設!$Z$970 -> 0 | AX25: =施設!$Z$991 -> 0 | AY25: =施設!$Z$1012 -> 0 | AZ25: =施設!$Z$1033 -> 0 | BA25: =施設!$Z$1054 -> 0 | BB25: =施設!$Z$1075 -> 0 | BC25: =施設!$Z$1096 -> 0 | BD25: =施設!$Z$1117 -> 0 | BE25: =施設!$Z$1138 -> 0 | BF25: =施設!$Z$1159 -> 0 | BG25: =施設!$Z$1180 -> 0 | BH25: =施設!$Z$1201 -> 0 | BI25: =施設!$Z$1222 -> 0 | BJ25: =施設!$Z$1243 -> 0
B26: 農業機械費（法定耐用年数法） | C26: =機械!$Q$3 -> 5308226.971 | D26: =機械!$Q$44 -> 5308226.971 | E26: =機械!$Q$85 -> 5308226.971 | F26: =機械!$Q$126 -> 9692770.586 | G26: =機械!$Q$167 -> 9692770.586 | H26: =機械!$Q$208 -> 9692770.586 | I26: =機械!$Q$249 -> 12715361.01 | J26: =機械!$Q$290 -> 12715361.01 | K26: =機械!$Q$331 -> 12715361.01 | L26: =機械!$Q$372 -> 10515774.09 | M26: =機械!$Q$413 -> 10515774.09 | N26: =機械!$Q$454 -> 10515774.09 | O26: =機械!$Q$495 -> 13746338.8 | P26: =機械!$Q$536 -> 13746338.8 | Q26: =機械!$Q$577 -> 13746338.8 | R26: =機械!$Q$618 -> 9823973.729 | S26: =機械!$Q$659 -> 11033573.3 | T26: =機械!$Q$700 -> 9713527.371 | U26: =機械!$Q$741 -> 11131101.23 | V26: =機械!$Q$782 -> 7575371 | W26: =機械!$Q$823 -> 9585472.143 | X26: =機械!$Q$864 -> 675261.3571 | Y26: =機械!$Q$905 -> 1574511.229 | Z26: =機械!$Q$946 -> 683428.5714 | AA26: =機械!$Q$987 -> 4868199.714 | AB26: =機械!$Q$1028 -> 4137189 | AC26: =機械!$Q$1069 -> 6267945.586 | AD26: =機械!$Q$1110 -> 6221699.229 | AE26: =機械!$Q$1151 -> 5339509.486 | AF26: =機械!$Q$1192 -> 5339509.486 | AG26: =機械!$Q$1233 -> 1160776.036 | AH26: =機械!$Q$1274 -> 1751886.036 | AI26: =機械!$Q$1315 -> 0 | AJ26: =機械!$Q$1356 -> 0 | AK26: =機械!$Q$1397 -> 0 | AL26: =機械!$Q$1438 -> 0 | AM26: =機械!$Q$1479 -> 0 | AN26: =機械!$Q$1520 -> 0 | AO26: =機械!$Q$1561 -> 0 | AP26: =機械!$Q$1602 -> 0 | AQ26: =機械!$Q$1643 -> 0 | AR26: =機械!$Q$1684 -> 0 | AS26: =機械!$Q$1725 -> 0 | AT26: =機械!$Q$1766 -> 0 | AU26: =機械!$Q$1807 -> 0 | AV26: =機械!$Q$1848 -> 0 | AW26: =機械!$Q$1889 -> 0 | AX26: =機械!$Q$1930 -> 0 | AY26: =機械!$Q$1971 -> 0 | AZ26: =機械!$Q$2012 -> 0 | BA26: =機械!$Q$2053 -> 0 | BB26: =機械!$Q$2094 -> 0 | BC26: =機械!$Q$2135 -> 0 | BD26: =機械!$Q$2176 -> 0 | BE26: =機械!$Q$2217 -> 0 | BF26: =機械!$Q$2258 -> 0 | BG26: =機械!$Q$2299 -> 0 | BH26: =機械!$Q$2340 -> 0 | BI26: =機械!$Q$2381 -> 0 | BJ26: =機械!$Q$2422 -> 0
B27: 農業機械費（実耐用年数法） | C27: =機械!$Z$3 -> 4186720.781 | D27: =機械!$Z$44 -> 4186720.781 | E27: =機械!$Z$85 -> 4186720.781 | F27: =機械!$Z$126 -> 7696782.49 | G27: =機械!$Z$167 -> 7696782.49 | H27: =機械!$Z$208 -> 7696782.49 | I27: =機械!$Z$249 -> 10122182.44 | J27: =機械!$Z$290 -> 10122182.44 | K27: =機械!$Z$331 -> 10122182.44 | L27: =機械!$Z$372 -> 8338952.657 | M27: =機械!$Z$413 -> 8338952.657 | N27: =機械!$Z$454 -> 8338952.657 | O27: =機械!$Z$495 -> 10927422.13 | P27: =機械!$Z$536 -> 10927422.13 | Q27: =機械!$Z$577 -> 10927422.13 | R27: =機械!$Z$618 -> 7845366.586 | S27: =機械!$Z$659 -> 8814823.3 | T27: =機械!$Z$700 -> 7747467.848 | U27: =機械!$Z$741 -> 8879994.086 | V27: =機械!$Z$782 -> 6026037.667 | W27: =機械!$Z$823 -> 7610519.762 | X27: =機械!$Z$864 -> 535797.0714 | Y27: =機械!$Z$905 -> 1268654.086 | Z27: =機械!$Z$946 -> 559619.0476 | AA27: =機械!$Z$987 -> 3863104.476 | AB27: =機械!$Z$1028 -> 3231522.333 | AC27: =機械!$Z$1069 -> 4981957.49 | AD27: =機械!$Z$1110 -> 4939258.752 | AE27: =機械!$Z$1151 -> 4353271.39 | AF27: =機械!$Z$1192 -> 4353271.39 | AG27: =機械!$Z$1233 -> 924054.6071 | AH27: =機械!$Z$1274 -> 1390164.607 | AI27: =機械!$Z$1315 -> 0 | AJ27: =機械!$Z$1356 -> 0 | AK27: =機械!$Z$1397 -> 0 | AL27: =機械!$Z$1438 -> 0 | AM27: =機械!$Z$1479 -> 0 | AN27: =機械!$Z$1520 -> 0 | AO27: =機械!$Z$1561 -> 0 | AP27: =機械!$Z$1602 -> 0 | AQ27: =機械!$Z$1643 -> 0 | AR27: =機械!$Z$1684 -> 0 | AS27: =機械!$Z$1725 -> 0 | AT27: =機械!$Z$1766 -> 0 | AU27: =機械!$Z$1807 -> 0 | AV27: =機械!$Z$1848 -> 0 | AW27: =機械!$Z$1889 -> 0 | AX27: =機械!$Z$1930 -> 0 | AY27: =機械!$Z$1971 -> 0 | AZ27: =機械!$Z$2012 -> 0 | BA27: =機械!$Z$2053 -> 0 | BB27: =機械!$Z$2094 -> 0 | BC27: =機械!$Z$2135 -> 0 | BD27: =機械!$Z$2176 -> 0 | BE27: =機械!$Z$2217 -> 0 | BF27: =機械!$Z$2258 -> 0 | BG27: =機械!$Z$2299 -> 0 | BH27: =機械!$Z$2340 -> 0 | BI27: =機械!$Z$2381 -> 0 | BJ27: =機械!$Z$2422 -> 0
B28: 変動費計 | C28: =SUM(C7:C23) -> 34401.40605 | D28: =SUM(D7:D23) -> 34428.83485 | E28: 34401.40605 | F28: 33224.96385 | G28: 33224.96385 | H28: 33224.96385 | I28: 32740.29427 | J28: 32585.20602 | K28: 32740.29427 | L28: =SUM(L7:L23) -> 35613.96138 | M28: =SUM(M7:M23) -> 35613.96138 | N28: =SUM(N7:N23) -> 35613.96138 | O28: 40568.3302 | P28: 40568.3302 | Q28: 40568.3302 | R28: 61359.77359 | S28: 61073.22447 | T28: 61570.40657 | U28: 61467.85809 | V28: 22323.79572 | W28: =SUM(W7:W23) -> 21274.14004 | X28: =SUM(X7:X23) -> 239.5510724 | Y28: 1072.656332 | Z28: 1692.691009 | AA28: 1692.691009 | AB28: 2.472608498 | AC28: 42219.26653 | AD28: 47258.37104 | AE28: =SUM(AE7:AE23) -> 31546.8125 | AF28: 30200.04725 | AG28: =SUM(AG7:AG23) -> 1727030.976 | AH28: =SUM(AH7:AH23) -> 709415.7226 | AI28: 0 | AJ28: 0 | AK28: 0 | AL28: 0 | AM28: 0 | AN28: 0 | AO28: 0 | AP28: 0 | AQ28: =SUM(AQ7:AQ23) -> 0 | AR28: =SUM(AR7:AR23) -> 0 | AS28: 0 | AT28: 0 | AU28: 0 | AV28: 0 | AW28: 0 | AX28: 0 | AY28: 0 | AZ28: 0 | BA28: =SUM(BA7:BA23) -> 0 | BB28: =SUM(BB7:BB23) -> 0 | BC28: 0 | BD28: 0 | BE28: 0 | BF28: 0 | BG28: 0 | BH28: 0 | BI28: 0 | BJ28: 0
B29: 施設+機械（法定耐用年数法） | C29: =C24+C26 -> 5310966.971 | D29: =D24+D26 -> 5310966.971 | E29: 5310966.971 | F29: 9695565.386 | G29: 9695565.386 | H29: 9695565.386 | I29: 12718155.81 | J29: 12718155.81 | K29: 12718155.81 | L29: =L24+L26 -> 10515774.09 | M29: =M24+M26 -> 10515774.09 | N29: =N24+N26 -> 10515774.09 | O29: 13746338.8 | P29: 13746338.8 | Q29: 13746338.8 | R29: 9826768.529 | S29: 11036368.1 | T29: 9713527.371 | U29: 11131101.23 | V29: 7575371 | W29: =W24+W26 -> 9585472.143 | X29: =X24+X26 -> 675385.5705 | Y29: 1574511.229 | Z29: 683428.5714 | AA29: 4868199.714 | AB29: 4137189 | AC29: 6270740.386 | AD29: 6221699.229 | AE29: =AE24+AE26 -> 5339509.486 | AF29: 5339509.486 | AG29: =AG24+AG26 -> 1893269.369 | AH29: =AH24+AH26 -> 1801754.036 | AI29: 0 | AJ29: 0 | AK29: 0 | AL29: 0 | AM29: 0 | AN29: 0 | AO29: 0 | AP29: 0 | AQ29: =AQ24+AQ26 -> 0 | AR29: =AR24+AR26 -> 0 | AS29: 0 | AT29: 0 | AU29: 0 | AV29: 0 | AW29: 0 | AX29: 0 | AY29: 0 | AZ29: 0 | BA29: =BA24+BA26 -> 0 | BB29: =BB24+BB26 -> 0 | BC29: 0 | BD29: 0 | BE29: 0 | BF29: 0 | BG29: 0 | BH29: 0 | BI29: 0 | BJ29: 0
B30: 施設+機械（実耐用年数法 | C30: =C25+C27 -> 4188627.448 | D30: 4188627.448 | E30: 4188627.448 | F30: 7698727.29 | G30: 7698727.29 | H30: 7698727.29 | I30: 10124127.24 | J30: 10124127.24 | K30: 10124127.24 | L30: =L25+L27 -> 8338952.657 | M30: =M25+M27 -> 8338952.657 | N30: =N25+N27 -> 8338952.657 | O30: 10927422.13 | P30: 10927422.13 | Q30: 10927422.13 | R30: 7847311.386 | S30: 8816768.1 | T30: 7747467.848 | U30: 8879994.086 | V30: 6026037.667 | W30: =W25+W27 -> 7610519.762 | X30: =X25+X27 -> 535883.507 | Y30: 1268654.086 | Z30: 559619.0476 | AA30: 3863104.476 | AB30: 3231522.333 | AC30: 4983902.29 | AD30: 4939258.752 | AE30: =AE25+AE27 -> 4353271.39 | AF30: 4353271.39 | AG30: =AG25+AG27 -> 1433770.163 | AH30: =AH25+AH27 -> 1424865.94 | AI30: 0 | AJ30: 0 | AK30: 0 | AL30: 0 | AM30: 0 | AN30: 0 | AO30: 0 | AP30: 0 | AQ30: =AQ25+AQ27 -> 0 | AR30: =AR25+AR27 -> 0 | AS30: 0 | AT30: 0 | AU30: 0 | AV30: 0 | AW30: 0 | AX30: 0 | AY30: 0 | AZ30: 0 | BA30: =BA25+BA27 -> 0 | BB30: =BB25+BB27 -> 0 | BC30: 0 | BD30: 0 | BE30: 0 | BF30: 0 | BG30: 0 | BH30: 0 | BI30: 0 | BJ30: 0

Sheet 売上（修正）
A1: No | B1: 農産物売上高 | D1: 名 称 | E1: 収 量 | G1: 単 価 | I1: 売 上 高
B2: 収益区分 | C2: 収益名称
A3: 1 | B3: =試算計画表!E14 -> 0 | I3: =I7+I11 -> 0 | J3: 円/10a
B4: 主産物 | C4: 主産物1 | I4: =E4*G4 -> 0 | J4: 円/10a
C5: 主産物2 | I5: =E5*G5 -> 0 | J5: 円/10a
C6: 主産物3 | I6: =E6*G6 -> 0 | J6: 円/10a
C7: 全 体 | E7: =SUM(E4:E6) -> 0 | F7: kg/10a | G7: =IF(ISERROR(I7/E7),0,I7/E7) -> 0 | H7: 円/kg | I7: =SUM(I4:I6) -> 0 | J7: 円/10a
B8: 副産物 | C8: 副産物1 | I8: =E8*G8 -> 0 | J8: 円/10a
C9: 副産物2 | I9: =E9*G9 -> 0 | J9: 円/10a
C10: 副産物3 | I10: =E10*G10 -> 0 | J10: 円/10a
C11: 全 体 | E11: =SUM(E8:E10) -> 0 | F11: kg/10a | G11: =IF(ISERROR(I11/E11),0,I11/E11) -> 0 | H11: 円/kg | I11: =SUM(I8:I10) -> 0 | J11: 円/10a
A12: 2 | B12: =試算計画表!F14 -> 0 | I12: =I16+I20 -> 0 | J12: 円/10a
B13: 主産物 | C13: 主産物1 | I13: =E13*G13 -> 0 | J13: 円/10a
C14: 主産物2 | I14: =E14*G14 -> 0 | J14: 円/10a
C15: 主産物3 | I15: =E15*G15 -> 0 | J15: 円/10a
C16: 全 体 | E16: =SUM(E13:E15) -> 0 | F16: kg/10a | G16: =IF(ISERROR(I16/E16),0,I16/E16) -> 0 | H16: 円/kg | I16: =SUM(I13:I15) -> 0 | J16: 円/10a
B17: 副産物 | C17: 副産物1 | I17: =E17*G17 -> 0 | J17: 円/10a
C18: 副産物2 | I18: =E18*G18 -> 0 | J18: 円/10a
C19: 副産物3 | I19: =E19*G19 -> 0 | J19: 円/10a
C20: 全 体 | E20: =SUM(E17:E19) -> 0 | F20: kg/10a | G20: =IF(ISERROR(I20/E20),0,I20/E20) -> 0 | H20: 円/kg | I20: =SUM(I17:I19) -> 0 | J20: 円/10a
A21: 3 | B21: =試算計画表!G14 -> 0 | I21: =I25+I29 -> 0 | J21: 円/10a
B22: 主産物 | C22: 主産物1 | I22: =E22*G22 -> 0 | J22: 円/10a
C23: 主産物2 | I23: =E23*G23 -> 0 | J23: 円/10a
C24: 主産物3 | I24: =E24*G24 -> 0 | J24: 円/10a
C25: 全 体 | E25: =SUM(E22:E24) -> 0 | F25: kg/10a | G25: =IF(ISERROR(I25/E25),0,I25/E25) -> 0 | H25: 円/kg | I25: =SUM(I22:I24) -> 0 | J25: 円/10a
B26: 副産物 | C26: 副産物1 | I26: =E26*G26 -> 0 | J26: 円/10a
C27: 副産物2 | I27: =E27*G27 -> 0 | J27: 円/10a
C28: 副産物3 | I28: =E28*G28 -> 0 | J28: 円/10a
C29: 全 体 | E29: =SUM(E26:E28) -> 0 | F29: kg/10a | G29: =IF(ISERROR(I29/E29),0,I29/E29) -> 0 | H29: 円/kg | I29: =SUM(I26:I28) -> 0 | J29: 円/10a
A30: 4 | B30: =試算計画表!H14 -> 0 | I30: =I34+I38 -> 0 | J30: 円/10a
B31: 主産物 | C31: 主産物1 | I31: =E31*G31 -> 0 | J31: 円/10a
C32: 主産物2 | I32: =E32*G32 -> 0 | J32: 円/10a
C33: 主産物3 | I33: =E33*G33 -> 0 | J33: 円/10a
C34: 全 体 | E34: =SUM(E31:E33) -> 0 | F34: kg/10a | G34: =IF(ISERROR(I34/E34),0,I34/E34) -> 0 | H34: 円/kg | I34: =SUM(I31:I33) -> 0 | J34: 円/10a
B35: 副産物 | C35: 副産物1 | I35: =E35*G35 -> 0 | J35: 円/10a
C36: 副産物2 | I36: =E36*G36 -> 0 | J36: 円/10a
C37: 副産物3 | I37: =E37*G37 -> 0 | J37: 円/10a
C38: 全 体 | E38: =SUM(E35:E37) -> 0 | F38: kg/10a | G38: =IF(ISERROR(I38/E38),0,I38/E38) -> 0 | H38: 円/kg | I38: =SUM(I35:I37) -> 0 | J38: 円/10a
A39: 5 | B39: =試算計画表!I14 -> 0 | I39: =I43+I47 -> 0 | J39: 円/10a
B40: 主産物 | C40: 主産物1 | I40: =E40*G40 -> 0 | J40: 円/10a
C41: 主産物2 | I41: =E41*G41 -> 0 | J41: 円/10a
C42: 主産物3 | I42: =E42*G42 -> 0 | J42: 円/10a
C43: 全 体 | E43: =SUM(E40:E42) -> 0 | F43: kg/10a | G43: =IF(ISERROR(I43/E43),0,I43/E43) -> 0 | H43: 円/kg | I43: =SUM(I40:I42) -> 0 | J43: 円/10a
B44: 副産物 | C44: 副産物1 | I44: =E44*G44 -> 0 | J44: 円/10a
C45: 副産物2 | I45: =E45*G45 -> 0 | J45: 円/10a
C46: 副産物3 | I46: =E46*G46 -> 0 | J46: 円/10a
C47: 全 体 | E47: =SUM(E44:E46) -> 0 | F47: kg/10a | G47: =IF(ISERROR(I47/E47),0,I47/E47) -> 0 | H47: 円/kg | I47: =SUM(I44:I46) -> 0 | J47: 円/10a
A48: 6 | B48: =試算計画表!J14 -> 0 | I48: =I52+I56 -> 0 | J48: 円/10a
B49: 主産物 | C49: 主産物1 | I49: =E49*G49 -> 0 | J49: 円/10a
C50: 主産物2 | I50: =E50*G50 -> 0 | J50: 円/10a
C51: 主産物3 | I51: =E51*G51 -> 0 | J51: 円/10a
C52: 全 体 | E52: =SUM(E49:E51) -> 0 | F52: kg/10a | G52: =IF(ISERROR(I52/E52),0,I52/E52) -> 0 | H52: 円/kg | I52: =SUM(I49:I51) -> 0 | J52: 円/10a
B53: 副産物 | C53: 副産物1 | I53: =E53*G53 -> 0 | J53: 円/10a
C54: 副産物2 | I54: =E54*G54 -> 0 | J54: 円/10a
C55: 副産物3 | I55: =E55*G55 -> 0 | J55: 円/10a
C56: 全 体 | E56: =SUM(E53:E55) -> 0 | F56: kg/10a | G56: =IF(ISERROR(I56/E56),0,I56/E56) -> 0 | H56: 円/kg | I56: =SUM(I53:I55) -> 0 | J56: 円/10a
A57: 7 | B57: =試算計画表!K14 -> 0 | I57: =I61+I65 -> 0 | J57: 円/10a
B58: 主産物 | C58: 主産物1 | I58: =E58*G58 -> 0 | J58: 円/10a
C59: 主産物2 | I59: =E59*G59 -> 0 | J59: 円/10a
C60: 主産物3 | I60: =E60*G60 -> 0 | J60: 円/10a
C61: 全 体 | E61: =SUM(E58:E60) -> 0 | F61: kg/10a | G61: =IF(ISERROR(I61/E61),0,I61/E61) -> 0 | H61: 円/kg | I61: =SUM(I58:I60) -> 0 | J61: 円/10a
B62: 副産物 | C62: 副産物1 | I62: =E62*G62 -> 0 | J62: 円/10a
C63: 副産物2 | I63: =E63*G63 -> 0 | J63: 円/10a
C64: 副産物3 | I64: =E64*G64 -> 0 | J64: 円/10a
C65: 全 体 | E65: =SUM(E62:E64) -> 0 | F65: kg/10a | G65: =IF(ISERROR(I65/E65),0,I65/E65) -> 0 | H65: 円/kg | I65: =SUM(I62:I64) -> 0 | J65: 円/10a
A66: 8 | B66: =試算計画表!L14 -> 0 | I66: =I70+I74 -> 0 | J66: 円/10a
B67: 主産物 | C67: 主産物1 | I67: =E67*G67 -> 0 | J67: 円/10a
C68: 主産物2 | I68: =E68*G68 -> 0 | J68: 円/10a
C69: 主産物3 | I69: =E69*G69 -> 0 | J69: 円/10a
C70: 全 体 | E70: =SUM(E67:E69) -> 0 | F70: kg/10a | G70: =IF(ISERROR(I70/E70),0,I70/E70) -> 0 | H70: 円/kg | I70: =SUM(I67:I69) -> 0 | J70: 円/10a
B71: 副産物 | C71: 副産物1 | I71: =E71*G71 -> 0 | J71: 円/10a
C72: 副産物2 | I72: =E72*G72 -> 0 | J72: 円/10a
C73: 副産物3 | I73: =E73*G73 -> 0 | J73: 円/10a
C74: 全 体 | E74: =SUM(E71:E73) -> 0 | F74: kg/10a | G74: =IF(ISERROR(I74/E74),0,I74/E74) -> 0 | H74: 円/kg | I74: =SUM(I71:I73) -> 0 | J74: 円/10a
A75: 9 | B75: =試算計画表!M14 -> 0 | I75: =I79+I83 -> 0 | J75: 円/10a
B76: 主産物 | C76: 主産物1 | I76: =E76*G76 -> 0 | J76: 円/10a
C77: 主産物2 | I77: =E77*G77 -> 0 | J77: 円/10a
C78: 主産物3 | I78: =E78*G78 -> 0 | J78: 円/10a
C79: 全 体 | E79: =SUM(E76:E78) -> 0 | F79: kg/10a | G79: =IF(ISERROR(I79/E79),0,I79/E79) -> 0 | H79: 円/kg | I79: =SUM(I76:I78) -> 0 | J79: 円/10a
B80: 副産物 | C80: 副産物1 | I80: =E80*G80 -> 0 | J80: 円/10a
C81: 副産物2 | I81: =E81*G81 -> 0 | J81: 円/10a
C82: 副産物3 | I82: =E82*G82 -> 0 | J82: 円/10a
C83: 全 体 | E83: =SUM(E80:E82) -> 0 | F83: kg/10a | G83: =IF(ISERROR(I83/E83),0,I83/E83) -> 0 | H83: 円/kg | I83: =SUM(I80:I82) -> 0 | J83: 円/10a
A84: 10 | B84: =試算計画表!N14 -> 0 | I84: =I88+I92 -> 0 | J84: 円/10a
B85: 主産物 | C85: 主産物1 | I85: =E85*G85 -> 0 | J85: 円/10a
C86: 主産物2 | I86: =E86*G86 -> 0 | J86: 円/10a
C87: 主産物3 | I87: =E87*G87 -> 0 | J87: 円/10a
C88: 全 体 | E88: =SUM(E85:E87) -> 0 | F88: kg/10a | G88: =IF(ISERROR(I88/E88),0,I88/E88) -> 0 | H88: 円/kg | I88: =SUM(I85:I87) -> 0 | J88: 円/10a
B89: 副産物 | C89: 副産物1 | I89: =E89*G89 -> 0 | J89: 円/10a
C90: 副産物2 | I90: =E90*G90 -> 0 | J90: 円/10a
C91: 副産物3 | I91: =E91*G91 -> 0 | J91: 円/10a
C92: 全 体 | E92: =SUM(E89:E91) -> 0 | F92: kg/10a | G92: =IF(ISERROR(I92/E92),0,I92/E92) -> 0 | H92: 円/kg | I92: =SUM(I89:I91) -> 0 | J92: 円/10a

Sheet 売上 (hidden)
A1: No | B1: 農産物売上高 | D1: 名 称 | E1: 収 量 | G1: 単 価 | I1: 売 上 高
B2: 収益区分 | C2: 収益名称
A3: 1 | B3: =技術体系表!C2 -> 水稲・主食用米(限定ふるさと米，移植，5.1ha規模，胆沢平野／胆沢東部・前沢) | I3: =I7+I11 -> 103170 | J3: 円/10a
B4: 主産物 | C4: 主産物1 | D4: 限定ふるさと米 | E4: 543 | F4: kg/10a | G4: 190 | H4: 円/kg | I4: =E4*G4 -> 103170 | J4: 円/10a
C5: 主産物2 | F5: kg/10a | H5: 円/kg | I5: =E5*G5 -> 0 | J5: 円/10a
C6: 主産物3 | F6: kg/10a | H6: 円/kg | I6: =E6*G6 -> 0 | J6: 円/10a
C7: 全 体 | E7: =SUM(E4:E6) -> 543 | F7: kg/10a | G7: =IF(ISERROR(I7/E7),0,I7/E7) -> 190 | H7: 円/kg | I7: =SUM(I4:I6) -> 103170 | J7: 円/10a
B8: 副産物 | C8: 副産物1 | F8: kg/10a | H8: 円/kg | I8: =E8*G8 -> 0 | J8: 円/10a
C9: 副産物2 | F9: kg/10a | H9: 円/kg | I9: =E9*G9 -> 0 | J9: 円/10a
C10: 副産物3 | F10: kg/10a | H10: 円/kg | I10: =E10*G10 -> 0 | J10: 円/10a
C11: 全 体 | E11: =SUM(E8:E10) -> 0 | F11: kg/10a | G11: =IF(ISERROR(I11/E11),0,I11/E11) -> 0 | H11: 円/kg | I11: =SUM(I8:I10) -> 0 | J11: 円/10a
A12: 2 | B12: =技術体系表!C3 -> 水稲・主食用米(限定ふるさと米，移植，5.1ha規模，胆沢平野／胆沢西部・金ケ崎西部) | I12: =I16+I20 -> 93480 | J12: 円/10a
B13: 主産物 | C13: 主産物1 | D13: 限定ふるさと米 | E13: 492 | F13: kg/10a | G13: 190 | H13: 円/kg | I13: =E13*G13 -> 93480 | J13: 円/10a
C14: 主産物2 | F14: kg/10a | H14: 円/kg | I14: =E14*G14 -> 0 | J14: 円/10a
C15: 主産物3 | F15: kg/10a | H15: 円/kg | I15: =E15*G15 -> 0 | J15: 円/10a
C16: 全 体 | E16: =SUM(E13:E15) -> 492 | F16: kg/10a | G16: =IF(ISERROR(I16/E16),0,I16/E16) -> 190 | H16: 円/kg | I16: =SUM(I13:I15) -> 93480 | J16: 円/10a
B17: 副産物 | C17: 副産物1 | F17: kg/10a | H17: 円/kg | I17: =E17*G17 -> 0 | J17: 円/10a
C18: 副産物2 | F18: kg/10a | H18: 円/kg | I18: =E18*G18 -> 0 | J18: 円/10a
C19: 副産物3 | F19: kg/10a | H19: 円/kg | I19: =E19*G19 -> 0 | J19: 円/10a
C20: 全 体 | E20: =SUM(E17:E19) -> 0 | F20: kg/10a | G20: =IF(ISERROR(I20/E20),0,I20/E20) -> 0 | H20: 円/kg | I20: =SUM(I17:I19) -> 0 | J20: 円/10a
A21: 3 | B21: =技術体系表!C4 -> 水稲・主食用米(限定ふるさと米，移植，5.1ha規模，胆沢平野／水沢・金ケ崎東部) | I21: =I25+I29 -> 105450 | J21: 円/10a
B22: 主産物 | C22: 主産物1 | D22: 限定ふるさと米 | E22: 555 | F22: kg/10a | G22: 190 | H22: 円/kg | I22: =E22*G22 -> 105450 | J22: 円/10a
C23: 主産物2 | F23: kg/10a | H23: 円/kg | I23: =E23*G23 -> 0 | J23: 円/10a
C24: 主産物3 | F24: kg/10a | H24: 円/kg | I24: =E24*G24 -> 0 | J24: 円/10a
C25: 全 体 | E25: =SUM(E22:E24) -> 555 | F25: kg/10a | G25: =IF(ISERROR(I25/E25),0,I25/E25) -> 190 | H25: 円/kg | I25: =SUM(I22:I24) -> 105450 | J25: 円/10a
B26: 副産物 | C26: 副産物1 | F26: kg/10a | H26: 円/kg | I26: =E26*G26 -> 0 | J26: 円/10a
C27: 副産物2 | F27: kg/10a | H27: 円/kg | I27: =E27*G27 -> 0 | J27: 円/10a
C28: 副産物3 | F28: kg/10a | H28: 円/kg | I28: =E28*G28 -> 0 | J28: 円/10a
C29: 全 体 | E29: =SUM(E26:E28) -> 0 | F29: kg/10a | G29: =IF(ISERROR(I29/E29),0,I29/E29) -> 0 | H29: 円/kg | I29: =SUM(I26:I28) -> 0 | J29: 円/10a
A30: 4 | B30: =技術体系表!C5 -> 水稲・主食用米(限定ふるさと米，移植，15ha規模，胆沢平野／胆沢東部・前沢) | I30: =I34+I38 -> 103170 | J30: 円/10a
B31: 主産物 | C31: 主産物1 | D31: 限定ふるさと米 | E31: 543 | F31: kg/10a | G31: 190 | H31: 円/kg | I31: =E31*G31 -> 103170 | J31: 円/10a
C32: 主産物2 | F32: kg/10a | H32: 円/kg | I32: =E32*G32 -> 0 | J32: 円/10a
C33: 主産物3 | F33: kg/10a | H33: 円/kg | I33: =E33*G33 -> 0 | J33: 円/10a
C34: 全 体 | E34: =SUM(E31:E33) -> 543 | F34: kg/10a | G34: =IF(ISERROR(I34/E34),0,I34/E34) -> 190 | H34: 円/kg | I34: =SUM(I31:I33) -> 103170 | J34: 円/10a
B35: 副産物 | C35: 副産物1 | F35: kg/10a | H35: 円/kg | I35: =E35*G35 -> 0 | J35: 円/10a
C36: 副産物2 | F36: kg/10a | H36: 円/kg | I36: =E36*G36 -> 0 | J36: 円/10a
C37: 副産物3 | F37: kg/10a | H37: 円/kg | I37: =E37*G37 -> 0 | J37: 円/10a
C38: 全 体 | E38: =SUM(E35:E37) -> 0 | F38: kg/10a | G38: =IF(ISERROR(I38/E38),0,I38/E38) -> 0 | H38: 円/kg | I38: =SUM(I35:I37) -> 0 | J38: 円/10a
A39: 5 | B39: =技術体系表!C6 -> 水稲・主食用米(限定ふるさと米，移植，15ha規模，胆沢平野／胆沢西部・金ケ崎西部) | I39: =I43+I47 -> 93480 | J39: 円/10a
B40: 主産物 | C40: 主産物1 | D40: 限定ふるさと米 | E40: 492 | F40: kg/10a | G40: 190 | H40: 円/kg | I40: =E40*G40 -> 93480 | J40: 円/10a
C41: 主産物2 | F41: kg/10a | H41: 円/kg | I41: =E41*G41 -> 0 | J41: 円/10a
C42: 主産物3 | F42: kg/10a | H42: 円/kg | I42: =E42*G42 -> 0 | J42: 円/10a
C43: 全 体 | E43: =SUM(E40:E42) -> 492 | F43: kg/10a | G43: =IF(ISERROR(I43/E43),0,I43/E43) -> 190 | H43: 円/kg | I43: =SUM(I40:I42) -> 93480 | J43: 円/10a
B44: 副産物 | C44: 副産物1 | F44: kg/10a | H44: 円/kg | I44: =E44*G44 -> 0 | J44: 円/10a
C45: 副産物2 | F45: kg/10a | H45: 円/kg | I45: =E45*G45 -> 0 | J45: 円/10a
C46: 副産物3 | F46: kg/10a | H46: 円/kg | I46: =E46*G46 -> 0 | J46: 円/10a
C47: 全 体 | E47: =SUM(E44:E46) -> 0 | F47: kg/10a | G47: =IF(ISERROR(I47/E47),0,I47/E47) -> 0 | H47: 円/kg | I47: =SUM(I44:I46) -> 0 | J47: 円/10a
A48: 6 | B48: =技術体系表!C7 -> 水稲・主食用米(限定ふるさと米，移植，15ha規模，胆沢平野／水沢・金ケ崎東部) | I48: =I52+I56 -> 105450 | J48: 円/10a
B49: 主産物 | C49: 主産物1 | D49: 限定ふるさと米 | E49: 555 | F49: kg/10a | G49: 190 | H49: 円/kg | I49: =E49*G49 -> 105450 | J49: 円/10a
C50: 主産物2 | F50: kg/10a | H50: 円/kg | I50: =E50*G50 -> 0 | J50: 円/10a
C51: 主産物3 | F51: kg/10a | H51: 円/kg | I51: =E51*G51 -> 0 | J51: 円/10a
C52: 全 体 | E52: =SUM(E49:E51) -> 555 | F52: kg/10a | G52: =IF(ISERROR(I52/E52),0,I52/E52) -> 190 | H52: 円/kg | I52: =SUM(I49:I51) -> 105450 | J52: 円/10a
B53: 副産物 | C53: 副産物1 | F53: kg/10a | H53: 円/kg | I53: =E53*G53 -> 0 | J53: 円/10a
C54: 副産物2 | F54: kg/10a | H54: 円/kg | I54: =E54*G54 -> 0 | J54: 円/10a
C55: 副産物3 | F55: kg/10a | H55: 円/kg | I55: =E55*G55 -> 0 | J55: 円/10a
C56: 全 体 | E56: =SUM(E53:E55) -> 0 | F56: kg/10a | G56: =IF(ISERROR(I56/E56),0,I56/E56) -> 0 | H56: 円/kg | I56: =SUM(I53:I55) -> 0 | J56: 円/10a
A57: 7 | B57: =技術体系表!C8 -> 水稲・主食用米(限定ふるさと米，移植，30ha規模，胆沢平野／胆沢東部・前沢) | I57: =I61+I65 -> 103170 | J57: 円/10a
B58: 主産物 | C58: 主産物1 | D58: 限定ふるさと米 | E58: 543 | F58: kg/10a | G58: 190 | H58: 円/kg | I58: =E58*G58 -> 103170 | J58: 円/10a
C59: 主産物2 | F59: kg/10a | H59: 円/kg | I59: =E59*G59 -> 0 | J59: 円/10a
C60: 主産物3 | F60: kg/10a | H60: 円/kg | I60: =E60*G60 -> 0 | J60: 円/10a
C61: 全 体 | E61: =SUM(E58:E60) -> 543 | F61: kg/10a | G61: =IF(ISERROR(I61/E61),0,I61/E61) -> 190 | H61: 円/kg | I61: =SUM(I58:I60) -> 103170 | J61: 円/10a
B62: 副産物 | C62: 副産物1 | F62: kg/10a | H62: 円/kg | I62: =E62*G62 -> 0 | J62: 円/10a
C63: 副産物2 | F63: kg/10a | H63: 円/kg | I63: =E63*G63 -> 0 | J63: 円/10a
C64: 副産物3 | F64: kg/10a | H64: 円/kg | I64: =E64*G64 -> 0 | J64: 円/10a
C65: 全 体 | E65: =SUM(E62:E64) -> 0 | F65: kg/10a | G65: =IF(ISERROR(I65/E65),0,I65/E65) -> 0 | H65: 円/kg | I65: =SUM(I62:I64) -> 0 | J65: 円/10a
A66: 8 | B66: =技術体系表!C9 -> 水稲・主食用米(限定ふるさと米，移植，30ha規模，胆沢平野／胆沢西部・金ケ崎西部) | I66: =I70+I74 -> 93480 | J66: 円/10a
B67: 主産物 | C67: 主産物1 | D67: 限定ふるさと米 | E67: 492 | F67: kg/10a | G67: 190 | H67: 円/kg | I67: =E67*G67 -> 93480 | J67: 円/10a
C68: 主産物2 | F68: kg/10a | H68: 円/kg | I68: =E68*G68 -> 0 | J68: 円/10a
C69: 主産物3 | F69: kg/10a | H69: 円/kg | I69: =E69*G69 -> 0 | J69: 円/10a
C70: 全 体 | E70: =SUM(E67:E69) -> 492 | F70: kg/10a | G70: =IF(ISERROR(I70/E70),0,I70/E70) -> 190 | H70: 円/kg | I70: =SUM(I67:I69) -> 93480 | J70: 円/10a
B71: 副産物 | C71: 副産物1 | F71: kg/10a | H71: 円/kg | I71: =E71*G71 -> 0 | J71: 円/10a
C72: 副産物2 | F72: kg/10a | H72: 円/kg | I72: =E72*G72 -> 0 | J72: 円/10a
C73: 副産物3 | F73: kg/10a | H73: 円/kg | I73: =E73*G73 -> 0 | J73: 円/10a
C74: 全 体 | E74: =SUM(E71:E73) -> 0 | F74: kg/10a | G74: =IF(ISERROR(I74/E74),0,I74/E74) -> 0 | H74: 円/kg | I74: =SUM(I71:I73) -> 0 | J74: 円/10a
A75: 9 | B75: =技術体系表!C10 -> 水稲・主食用米(限定ふるさと米，移植，30ha規模，胆沢平野／水沢・金ケ崎東部) | I75: =I79+I83 -> 105450 | J75: 円/10a
B76: 主産物 | C76: 主産物1 | D76: 限定ふるさと米 | E76: 555 | F76: kg/10a | G76: 190 | H76: 円/kg | I76: =E76*G76 -> 105450 | J76: 円/10a
C77: 主産物2 | F77: kg/10a | H77: 円/kg | I77: =E77*G77 -> 0 | J77: 円/10a
C78: 主産物3 | F78: kg/10a | H78: 円/kg | I78: =E78*G78 -> 0 | J78: 円/10a
C79: 全 体 | E79: =SUM(E76:E78) -> 555 | F79: kg/10a | G79: =IF(ISERROR(I79/E79),0,I79/E79) -> 190 | H79: 円/kg | I79: =SUM(I76:I78) -> 105450 | J79: 円/10a
B80: 副産物 | C80: 副産物1 | F80: kg/10a | H80: 円/kg | I80: =E80*G80 -> 0 | J80: 円/10a
C81: 副産物2 | F81: kg/10a | H81: 円/kg | I81: =E81*G81 -> 0 | J81: 円/10a
C82: 副産物3 | F82: kg/10a | H82: 円/kg | I82: =E82*G82 -> 0 | J82: 円/10a
C83: 全 体 | E83: =SUM(E80:E82) -> 0 | F83: kg/10a | G83: =IF(ISERROR(I83/E83),0,I83/E83) -> 0 | H83: 円/kg | I83: =SUM(I80:I82) -> 0 | J83: 円/10a
A84: 10 | B84: =技術体系表!C11 -> 水稲・主食用米(慣行米，直播，15ha規模，胆沢平野／胆沢東部・前沢) | I84: =I88+I92 -> 97470 | J84: 円/10a
B85: 主産物 | C85: 主産物1 | D85: ひとめぼれ | E85: 513 | F85: kg/10a | G85: 190 | H85: 円/kg | I85: =E85*G85 -> 97470 | J85: 円/10a
C86: 主産物2 | F86: kg/10a | H86: 円/kg | I86: =E86*G86 -> 0 | J86: 円/10a
C87: 主産物3 | F87: kg/10a | H87: 円/kg | I87: =E87*G87 -> 0 | J87: 円/10a
C88: 全 体 | E88: =SUM(E85:E87) -> 513 | F88: kg/10a | G88: =IF(ISERROR(I88/E88),0,I88/E88) -> 190 | H88: 円/kg | I88: =SUM(I85:I87) -> 97470 | J88: 円/10a
B89: 副産物 | C89: 副産物1 | F89: kg/10a | H89: 円/kg | I89: =E89*G89 -> 0 | J89: 円/10a
C90: 副産物2 | F90: kg/10a | H90: 円/kg | I90: =E90*G90 -> 0 | J90: 円/10a
C91: 副産物3 | F91: kg/10a | H91: 円/kg | I91: =E91*G91 -> 0 | J91: 円/10a
C92: 全 体 | E92: =SUM(E89:E91) -> 0 | F92: kg/10a | G92: =IF(ISERROR(I92/E92),0,I92/E92) -> 0 | H92: 円/kg | I92: =SUM(I89:I91) -> 0 | J92: 円/10a
A93: 11 | B93: =技術体系表!C12 -> 水稲・主食用米(慣行米，直播，15ha規模，胆沢平野／胆沢西部・金ケ崎西部) | I93: =I97+I101 -> 88350 | J93: 円/10a
B94: 主産物 | C94: 主産物1 | D94: ひとめぼれ | E94: 465 | F94: kg/10a | G94: 190 | H94: 円/kg | I94: =E94*G94 -> 88350 | J94: 円/10a
C95: 主産物2 | F95: kg/10a | H95: 円/kg | I95: =E95*G95 -> 0 | J95: 円/10a
C96: 主産物3 | F96: kg/10a | H96: 円/kg | I96: =E96*G96 -> 0 | J96: 円/10a
C97: 全 体 | E97: =SUM(E94:E96) -> 465 | F97: kg/10a | G97: =IF(ISERROR(I97/E97),0,I97/E97) -> 190 | H97: 円/kg | I97: =SUM(I94:I96) -> 88350 | J97: 円/10a
B98: 副産物 | C98: 副産物1 | F98: kg/10a | H98: 円/kg | I98: =E98*G98 -> 0 | J98: 円/10a
C99: 副産物2 | F99: kg/10a | H99: 円/kg | I99: =E99*G99 -> 0 | J99: 円/10a
C100: 副産物3 | F100: kg/10a | H100: 円/kg | I100: =E100*G100 -> 0 | J100: 円/10a
C101: 全 体 | E101: =SUM(E98:E100) -> 0 | F101: kg/10a | G101: =IF(ISERROR(I101/E101),0,I101/E101) -> 0 | H101: 円/kg | I101: =SUM(I98:I100) -> 0 | J101: 円/10a
A102: 12 | B102: =技術体系表!C13 -> 水稲・主食用米(慣行米，直播，15ha規模，胆沢平野／水沢・金ケ崎東部) | I102: =I106+I110 -> 99750 | J102: 円/10a
B103: 主産物 | C103: 主産物1 | D103: ひとめぼれ | E103: 525 | F103: kg/10a | G103: 190 | H103: 円/kg | I103: =E103*G103 -> 99750 | J103: 円/10a
C104: 主産物2 | F104: kg/10a | H104: 円/kg | I104: =E104*G104 -> 0 | J104: 円/10a
C105: 主産物3 | F105: kg/10a | H105: 円/kg | I105: =E105*G105 -> 0 | J105: 円/10a
C106: 全 体 | E106: =SUM(E103:E105) -> 525 | F106: kg/10a | G106: =IF(ISERROR(I106/E106),0,I106/E106) -> 190 | H106: 円/kg | I106: =SUM(I103:I105) -> 99750 | J106: 円/10a
B107: 副産物 | C107: 副産物1 | F107: kg/10a | H107: 円/kg | I107: =E107*G107 -> 0 | J107: 円/10a
C108: 副産物2 | F108: kg/10a | H108: 円/kg | I108: =E108*G108 -> 0 | J108: 円/10a
C109: 副産物3 | F109: kg/10a | H109: 円/kg | I109: =E109*G109 -> 0 | J109: 円/10a
C110: 全 体 | E110: =SUM(E107:E109) -> 0 | F110: kg/10a | G110: =IF(ISERROR(I110/E110),0,I110/E110) -> 0 | H110: 円/kg | I110: =SUM(I107:I109) -> 0 | J110: 円/10a
A111: 13 | B111: =技術体系表!C14 -> 水稲・主食用米(慣行米，直播，30ha規模，胆沢平野／胆沢東部・前沢) | I111: =I115+I119 -> 97470 | J111: 円/10a
B112: 主産物 | C112: 主産物1 | D112: ひとめぼれ | E112: 513 | F112: kg/10a | G112: 190 | H112: 円/kg | I112: =E112*G112 -> 97470 | J112: 円/10a
C113: 主産物2 | F113: kg/10a | H113: 円/kg | I113: =E113*G113 -> 0 | J113: 円/10a
C114: 主産物3 | F114: kg/10a | H114: 円/kg | I114: =E114*G114 -> 0 | J114: 円/10a
C115: 全 体 | E115: =SUM(E112:E114) -> 513 | F115: kg/10a | G115: =IF(ISERROR(I115/E115),0,I115/E115) -> 190 | H115: 円/kg | I115: =SUM(I112:I114) -> 97470 | J115: 円/10a
B116: 副産物 | C116: 副産物1 | F116: kg/10a | H116: 円/kg | I116: =E116*G116 -> 0 | J116: 円/10a
C117: 副産物2 | F117: kg/10a | H117: 円/kg | I117: =E117*G117 -> 0 | J117: 円/10a
C118: 副産物3 | F118: kg/10a | H118: 円/kg | I118: =E118*G118 -> 0 | J118: 円/10a
C119: 全 体 | E119: =SUM(E116:E118) -> 0 | F119: kg/10a | G119: =IF(ISERROR(I119/E119),0,I119/E119) -> 0 | H119: 円/kg | I119: =SUM(I116:I118) -> 0 | J119: 円/10a
A120: 14 | B120: =技術体系表!C15 -> 水稲・主食用米(慣行米，直播，30ha規模，胆沢平野／胆沢西部・金ケ崎西部) | I120: =I124+I128 -> 88350 | J120: 円/10a
B121: 主産物 | C121: 主産物1 | D121: ひとめぼれ | E121: 465 | F121: kg/10a | G121: 190 | H121: 円/kg | I121: =E121*G121 -> 88350 | J121: 円/10a
C122: 主産物2 | F122: kg/10a | H122: 円/kg | I122: =E122*G122 -> 0 | J122: 円/10a
C123: 主産物3 | F123: kg/10a | H123: 円/kg | I123: =E123*G123 -> 0 | J123: 円/10a
C124: 全 体 | E124: =SUM(E121:E123) -> 465 | F124: kg/10a | G124: =IF(ISERROR(I124/E124),0,I124/E124) -> 190 | H124: 円/kg | I124: =SUM(I121:I123) -> 88350 | J124: 円/10a
B125: 副産物 | C125: 副産物1 | F125: kg/10a | H125: 円/kg | I125: =E125*G125 -> 0 | J125: 円/10a
C126: 副産物2 | F126: kg/10a | H126: 円/kg | I126: =E126*G126 -> 0 | J126: 円/10a
C127: 副産物3 | F127: kg/10a | H127: 円/kg | I127: =E127*G127 -> 0 | J127: 円/10a
C128: 全 体 | E128: =SUM(E125:E127) -> 0 | F128: kg/10a | G128: =IF(ISERROR(I128/E128),0,I128/E128) -> 0 | H128: 円/kg | I128: =SUM(I125:I127) -> 0 | J128: 円/10a
A129: 15 | B129: =技術体系表!C16 -> 水稲・主食用米(慣行米，直播，30ha規模，胆沢平野／水沢・金ケ崎東部) | I129: =I133+I137 -> 99750 | J129: 円/10a
B130: 主産物 | C130: 主産物1 | D130: ひとめぼれ | E130: 525 | F130: kg/10a | G130: 190 | H130: 円/kg | I130: =E130*G130 -> 99750 | J130: 円/10a
C131: 主産物2 | F131: kg/10a | H131: 円/kg | I131: =E131*G131 -> 0 | J131: 円/10a
C132: 主産物3 | F132: kg/10a | H132: 円/kg | I132: =E132*G132 -> 0 | J132: 円/10a
C133: 全 体 | E133: =SUM(E130:E132) -> 525 | F133: kg/10a | G133: =IF(ISERROR(I133/E133),0,I133/E133) -> 190 | H133: 円/kg | I133: =SUM(I130:I132) -> 99750 | J133: 円/10a
B134: 副産物 | C134: 副産物1 | F134: kg/10a | H134: 円/kg | I134: =E134*G134 -> 0 | J134: 円/10a
C135: 副産物2 | F135: kg/10a | H135: 円/kg | I135: =E135*G135 -> 0 | J135: 円/10a
C136: 副産物3 | F136: kg/10a | H136: 円/kg | I136: =E136*G136 -> 0 | J136: 円/10a
C137: 全 体 | E137: =SUM(E134:E136) -> 0 | F137: kg/10a | G137: =IF(ISERROR(I137/E137),0,I137/E137) -> 0 | H137: 円/kg | I137: =SUM(I134:I136) -> 0 | J137: 円/10a
A138: 16 | B138: =技術体系表!C17 -> 水稲・飼料用米(つぶみのり・つぶゆたか，大区画・移植，15ha規模，胆沢平野) | I138: =I142+I146 -> 20490 | J138: 円/10a
B139: 主産物 | C139: 主産物1 | D139: つぶみのり・つぶゆたか | E139: 683 | F139: kg/10a | G139: 30 | H139: 円/kg | I139: =E139*G139 -> 20490 | J139: 円/10a
C140: 主産物2 | F140: kg/10a | H140: 円/kg | I140: =E140*G140 -> 0 | J140: 円/10a
C141: 主産物3 | F141: kg/10a | H141: 円/kg | I141: =E141*G141 -> 0 | J141: 円/10a
C142: 全 体 | E142: =SUM(E139:E141) -> 683 | F142: kg/10a | G142: =IF(ISERROR(I142/E142),0,I142/E142) -> 30 | H142: 円/kg | I142: =SUM(I139:I141) -> 20490 | J142: 円/10a
B143: 副産物 | C143: 副産物1 | F143: kg/10a | H143: 円/kg | I143: =E143*G143 -> 0 | J143: 円/10a
C144: 副産物2 | F144: kg/10a | H144: 円/kg | I144: =E144*G144 -> 0 | J144: 円/10a
C145: 副産物3 | F145: kg/10a | H145: 円/kg | I145: =E145*G145 -> 0 | J145: 円/10a
C146: 全 体 | E146: =SUM(E143:E145) -> 0 | F146: kg/10a | G146: =IF(ISERROR(I146/E146),0,I146/E146) -> 0 | H146: 円/kg | I146: =SUM(I143:I145) -> 0 | J146: 円/10a
A147: 17 | B147: =技術体系表!C18 -> 飼料用米(つぶみのり・つぶゆたか，移植，30ha規模，胆沢平野) | I147: =I151+I155 -> 20490 | J147: 円/10a
B148: 主産物 | C148: 主産物1 | D148: つぶみのり・つぶゆたか | E148: 683 | F148: kg/10a | G148: 30 | H148: 円/kg | I148: =E148*G148 -> 20490 | J148: 円/10a
C149: 主産物2 | F149: kg/10a | H149: 円/kg | I149: =E149*G149 -> 0 | J149: 円/10a
C150: 主産物3 | F150: kg/10a | H150: 円/kg | I150: =E150*G150 -> 0 | J150: 円/10a
C151: 全 体 | E151: =SUM(E148:E150) -> 683 | F151: kg/10a | G151: =IF(ISERROR(I151/E151),0,I151/E151) -> 30 | H151: 円/kg | I151: =SUM(I148:I150) -> 20490 | J151: 円/10a
B152: 副産物 | C152: 副産物1 | F152: kg/10a | H152: 円/kg | I152: =E152*G152 -> 0 | J152: 円/10a
C153: 副産物2 | F153: kg/10a | H153: 円/kg | I153: =E153*G153 -> 0 | J153: 円/10a
C154: 副産物3 | F154: kg/10a | H154: 円/kg | I154: =E154*G154 -> 0 | J154: 円/10a
C155: 全 体 | E155: =SUM(E152:E154) -> 0 | F155: kg/10a | G155: =IF(ISERROR(I155/E155),0,I155/E155) -> 0 | H155: 円/kg | I155: =SUM(I152:I154) -> 0 | J155: 円/10a
A156: 18 | B156: =技術体系表!C19 -> 水稲・飼料用米(つぶみのり・つぶゆたか，大区画・直播，15ha規模，胆沢平野) | I156: =I160+I164 -> 19470 | J156: 円/10a
B157: 主産物 | C157: 主産物1 | D157: つぶみのり・つぶゆたか | E157: 649 | F157: kg/10a | G157: 30 | H157: 円/kg | I157: =E157*G157 -> 19470 | J157: 円/10a
C158: 主産物2 | F158: kg/10a | H158: 円/kg | I158: =E158*G158 -> 0 | J158: 円/10a
C159: 主産物3 | F159: kg/10a | H159: 円/kg | I159: =E159*G159 -> 0 | J159: 円/10a
C160: 全 体 | E160: =SUM(E157:E159) -> 649 | F160: kg/10a | G160: =IF(ISERROR(I160/E160),0,I160/E160) -> 30 | H160: 円/kg | I160: =SUM(I157:I159) -> 19470 | J160: 円/10a
B161: 副産物 | C161: 副産物1 | F161: kg/10a | H161: 円/kg | I161: =E161*G161 -> 0 | J161: 円/10a
C162: 副産物2 | F162: kg/10a | H162: 円/kg | I162: =E162*G162 -> 0 | J162: 円/10a
C163: 副産物3 | F163: kg/10a | H163: 円/kg | I163: =E163*G163 -> 0 | J163: 円/10a
C164: 全 体 | E164: =SUM(E161:E163) -> 0 | F164: kg/10a | G164: =IF(ISERROR(I164/E164),0,I164/E164) -> 0 | H164: 円/kg | I164: =SUM(I161:I163) -> 0 | J164: 円/10a
A165: 19 | B165: =技術体系表!C20 -> 水稲・飼料用米(つぶみのり・つぶゆたか，大区画・直播，30ha規模，胆沢平野) | I165: =I169+I173 -> 19470 | J165: 円/10a
B166: 主産物 | C166: 主産物1 | D166: つぶみのり・つぶゆたか | E166: 649 | F166: kg/10a | G166: 30 | H166: 円/kg | I166: =E166*G166 -> 19470 | J166: 円/10a
C167: 主産物2 | F167: kg/10a | H167: 円/kg | I167: =E167*G167 -> 0 | J167: 円/10a
C168: 主産物3 | F168: kg/10a | H168: 円/kg | I168: =E168*G168 -> 0 | J168: 円/10a
C169: 全 体 | E169: =SUM(E166:E168) -> 649 | F169: kg/10a | G169: =IF(ISERROR(I169/E169),0,I169/E169) -> 30 | H169: 円/kg | I169: =SUM(I166:I168) -> 19470 | J169: 円/10a
B170: 副産物 | C170: 副産物1 | F170: kg/10a | H170: 円/kg | I170: =E170*G170 -> 0 | J170: 円/10a
C171: 副産物2 | F171: kg/10a | H171: 円/kg | I171: =E171*G171 -> 0 | J171: 円/10a
C172: 副産物3 | F172: kg/10a | H172: 円/kg | I172: =E172*G172 -> 0 | J172: 円/10a
C173: 全 体 | E173: =SUM(E170:E172) -> 0 | F173: kg/10a | G173: =IF(ISERROR(I173/E173),0,I173/E173) -> 0 | H173: 円/kg | I173: =SUM(I170:I172) -> 0 | J173: 円/10a
A174: 20 | B174: =技術体系表!C21 -> 大豆(ﾘｭｳﾎｳ，水田転作・小畦立，7ha規模，胆沢平野) | I174: =I178+I182 -> 16830 | J174: 円/10a
B175: 主産物 | C175: 主産物1 | D175: ﾘｭｳﾎｳ | E175: 198 | F175: kg/10a | G175: 85 | H175: 円/kg | I175: =E175*G175 -> 16830 | J175: 円/10a
C176: 主産物2 | F176: kg/10a | H176: 円/kg | I176: =E176*G176 -> 0 | J176: 円/10a
C177: 主産物3 | F177: kg/10a | H177: 円/kg | I177: =E177*G177 -> 0 | J177: 円/10a
C178: 全 体 | E178: =SUM(E175:E177) -> 198 | F178: kg/10a | G178: =IF(ISERROR(I178/E178),0,I178/E178) -> 85 | H178: 円/kg | I178: =SUM(I175:I177) -> 16830 | J178: 円/10a
B179: 副産物 | C179: 副産物1 | F179: kg/10a | H179: 円/kg | I179: =E179*G179 -> 0 | J179: 円/10a
C180: 副産物2 | F180: kg/10a | H180: 円/kg | I180: =E180*G180 -> 0 | J180: 円/10a
C181: 副産物3 | F181: kg/10a | H181: 円/kg | I181: =E181*G181 -> 0 | J181: 円/10a
C182: 全 体 | E182: =SUM(E179:E181) -> 0 | F182: kg/10a | G182: =IF(ISERROR(I182/E182),0,I182/E182) -> 0 | H182: 円/kg | I182: =SUM(I179:I181) -> 0 | J182: 円/10a
A183: 21 | B183: =技術体系表!C22 -> 小麦(ﾅﾝﾌﾞｺﾑｷﾞ，水田転作，7ha規模，胆沢平野) | I183: =I187+I191 -> 2847 | J183: 円/10a
B184: 主産物 | C184: 主産物1 | D184: ﾅﾝﾌﾞｺﾑｷﾞ | E184: 219 | F184: kg/10a | G184: 13 | H184: 円/kg | I184: =E184*G184 -> 2847 | J184: 円/10a
C185: 主産物2 | F185: kg/10a | H185: 円/kg | I185: =E185*G185 -> 0 | J185: 円/10a
C186: 主産物3 | F186: kg/10a | H186: 円/kg | I186: =E186*G186 -> 0 | J186: 円/10a
C187: 全 体 | E187: =SUM(E184:E186) -> 219 | F187: kg/10a | G187: =IF(ISERROR(I187/E187),0,I187/E187) -> 13 | H187: 円/kg | I187: =SUM(I184:I186) -> 2847 | J187: 円/10a
B188: 副産物 | C188: 副産物1 | F188: kg/10a | H188: 円/kg | I188: =E188*G188 -> 0 | J188: 円/10a
C189: 副産物2 | F189: kg/10a | H189: 円/kg | I189: =E189*G189 -> 0 | J189: 円/10a
C190: 副産物3 | F190: kg/10a | H190: 円/kg | I190: =E190*G190 -> 0 | J190: 円/10a
C191: 全 体 | E191: =SUM(E188:E190) -> 0 | F191: kg/10a | G191: =IF(ISERROR(I191/E191),0,I191/E191) -> 0 | H191: 円/kg | I191: =SUM(I188:I190) -> 0 | J191: 円/10a
A192: 22 | B192: =技術体系表!C23 -> 受委託(限定ふるさと米，苗生産・販売，3375箱規模，胆沢平野) | I192: =I196+I200 -> 0
B193: 主産物 | C193: 主産物1 | I193: =E193*G193 -> 0
C194: 主産物2 | I194: =E194*G194 -> 0
C195: 主産物3 | I195: =E195*G195 -> 0
C196: 全 体 | E196: =SUM(E193:E195) -> 0 | G196: =IF(ISERROR(I196/E196),0,I196/E196) -> 0 | I196: =SUM(I193:I195) -> 0
B197: 副産物 | C197: 副産物1 | I197: =E197*G197 -> 0
C198: 副産物2 | I198: =E198*G198 -> 0
C199: 副産物3 | I199: =E199*G199 -> 0
C200: 全 体 | E200: =SUM(E197:E199) -> 0 | G200: =IF(ISERROR(I200/E200),0,I200/E200) -> 0 | I200: =SUM(I197:I199) -> 0
... 342 more rows

Sheet 流通経費（修正）
A1: No | B1: 流通経費 | F1: 単位 | G1: 合 計 (円) | H1: 対象農産物
B2: 費用項目 | C2: 費用名称 | D2: 費用種別 | E2: 単位費用
A3: 1 | B3: =試算計画表!E14 -> 0 | G3: =SUM(G4:G18) -> 0
A19: 2 | B19: =試算計画表!F14 -> 0 | G19: =SUM(G20:G34) -> 0
A35: 3 | B35: =試算計画表!G14 -> 0 | G35: =SUM(G36:G50) -> 0
A51: 4 | B51: =試算計画表!H14 -> 0 | G51: =SUM(G52:G66) -> 0
A67: 5 | B67: =試算計画表!I14 -> 0 | G67: =SUM(G68:G82) -> 0
A83: 6 | B83: =試算計画表!J14 -> 0 | G83: =SUM(G84:G98) -> 0
A99: 7 | B99: =試算計画表!K14 -> 0 | G99: =SUM(G100:G114) -> 0
A115: 8 | B115: =試算計画表!L14 -> 0 | G115: =SUM(G116:G130) -> 0
A131: 9 | B131: =試算計画表!M14 -> 0 | G131: =SUM(G132:G146) -> 0
A147: 10 | B147: =試算計画表!N14 -> 0 | G147: =SUM(G148:G162) -> 0

Sheet 流通経費 (hidden)
A1: No | B1: 流通経費 | F1: 単位 | G1: 合 計 | H1: 対象農産物
B2: 費用項目 | C2: 費用名称 | D2: 費用種別 | E2: 単位費用
A3: 1 | B3: =技術体系表!C2 -> 水稲・主食用米(限定ふるさと米，移植，5.1ha規模，胆沢平野／胆沢東部・前沢) | G3: =SUM(G4:G18) -> 0
B4: 手数料 | C4: 農協経費 | D4: 収量当たり | E4: 0 | F4: 円/kg | G4: 0 | H4: 主産物1
A19: 2 | B19: =技術体系表!C3 -> 水稲・主食用米(限定ふるさと米，移植，5.1ha規模，胆沢平野／胆沢西部・金ケ崎西部) | G19: =SUM(G20:G34) -> 0
B20: 手数料 | C20: 農協経費 | D20: 収量当たり | E20: 0 | F20: 円/kg | G20: 0 | H20: 主産物1
A35: 3 | B35: =技術体系表!C4 -> 水稲・主食用米(限定ふるさと米，移植，5.1ha規模，胆沢平野／水沢・金ケ崎東部) | G35: =SUM(G36:G50) -> 0
B36: 手数料 | C36: 農協経費 | D36: 収量当たり | E36: 0 | F36: 円/kg | G36: 0 | H36: 主産物1
A51: 4 | B51: =技術体系表!C5 -> 水稲・主食用米(限定ふるさと米，移植，15ha規模，胆沢平野／胆沢東部・前沢) | G51: =SUM(G52:G66) -> 0
B52: 手数料 | C52: 農協経費 | D52: 収量当たり | E52: 0 | F52: 円/kg | G52: 0 | H52: 主産物1
A67: 5 | B67: =技術体系表!C6 -> 水稲・主食用米(限定ふるさと米，移植，15ha規模，胆沢平野／胆沢西部・金ケ崎西部) | G67: =SUM(G68:G82) -> 0
B68: 手数料 | C68: 農協経費 | D68: 収量当たり | E68: 0 | F68: 円/kg | G68: 0 | H68: 主産物1
A83: 6 | B83: =技術体系表!C7 -> 水稲・主食用米(限定ふるさと米，移植，15ha規模，胆沢平野／水沢・金ケ崎東部) | G83: =SUM(G84:G98) -> 0
B84: 手数料 | C84: 農協経費 | D84: 収量当たり | E84: 0 | F84: 円/kg | G84: 0 | H84: 主産物1
A99: 7 | B99: =技術体系表!C8 -> 水稲・主食用米(限定ふるさと米，移植，30ha規模，胆沢平野／胆沢東部・前沢) | G99: =SUM(G100:G114) -> 0
B100: 手数料 | C100: 農協経費 | D100: 収量当たり | E100: 0 | F100: 円/kg | G100: 0 | H100: 主産物1
A115: 8 | B115: =技術体系表!C9 -> 水稲・主食用米(限定ふるさと米，移植，30ha規模，胆沢平野／胆沢西部・金ケ崎西部) | G115: =SUM(G116:G130) -> 0
B116: 手数料 | C116: 農協経費 | D116: 収量当たり | E116: 0 | F116: 円/kg | G116: 0 | H116: 主産物1
A131: 9 | B131: =技術体系表!C10 -> 水稲・主食用米(限定ふるさと米，移植，30ha規模，胆沢平野／水沢・金ケ崎東部) | G131: =SUM(G132:G146) -> 0
B132: 手数料 | C132: 農協経費 | D132: 収量当たり | E132: 0 | F132: 円/kg | G132: 0 | H132: 主産物1
A147: 10 | B147: =技術体系表!C11 -> 水稲・主食用米(慣行米，直播，15ha規模，胆沢平野／胆沢東部・前沢) | G147: =SUM(G148:G162) -> 0
B148: 手数料 | C148: 農協経費 | D148: 収量当たり | E148: 0 | F148: 円/kg | G148: 0 | H148: 主産物1
A163: 11 | B163: =技術体系表!C12 -> 水稲・主食用米(慣行米，直播，15ha規模，胆沢平野／胆沢西部・金ケ崎西部) | G163: =SUM(G164:G178) -> 0
B164: 手数料 | C164: 農協経費 | D164: 収量当たり | E164: 0 | F164: 円/kg | G164: 0 | H164: 主産物1
A179: 12 | B179: =技術体系表!C13 -> 水稲・主食用米(慣行米，直播，15ha規模，胆沢平野／水沢・金ケ崎東部) | G179: =SUM(G180:G194) -> 0
B180: 手数料 | C180: 農協経費 | D180: 収量当たり | E180: 0 | F180: 円/kg | G180: 0 | H180: 主産物1
A195: 13 | B195: =技術体系表!C14 -> 水稲・主食用米(慣行米，直播，30ha規模，胆沢平野／胆沢東部・前沢) | G195: =SUM(G196:G210) -> 0
B196: 手数料 | C196: 農協経費 | D196: 収量当たり | E196: 0 | F196: 円/kg | G196: 0 | H196: 主産物1
A211: 14 | B211: =技術体系表!C15 -> 水稲・主食用米(慣行米，直播，30ha規模，胆沢平野／胆沢西部・金ケ崎西部) | G211: =SUM(G212:G226) -> 0
B212: 手数料 | C212: 農協経費 | D212: 収量当たり | E212: 0 | F212: 円/kg | G212: 0 | H212: 主産物1
A227: 15 | B227: =技術体系表!C16 -> 水稲・主食用米(慣行米，直播，30ha規模，胆沢平野／水沢・金ケ崎東部) | G227: =SUM(G228:G242) -> 0
B228: 手数料 | C228: 農協経費 | D228: 収量当たり | E228: 0 | F228: 円/kg | G228: 0 | H228: 主産物1
A243: 16 | B243: =技術体系表!C17 -> 水稲・飼料用米(つぶみのり・つぶゆたか，大区画・移植，15ha規模，胆沢平野) | G243: =SUM(G244:G258) -> 28207.9
B244: 手数料 | C244: 手数料（保管料・運賃等含む） | D244: 収量当たり | E244: 21.3 | F244: 円/kg | G244: 14547.9 | H244: 主産物1
B245: 施設利用料 | C245: 乾燥調製 | D245: 収量当たり | E245: 20 | F245: 円/kg | G245: 13660 | H245: 主産物1
A259: 17 | B259: =技術体系表!C18 -> 飼料用米(つぶみのり・つぶゆたか，移植，30ha規模，胆沢平野) | G259: =SUM(G260:G274) -> 28207.9
B260: 手数料 | C260: 手数料（保管料・運賃等含む） | D260: 収量当たり | E260: 21.3 | F260: 円/kg | G260: 14547.9 | H260: 主産物1
B261: 施設利用料 | C261: 乾燥調製 | D261: 収量当たり | E261: 20 | F261: 円/kg | G261: 13660 | H261: 主産物1
A275: 18 | B275: =技術体系表!C19 -> 水稲・飼料用米(つぶみのり・つぶゆたか，大区画・直播，15ha規模，胆沢平野) | G275: =SUM(G276:G290) -> 26803.7
B276: 手数料 | C276: 手数料（保管料・運賃含む） | D276: 収量当たり | E276: 21.3 | F276: 円/kg | G276: 13823.7 | H276: 主産物1
B277: 施設利用料 | C277: 乾燥調製 | D277: 収量当たり | E277: 20 | F277: 円/kg | G277: 12980 | H277: 主産物1
A291: 19 | B291: =技術体系表!C20 -> 水稲・飼料用米(つぶみのり・つぶゆたか，大区画・直播，30ha規模，胆沢平野) | G291: =SUM(G292:G306) -> 26803.7
B292: 手数料 | C292: 手数料（保管料・運賃含む） | D292: 収量当たり | E292: 21.3 | F292: 円/kg | G292: 13823.7 | H292: 主産物1
B293: 施設利用料 | C293: 乾燥調製 | D293: 収量当たり | E293: 20 | F293: 円/kg | G293: 12980 | H293: 主産物1
A307: 20 | B307: =技術体系表!C21 -> 大豆(ﾘｭｳﾎｳ，水田転作・小畦立，7ha規模，胆沢平野) | G307: =SUM(G308:G322) -> 0
B308: 手数料 | C308: 手数料（保管料・運賃等含む） | D308: 収量当たり | E308: 0 | F308: 円/kg | G308: 0 | H308: 主産物全体
A323: 21 | B323: =技術体系表!C22 -> 小麦(ﾅﾝﾌﾞｺﾑｷﾞ，水田転作，7ha規模，胆沢平野) | G323: =SUM(G324:G338) -> 0
B324: 手数料 | C324: 手数料（保管料・運賃等含む） | D324: 収量当たり | E324: 0 | F324: 円/kg | G324: 0 | H324: 主産物全体
A339: 22 | B339: =技術体系表!C23 -> 受委託(限定ふるさと米，苗生産・販売，3375箱規模，胆沢平野) | G339: =SUM(G340:G354) -> 0
A355: 23 | B355: =技術体系表!C24 -> 受委託(限定ふるさと米，耕起・代掻，15ha規模，胆沢平野) | G355: =SUM(G356:G370) -> 0
A371: 24 | B371: =技術体系表!C25 -> 受委託(限定ふるさと米，田植，15ha規模，胆沢平野) | G371: =SUM(G372:G386) -> 0
A387: 25 | B387: =技術体系表!C26 -> 受委託(限定ふるさと米，収穫運搬，15ha規模，胆沢平野) | G387: =SUM(G388:G402) -> 0
A403: 26 | B403: =技術体系表!C27 -> 受委託(限定ふるさと米，乾燥調製，81000kg規模，胆沢平野) | G403: =SUM(G404:G418) -> 0
A419: 27 | B419: =技術体系表!C28 -> WCS(つぶゆたか，移植，15ha規模，胆沢平野) | G419: =SUM(G420:G434) -> 0
A435: 28 | B435: =技術体系表!C29 -> WCS(つぶゆたか，直播，15ha規模，胆沢平野) | G435: =SUM(G436:G450) -> 0
A451: 29 | B451: =技術体系表!C30 -> 牧草(混播牧草，乾草調製(ﾛｰﾙﾍﾞｰﾙ)，5ha規模，胆沢平野) | G451: =SUM(G452:G466) -> 0
A467: 30 | B467: =技術体系表!C31 -> 牧草(混播牧草，ｸﾞﾗｽｻｲﾚｰｼﾞ(ﾛｰﾙﾍﾞｰﾙ)，5ha規模，胆沢平野) | G467: =SUM(G468:G482) -> 0
A483: 31 | B483: =技術体系表!C32 -> ﾋﾟｰﾏﾝ(京鈴，雨よけﾊｳｽ栽培，30a規模，県下全域) | G483: =SUM(G484:G498) -> 1441904.267
B484: 手数料 | C484: 手数料 | D484: 売上当たり | E484: 12.8 | F484: ％ | G484: 471044.2667 | H484: 主産物全体
B485: その他 | C485: 共選費 | D485: 収量当たり | E485: 38 | F485: 円/kg | G485: 418000 | H485: 主産物全体
B486: 運賃 | C486: 運賃 | D486: 収量当たり | E486: 16.53 | F486: 円/kg | G486: 181830 | H486: 主産物全体
B487: 包装資材費 | C487: 包装資材費（袋詰） | D487: 収量当たり | E487: 33.73 | F487: 円/kg | G487: 371030 | H487: 主産物全体
A499: 32 | B499: =技術体系表!C33 -> ﾋﾟｰﾏﾝ(京ゆたか7，露地栽培，1ha規模，県下全域) | G499: =SUM(G500:G514) -> 534068.2
B500: 手数料 | C500: 手数料 | D500: 売上当たり | E500: 12.8 | F500: ％ | G500: 158963.2 | H500: 主産物全体
B501: その他 | C501: 共選費 | D501: 収量当たり | E501: 38 | F501: 円/kg | G501: 161500 | H501: 主産物全体
B502: 運賃 | C502: 運賃 | D502: 収量当たり | E502: 16.53 | F502: 円/kg | G502: 70252.5 | H502: 主産物全体
B503: 包装資材費 | C503: 包装資材費（袋詰） | D503: 収量当たり | E503: 33.73 | F503: 円/kg | G503: 143352.5 | H503: 主産物全体
A515: 33 | B515: =技術体系表!C34 -> 0 | G515: =SUM(G516:G530) -> 0
A531: 34 | B531: =技術体系表!C35 -> 0 | G531: =SUM(G532:G546) -> 0
A547: 35 | B547: =技術体系表!C36 -> 0 | G547: =SUM(G548:G562) -> 0
A563: 36 | B563: =技術体系表!C37 -> 0 | G563: =SUM(G564:G578) -> 0
A579: 37 | B579: =技術体系表!C38 -> 0 | G579: =SUM(G580:G594) -> 0
A595: 38 | B595: =技術体系表!C39 -> 0 | G595: =SUM(G596:G610) -> 0
A611: 39 | B611: =技術体系表!C40 -> 0 | G611: =SUM(G612:G626) -> 0
A627: 40 | B627: =技術体系表!C41 -> 0 | G627: =SUM(G628:G642) -> 0
A643: 41 | B643: =技術体系表!C42 -> 0 | G643: =SUM(G644:G658) -> 0
A659: 42 | B659: =技術体系表!C43 -> 0 | G659: =SUM(G660:G674) -> 0
A675: 43 | B675: =技術体系表!C44 -> 0 | G675: =SUM(G676:G690) -> 0
A691: 44 | B691: =技術体系表!C45 -> 0 | G691: =SUM(G692:G706) -> 0
A707: 45 | B707: =技術体系表!C46 -> 0 | G707: =SUM(G708:G722) -> 0
A723: 46 | B723: =技術体系表!C47 -> 0 | G723: =SUM(G724:G738) -> 0
A739: 47 | B739: =技術体系表!C48 -> 0 | G739: =SUM(G740:G754) -> 0
A755: 48 | B755: =技術体系表!C49 -> 0 | G755: =SUM(G756:G770) -> 0
A771: 49 | B771: =技術体系表!C50 -> 0 | G771: =SUM(G772:G786) -> 0
A787: 50 | B787: =技術体系表!C51 -> 0 | G787: =SUM(G788:G802) -> 0
A803: 51 | B803: =技術体系表!C52 -> 0 | G803: =SUM(G804:G818) -> 0
A819: 52 | B819: =技術体系表!C53 -> 0 | G819: =SUM(G820:G834) -> 0
A835: 53 | B835: =技術体系表!C54 -> 0 | G835: =SUM(G836:G850) -> 0
A851: 54 | B851: =技術体系表!C55 -> 0 | G851: =SUM(G852:G866) -> 0
A867: 55 | B867: =技術体系表!C56 -> 0 | G867: =SUM(G868:G882) -> 0
A883: 56 | B883: =技術体系表!C57 -> 0 | G883: =SUM(G884:G898) -> 0
A899: 57 | B899: =技術体系表!C58 -> 0 | G899: =SUM(G900:G914) -> 0
A915: 58 | B915: =技術体系表!C59 -> 0 | G915: =SUM(G916:G930) -> 0
A931: 59 | B931: =技術体系表!C60 -> 0 | G931: =SUM(G932:G946) -> 0
A947: 60 | B947: =技術体系表!C61 -> 0 | G947: =SUM(G948:G962) -> 0

Sheet その他収益（修正）
A1: No | B1: 月旬 | C1: 収益項目名称 | D1: 収益区分 | E1: 単位当たり 収益額 | F1: 単 位 | G1: 単位規模当たり 価 額 | H1: 単 位
A2: 1 | B2: =試算計画表!E14 -> 0 | G2: =SUM(G3:G12) -> 0
H3: =IF(F3="","",F3) -> 
H4: =IF(F4="","",F4) -> 
A13: 2 | B13: =試算計画表!F14 -> 0 | G13: =SUM(G14:G23) -> 0
A24: 3 | B24: =試算計画表!G14 -> 0 | G24: =SUM(G25:G34) -> 0
A35: 4 | B35: =試算計画表!H14 -> 0 | G35: =SUM(G36:G45) -> 0
A46: 5 | B46: =試算計画表!I14 -> 0 | G46: =SUM(G47:G56) -> 0
A57: 6 | B57: =試算計画表!J14 -> 0 | G57: =SUM(G58:G67) -> 0
A68: 7 | B68: =試算計画表!K14 -> 0 | G68: =SUM(G69:G78) -> 0
H69: =IF(F69="","",F69) -> 
A79: 8 | B79: =試算計画表!L14 -> 0 | G79: =SUM(G80:G89) -> 0
A90: 9 | B90: =試算計画表!M14 -> 0 | G90: =SUM(G91:G100) -> 0
A101: 10 | B101: =試算計画表!N14 -> 0 | G101: =SUM(G102:G111) -> 0

Sheet その他収益 (hidden)
A1: No | B1: 月旬 | C1: 収益項目名称 | D1: 収益区分 | E1: 単位当たり 収益額 | F1: 単 位 | G1: 単位規模当たり 価 額
A2: 1 | B2: =技術体系表!C2 -> 水稲・主食用米(限定ふるさと米，移植，5.1ha規模，胆沢平野／胆沢東部・前沢) | G2: =SUM(G3:G12) -> 7500
B3: 12/下 | C3: 経営安定所得交付金 | D3: 生産調整助成金 | E3: 7500 | F3: 円/10a | G3: 7500
A13: 2 | B13: =技術体系表!C3 -> 水稲・主食用米(限定ふるさと米，移植，5.1ha規模，胆沢平野／胆沢西部・金ケ崎西部) | G13: =SUM(G14:G23) -> 7500
B14: 12/下 | C14: 経営安定所得交付金 | D14: 生産調整助成金 | E14: 7500 | F14: 円/10a | G14: 7500
A24: 3 | B24: =技術体系表!C4 -> 水稲・主食用米(限定ふるさと米，移植，5.1ha規模，胆沢平野／水沢・金ケ崎東部) | G24: =SUM(G25:G34) -> 7500
B25: 12/下 | C25: 経営安定所得交付金 | D25: 生産調整助成金 | E25: 7500 | F25: 円/10a | G25: 7500
A35: 4 | B35: =技術体系表!C5 -> 水稲・主食用米(限定ふるさと米，移植，15ha規模，胆沢平野／胆沢東部・前沢) | G35: =SUM(G36:G45) -> 7500
B36: 12/下 | C36: 経営安定所得交付金 | D36: 生産調整助成金 | E36: 7500 | F36: 円/10a | G36: 7500
A46: 5 | B46: =技術体系表!C6 -> 水稲・主食用米(限定ふるさと米，移植，15ha規模，胆沢平野／胆沢西部・金ケ崎西部) | G46: =SUM(G47:G56) -> 7500
B47: 12/下 | C47: 経営安定所得交付金 | D47: 生産調整助成金 | E47: 7500 | F47: 円/10a | G47: 7500
A57: 6 | B57: =技術体系表!C7 -> 水稲・主食用米(限定ふるさと米，移植，15ha規模，胆沢平野／水沢・金ケ崎東部) | G57: =SUM(G58:G67) -> 7500
B58: 12/下 | C58: 経営安定所得交付金 | D58: 生産調整助成金 | E58: 7500 | F58: 円/10a | G58: 7500
A68: 7 | B68: =技術体系表!C8 -> 水稲・主食用米(限定ふるさと米，移植，30ha規模，胆沢平野／胆沢東部・前沢) | G68: =SUM(G69:G78) -> 7500
B69: 12/下 | C69: 経営安定所得交付金 | D69: 生産調整助成金 | E69: 7500 | F69: 円/10a | G69: 7500
A79: 8 | B79: =技術体系表!C9 -> 水稲・主食用米(限定ふるさと米，移植，30ha規模，胆沢平野／胆沢西部・金ケ崎西部) | G79: =SUM(G80:G89) -> 7500
B80: 12/下 | C80: 経営安定所得交付金 | D80: 生産調整助成金 | E80: 7500 | F80: 円/10a | G80: 7500
A90: 9 | B90: =技術体系表!C10 -> 水稲・主食用米(限定ふるさと米，移植，30ha規模，胆沢平野／水沢・金ケ崎東部) | G90: =SUM(G91:G100) -> 7500
B91: 12/下 | C91: 経営安定所得交付金 | D91: 生産調整助成金 | E91: 7500 | F91: 円/10a | G91: 7500
A101: 10 | B101: =技術体系表!C11 -> 水稲・主食用米(慣行米，直播，15ha規模，胆沢平野／胆沢東部・前沢) | G101: =SUM(G102:G111) -> 7500
B102: 12/下 | C102: 経営安定所得交付金 | D102: 生産調整助成金 | E102: 7500 | F102: 円/10a | G102: 7500
A112: 11 | B112: =技術体系表!C12 -> 水稲・主食用米(慣行米，直播，15ha規模，胆沢平野／胆沢西部・金ケ崎西部) | G112: =SUM(G113:G122) -> 7500
B113: 12/下 | C113: 経営安定所得交付金 | D113: 生産調整助成金 | E113: 7500 | F113: 円/10a | G113: 7500
A123: 12 | B123: =技術体系表!C13 -> 水稲・主食用米(慣行米，直播，15ha規模，胆沢平野／水沢・金ケ崎東部) | G123: =SUM(G124:G133) -> 7500
B124: 12/下 | C124: 経営安定所得交付金 | D124: 生産調整助成金 | E124: 7500 | F124: 円/10a | G124: 7500
A134: 13 | B134: =技術体系表!C14 -> 水稲・主食用米(慣行米，直播，30ha規模，胆沢平野／胆沢東部・前沢) | G134: =SUM(G135:G144) -> 7500
B135: 12/下 | C135: 経営安定所得交付金 | D135: 生産調整助成金 | E135: 7500 | F135: 円/10a | G135: 7500
A145: 14 | B145: =技術体系表!C15 -> 水稲・主食用米(慣行米，直播，30ha規模，胆沢平野／胆沢西部・金ケ崎西部) | G145: =SUM(G146:G155) -> 7500
B146: 12/下 | C146: 経営安定所得交付金 | D146: 生産調整助成金 | E146: 7500 | F146: 円/10a | G146: 7500
A156: 15 | B156: =技術体系表!C16 -> 水稲・主食用米(慣行米，直播，30ha規模，胆沢平野／水沢・金ケ崎東部) | G156: =SUM(G157:G166) -> 7500
B157: 12/下 | C157: 経営安定所得交付金 | D157: 生産調整助成金 | E157: 7500 | F157: 円/10a | G157: 7500
A167: 16 | B167: =技術体系表!C17 -> 水稲・飼料用米(つぶみのり・つぶゆたか，大区画・移植，15ha規模，胆沢平野) | G167: =SUM(G168:G177) -> 117000
C168: 水田活用直接支払交付金（戦略作物） | D168: その他 | E168: 105000 | F168: 円/10a | G168: 105000
C169: 水田活用直接支払交付金（多収性専用品種） | D169: その他 | E169: 12000 | F169: 円/10a | G169: 12000
A178: 17 | B178: =技術体系表!C18 -> 飼料用米(つぶみのり・つぶゆたか，移植，30ha規模，胆沢平野) | G178: =SUM(G179:G188) -> 117000
C179: 水田活用直接支払交付金（戦略作物） | D179: その他 | E179: 105000 | F179: 円/10a | G179: 105000
C180: 水田活用直接支払交付金（多収性専用品種） | D180: その他 | E180: 12000 | F180: 円/10a | G180: 12000
A189: 18 | B189: =技術体系表!C19 -> 水稲・飼料用米(つぶみのり・つぶゆたか，大区画・直播，15ha規模，胆沢平野) | G189: =SUM(G190:G199) -> 111333
C190: 水田活用直接支払交付金（戦略作物） | D190: その他 | E190: 99333 | F190: 円/10a | G190: 99333
C191: 水田活用直接支払交付金（多収性専用品種） | D191: その他 | E191: 12000 | F191: 円/10a | G191: 12000
A200: 19 | B200: =技術体系表!C20 -> 水稲・飼料用米(つぶみのり・つぶゆたか，大区画・直播，30ha規模，胆沢平野) | G200: =SUM(G201:G210) -> 111333
C201: 水田活用直接支払交付金（戦略作物） | D201: その他 | E201: 99333 | F201: 円/10a | G201: 99333
C202: 水田活用直接支払交付金（多収性専用品種） | D202: その他 | E202: 12000 | F202: 円/10a | G202: 12000
A211: 20 | B211: =技術体系表!C21 -> 大豆(ﾘｭｳﾎｳ，水田転作・小畦立，7ha規模，胆沢平野) | G211: =SUM(G212:G221) -> 69979.4
C212: 畑作物直接支払交付金（11,660円/60kg） | D212: その他 | E212: 194.33 | F212: 円/10a | G212: 34979.4
C213: 水田活用直接支払交付金 | D213: その他 | E213: 35000 | F213: 円/10a | G213: 35000
A222: 21 | B222: =技術体系表!C22 -> 小麦(ﾅﾝﾌﾞｺﾑｷﾞ，水田転作，7ha規模，胆沢平野) | G222: =SUM(G223:G232) -> 88218.8
C223: 畑作物直接支払交付金（6,320円/60kg） | D223: その他 | E223: 105.33 | F223: 円/10a | G223: 37918.8
C224: パン・中華麺用品種加算（2,550円/60kg） | D224: その他 | E224: 42.5 | F224: 円/10a | G224: 15300
C225: 水田活用直接支払交付金（戦略作物） | D225: その他 | E225: 35000 | F225: 円/10a | G225: 35000
A233: 22 | B233: =技術体系表!C23 -> 受委託(限定ふるさと米，苗生産・販売，3375箱規模，胆沢平野) | G233: =SUM(G234:G243) -> 756
C234: 作業受託料金（水稲苗：稚苗756円/箱） | D234: 作業受託料金 | E234: 2551500 | F234: 円/箱 | G234: 756
A244: 23 | B244: =技術体系表!C24 -> 受委託(限定ふるさと米，耕起・代掻，15ha規模，胆沢平野) | G244: =SUM(G245:G254) -> 13824
C245: 作業受託料金（耕起：6156円/10a） | D245: 作業受託料金 | E245: 923400 | F245: 円/10a | G245: 6156
C246: 作業受託料金（代かき：7,668円/10a） | D246: 作業受託料金 | E246: 1150200 | F246: 円/10a | G246: 7668
A255: 24 | B255: =技術体系表!C25 -> 受委託(限定ふるさと米，田植，15ha規模，胆沢平野) | G255: =SUM(G256:G265) -> 6264
C258: 作業受託料金（田植：6,264円/10a） | D258: 作業受託料金 | E258: 939600 | F258: 円/10a | G258: 6264
A266: 25 | B266: =技術体系表!C26 -> 受委託(限定ふるさと米，収穫運搬，15ha規模，胆沢平野) | G266: =SUM(G267:G276) -> 20520
C270: 作業受託料金（ｺﾝﾊﾞｲﾝ刈：18,360円/10a） | D270: 作業受託料金 | E270: 2754000 | F270: 円/10a | G270: 18360
C271: 作業受託料金（籾運搬：2160円/10a） | D271: 作業受託料金 | E271: 324000 | F271: 円/10a | G271: 2160
A277: 26 | B277: =技術体系表!C27 -> 受委託(限定ふるさと米，乾燥調製，81000kg規模，胆沢平野) | G277: =SUM(G278:G287) -> 26.6
C278: 作業受託料金（乾燥：799円/30kg） | D278: 作業受託料金 | E278: 2157300 | F278: 円/kg | G278: 26.6
A288: 27 | B288: =技術体系表!C28 -> WCS(つぶゆたか，移植，15ha規模，胆沢平野) | G288: =SUM(G289:G298) -> 93000
C289: 水田活用直接支払交付金（戦略作物） | D289: その他 | E289: 80000 | F289: 円/10a | G289: 80000
C290: 水田活用直接支払交付金（耕畜連携） | D290: その他 | E290: 13000 | F290: 円/10a | G290: 13000
A299: 28 | B299: =技術体系表!C29 -> WCS(つぶゆたか，直播，15ha規模，胆沢平野) | G299: =SUM(G300:G309) -> 93000
C300: 水田活用直接支払交付金（戦略作物） | D300: その他 | E300: 80000 | F300: 円/10a | G300: 80000
C301: 水田活用直接支払交付金（耕畜連携） | D301: その他 | E301: 13000 | F301: 円/10a | G301: 13000
A310: 29 | B310: =技術体系表!C30 -> 牧草(混播牧草，乾草調製(ﾛｰﾙﾍﾞｰﾙ)，5ha規模，胆沢平野) | G310: =SUM(G311:G320) -> 0
A321: 30 | B321: =技術体系表!C31 -> 牧草(混播牧草，ｸﾞﾗｽｻｲﾚｰｼﾞ(ﾛｰﾙﾍﾞｰﾙ)，5ha規模，胆沢平野) | G321: =SUM(G322:G331) -> 0
A332: 31 | B332: =技術体系表!C32 -> ﾋﾟｰﾏﾝ(京鈴，雨よけﾊｳｽ栽培，30a規模，県下全域) | G332: =SUM(G333:G342) -> 0
A343: 32 | B343: =技術体系表!C33 -> ﾋﾟｰﾏﾝ(京ゆたか7，露地栽培，1ha規模，県下全域) | G343: =SUM(G344:G353) -> 0
A354: 33 | B354: =技術体系表!C34 -> 0 | G354: =SUM(G355:G364) -> 0
A365: 34 | B365: =技術体系表!C35 -> 0 | G365: =SUM(G366:G375) -> 0
A376: 35 | B376: =技術体系表!C36 -> 0 | G376: =SUM(G377:G386) -> 0
A387: 36 | B387: =技術体系表!C37 -> 0 | G387: =SUM(G388:G397) -> 0
A398: 37 | B398: =技術体系表!C38 -> 0 | G398: =SUM(G399:G408) -> 0
A409: 38 | B409: =技術体系表!C39 -> 0 | G409: =SUM(G410:G419) -> 0
A420: 39 | B420: =技術体系表!C40 -> 0 | G420: =SUM(G421:G430) -> 0
A431: 40 | B431: =技術体系表!C41 -> 0 | G431: =SUM(G432:G441) -> 0
A442: 41 | B442: =技術体系表!C42 -> 0 | G442: =SUM(G443:G452) -> 0
A453: 42 | B453: =技術体系表!C43 -> 0 | G453: =SUM(G454:G463) -> 0
A464: 43 | B464: =技術体系表!C44 -> 0 | G464: =SUM(G465:G474) -> 0
A475: 44 | B475: =技術体系表!C45 -> 0 | G475: =SUM(G476:G485) -> 0
A486: 45 | B486: =技術体系表!C46 -> 0 | G486: =SUM(G487:G496) -> 0
A497: 46 | B497: =技術体系表!C47 -> 0 | G497: =SUM(G498:G507) -> 0
A508: 47 | B508: =技術体系表!C48 -> 0 | G508: =SUM(G509:G518) -> 0
A519: 48 | B519: =技術体系表!C49 -> 0 | G519: =SUM(G520:G529) -> 0
A530: 49 | B530: =技術体系表!C50 -> 0 | G530: =SUM(G531:G540) -> 0
A541: 50 | B541: =技術体系表!C51 -> 0 | G541: =SUM(G542:G551) -> 0
A552: 51 | B552: =技術体系表!C52 -> 0 | G552: =SUM(G553:G562) -> 0
A563: 52 | B563: =技術体系表!C53 -> 0 | G563: =SUM(G564:G573) -> 0
A574: 53 | B574: =技術体系表!C54 -> 0 | G574: =SUM(G575:G584) -> 0
A585: 54 | B585: =技術体系表!C55 -> 0 | G585: =SUM(G586:G595) -> 0
A596: 55 | B596: =技術体系表!C56 -> 0 | G596: =SUM(G597:G606) -> 0
A607: 56 | B607: =技術体系表!C57 -> 0 | G607: =SUM(G608:G617) -> 0
A618: 57 | B618: =技術体系表!C58 -> 0 | G618: =SUM(G619:G628) -> 0
A629: 58 | B629: =技術体系表!C59 -> 0 | G629: =SUM(G630:G639) -> 0
A640: 59 | B640: =技術体系表!C60 -> 0 | G640: =SUM(G641:G650) -> 0
A651: 60 | B651: =技術体系表!C61 -> 0 | G651: =SUM(G652:G661) -> 0

Sheet 種苗（修正）
A1: No | B1: ｺｰﾄﾞ | C1: 資 材 名 | D1: 銘 柄 等 級 | E1: 包装単位 | F1: 単位 | G1: 標準価格 (円) | H1: 使用 年数 | I1: 使用数量 | J1: 単位 (10a当り) | K1: 価 額 (円) | L1: 備 考
A2: 1 | B2: =試算計画表!E14 -> 0 | K2: =SUM(K3:K22) -> 0
J3: =IF(F3="","",F3) ->  | K3: =IF(ISERROR(I3/E3*G3/H3),"",I3/E3*G3/H3) -> 
J4: =IF(F4="","",F4) ->  | K4: =IF(ISERROR(I4/E4*G4/H4),"",I4/E4*G4/H4) -> 
A23: 2 | B23: =試算計画表!F14 -> 0 | K23: =SUM(K24:K43) -> 0
K24: =IF(ISERROR(I24/E24*G24/H24),"",I24/E24*G24/H24) -> 
A44: 3 | B44: =試算計画表!G14 -> 0 | K44: =SUM(K45:K64) -> 0
K45: =IF(ISERROR(I45/E45*G45/H45),"",I45/E45*G45/H45) -> 
A65: 4 | B65: =試算計画表!H14 -> 0 | K65: =SUM(K66:K85) -> 0
K66: =IF(ISERROR(I66/E66*G66/H66),"",I66/E66*G66/H66) -> 
J68: =IF(F68="","",F68) -> 
A86: 5 | B86: =試算計画表!I14 -> 0 | K86: =SUM(K87:K106) -> 0
K87: =IF(ISERROR(I87/E87*G87/H87),"",I87/E87*G87/H87) -> 
A107: 6 | B107: =試算計画表!J14 -> 0 | K107: =SUM(K108:K127) -> 0
K108: =IF(ISERROR(I108/E108*G108/H108),"",I108/E108*G108/H108) -> 
A128: 7 | B128: =試算計画表!K14 -> 0 | K128: =SUM(K129:K148) -> 0
K129: =IF(ISERROR(I129/E129*G129/H129),"",I129/E129*G129/H129) -> 
J132: =IF(F132="","",F132) -> 
A149: 8 | B149: =試算計画表!L14 -> 0 | K149: =SUM(K150:K169) -> 0
K150: =IF(ISERROR(I150/E150*G150/H150),"",I150/E150*G150/H150) -> 
A170: 9 | B170: =試算計画表!M14 -> 0 | K170: =SUM(K171:K190) -> 0
K171: =IF(ISERROR(I171/E171*G171/H171),"",I171/E171*G171/H171) -> 
A191: 10 | B191: =試算計画表!N14 -> 0 | K191: =SUM(K192:K211) -> 0
K192: =IF(ISERROR(I192/E192*G192/H192),"",I192/E192*G192/H192) -> 
J196: =IF(F196="","",F196) -> 

Sheet 種苗 (hidden)
A1: No | B1: ｺｰﾄﾞ | C1: 資 材 名 | D1: 銘 柄 等 級 | E1: 包装単位 | F1: 単位 | G1: 標準価格 | H1: 使用 年数 | I1: 使用数量 | J1: 価 額 | K1: 備 考
A2: 1 | B2: =技術体系表!C2 -> 水稲・主食用米(限定ふるさと米，移植，5.1ha規模，胆沢平野／胆沢東部・前沢) | J2: =SUM(J3:J22) -> 1825.2
B3: 1 | C3: 水稲種子(ひとめぼれ，消毒済) | D3: ひとめぼれ，消毒済 | E3: 20 | F3: kg | G3: 10140 | H3: 1 | I3: 3.6 | J3: =IF(ISERROR(I3/E3*G3/H3),"",I3/E3*G3/H3) -> 1825.2 | K3: 2014価格改定
J4: =IF(ISERROR(I4/E4*G4/H4),"",I4/E4*G4/H4) -> 
A23: 2 | B23: =技術体系表!C3 -> 水稲・主食用米(限定ふるさと米，移植，5.1ha規模，胆沢平野／胆沢西部・金ケ崎西部) | J23: =SUM(J24:J43) -> 1825.2
B24: 1 | C24: 水稲種子(ひとめぼれ，消毒済) | D24: ひとめぼれ，消毒済 | E24: 20 | F24: kg | G24: 10140 | H24: 1 | I24: 3.6 | J24: =IF(ISERROR(I24/E24*G24/H24),"",I24/E24*G24/H24) -> 1825.2 | K24: 2014価格改定
A44: 3 | B44: =技術体系表!C4 -> 水稲・主食用米(限定ふるさと米，移植，5.1ha規模，胆沢平野／水沢・金ケ崎東部) | J44: =SUM(J45:J64) -> 1825.2
B45: 1 | C45: 水稲種子(ひとめぼれ，消毒済) | D45: ひとめぼれ，消毒済 | E45: 20 | F45: kg | G45: 10140 | H45: 1 | I45: 3.6 | J45: =IF(ISERROR(I45/E45*G45/H45),"",I45/E45*G45/H45) -> 1825.2 | K45: 2014価格改定
A65: 4 | B65: =技術体系表!C5 -> 水稲・主食用米(限定ふるさと米，移植，15ha規模，胆沢平野／胆沢東部・前沢) | J65: =SUM(J66:J85) -> 1825.2
B66: 1 | C66: 水稲種子(ひとめぼれ，消毒済) | D66: ひとめぼれ，消毒済 | E66: 20 | F66: kg | G66: 10140 | H66: 1 | I66: 3.6 | J66: =IF(ISERROR(I66/E66*G66/H66),"",I66/E66*G66/H66) -> 1825.2 | K66: 2014価格改定
A86: 5 | B86: =技術体系表!C6 -> 水稲・主食用米(限定ふるさと米，移植，15ha規模，胆沢平野／胆沢西部・金ケ崎西部) | J86: =SUM(J87:J106) -> 1825.2
B87: 1 | C87: 水稲種子(ひとめぼれ，消毒済) | D87: ひとめぼれ，消毒済 | E87: 20 | F87: kg | G87: 10140 | H87: 1 | I87: 3.6 | J87: =IF(ISERROR(I87/E87*G87/H87),"",I87/E87*G87/H87) -> 1825.2 | K87: 2014価格改定
A107: 6 | B107: =技術体系表!C7 -> 水稲・主食用米(限定ふるさと米，移植，15ha規模，胆沢平野／水沢・金ケ崎東部) | J107: =SUM(J108:J127) -> 1825.2
B108: 1 | C108: 水稲種子(ひとめぼれ，消毒済) | D108: ひとめぼれ，消毒済 | E108: 20 | F108: kg | G108: 10140 | H108: 1 | I108: 3.6 | J108: =IF(ISERROR(I108/E108*G108/H108),"",I108/E108*G108/H108) -> 1825.2 | K108: 2014価格改定
A128: 7 | B128: =技術体系表!C8 -> 水稲・主食用米(限定ふるさと米，移植，30ha規模，胆沢平野／胆沢東部・前沢) | J128: =SUM(J129:J148) -> 1825.2
B129: 1 | C129: 水稲種子(ひとめぼれ，消毒済) | D129: ひとめぼれ，消毒済 | E129: 20 | F129: kg | G129: 10140 | H129: 1 | I129: 3.6 | J129: =IF(ISERROR(I129/E129*G129/H129),"",I129/E129*G129/H129) -> 1825.2 | K129: 2014価格改定
A149: 8 | B149: =技術体系表!C9 -> 水稲・主食用米(限定ふるさと米，移植，30ha規模，胆沢平野／胆沢西部・金ケ崎西部) | J149: =SUM(J150:J169) -> 1825.2
B150: 1 | C150: 水稲種子(ひとめぼれ，消毒済) | D150: ひとめぼれ，消毒済 | E150: 20 | F150: kg | G150: 10140 | H150: 1 | I150: 3.6 | J150: =IF(ISERROR(I150/E150*G150/H150),"",I150/E150*G150/H150) -> 1825.2 | K150: 2014価格改定
A170: 9 | B170: =技術体系表!C10 -> 水稲・主食用米(限定ふるさと米，移植，30ha規模，胆沢平野／水沢・金ケ崎東部) | J170: =SUM(J171:J190) -> 1825.2
B171: 1 | C171: 水稲種子(ひとめぼれ，消毒済) | D171: ひとめぼれ，消毒済 | E171: 20 | F171: kg | G171: 10140 | H171: 1 | I171: 3.6 | J171: =IF(ISERROR(I171/E171*G171/H171),"",I171/E171*G171/H171) -> 1825.2 | K171: 2014価格改定
A191: 10 | B191: =技術体系表!C11 -> 水稲・主食用米(慣行米，直播，15ha規模，胆沢平野／胆沢東部・前沢) | J191: =SUM(J192:J211) -> 2028
B192: 1 | C192: 水稲種子(ひとめぼれ，消毒済) | D192: ひとめぼれ，消毒済 | E192: 20 | F192: kg | G192: 10140 | H192: 1 | I192: 4 | J192: =IF(ISERROR(I192/E192*G192/H192),"",I192/E192*G192/H192) -> 2028 | K192: 2014価格改定
A212: 11 | B212: =技術体系表!C12 -> 水稲・主食用米(慣行米，直播，15ha規模，胆沢平野／胆沢西部・金ケ崎西部) | J212: =SUM(J213:J232) -> 2028
B213: 1 | C213: 水稲種子(ひとめぼれ，消毒済) | D213: ひとめぼれ，消毒済 | E213: 20 | F213: kg | G213: 10140 | H213: 1 | I213: 4 | J213: =IF(ISERROR(I213/E213*G213/H213),"",I213/E213*G213/H213) -> 2028 | K213: 2014価格改定
J214: =IF(ISERROR(I214/E214*G214/H214),"",I214/E214*G214/H214) -> 
A233: 12 | B233: =技術体系表!C13 -> 水稲・主食用米(慣行米，直播，15ha規模，胆沢平野／水沢・金ケ崎東部) | J233: =SUM(J234:J253) -> 2028
B234: 1 | C234: 水稲種子(ひとめぼれ，消毒済) | D234: ひとめぼれ，消毒済 | E234: 20 | F234: kg | G234: 10140 | H234: 1 | I234: 4 | J234: =IF(ISERROR(I234/E234*G234/H234),"",I234/E234*G234/H234) -> 2028 | K234: 2014価格改定
A254: 13 | B254: =技術体系表!C14 -> 水稲・主食用米(慣行米，直播，30ha規模，胆沢平野／胆沢東部・前沢) | J254: =SUM(J255:J274) -> 2028
B255: 1 | C255: 水稲種子(ひとめぼれ，消毒済) | D255: ひとめぼれ，消毒済 | E255: 20 | F255: kg | G255: 10140 | H255: 1 | I255: 4 | J255: =IF(ISERROR(I255/E255*G255/H255),"",I255/E255*G255/H255) -> 2028 | K255: 2014価格改定
A275: 14 | B275: =技術体系表!C15 -> 水稲・主食用米(慣行米，直播，30ha規模，胆沢平野／胆沢西部・金ケ崎西部) | J275: =SUM(J276:J295) -> 2028
B276: 1 | C276: 水稲種子(ひとめぼれ，消毒済) | D276: ひとめぼれ，消毒済 | E276: 20 | F276: kg | G276: 10140 | H276: 1 | I276: 4 | J276: =IF(ISERROR(I276/E276*G276/H276),"",I276/E276*G276/H276) -> 2028 | K276: 2014価格改定
A296: 15 | B296: =技術体系表!C16 -> 水稲・主食用米(慣行米，直播，30ha規模，胆沢平野／水沢・金ケ崎東部) | J296: =SUM(J297:J316) -> 2028
B297: 1 | C297: 水稲種子(ひとめぼれ，消毒済) | D297: ひとめぼれ，消毒済 | E297: 20 | F297: kg | G297: 10140 | H297: 1 | I297: 4 | J297: =IF(ISERROR(I297/E297*G297/H297),"",I297/E297*G297/H297) -> 2028 | K297: 2014価格改定
A317: 16 | B317: =技術体系表!C17 -> 水稲・飼料用米(つぶみのり・つぶゆたか，大区画・移植，15ha規模，胆沢平野) | J317: =SUM(J318:J337) -> 1188
B318: 322 | C318: 水稲種子(つぶみのり，消毒済) | D318: つぶみのり，消毒済 | E318: 20 | F318: kg | G318: 6600 | H318: 1 | I318: 3.6 | J318: =IF(ISERROR(I318/E318*G318/H318),"",I318/E318*G318/H318) -> 1188 | K318: 2014追加
A338: 17 | B338: =技術体系表!C18 -> 飼料用米(つぶみのり・つぶゆたか，移植，30ha規模，胆沢平野) | J338: =SUM(J339:J358) -> 1188
B339: 322 | C339: 水稲種子(つぶみのり，消毒済) | D339: つぶみのり，消毒済 | E339: 20 | F339: kg | G339: 6600 | H339: 1 | I339: 3.6 | J339: =IF(ISERROR(I339/E339*G339/H339),"",I339/E339*G339/H339) -> 1188 | K339: 2014追加
A359: 18 | B359: =技術体系表!C19 -> 水稲・飼料用米(つぶみのり・つぶゆたか，大区画・直播，15ha規模，胆沢平野) | J359: =SUM(J360:J379) -> 1320
B360: 322 | C360: 水稲種子(つぶみのり，消毒済) | D360: つぶみのり，消毒済 | E360: 20 | F360: kg | G360: 6600 | H360: 1 | I360: 4 | J360: =IF(ISERROR(I360/E360*G360/H360),"",I360/E360*G360/H360) -> 1320 | K360: 2014追加
A380: 19 | B380: =技術体系表!C20 -> 水稲・飼料用米(つぶみのり・つぶゆたか，大区画・直播，30ha規模，胆沢平野) | J380: =SUM(J381:J400) -> 1320
B381: 322 | C381: 水稲種子(つぶみのり，消毒済) | D381: つぶみのり，消毒済 | E381: 20 | F381: kg | G381: 6600 | H381: 1 | I381: 4 | J381: =IF(ISERROR(I381/E381*G381/H381),"",I381/E381*G381/H381) -> 1320 | K381: 2014追加
A401: 20 | B401: =技術体系表!C21 -> 大豆(ﾘｭｳﾎｳ，水田転作・小畦立，7ha規模，胆沢平野) | J401: =SUM(J402:J421) -> 2660
B402: 21 | C402: 大豆種子(ﾘｭｳﾎｳ) | D402: ﾘｭｳﾎｳ | E402: 1 | F402: kg | G402: 760 | H402: 1 | I402: 3.5 | J402: =IF(ISERROR(I402/E402*G402/H402),"",I402/E402*G402/H402) -> 2660 | K402: Ｈ29予約価格
A422: 21 | B422: =技術体系表!C22 -> 小麦(ﾅﾝﾌﾞｺﾑｷﾞ，水田転作，7ha規模，胆沢平野) | J422: =SUM(J423:J442) -> 2640
B423: 17 | C423: 小麦種子(ﾅﾝﾌﾞｺﾑｷﾞ) | D423: ﾅﾝﾌﾞｺﾑｷﾞ | E423: 1 | F423: kg | G423: 440 | H423: 1 | I423: 6 | J423: =IF(ISERROR(I423/E423*G423/H423),"",I423/E423*G423/H423) -> 2640 | K423: Ｈ29予約価格
J424: =IF(ISERROR(I424/E424*G424/H424),"",I424/E424*G424/H424) -> 
A443: 22 | B443: =技術体系表!C23 -> 受委託(限定ふるさと米，苗生産・販売，3375箱規模，胆沢平野) | J443: =SUM(J444:J463) -> 81.12
B444: 1 | C444: 水稲種子(ひとめぼれ，消毒済) | D444: ひとめぼれ，消毒済 | E444: 20 | F444: kg | G444: 10140 | H444: 1 | I444: 0.16 | J444: =IF(ISERROR(I444/E444*G444/H444),"",I444/E444*G444/H444) -> 81.12 | K444: 2014価格改定
A464: 23 | B464: =技術体系表!C24 -> 受委託(限定ふるさと米，耕起・代掻，15ha規模，胆沢平野) | J464: =SUM(J465:J484) -> 0
J465: =IF(ISERROR(I465/E465*G465/H465),"",I465/E465*G465/H465) -> 
A485: 24 | B485: =技術体系表!C25 -> 受委託(限定ふるさと米，田植，15ha規模，胆沢平野) | J485: =SUM(J486:J505) -> 0
J486: =IF(ISERROR(I486/E486*G486/H486),"",I486/E486*G486/H486) -> 
A506: 25 | B506: =技術体系表!C26 -> 受委託(限定ふるさと米，収穫運搬，15ha規模，胆沢平野) | J506: =SUM(J507:J526) -> 0
J507: =IF(ISERROR(I507/E507*G507/H507),"",I507/E507*G507/H507) -> 
A527: 26 | B527: =技術体系表!C27 -> 受委託(限定ふるさと米，乾燥調製，81000kg規模，胆沢平野) | J527: =SUM(J528:J547) -> 0
J528: =IF(ISERROR(I528/E528*G528/H528),"",I528/E528*G528/H528) -> 
A548: 27 | B548: =技術体系表!C28 -> WCS(つぶゆたか，移植，15ha規模，胆沢平野) | J548: =SUM(J549:J568) -> 1188
B549: 323 | C549: 水稲種子(つぶゆたか，消毒済) | D549: つぶゆたか，消毒済 | E549: 20 | F549: kg | G549: 6600 | H549: 1 | I549: 3.6 | J549: =IF(ISERROR(I549/E549*G549/H549),"",I549/E549*G549/H549) -> 1188 | K549: 2014追加
A569: 28 | B569: =技術体系表!C29 -> WCS(つぶゆたか，直播，15ha規模，胆沢平野) | J569: =SUM(J570:J589) -> 1320
B570: 323 | C570: 水稲種子(つぶゆたか，消毒済) | D570: つぶゆたか，消毒済 | E570: 20 | F570: kg | G570: 6600 | H570: 1 | I570: 4 | J570: =IF(ISERROR(I570/E570*G570/H570),"",I570/E570*G570/H570) -> 1320 | K570: 2014追加
A590: 29 | B590: =技術体系表!C30 -> 牧草(混播牧草，乾草調製(ﾛｰﾙﾍﾞｰﾙ)，5ha規模，胆沢平野) | J590: =SUM(J591:J610) -> 1215.2
B591: 311 | C591: 牧草種子 | E591: 1 | F591: kg | G591: 1960 | H591: 1 | I591: 0.62 | J591: =IF(ISERROR(I591/E591*G591/H591),"",I591/E591*G591/H591) -> 1215.2
A611: 30 | B611: =技術体系表!C31 -> 牧草(混播牧草，ｸﾞﾗｽｻｲﾚｰｼﾞ(ﾛｰﾙﾍﾞｰﾙ)，5ha規模，胆沢平野) | J611: =SUM(J612:J631) -> 1215.2
B612: 311 | C612: 牧草種子 | E612: 1 | F612: kg | G612: 1960 | H612: 1 | I612: 0.62 | J612: =IF(ISERROR(I612/E612*G612/H612),"",I612/E612*G612/H612) -> 1215.2
A632: 31 | B632: =技術体系表!C32 -> ﾋﾟｰﾏﾝ(京鈴，雨よけﾊｳｽ栽培，30a規模，県下全域) | J632: =SUM(J633:J652) -> 29020
B633: 60 | C633: ﾋﾟｰﾏﾝ種子(京鈴) | D633: 京鈴 | E633: 1000 | F633: 粒 | G633: 14510 | H633: 1 | I633: 2000 | J633: =IF(ISERROR(I633/E633*G633/H633),"",I633/E633*G633/H633) -> 29020 | K633: Ｈ29予約価格
J634: =IF(ISERROR(I634/E634*G634/H634),"",I634/E634*G634/H634) -> 
A653: 32 | B653: =技術体系表!C33 -> ﾋﾟｰﾏﾝ(京ゆたか7，露地栽培，1ha規模，県下全域) | J653: =SUM(J654:J673) -> 16100
B654: 63 | C654: ﾋﾟｰﾏﾝ種子(京ゆたか7) | D654: 京ゆたか7 | E654: 1000 | F654: 粒 | G654: 11500 | H654: 1 | I654: 1400 | J654: =IF(ISERROR(I654/E654*G654/H654),"",I654/E654*G654/H654) -> 16100
A674: 33 | B674: =技術体系表!C34 -> 0 | J674: =SUM(J675:J694) -> 0
J675: =IF(ISERROR(I675/E675*G675/H675),"",I675/E675*G675/H675) -> 
A695: 34 | B695: =技術体系表!C35 -> 0 | J695: =SUM(J696:J715) -> 0
J696: =IF(ISERROR(I696/E696*G696/H696),"",I696/E696*G696/H696) -> 
A716: 35 | B716: =技術体系表!C36 -> 0 | J716: =SUM(J717:J736) -> 0
J717: =IF(ISERROR(I717/E717*G717/H717),"",I717/E717*G717/H717) -> 
A737: 36 | B737: =技術体系表!C37 -> 0 | J737: =SUM(J738:J757) -> 0
J738: =IF(ISERROR(I738/E738*G738/H738),"",I738/E738*G738/H738) -> 
A758: 37 | B758: =技術体系表!C38 -> 0 | J758: =SUM(J759:J778) -> 0
J759: =IF(ISERROR(I759/E759*G759/H759),"",I759/E759*G759/H759) -> 
A779: 38 | B779: =技術体系表!C39 -> 0 | J779: =SUM(J780:J799) -> 0
J780: =IF(ISERROR(I780/E780*G780/H780),"",I780/E780*G780/H780) -> 
A800: 39 | B800: =技術体系表!C40 -> 0 | J800: =SUM(J801:J820) -> 0
J801: =IF(ISERROR(I801/E801*G801/H801),"",I801/E801*G801/H801) -> 
A821: 40 | B821: =技術体系表!C41 -> 0 | J821: =SUM(J822:J841) -> 0
J822: =IF(ISERROR(I822/E822*G822/H822),"",I822/E822*G822/H822) -> 
A842: 41 | B842: =技術体系表!C42 -> 0 | J842: =SUM(J843:J862) -> 0
J843: =IF(ISERROR(I843/E843*G843/H843),"",I843/E843*G843/H843) -> 
J844: =IF(ISERROR(I844/E844*G844/H844),"",I844/E844*G844/H844) -> 
A863: 42 | B863: =技術体系表!C43 -> 0 | J863: =SUM(J864:J883) -> 0
J864: =IF(ISERROR(I864/E864*G864/H864),"",I864/E864*G864/H864) -> 
A884: 43 | B884: =技術体系表!C44 -> 0 | J884: =SUM(J885:J904) -> 0
J885: =IF(ISERROR(I885/E885*G885/H885),"",I885/E885*G885/H885) -> 
A905: 44 | B905: =技術体系表!C45 -> 0 | J905: =SUM(J906:J925) -> 0
J906: =IF(ISERROR(I906/E906*G906/H906),"",I906/E906*G906/H906) -> 
A926: 45 | B926: =技術体系表!C46 -> 0 | J926: =SUM(J927:J946) -> 0
J927: =IF(ISERROR(I927/E927*G927/H927),"",I927/E927*G927/H927) -> 
A947: 46 | B947: =技術体系表!C47 -> 0 | J947: =SUM(J948:J967) -> 0
J948: =IF(ISERROR(I948/E948*G948/H948),"",I948/E948*G948/H948) -> 
A968: 47 | B968: =技術体系表!C48 -> 0 | J968: =SUM(J969:J988) -> 0
J969: =IF(ISERROR(I969/E969*G969/H969),"",I969/E969*G969/H969) -> 
A989: 48 | B989: =技術体系表!C49 -> 0 | J989: =SUM(J990:J1009) -> 0
J990: =IF(ISERROR(I990/E990*G990/H990),"",I990/E990*G990/H990) -> 
A1010: 49 | B1010: =技術体系表!C50 -> 0 | J1010: =SUM(J1011:J1030) -> 0
J1011: =IF(ISERROR(I1011/E1011*G1011/H1011),"",I1011/E1011*G1011/H1011) -> 
A1031: 50 | B1031: =技術体系表!C51 -> 0 | J1031: =SUM(J1032:J1051) -> 0
J1032: =IF(ISERROR(I1032/E1032*G1032/H1032),"",I1032/E1032*G1032/H1032) -> 
A1052: 51 | B1052: =技術体系表!C52 -> 0 | J1052: =SUM(J1053:J1072) -> 0
J1053: =IF(ISERROR(I1053/E1053*G1053/H1053),"",I1053/E1053*G1053/H1053) -> 
J1054: =IF(ISERROR(I1054/E1054*G1054/H1054),"",I1054/E1054*G1054/H1054) -> 
A1073: 52 | B1073: =技術体系表!C53 -> 0 | J1073: =SUM(J1074:J1093) -> 0
J1074: =IF(ISERROR(I1074/E1074*G1074/H1074),"",I1074/E1074*G1074/H1074) -> 
A1094: 53 | B1094: =技術体系表!C54 -> 0 | J1094: =SUM(J1095:J1114) -> 0
J1095: =IF(ISERROR(I1095/E1095*G1095/H1095),"",I1095/E1095*G1095/H1095) -> 
A1115: 54 | B1115: =技術体系表!C55 -> 0 | J1115: =SUM(J1116:J1135) -> 0
J1116: =IF(ISERROR(I1116/E1116*G1116/H1116),"",I1116/E1116*G1116/H1116) -> 
A1136: 55 | B1136: =技術体系表!C56 -> 0 | J1136: =SUM(J1137:J1156) -> 0
J1137: =IF(ISERROR(I1137/E1137*G1137/H1137),"",I1137/E1137*G1137/H1137) -> 
A1157: 56 | B1157: =技術体系表!C57 -> 0 | J1157: =SUM(J1158:J1177) -> 0
J1158: =IF(ISERROR(I1158/E1158*G1158/H1158),"",I1158/E1158*G1158/H1158) -> 
A1178: 57 | B1178: =技術体系表!C58 -> 0 | J1178: =SUM(J1179:J1198) -> 0
J1179: =IF(ISERROR(I1179/E1179*G1179/H1179),"",I1179/E1179*G1179/H1179) -> 
A1199: 58 | B1199: =技術体系表!C59 -> 0 | J1199: =SUM(J1200:J1219) -> 0
J1200: =IF(ISERROR(I1200/E1200*G1200/H1200),"",I1200/E1200*G1200/H1200) -> 
A1220: 59 | B1220: =技術体系表!C60 -> 0 | J1220: =SUM(J1221:J1240) -> 0
J1221: =IF(ISERROR(I1221/E1221*G1221/H1221),"",I1221/E1221*G1221/H1221) -> 
A1241: 60 | B1241: =技術体系表!C61 -> 0 | J1241: =SUM(J1242:J1261) -> 0
J1242: =IF(ISERROR(I1242/E1242*G1242/H1242),"",I1242/E1242*G1242/H1242) -> 

Sheet 肥料（修正）
A1: No | B1: ｺｰﾄﾞ | C1: 資 材 名 | D1: 銘 柄 等 級 | E1: 包装単位 | F1: 単位 | G1: 標準価格 (円) | H1: 使用 年数 | I1: 使用数量 | J1: 単位 (10a当り) | K1: 価 額 (円) | L1: 備 考
A2: 1 | B2: =試算計画表!E14 -> 0 | K2: =SUM(K3:K32) -> 0
J3: =IF(F3="","",F3) ->  | K3: =IF(ISERROR(I3/E3*G3/H3),"",I3/E3*G3/H3) -> 
J4: =IF(F4="","",F4) ->  | K4: =IF(ISERROR(I4/E4*G4/H4),"",I4/E4*G4/H4) -> 
J5: =IF(F5="","",F5) ->  | K5: =IF(ISERROR(I5/E5*G5/H5),"",I5/E5*G5/H5) -> 
K20: =IF(ISERROR(I20/E20*G20/H20),"",I20/E20*G20/H20) -> 
K21: =IF(ISERROR(I21/E21*G21/H21),"",I21/E21*G21/H21) -> 
K22: =IF(ISERROR(I22/E22*G22/H22),"",I22/E22*G22/H22) -> 
J23: =IF(F23="","",F23) ->  | K23: =IF(ISERROR(I23/E23*G23/H23),"",I23/E23*G23/H23) -> 
K24: =IF(ISERROR(I24/E24*G24/H24),"",I24/E24*G24/H24) -> 
A33: 2 | B33: =試算計画表!F14 -> 0 | K33: =SUM(K34:K63) -> 0
K34: =IF(ISERROR(I34/E34*G34/H34),"",I34/E34*G34/H34) -> 
K38: =IF(ISERROR(I38/E38*G38/H38),"",I38/E38*G38/H38) -> 
A64: 3 | B64: =試算計画表!G14 -> 0 | K64: =SUM(K65:K94) -> 0
K65: =IF(ISERROR(I65/E65*G65/H65),"",I65/E65*G65/H65) -> 
J68: =IF(F68="","",F68) -> 
A95: 4 | B95: =試算計画表!H14 -> 0 | K95: =SUM(K96:K125) -> 0
K96: =IF(ISERROR(I96/E96*G96/H96),"",I96/E96*G96/H96) -> 
K98: =IF(ISERROR(I98/E98*G98/H98),"",I98/E98*G98/H98) -> 
A126: 5 | B126: =試算計画表!I14 -> 0 | K126: =SUM(K127:K156) -> 0
K127: =IF(ISERROR(I127/E127*G127/H127),"",I127/E127*G127/H127) -> 
J132: =IF(F132="","",F132) -> 
A157: 6 | B157: =試算計画表!J14 -> 0 | K157: =SUM(K158:K187) -> 0
K158: =IF(ISERROR(I158/E158*G158/H158),"",I158/E158*G158/H158) -> 
K162: =IF(ISERROR(I162/E162*G162/H162),"",I162/E162*G162/H162) -> 
A188: 7 | B188: =試算計画表!K14 -> 0 | K188: =SUM(K189:K218) -> 0
K189: =IF(ISERROR(I189/E189*G189/H189),"",I189/E189*G189/H189) -> 
J196: =IF(F196="","",F196) -> 
A219: 8 | B219: =試算計画表!L14 -> 0 | K219: =SUM(K220:K249) -> 0
K220: =IF(ISERROR(I220/E220*G220/H220),"",I220/E220*G220/H220) -> 
K226: =IF(ISERROR(I226/E226*G226/H226),"",I226/E226*G226/H226) -> 
A250: 9 | B250: =試算計画表!M14 -> 0 | K250: =SUM(K251:K280) -> 0
K251: =IF(ISERROR(I251/E251*G251/H251),"",I251/E251*G251/H251) -> 
J260: =IF(F260="","",F260) -> 
A281: 10 | B281: =試算計画表!N14 -> 0 | K281: =SUM(K282:K311) -> 0
K282: =IF(ISERROR(I282/E282*G282/H282),"",I282/E282*G282/H282) -> 
K290: =IF(ISERROR(I290/E290*G290/H290),"",I290/E290*G290/H290) -> 

Sheet 肥料 (hidden)
A1: No | B1: ｺｰﾄﾞ | C1: 資 材 名 | D1: 銘 柄 等 級 | E1: 包装単位 | F1: 単位 | G1: 標準価格 | H1: 使用 年数 | I1: 使用数量 | J1: 価 額 | K1: 備 考
A2: 1 | B2: =技術体系表!C2 -> 水稲・主食用米(限定ふるさと米，移植，5.1ha規模，胆沢平野／胆沢東部・前沢) | J2: =SUM(J3:J32) -> 7172.5
B3: 536 | C3: ｹｲｶﾙ(粒状) | D3: 粒状 | E3: 20 | F3: kg | G3: 790 | H3: 1 | I3: 55 | J3: =IF(ISERROR(I3/E3*G3/H3),"",I3/E3*G3/H3) -> 2172.5 | K3: 2014価格改定
B4: 940 | C4: 楽々ライ夢くん20一発 | E4: 15 | F4: kg | G4: 2500 | H4: 1 | I4: 30 | J4: =IF(ISERROR(I4/E4*G4/H4),"",I4/E4*G4/H4) -> 5000 | K4: H29春予約価格
A33: 2 | B33: =技術体系表!C3 -> 水稲・主食用米(限定ふるさと米，移植，5.1ha規模，胆沢平野／胆沢西部・金ケ崎西部) | J33: =SUM(J34:J63) -> 7172.5
B34: 536 | C34: ｹｲｶﾙ(粒状) | D34: 粒状 | E34: 20 | F34: kg | G34: 790 | H34: 1 | I34: 55 | J34: =IF(ISERROR(I34/E34*G34/H34),"",I34/E34*G34/H34) -> 2172.5 | K34: 2014価格改定
B35: 940 | C35: 楽々ライ夢くん20一発 | E35: 15 | F35: kg | G35: 2500 | H35: 1 | I35: 30 | J35: 5000 | K35: H29春予約価格
A64: 3 | B64: =技術体系表!C4 -> 水稲・主食用米(限定ふるさと米，移植，5.1ha規模，胆沢平野／水沢・金ケ崎東部) | J64: =SUM(J65:J94) -> 7172.5
B65: 536 | C65: ｹｲｶﾙ(粒状) | D65: 粒状 | E65: 20 | F65: kg | G65: 790 | H65: 1 | I65: 55 | J65: =IF(ISERROR(I65/E65*G65/H65),"",I65/E65*G65/H65) -> 2172.5 | K65: 2014価格改定
B66: 940 | C66: 楽々ライ夢くん20一発 | E66: 15 | F66: kg | G66: 2500 | H66: 1 | I66: 30 | J66: 5000 | K66: H29春予約価格
A95: 4 | B95: =技術体系表!C5 -> 水稲・主食用米(限定ふるさと米，移植，15ha規模，胆沢平野／胆沢東部・前沢) | J95: =SUM(J96:J125) -> 6567.5
B96: 537 | C96: ｹｲｶﾙ(粒状，ﾊﾞﾗ) | D96: 粒状，ﾊﾞﾗ | E96: 20 | F96: kg | G96: 570 | H96: 1 | I96: 55 | J96: =IF(ISERROR(I96/E96*G96/H96),"",I96/E96*G96/H96) -> 1567.5 | K96: H28農協聞き取り
B97: 940 | C97: 楽々ライ夢くん20一発 | E97: 15 | F97: kg | G97: 2500 | H97: 1 | I97: 30 | J97: 5000 | K97: H29春予約価格
J98: =IF(ISERROR(I98/E98*G98/H98),"",I98/E98*G98/H98) -> 
A126: 5 | B126: =技術体系表!C6 -> 水稲・主食用米(限定ふるさと米，移植，15ha規模，胆沢平野／胆沢西部・金ケ崎西部) | J126: =SUM(J127:J156) -> 6567.5
B127: 537 | C127: ｹｲｶﾙ(粒状，ﾊﾞﾗ) | D127: 粒状，ﾊﾞﾗ | E127: 20 | F127: kg | G127: 570 | H127: 1 | I127: 55 | J127: =IF(ISERROR(I127/E127*G127/H127),"",I127/E127*G127/H127) -> 1567.5 | K127: H28農協聞き取り
B128: 940 | C128: 楽々ライ夢くん20一発 | E128: 15 | F128: kg | G128: 2500 | H128: 1 | I128: 30 | J128: 5000 | K128: H29春予約価格
A157: 6 | B157: =技術体系表!C7 -> 水稲・主食用米(限定ふるさと米，移植，15ha規模，胆沢平野／水沢・金ケ崎東部) | J157: =SUM(J158:J187) -> 6567.5
B158: 537 | C158: ｹｲｶﾙ(粒状，ﾊﾞﾗ) | D158: 粒状，ﾊﾞﾗ | E158: 20 | F158: kg | G158: 570 | H158: 1 | I158: 55 | J158: =IF(ISERROR(I158/E158*G158/H158),"",I158/E158*G158/H158) -> 1567.5 | K158: H28農協聞き取り
B159: 940 | C159: 楽々ライ夢くん20一発 | E159: 15 | F159: kg | G159: 2500 | H159: 1 | I159: 30 | J159: 5000 | K159: H29春予約価格
J162: =IF(ISERROR(I162/E162*G162/H162),"",I162/E162*G162/H162) -> 
A188: 7 | B188: =技術体系表!C8 -> 水稲・主食用米(限定ふるさと米，移植，30ha規模，胆沢平野／胆沢東部・前沢) | J188: =SUM(J189:J218) -> 6567.5
B189: 537 | C189: ｹｲｶﾙ(粒状，ﾊﾞﾗ) | D189: 粒状，ﾊﾞﾗ | E189: 20 | F189: kg | G189: 570 | H189: 1 | I189: 55 | J189: =IF(ISERROR(I189/E189*G189/H189),"",I189/E189*G189/H189) -> 1567.5 | K189: H28農協聞き取り
B190: 940 | C190: 楽々ライ夢くん20一発 | E190: 15 | F190: kg | G190: 2500 | H190: 1 | I190: 30 | J190: 5000 | K190: H29春予約価格
A219: 8 | B219: =技術体系表!C9 -> 水稲・主食用米(限定ふるさと米，移植，30ha規模，胆沢平野／胆沢西部・金ケ崎西部) | J219: =SUM(J220:J249) -> 6567.5
B220: 537 | C220: ｹｲｶﾙ(粒状，ﾊﾞﾗ) | D220: 粒状，ﾊﾞﾗ | E220: 20 | F220: kg | G220: 570 | H220: 1 | I220: 55 | J220: =IF(ISERROR(I220/E220*G220/H220),"",I220/E220*G220/H220) -> 1567.5 | K220: H28農協聞き取り
B221: 940 | C221: 楽々ライ夢くん20一発 | E221: 15 | F221: kg | G221: 2500 | H221: 1 | I221: 30 | J221: 5000 | K221: H29春予約価格
J226: =IF(ISERROR(I226/E226*G226/H226),"",I226/E226*G226/H226) -> 
A250: 9 | B250: =技術体系表!C10 -> 水稲・主食用米(限定ふるさと米，移植，30ha規模，胆沢平野／水沢・金ケ崎東部) | J250: =SUM(J251:J280) -> 6567.5
B251: 537 | C251: ｹｲｶﾙ(粒状，ﾊﾞﾗ) | D251: 粒状，ﾊﾞﾗ | E251: 20 | F251: kg | G251: 570 | H251: 1 | I251: 55 | J251: =IF(ISERROR(I251/E251*G251/H251),"",I251/E251*G251/H251) -> 1567.5 | K251: H28農協聞き取り
B252: 940 | C252: 楽々ライ夢くん20一発 | E252: 15 | F252: kg | G252: 2500 | H252: 1 | I252: 30 | J252: 5000 | K252: H29春予約価格
A281: 10 | B281: =技術体系表!C11 -> 水稲・主食用米(慣行米，直播，15ha規模，胆沢平野／胆沢東部・前沢) | J281: =SUM(J282:J311) -> 9117.5
B282: 537 | C282: ｹｲｶﾙ(粒状，ﾊﾞﾗ) | D282: 粒状，ﾊﾞﾗ | E282: 20 | F282: kg | G282: 570 | H282: 1 | I282: 55 | J282: =IF(ISERROR(I282/E282*G282/H282),"",I282/E282*G282/H282) -> 1567.5 | K282: H28農協聞き取り
B283: 932 | C283: 直播用200 | E283: 20 | F283: kg | G283: 3020 | H283: 1 | I283: 50 | J283: 7550 | K283: H28農協聞き取り
J290: =IF(ISERROR(I290/E290*G290/H290),"",I290/E290*G290/H290) -> 
A312: 11 | B312: =技術体系表!C12 -> 水稲・主食用米(慣行米，直播，15ha規模，胆沢平野／胆沢西部・金ケ崎西部) | J312: =SUM(J313:J342) -> 9117.5
B313: 537 | C313: ｹｲｶﾙ(粒状，ﾊﾞﾗ) | D313: 粒状，ﾊﾞﾗ | E313: 20 | F313: kg | G313: 570 | H313: 1 | I313: 55 | J313: =IF(ISERROR(I313/E313*G313/H313),"",I313/E313*G313/H313) -> 1567.5 | K313: H28農協聞き取り
B314: 932 | C314: 直播用200 | E314: 20 | F314: kg | G314: 3020 | H314: 1 | I314: 50 | J314: =IF(ISERROR(I314/E314*G314/H314),"",I314/E314*G314/H314) -> 7550 | K314: H28農協聞き取り
A343: 12 | B343: =技術体系表!C13 -> 水稲・主食用米(慣行米，直播，15ha規模，胆沢平野／水沢・金ケ崎東部) | J343: =SUM(J344:J373) -> 9117.5
B344: 537 | C344: ｹｲｶﾙ(粒状，ﾊﾞﾗ) | D344: 粒状，ﾊﾞﾗ | E344: 20 | F344: kg | G344: 570 | H344: 1 | I344: 55 | J344: =IF(ISERROR(I344/E344*G344/H344),"",I344/E344*G344/H344) -> 1567.5 | K344: H28農協聞き取り
B345: 932 | C345: 直播用200 | E345: 20 | F345: kg | G345: 3020 | H345: 1 | I345: 50 | J345: 7550 | K345: H28農協聞き取り
A374: 13 | B374: =技術体系表!C14 -> 水稲・主食用米(慣行米，直播，30ha規模，胆沢平野／胆沢東部・前沢) | J374: =SUM(J375:J404) -> 9117.5
B375: 537 | C375: ｹｲｶﾙ(粒状，ﾊﾞﾗ) | D375: 粒状，ﾊﾞﾗ | E375: 20 | F375: kg | G375: 570 | H375: 1 | I375: 55 | J375: =IF(ISERROR(I375/E375*G375/H375),"",I375/E375*G375/H375) -> 1567.5 | K375: H28農協聞き取り
B376: 932 | C376: 直播用200 | E376: 20 | F376: kg | G376: 3020 | H376: 1 | I376: 50 | J376: 7550 | K376: H28農協聞き取り
A405: 14 | B405: =技術体系表!C15 -> 水稲・主食用米(慣行米，直播，30ha規模，胆沢平野／胆沢西部・金ケ崎西部) | J405: =SUM(J406:J435) -> 9117.5
B406: 537 | C406: ｹｲｶﾙ(粒状，ﾊﾞﾗ) | D406: 粒状，ﾊﾞﾗ | E406: 20 | F406: kg | G406: 570 | H406: 1 | I406: 55 | J406: =IF(ISERROR(I406/E406*G406/H406),"",I406/E406*G406/H406) -> 1567.5 | K406: H28農協聞き取り
B407: 932 | C407: 直播用200 | E407: 20 | F407: kg | G407: 3020 | H407: 1 | I407: 50 | J407: 7550 | K407: H28農協聞き取り
A436: 15 | B436: =技術体系表!C16 -> 水稲・主食用米(慣行米，直播，30ha規模，胆沢平野／水沢・金ケ崎東部) | J436: =SUM(J437:J466) -> 9117.5
B437: 537 | C437: ｹｲｶﾙ(粒状，ﾊﾞﾗ) | D437: 粒状，ﾊﾞﾗ | E437: 20 | F437: kg | G437: 570 | H437: 1 | I437: 55 | J437: =IF(ISERROR(I437/E437*G437/H437),"",I437/E437*G437/H437) -> 1567.5 | K437: H28農協聞き取り
B438: 932 | C438: 直播用200 | E438: 20 | F438: kg | G438: 3020 | H438: 1 | I438: 50 | J438: 7550 | K438: H28農協聞き取り
A467: 16 | B467: =技術体系表!C17 -> 水稲・飼料用米(つぶみのり・つぶゆたか，大区画・移植，15ha規模，胆沢平野) | J467: =SUM(J468:J497) -> 5343.92
B468: 537 | C468: ｹｲｶﾙ(粒状，ﾊﾞﾗ) | D468: 粒状，ﾊﾞﾗ | E468: 20 | F468: kg | G468: 570 | H468: 1 | I468: 40 | J468: =IF(ISERROR(I468/E468*G468/H468),"",I468/E468*G468/H468) -> 1140 | K468: H28農協聞き取り
B469: 933 | C469: 飼料用米専用肥料 | E469: 20 | F469: kg | G469: 2030 | H469: 1 | I469: 36.4 | J469: 3694.6 | K469: 2014追加
B470: 881 | C470: 硫安 | E470: 20 | F470: kg | G470: 1070 | H470: 1 | I470: 9.52 | J470: 509.32 | K470: H29春予約価格
A498: 17 | B498: =技術体系表!C18 -> 飼料用米(つぶみのり・つぶゆたか，移植，30ha規模，胆沢平野) | J498: =SUM(J499:J528) -> 5343.92
B499: 537 | C499: ｹｲｶﾙ(粒状，ﾊﾞﾗ) | D499: 粒状，ﾊﾞﾗ | E499: 20 | F499: kg | G499: 570 | H499: 1 | I499: 40 | J499: =IF(ISERROR(I499/E499*G499/H499),"",I499/E499*G499/H499) -> 1140 | K499: H28農協聞き取り
B500: 933 | C500: 飼料用米専用肥料 | E500: 20 | F500: kg | G500: 2030 | H500: 1 | I500: 36.4 | J500: 3694.6 | K500: 2014追加
B501: 881 | C501: 硫安 | E501: 20 | F501: kg | G501: 1070 | H501: 1 | I501: 9.52 | J501: 509.32 | K501: H29春予約価格
A529: 18 | B529: =技術体系表!C19 -> 水稲・飼料用米(つぶみのり・つぶゆたか，大区画・直播，15ha規模，胆沢平野) | J529: =SUM(J530:J559) -> 9898
B530: 537 | C530: ｹｲｶﾙ(粒状，ﾊﾞﾗ) | D530: 粒状，ﾊﾞﾗ | E530: 20 | F530: kg | G530: 570 | H530: 1 | I530: 40 | J530: =IF(ISERROR(I530/E530*G530/H530),"",I530/E530*G530/H530) -> 1140 | K530: H28農協聞き取り
B531: 932 | C531: 直播用200 | E531: 20 | F531: kg | G531: 3020 | H531: 1 | I531: 58 | J531: 8758 | K531: H28農協聞き取り
A560: 19 | B560: =技術体系表!C20 -> 水稲・飼料用米(つぶみのり・つぶゆたか，大区画・直播，30ha規模，胆沢平野) | J560: =SUM(J561:J590) -> 9898
B561: 537 | C561: ｹｲｶﾙ(粒状，ﾊﾞﾗ) | D561: 粒状，ﾊﾞﾗ | E561: 20 | F561: kg | G561: 570 | H561: 1 | I561: 40 | J561: =IF(ISERROR(I561/E561*G561/H561),"",I561/E561*G561/H561) -> 1140 | K561: H28農協聞き取り
B562: 932 | C562: 直播用200 | E562: 20 | F562: kg | G562: 3020 | H562: 1 | I562: 58 | J562: 8758 | K562: H28農協聞き取り
A591: 20 | B591: =技術体系表!C21 -> 大豆(ﾘｭｳﾎｳ，水田転作・小畦立，7ha規模，胆沢平野) | J591: =SUM(J592:J621) -> 5950
B592: 649 | C592: 大豆2号 | E592: 20 | F592: kg | G592: 2380 | H592: 1 | I592: 50 | J592: =IF(ISERROR(I592/E592*G592/H592),"",I592/E592*G592/H592) -> 5950 | K592: H29春予約価格
A622: 21 | B622: =技術体系表!C22 -> 小麦(ﾅﾝﾌﾞｺﾑｷﾞ，水田転作，7ha規模，胆沢平野) | J622: =SUM(J623:J652) -> 6950.5
B623: 935 | C623: ふるさと麦専用 | E623: 20 | F623: kg | G623: 2430 | H623: 1 | I623: 55 | J623: =IF(ISERROR(I623/E623*G623/H623),"",I623/E623*G623/H623) -> 6682.5 | K623: H29予約価格
B624: 467 | C624: 塩安 | E624: 20 | F624: kg | G624: 1340 | H624: 1 | I624: 4 | J624: =IF(ISERROR(I624/E624*G624/H624),"",I624/E624*G624/H624) -> 268 | K624: H28農協聞き取り
A653: 22 | B653: =技術体系表!C23 -> 受委託(限定ふるさと米，苗生産・販売，3375箱規模，胆沢平野) | J653: =SUM(J654:J683) -> 0
J654: =IF(ISERROR(I654/E654*G654/H654),"",I654/E654*G654/H654) -> 
A684: 23 | B684: =技術体系表!C24 -> 受委託(限定ふるさと米，耕起・代掻，15ha規模，胆沢平野) | J684: =SUM(J685:J714) -> 0
J685: =IF(ISERROR(I685/E685*G685/H685),"",I685/E685*G685/H685) -> 
A715: 24 | B715: =技術体系表!C25 -> 受委託(限定ふるさと米，田植，15ha規模，胆沢平野) | J715: =SUM(J716:J745) -> 0
J716: =IF(ISERROR(I716/E716*G716/H716),"",I716/E716*G716/H716) -> 
A746: 25 | B746: =技術体系表!C26 -> 受委託(限定ふるさと米，収穫運搬，15ha規模，胆沢平野) | J746: =SUM(J747:J776) -> 0
J747: =IF(ISERROR(I747/E747*G747/H747),"",I747/E747*G747/H747) -> 
A777: 26 | B777: =技術体系表!C27 -> 受委託(限定ふるさと米，乾燥調製，81000kg規模，胆沢平野) | J777: =SUM(J778:J807) -> 0
J778: =IF(ISERROR(I778/E778*G778/H778),"",I778/E778*G778/H778) -> 
A808: 27 | B808: =技術体系表!C28 -> WCS(つぶゆたか，移植，15ha規模，胆沢平野) | J808: =SUM(J809:J838) -> 5800.67
B809: 537 | C809: ｹｲｶﾙ(粒状，ﾊﾞﾗ) | D809: 粒状，ﾊﾞﾗ | E809: 20 | F809: kg | G809: 570 | H809: 1 | I809: 40 | J809: =IF(ISERROR(I809/E809*G809/H809),"",I809/E809*G809/H809) -> 1140 | K809: H28農協聞き取り
B810: 933 | C810: 飼料用米専用肥料 | E810: 20 | F810: kg | G810: 2030 | H810: 1 | I810: 40.9 | J810: 4151.35 | K810: 2014追加
B811: 881 | C811: 硫安 | E811: 20 | F811: kg | G811: 1070 | H811: 1 | I811: 9.52 | J811: 509.32 | K811: H29春予約価格
A839: 28 | B839: =技術体系表!C29 -> WCS(つぶゆたか，直播，15ha規模，胆沢平野) | J839: =SUM(J840:J869) -> 9898
B840: 537 | C840: ｹｲｶﾙ(粒状，ﾊﾞﾗ) | D840: 粒状，ﾊﾞﾗ | E840: 20 | F840: kg | G840: 570 | H840: 1 | I840: 40 | J840: =IF(ISERROR(I840/E840*G840/H840),"",I840/E840*G840/H840) -> 1140 | K840: H28農協聞き取り
B841: 932 | C841: 直播用200 | E841: 20 | F841: kg | G841: 3020 | H841: 1 | I841: 58 | J841: 8758 | K841: H28農協聞き取り
A870: 29 | B870: =技術体系表!C30 -> 牧草(混播牧草，乾草調製(ﾛｰﾙﾍﾞｰﾙ)，5ha規模，胆沢平野) | J870: =SUM(J871:J900) -> 15594.5
B871: 625 | C871: 草地212号(ﾊﾞﾗ) | D871: ﾊﾞﾗ | E871: 200 | F871: kg | G871: 21590 | H871: 1 | I871: 100 | J871: =IF(ISERROR(I871/E871*G871/H871),"",I871/E871*G871/H871) -> 10795 | K871: 2014価格改定
B872: 665 | C872: ﾀﾝｶﾙ(ﾊﾞﾗ) | D872: ﾊﾞﾗ | E872: 200 | F872: kg | G872: 2700 | H872: 1 | I872: 60 | J872: 810 | K872: 2014価格改定
B873: 629 | C873: 草地484号(ﾊﾞﾗ) | D873: ﾊﾞﾗ | E873: 200 | F873: kg | G873: 24350 | H873: 1 | I873: 10 | J873: 1217.5 | K873: 2014価格改定
B874: 870 | C874: 熔燐(粒状) | D874: 粒状 | E874: 20 | F874: kg | G874: 1980 | H874: 1 | I874: 28 | J874: 2772 | K874: 2014価格改定
A901: 30 | B901: =技術体系表!C31 -> 牧草(混播牧草，ｸﾞﾗｽｻｲﾚｰｼﾞ(ﾛｰﾙﾍﾞｰﾙ)，5ha規模，胆沢平野) | J901: =SUM(J902:J931) -> 15594.5
B902: 625 | C902: 草地212号(ﾊﾞﾗ) | D902: ﾊﾞﾗ | E902: 200 | F902: kg | G902: 21590 | H902: 1 | I902: 100 | J902: =IF(ISERROR(I902/E902*G902/H902),"",I902/E902*G902/H902) -> 10795 | K902: 2014価格改定
B903: 665 | C903: ﾀﾝｶﾙ(ﾊﾞﾗ) | D903: ﾊﾞﾗ | E903: 200 | F903: kg | G903: 2700 | H903: 1 | I903: 60 | J903: 810 | K903: 2014価格改定
B904: 629 | C904: 草地484号(ﾊﾞﾗ) | D904: ﾊﾞﾗ | E904: 200 | F904: kg | G904: 24350 | H904: 1 | I904: 10 | J904: 1217.5 | K904: 2014価格改定
B905: 870 | C905: 熔燐(粒状) | D905: 粒状 | E905: 20 | F905: kg | G905: 1980 | H905: 1 | I905: 28 | J905: 2772 | K905: 2014価格改定
A932: 31 | B932: =技術体系表!C32 -> ﾋﾟｰﾏﾝ(京鈴，雨よけﾊｳｽ栽培，30a規模，県下全域) | J932: =SUM(J933:J962) -> 31140.39556
B933: 657 | C933: 堆肥(牛糞) | E933: 1000 | F933: kg | G933: 5140 | H933: 1 | I933: 2126.666667 | J933: =IF(ISERROR(I933/E933*G933/H933),"",I933/E933*G933/H933) -> 10931.06667
B934: 363 | C934: CDU燐加安S555号 | E934: 20 | F934: kg | G934: 4800 | H934: 1 | I934: 0.71 | J934: =IF(ISERROR(I934/E934*G934/H934),"",I934/E934*G934/H934) -> 170.4
B935: 677 | C935: てんろ石灰 | E935: 20 | F935: kg | G935: 540 | H935: 1 | I935: 100 | J935: 2700 | K935: Ｈ29参考価格
B936: 846 | C936: 有機入り純情野菜肥料 | E936: 20 | F936: kg | G936: 2890 | H936: 1 | I936: 100 | J936: 14450 | K936: Ｈ29申込概算価格
B937: 438 | C937: 液肥2号 | E937: 24 | F937: kg | G937: 2660 | H937: 1 | I937: 26 | J937: 2881.666667 | K937: Ｈ29申込概算価格（くみあい液肥）
B938: 664 | C938: ﾀﾝｶﾙ | E938: 30 | F938: kg | G938: 430 | H938: 1 | I938: 0.5066666667 | J938: 7.262222222
A963: 32 | B963: =技術体系表!C33 -> ﾋﾟｰﾏﾝ(京ゆたか7，露地栽培，1ha規模，県下全域) | J963: =SUM(J964:J993) -> 50170.78667
B964: 657 | C964: 堆肥(牛糞) | E964: 1000 | F964: kg | G964: 5140 | H964: 1 | I964: 3140 | J964: =IF(ISERROR(I964/E964*G964/H964),"",I964/E964*G964/H964) -> 16139.6
B965: 363 | C965: CDU燐加安S555号 | E965: 20 | F965: kg | G965: 4800 | H965: 1 | I965: 0.784 | J965: 188.16
B966: 679 | C966: てんろ石灰(防散，ﾊﾞﾗ) | D966: 防散，ﾊﾞﾗ | E966: 200 | F966: kg | G966: 5150 | H966: 1 | I966: 100 | J966: 2575
B967: 483 | C967: ｵｰﾙ15号 | E967: 20 | F967: kg | G967: 3130 | H967: 1 | I967: 80 | J967: 12520
B968: 664 | C968: ﾀﾝｶﾙ | E968: 30 | F968: kg | G968: 430 | H968: 1 | I968: 0.56 | J968: 8.026666667
B969: 663 | C969: ﾀﾞﾌﾞﾘﾝ特17号 | E969: 20 | F969: kg | G969: 3630 | H969: 1 | I969: 40 | J969: 7260
B970: 704 | C970: なたね粕 | E970: 20 | F970: kg | G970: 1640 | H970: 1 | I970: 140 | J970: 11480
A994: 33 | B994: =技術体系表!C34 -> 0 | J994: =SUM(J995:J1024) -> 0
J995: =IF(ISERROR(I995/E995*G995/H995),"",I995/E995*G995/H995) -> 
A1025: 34 | B1025: =技術体系表!C35 -> 0 | J1025: =SUM(J1026:J1055) -> 0
J1026: =IF(ISERROR(I1026/E1026*G1026/H1026),"",I1026/E1026*G1026/H1026) -> 
A1056: 35 | B1056: =技術体系表!C36 -> 0 | J1056: =SUM(J1057:J1086) -> 0
J1057: =IF(ISERROR(I1057/E1057*G1057/H1057),"",I1057/E1057*G1057/H1057) -> 
A1087: 36 | B1087: =技術体系表!C37 -> 0 | J1087: =SUM(J1088:J1117) -> 0
J1088: =IF(ISERROR(I1088/E1088*G1088/H1088),"",I1088/E1088*G1088/H1088) -> 
A1118: 37 | B1118: =技術体系表!C38 -> 0 | J1118: =SUM(J1119:J1148) -> 0
J1119: =IF(ISERROR(I1119/E1119*G1119/H1119),"",I1119/E1119*G1119/H1119) -> 
A1149: 38 | B1149: =技術体系表!C39 -> 0 | J1149: =SUM(J1150:J1179) -> 0
J1150: =IF(ISERROR(I1150/E1150*G1150/H1150),"",I1150/E1150*G1150/H1150) -> 
A1180: 39 | B1180: =技術体系表!C40 -> 0 | J1180: =SUM(J1181:J1210) -> 0
J1181: =IF(ISERROR(I1181/E1181*G1181/H1181),"",I1181/E1181*G1181/H1181) -> 
A1211: 40 | B1211: =技術体系表!C41 -> 0 | J1211: =SUM(J1212:J1241) -> 0
J1212: =IF(ISERROR(I1212/E1212*G1212/H1212),"",I1212/E1212*G1212/H1212) -> 
A1242: 41 | B1242: =技術体系表!C42 -> 0 | J1242: =SUM(J1243:J1272) -> 0
J1243: =IF(ISERROR(I1243/E1243*G1243/H1243),"",I1243/E1243*G1243/H1243) -> 
J1244: =IF(ISERROR(I1244/E1244*G1244/H1244),"",I1244/E1244*G1244/H1244) -> 
A1273: 42 | B1273: =技術体系表!C43 -> 0 | J1273: =SUM(J1274:J1303) -> 0
J1274: =IF(ISERROR(I1274/E1274*G1274/H1274),"",I1274/E1274*G1274/H1274) -> 
A1304: 43 | B1304: =技術体系表!C44 -> 0 | J1304: =SUM(J1305:J1334) -> 0
J1305: =IF(ISERROR(I1305/E1305*G1305/H1305),"",I1305/E1305*G1305/H1305) -> 
A1335: 44 | B1335: =技術体系表!C45 -> 0 | J1335: =SUM(J1336:J1365) -> 0
J1336: =IF(ISERROR(I1336/E1336*G1336/H1336),"",I1336/E1336*G1336/H1336) -> 
A1366: 45 | B1366: =技術体系表!C46 -> 0 | J1366: =SUM(J1367:J1396) -> 0
J1367: =IF(ISERROR(I1367/E1367*G1367/H1367),"",I1367/E1367*G1367/H1367) -> 
A1397: 46 | B1397: =技術体系表!C47 -> 0 | J1397: =SUM(J1398:J1427) -> 0
J1398: =IF(ISERROR(I1398/E1398*G1398/H1398),"",I1398/E1398*G1398/H1398) -> 
A1428: 47 | B1428: =技術体系表!C48 -> 0 | J1428: =SUM(J1429:J1458) -> 0
J1429: =IF(ISERROR(I1429/E1429*G1429/H1429),"",I1429/E1429*G1429/H1429) -> 
A1459: 48 | B1459: =技術体系表!C49 -> 0 | J1459: =SUM(J1460:J1489) -> 0
J1460: =IF(ISERROR(I1460/E1460*G1460/H1460),"",I1460/E1460*G1460/H1460) -> 
A1490: 49 | B1490: =技術体系表!C50 -> 0 | J1490: =SUM(J1491:J1520) -> 0
J1491: =IF(ISERROR(I1491/E1491*G1491/H1491),"",I1491/E1491*G1491/H1491) -> 
A1521: 50 | B1521: =技術体系表!C51 -> 0 | J1521: =SUM(J1522:J1551) -> 0
J1522: =IF(ISERROR(I1522/E1522*G1522/H1522),"",I1522/E1522*G1522/H1522) -> 
A1552: 51 | B1552: =技術体系表!C52 -> 0 | J1552: =SUM(J1553:J1582) -> 0
J1553: =IF(ISERROR(I1553/E1553*G1553/H1553),"",I1553/E1553*G1553/H1553) -> 
J1554: =IF(ISERROR(I1554/E1554*G1554/H1554),"",I1554/E1554*G1554/H1554) -> 
A1583: 52 | B1583: =技術体系表!C53 -> 0 | J1583: =SUM(J1584:J1613) -> 0
J1584: =IF(ISERROR(I1584/E1584*G1584/H1584),"",I1584/E1584*G1584/H1584) -> 
A1614: 53 | B1614: =技術体系表!C54 -> 0 | J1614: =SUM(J1615:J1644) -> 0
J1615: =IF(ISERROR(I1615/E1615*G1615/H1615),"",I1615/E1615*G1615/H1615) -> 
A1645: 54 | B1645: =技術体系表!C55 -> 0 | J1645: =SUM(J1646:J1675) -> 0
J1646: =IF(ISERROR(I1646/E1646*G1646/H1646),"",I1646/E1646*G1646/H1646) -> 
A1676: 55 | B1676: =技術体系表!C56 -> 0 | J1676: =SUM(J1677:J1706) -> 0
J1677: =IF(ISERROR(I1677/E1677*G1677/H1677),"",I1677/E1677*G1677/H1677) -> 
A1707: 56 | B1707: =技術体系表!C57 -> 0 | J1707: =SUM(J1708:J1737) -> 0
J1708: =IF(ISERROR(I1708/E1708*G1708/H1708),"",I1708/E1708*G1708/H1708) -> 
A1738: 57 | B1738: =技術体系表!C58 -> 0 | J1738: =SUM(J1739:J1768) -> 0
J1739: =IF(ISERROR(I1739/E1739*G1739/H1739),"",I1739/E1739*G1739/H1739) -> 
A1769: 58 | B1769: =技術体系表!C59 -> 0 | J1769: =SUM(J1770:J1799) -> 0
J1770: =IF(ISERROR(I1770/E1770*G1770/H1770),"",I1770/E1770*G1770/H1770) -> 
A1800: 59 | B1800: =技術体系表!C60 -> 0 | J1800: =SUM(J1801:J1830) -> 0
J1801: =IF(ISERROR(I1801/E1801*G1801/H1801),"",I1801/E1801*G1801/H1801) -> 
A1831: 60 | B1831: =技術体系表!C61 -> 0 | J1831: =SUM(J1832:J1861) -> 0
J1832: =IF(ISERROR(I1832/E1832*G1832/H1832),"",I1832/E1832*G1832/H1832) -> 

Sheet 農薬（修正）
A1: No | B1: ｺｰﾄﾞ | C1: 資 材 名 | D1: 銘 柄 等 級 | E1: 包装単位 | F1: 単位 | G1: 標準価格 (円) | H1: 使用 年数 | I1: 使用数量 | J1: 単位 (10a当り) | K1: 価 額 （円） | L1: 備 考
A2: 1 | B2: =試算計画表!E14 -> 0 | K2: =SUM(K3:K42) -> 0
J3: =IF(F3="","",F3) ->  | K3: =IF(ISERROR(I3/E3*G3/H3),"",I3/E3*G3/H3) -> 
J4: =IF(F4="","",F4) ->  | K4: =IF(ISERROR(I4/E4*G4/H4),"",I4/E4*G4/H4) -> 
J33: =IF(F33="","",F33) -> 
J42: =IF(F42="","",F42) -> 
A43: 2 | B43: =試算計画表!F14 -> 0 | K43: =SUM(K44:K83) -> 0
J44: =IF(F44="","",F44) ->  | K44: =IF(ISERROR(I44/E44*G44/H44),"",I44/E44*G44/H44) -> 
J45: =IF(F45="","",F45) -> 
A84: 3 | B84: =試算計画表!G14 -> 0 | K84: =SUM(K85:K124) -> 0
K85: =IF(ISERROR(I85/E85*G85/H85),"",I85/E85*G85/H85) -> 
K108: =IF(ISERROR(I108/E108*G108/H108),"",I108/E108*G108/H108) -> 
J109: =IF(F109="","",F109) -> 
A125: 4 | B125: =試算計画表!H14 -> 0 | K125: =SUM(K126:K165) -> 0
K126: =IF(ISERROR(I126/E126*G126/H126),"",I126/E126*G126/H126) -> 
A166: 5 | B166: =試算計画表!I14 -> 0 | K166: =SUM(K167:K206) -> 0
K167: =IF(ISERROR(I167/E167*G167/H167),"",I167/E167*G167/H167) -> 
K172: =IF(ISERROR(I172/E172*G172/H172),"",I172/E172*G172/H172) -> 
J173: =IF(F173="","",F173) -> 
A207: 6 | B207: =試算計画表!J14 -> 0 | K207: =SUM(K208:K247) -> 0
K208: =IF(ISERROR(I208/E208*G208/H208),"",I208/E208*G208/H208) -> 
K236: =IF(ISERROR(I236/E236*G236/H236),"",I236/E236*G236/H236) -> 
J237: =IF(F237="","",F237) -> 
A248: 7 | B248: =試算計画表!K14 -> 0 | K248: =SUM(K249:K288) -> 0
K249: =IF(ISERROR(I249/E249*G249/H249),"",I249/E249*G249/H249) -> 
A289: 8 | B289: =試算計画表!L14 -> 0 | K289: =SUM(K290:K329) -> 0
K290: =IF(ISERROR(I290/E290*G290/H290),"",I290/E290*G290/H290) -> 
K300: =IF(ISERROR(I300/E300*G300/H300),"",I300/E300*G300/H300) -> 
J301: =IF(F301="","",F301) -> 
A330: 9 | B330: =試算計画表!M14 -> 0 | K330: =SUM(K331:K370) -> 0
K331: =IF(ISERROR(I331/E331*G331/H331),"",I331/E331*G331/H331) -> 
K364: =IF(ISERROR(I364/E364*G364/H364),"",I364/E364*G364/H364) -> 
J365: =IF(F365="","",F365) -> 
A371: 10 | B371: =試算計画表!N14 -> 0 | K371: =SUM(K372:K411) -> 0
K372: =IF(ISERROR(I372/E372*G372/H372),"",I372/E372*G372/H372) -> 
K375: =IF(ISERROR(I375/E375*G375/H375),"",I375/E375*G375/H375) -> 

Sheet 農薬 (hidden)
A1: No | B1: ｺｰﾄﾞ | C1: 資 材 名 | D1: 銘 柄 等 級 | E1: 包装単位 | F1: 単位 | G1: 標準価格 | H1: 使用 年数 | I1: 使用数量 | J1: 価 額 | K1: 備 考
A2: 1 | B2: =技術体系表!$C$2 -> 水稲・主食用米(限定ふるさと米，移植，5.1ha規模，胆沢平野／胆沢東部・前沢) | J2: =SUM(J3:J42) -> 10614.38039
B3: 1499 | C3: Dr.ｵﾘｾﾞﾌｪﾙﾃﾗ粒剤 | D3: ｸﾛﾗﾝﾄﾗﾆﾘﾌﾟﾛｰﾙ･ﾌﾟﾛﾍﾞﾅｿﾞｰﾙ粒剤 | E3: 1 | F3: kg | G3: 3581 | H3: 1 | I3: 1.125490196 | J3: =IF(ISERROR(I3/E3*G3/H3),"",I3/E3*G3/H3) -> 4030.380392 | K3: H28予約価格
B4: 1507 | C4: ﾌｼﾞﾜﾝﾊﾟｯｸ（75ｇ×10個） | D4: 穂いもち除草剤 | E4: 0.75 | F4: kg | G4: 2960 | H4: 1 | I4: 0.75 | J4: =IF(ISERROR(I4/E4*G4/H4),"",I4/E4*G4/H4) -> 2960 | K4: 0.75ｋｇ H28春予約価格
B5: 1508 | C5: ｳｨﾅｰｼﾞｬﾝﾎﾞ | D5: 一発除草剤 | E5: 0.5 | F5: kg | G5: 3624 | H5: 1 | I5: 0.5 | J5: 3624 | K5: 0.5kg H28農協聞き取り
A43: 2 | B43: =技術体系表!$C$3 -> 水稲・主食用米(限定ふるさと米，移植，5.1ha規模，胆沢平野／胆沢西部・金ケ崎西部) | J43: =SUM(J44:J83) -> 10614.38039
B44: 1499 | C44: Dr.ｵﾘｾﾞﾌｪﾙﾃﾗ粒剤 | D44: ｸﾛﾗﾝﾄﾗﾆﾘﾌﾟﾛｰﾙ･ﾌﾟﾛﾍﾞﾅｿﾞｰﾙ粒剤 | E44: 1 | F44: kg | G44: 3581 | H44: 1 | I44: 1.125490196 | J44: =IF(ISERROR(I44/E44*G44/H44),"",I44/E44*G44/H44) -> 4030.380392 | K44: H28予約価格
B45: 1507 | C45: ﾌｼﾞﾜﾝﾊﾟｯｸ（75ｇ×10個） | D45: 穂いもち除草剤 | E45: 0.75 | F45: kg | G45: 2960 | H45: 1 | I45: 0.75 | J45: 2960 | K45: 0.75ｋｇ H28春予約価格
B46: 1508 | C46: ｳｨﾅｰｼﾞｬﾝﾎﾞ | D46: 一発除草剤 | E46: 0.5 | F46: kg | G46: 3624 | H46: 1 | I46: 0.5 | J46: 3624 | K46: 0.5kg H28農協聞き取り
A84: 3 | B84: =技術体系表!$C$4 -> 水稲・主食用米(限定ふるさと米，移植，5.1ha規模，胆沢平野／水沢・金ケ崎東部) | J84: =SUM(J85:J124) -> 10614.38039
B85: 1499 | C85: Dr.ｵﾘｾﾞﾌｪﾙﾃﾗ粒剤 | D85: ｸﾛﾗﾝﾄﾗﾆﾘﾌﾟﾛｰﾙ･ﾌﾟﾛﾍﾞﾅｿﾞｰﾙ粒剤 | E85: 1 | F85: kg | G85: 3581 | H85: 1 | I85: 1.125490196 | J85: =IF(ISERROR(I85/E85*G85/H85),"",I85/E85*G85/H85) -> 4030.380392 | K85: H28予約価格
B86: 1507 | C86: ﾌｼﾞﾜﾝﾊﾟｯｸ（75ｇ×10個） | D86: 穂いもち除草剤 | E86: 0.75 | F86: kg | G86: 2960 | H86: 1 | I86: 0.75 | J86: 2960 | K86: 0.75ｋｇ H28春予約価格
B87: 1508 | C87: ｳｨﾅｰｼﾞｬﾝﾎﾞ | D87: 一発除草剤 | E87: 0.5 | F87: kg | G87: 3624 | H87: 1 | I87: 0.5 | J87: 3624 | K87: 0.5kg H28農協聞き取り
J108: =IF(ISERROR(I108/E108*G108/H108),"",I108/E108*G108/H108) -> 
A125: 4 | B125: =技術体系表!$C$5 -> 水稲・主食用米(限定ふるさと米，移植，15ha規模，胆沢平野／胆沢東部・前沢) | J125: =SUM(J126:J165) -> 10612.625
B126: 1499 | C126: Dr.ｵﾘｾﾞﾌｪﾙﾃﾗ粒剤 | D126: ｸﾛﾗﾝﾄﾗﾆﾘﾌﾟﾛｰﾙ･ﾌﾟﾛﾍﾞﾅｿﾞｰﾙ粒剤 | E126: 1 | F126: kg | G126: 3581 | H126: 1 | I126: 1.125 | J126: =IF(ISERROR(I126/E126*G126/H126),"",I126/E126*G126/H126) -> 4028.625 | K126: H28予約価格
B127: 1507 | C127: ﾌｼﾞﾜﾝﾊﾟｯｸ（75ｇ×10個） | D127: 穂いもち除草剤 | E127: 0.75 | F127: kg | G127: 2960 | H127: 1 | I127: 0.75 | J127: 2960 | K127: 0.75ｋｇ H28春予約価格
B128: 1508 | C128: ｳｨﾅｰｼﾞｬﾝﾎﾞ | D128: 一発除草剤 | E128: 0.5 | F128: kg | G128: 3624 | H128: 1 | I128: 0.5 | J128: 3624 | K128: 0.5kg H28農協聞き取り
A166: 5 | B166: =技術体系表!$C$6 -> 水稲・主食用米(限定ふるさと米，移植，15ha規模，胆沢平野／胆沢西部・金ケ崎西部) | J166: =SUM(J167:J206) -> 10612.625
B167: 1499 | C167: Dr.ｵﾘｾﾞﾌｪﾙﾃﾗ粒剤 | D167: ｸﾛﾗﾝﾄﾗﾆﾘﾌﾟﾛｰﾙ･ﾌﾟﾛﾍﾞﾅｿﾞｰﾙ粒剤 | E167: 1 | F167: kg | G167: 3581 | H167: 1 | I167: 1.125 | J167: =IF(ISERROR(I167/E167*G167/H167),"",I167/E167*G167/H167) -> 4028.625 | K167: H28予約価格
B168: 1507 | C168: ﾌｼﾞﾜﾝﾊﾟｯｸ（75ｇ×10個） | D168: 穂いもち除草剤 | E168: 0.75 | F168: kg | G168: 2960 | H168: 1 | I168: 0.75 | J168: 2960 | K168: 0.75ｋｇ H28春予約価格
B169: 1508 | C169: ｳｨﾅｰｼﾞｬﾝﾎﾞ | D169: 一発除草剤 | E169: 0.5 | F169: kg | G169: 3624 | H169: 1 | I169: 0.5 | J169: 3624 | K169: 0.5kg H28農協聞き取り
J172: =IF(ISERROR(I172/E172*G172/H172),"",I172/E172*G172/H172) -> 
A207: 6 | B207: =技術体系表!$C$7 -> 水稲・主食用米(限定ふるさと米，移植，15ha規模，胆沢平野／水沢・金ケ崎東部) | J207: =SUM(J208:J247) -> 10612.625
B208: 1499 | C208: Dr.ｵﾘｾﾞﾌｪﾙﾃﾗ粒剤 | D208: ｸﾛﾗﾝﾄﾗﾆﾘﾌﾟﾛｰﾙ･ﾌﾟﾛﾍﾞﾅｿﾞｰﾙ粒剤 | E208: 1 | F208: kg | G208: 3581 | H208: 1 | I208: 1.125 | J208: =IF(ISERROR(I208/E208*G208/H208),"",I208/E208*G208/H208) -> 4028.625 | K208: H28予約価格
B209: 1507 | C209: ﾌｼﾞﾜﾝﾊﾟｯｸ（75ｇ×10個） | D209: 穂いもち除草剤 | E209: 0.75 | F209: kg | G209: 2960 | H209: 1 | I209: 0.75 | J209: 2960 | K209: 0.75ｋｇ H28春予約価格
B210: 1508 | C210: ｳｨﾅｰｼﾞｬﾝﾎﾞ | D210: 一発除草剤 | E210: 0.5 | F210: kg | G210: 3624 | H210: 1 | I210: 0.5 | J210: 3624 | K210: 0.5kg H28農協聞き取り
J236: =IF(ISERROR(I236/E236*G236/H236),"",I236/E236*G236/H236) -> 
A248: 7 | B248: =技術体系表!$C$8 -> 水稲・主食用米(限定ふるさと米，移植，30ha規模，胆沢平野／胆沢東部・前沢) | J248: =SUM(J249:J288) -> 10612.625
B249: 1499 | C249: Dr.ｵﾘｾﾞﾌｪﾙﾃﾗ粒剤 | D249: ｸﾛﾗﾝﾄﾗﾆﾘﾌﾟﾛｰﾙ･ﾌﾟﾛﾍﾞﾅｿﾞｰﾙ粒剤 | E249: 1 | F249: kg | G249: 3581 | H249: 1 | I249: 1.125 | J249: =IF(ISERROR(I249/E249*G249/H249),"",I249/E249*G249/H249) -> 4028.625 | K249: H28予約価格
B250: 1507 | C250: ﾌｼﾞﾜﾝﾊﾟｯｸ（75ｇ×10個） | D250: 穂いもち除草剤 | E250: 0.75 | F250: kg | G250: 2960 | H250: 1 | I250: 0.75 | J250: 2960 | K250: 0.75ｋｇ H28春予約価格
B251: 1508 | C251: ｳｨﾅｰｼﾞｬﾝﾎﾞ | D251: 一発除草剤 | E251: 0.5 | F251: kg | G251: 3624 | H251: 1 | I251: 0.5 | J251: 3624 | K251: 0.5kg H28農協聞き取り
A289: 8 | B289: =技術体系表!$C$9 -> 水稲・主食用米(限定ふるさと米，移植，30ha規模，胆沢平野／胆沢西部・金ケ崎西部) | J289: =SUM(J290:J329) -> 10612.625
B290: 1499 | C290: Dr.ｵﾘｾﾞﾌｪﾙﾃﾗ粒剤 | D290: ｸﾛﾗﾝﾄﾗﾆﾘﾌﾟﾛｰﾙ･ﾌﾟﾛﾍﾞﾅｿﾞｰﾙ粒剤 | E290: 1 | F290: kg | G290: 3581 | H290: 1 | I290: 1.125 | J290: =IF(ISERROR(I290/E290*G290/H290),"",I290/E290*G290/H290) -> 4028.625 | K290: H28予約価格
B291: 1507 | C291: ﾌｼﾞﾜﾝﾊﾟｯｸ（75ｇ×10個） | D291: 穂いもち除草剤 | E291: 0.75 | F291: kg | G291: 2960 | H291: 1 | I291: 0.75 | J291: 2960 | K291: 0.75ｋｇ H28春予約価格
B292: 1508 | C292: ｳｨﾅｰｼﾞｬﾝﾎﾞ | D292: 一発除草剤 | E292: 0.5 | F292: kg | G292: 3624 | H292: 1 | I292: 0.5 | J292: 3624 | K292: 0.5kg H28農協聞き取り
J300: =IF(ISERROR(I300/E300*G300/H300),"",I300/E300*G300/H300) -> 
A330: 9 | B330: =技術体系表!$C$10 -> 水稲・主食用米(限定ふるさと米，移植，30ha規模，胆沢平野／水沢・金ケ崎東部) | J330: =SUM(J331:J370) -> 10612.625
B331: 1499 | C331: Dr.ｵﾘｾﾞﾌｪﾙﾃﾗ粒剤 | D331: ｸﾛﾗﾝﾄﾗﾆﾘﾌﾟﾛｰﾙ･ﾌﾟﾛﾍﾞﾅｿﾞｰﾙ粒剤 | E331: 1 | F331: kg | G331: 3581 | H331: 1 | I331: 1.125 | J331: =IF(ISERROR(I331/E331*G331/H331),"",I331/E331*G331/H331) -> 4028.625 | K331: H28予約価格
B332: 1507 | C332: ﾌｼﾞﾜﾝﾊﾟｯｸ（75ｇ×10個） | D332: 穂いもち除草剤 | E332: 0.75 | F332: kg | G332: 2960 | H332: 1 | I332: 0.75 | J332: 2960 | K332: 0.75ｋｇ H28春予約価格
B333: 1508 | C333: ｳｨﾅｰｼﾞｬﾝﾎﾞ | D333: 一発除草剤 | E333: 0.5 | F333: kg | G333: 3624 | H333: 1 | I333: 0.5 | J333: 3624 | K333: 0.5kg H28農協聞き取り
J364: =IF(ISERROR(I364/E364*G364/H364),"",I364/E364*G364/H364) -> 
A371: 10 | B371: =技術体系表!$C$11 -> 水稲・主食用米(慣行米，直播，15ha規模，胆沢平野／胆沢東部・前沢) | J371: =SUM(J372:J411) -> 13126
B372: 1504 | C372: ﾌﾟﾚｷｰﾌﾟ1ｷﾛ粒剤 | D372: ﾋﾟﾗｿﾞｷｼﾌｪﾝ・ﾍﾞﾝｿﾞﾋﾞｼｸﾛﾝ粒剤 | E372: 1 | F372: kg | G372: 2835 | H372: 1 | I372: 1 | J372: =IF(ISERROR(I372/E372*G372/H372),"",I372/E372*G372/H372) -> 2835 | K372: H28農協聞き取り
B373: 1505 | C373: ｵﾘｾﾞﾒｰﾄ1ｷﾛ粒剤 | D373: ﾌﾟﾛﾍﾞﾅｿﾞｰﾙ粒剤 | E373: 1 | F373: kg | G373: 2380 | H373: 1 | I373: 1 | J373: 2380 | K373: 2014追加・Ｈ29参考価格
B374: 1226 | C374: ｼｸﾛﾊﾟｯｸ粒剤(60g/個) | D374: ｼｸﾛﾌﾟﾛﾄﾘﾝ粒剤 | E374: 0.6 | F374: kg | G374: 2030 | H374: 1 | I374: 0.6 | J374: 2030 | K374: 0.6ｋｇ H28店頭調査
B375: 1435 | C375: ﾄｯﾌﾟｶﾞﾝ250ｸﾞﾗﾑ | D375: ﾋﾟﾘﾐﾉﾊﾞｯｸﾒﾁﾙ･ﾌﾞﾛﾓﾌﾞﾁﾄﾞ･ﾍﾞﾝｽﾙﾌﾛﾝﾒﾁﾙ･ﾍﾟﾝﾄｷｻｿﾞﾝ剤 | E375: 0.25 | F375: kg | G375: 3397 | H375: 1 | I375: 0.25 | J375: 3397 | K375: 0.25ｋｇ H28農協聞き取り
B376: 1082 | C376: ﾌｼﾞﾜﾝ粒剤 | D376: ｲｿﾌﾟﾛﾁｵﾗﾝ粒剤 | E376: 3 | F376: kg | G376: 2484 | H376: 1 | I376: 3 | J376: 2484 | K376: H28春予約価格
A412: 11 | B412: =技術体系表!$C$12 -> 水稲・主食用米(慣行米，直播，15ha規模，胆沢平野／胆沢西部・金ケ崎西部) | J412: =SUM(J413:J452) -> 13126
B413: 1504 | C413: ﾌﾟﾚｷｰﾌﾟ1ｷﾛ粒剤 | D413: ﾋﾟﾗｿﾞｷｼﾌｪﾝ・ﾍﾞﾝｿﾞﾋﾞｼｸﾛﾝ粒剤 | E413: 1 | F413: kg | G413: 2835 | H413: 1 | I413: 1 | J413: =IF(ISERROR(I413/E413*G413/H413),"",I413/E413*G413/H413) -> 2835 | K413: H28農協聞き取り
B414: 1505 | C414: ｵﾘｾﾞﾒｰﾄ1ｷﾛ粒剤 | D414: ﾌﾟﾛﾍﾞﾅｿﾞｰﾙ粒剤 | E414: 1 | F414: kg | G414: 2380 | H414: 1 | I414: 1 | J414: =IF(ISERROR(I414/E414*G414/H414),"",I414/E414*G414/H414) -> 2380 | K414: 2014追加・Ｈ29参考価格
B415: 1226 | C415: ｼｸﾛﾊﾟｯｸ粒剤(60g/個) | D415: ｼｸﾛﾌﾟﾛﾄﾘﾝ粒剤 | E415: 0.6 | F415: kg | G415: 2030 | H415: 1 | I415: 0.6 | J415: 2030 | K415: 0.6ｋｇ H28店頭調査
B416: 1435 | C416: ﾄｯﾌﾟｶﾞﾝ250ｸﾞﾗﾑ | D416: ﾋﾟﾘﾐﾉﾊﾞｯｸﾒﾁﾙ･ﾌﾞﾛﾓﾌﾞﾁﾄﾞ･ﾍﾞﾝｽﾙﾌﾛﾝﾒﾁﾙ･ﾍﾟﾝﾄｷｻｿﾞﾝ剤 | E416: 0.25 | F416: kg | G416: 3397 | H416: 1 | I416: 0.25 | J416: 3397 | K416: 0.25ｋｇ H28農協聞き取り
B417: 1082 | C417: ﾌｼﾞﾜﾝ粒剤 | D417: ｲｿﾌﾟﾛﾁｵﾗﾝ粒剤 | E417: 3 | F417: kg | G417: 2484 | H417: 1 | I417: 3 | J417: 2484 | K417: H28春予約価格
A453: 12 | B453: =技術体系表!$C$13 -> 水稲・主食用米(慣行米，直播，15ha規模，胆沢平野／水沢・金ケ崎東部) | J453: =SUM(J454:J493) -> 13126
B454: 1504 | C454: ﾌﾟﾚｷｰﾌﾟ1ｷﾛ粒剤 | D454: ﾋﾟﾗｿﾞｷｼﾌｪﾝ・ﾍﾞﾝｿﾞﾋﾞｼｸﾛﾝ粒剤 | E454: 1 | F454: kg | G454: 2835 | H454: 1 | I454: 1 | J454: =IF(ISERROR(I454/E454*G454/H454),"",I454/E454*G454/H454) -> 2835 | K454: H28農協聞き取り
B455: 1505 | C455: ｵﾘｾﾞﾒｰﾄ1ｷﾛ粒剤 | D455: ﾌﾟﾛﾍﾞﾅｿﾞｰﾙ粒剤 | E455: 1 | F455: kg | G455: 2380 | H455: 1 | I455: 1 | J455: 2380 | K455: 2014追加・Ｈ29参考価格
B456: 1226 | C456: ｼｸﾛﾊﾟｯｸ粒剤(60g/個) | D456: ｼｸﾛﾌﾟﾛﾄﾘﾝ粒剤 | E456: 0.6 | F456: kg | G456: 2030 | H456: 1 | I456: 0.6 | J456: 2030 | K456: 0.6ｋｇ H28店頭調査
B457: 1435 | C457: ﾄｯﾌﾟｶﾞﾝ250ｸﾞﾗﾑ | D457: ﾋﾟﾘﾐﾉﾊﾞｯｸﾒﾁﾙ･ﾌﾞﾛﾓﾌﾞﾁﾄﾞ･ﾍﾞﾝｽﾙﾌﾛﾝﾒﾁﾙ･ﾍﾟﾝﾄｷｻｿﾞﾝ剤 | E457: 0.25 | F457: kg | G457: 3397 | H457: 1 | I457: 0.25 | J457: 3397 | K457: 0.25ｋｇ H28農協聞き取り
B458: 1082 | C458: ﾌｼﾞﾜﾝ粒剤 | D458: ｲｿﾌﾟﾛﾁｵﾗﾝ粒剤 | E458: 3 | F458: kg | G458: 2484 | H458: 1 | I458: 3 | J458: 2484 | K458: H28春予約価格
A494: 13 | B494: =技術体系表!$C$14 -> 水稲・主食用米(慣行米，直播，30ha規模，胆沢平野／胆沢東部・前沢) | J494: =SUM(J495:J534) -> 18532
B495: 1504 | C495: ﾌﾟﾚｷｰﾌﾟ1ｷﾛ粒剤 | D495: ﾋﾟﾗｿﾞｷｼﾌｪﾝ・ﾍﾞﾝｿﾞﾋﾞｼｸﾛﾝ粒剤 | E495: 1 | F495: kg | G495: 2835 | H495: 1 | I495: 1 | J495: =IF(ISERROR(I495/E495*G495/H495),"",I495/E495*G495/H495) -> 2835 | K495: H28農協聞き取り
B496: 1505 | C496: ｵﾘｾﾞﾒｰﾄ1ｷﾛ粒剤 | D496: ﾌﾟﾛﾍﾞﾅｿﾞｰﾙ粒剤 | E496: 1 | F496: kg | G496: 2380 | H496: 1 | I496: 1 | J496: 2380 | K496: 2014追加・Ｈ29参考価格
B497: 979 | C497: ｵﾘﾌﾞﾗｲﾄ1ｷﾛ粒剤 | D497: ﾒﾄﾐﾉｽﾄﾛﾋﾞﾝ粒剤 | E497: 1 | F497: kg | G497: 2630 | H497: 1 | I497: 3 | J497: 7890 | K497: 2014価格改定・Ｈ29予約価格
B498: 1226 | C498: ｼｸﾛﾊﾟｯｸ粒剤(60g/個) | D498: ｼｸﾛﾌﾟﾛﾄﾘﾝ粒剤 | E498: 0.6 | F498: kg | G498: 2030 | H498: 1 | I498: 0.6 | J498: 2030 | K498: 0.6ｋｇ H28店頭調査
B499: 1435 | C499: ﾄｯﾌﾟｶﾞﾝ250ｸﾞﾗﾑ | D499: ﾋﾟﾘﾐﾉﾊﾞｯｸﾒﾁﾙ･ﾌﾞﾛﾓﾌﾞﾁﾄﾞ･ﾍﾞﾝｽﾙﾌﾛﾝﾒﾁﾙ･ﾍﾟﾝﾄｷｻｿﾞﾝ剤 | E499: 0.25 | F499: kg | G499: 3397 | H499: 1 | I499: 0.25 | J499: 3397 | K499: 0.25ｋｇ H28農協聞き取り
A535: 14 | B535: =技術体系表!$C$15 -> 水稲・主食用米(慣行米，直播，30ha規模，胆沢平野／胆沢西部・金ケ崎西部) | J535: =SUM(J536:J575) -> 18532
B536: 1504 | C536: ﾌﾟﾚｷｰﾌﾟ1ｷﾛ粒剤 | D536: ﾋﾟﾗｿﾞｷｼﾌｪﾝ・ﾍﾞﾝｿﾞﾋﾞｼｸﾛﾝ粒剤 | E536: 1 | F536: kg | G536: 2835 | H536: 1 | I536: 1 | J536: =IF(ISERROR(I536/E536*G536/H536),"",I536/E536*G536/H536) -> 2835 | K536: H28農協聞き取り
B537: 1505 | C537: ｵﾘｾﾞﾒｰﾄ1ｷﾛ粒剤 | D537: ﾌﾟﾛﾍﾞﾅｿﾞｰﾙ粒剤 | E537: 1 | F537: kg | G537: 2380 | H537: 1 | I537: 1 | J537: 2380 | K537: 2014追加・Ｈ29参考価格
B538: 979 | C538: ｵﾘﾌﾞﾗｲﾄ1ｷﾛ粒剤 | D538: ﾒﾄﾐﾉｽﾄﾛﾋﾞﾝ粒剤 | E538: 1 | F538: kg | G538: 2630 | H538: 1 | I538: 3 | J538: 7890 | K538: 2014価格改定・Ｈ29予約価格
B539: 1226 | C539: ｼｸﾛﾊﾟｯｸ粒剤(60g/個) | D539: ｼｸﾛﾌﾟﾛﾄﾘﾝ粒剤 | E539: 0.6 | F539: kg | G539: 2030 | H539: 1 | I539: 0.6 | J539: 2030 | K539: 0.6ｋｇ H28店頭調査
B540: 1435 | C540: ﾄｯﾌﾟｶﾞﾝ250ｸﾞﾗﾑ | D540: ﾋﾟﾘﾐﾉﾊﾞｯｸﾒﾁﾙ･ﾌﾞﾛﾓﾌﾞﾁﾄﾞ･ﾍﾞﾝｽﾙﾌﾛﾝﾒﾁﾙ･ﾍﾟﾝﾄｷｻｿﾞﾝ剤 | E540: 0.25 | F540: kg | G540: 3397 | H540: 1 | I540: 0.25 | J540: 3397 | K540: 0.25ｋｇ H28農協聞き取り
A576: 15 | B576: =技術体系表!$C$16 -> 水稲・主食用米(慣行米，直播，30ha規模，胆沢平野／水沢・金ケ崎東部) | J576: =SUM(J577:J616) -> 18532
B577: 1504 | C577: ﾌﾟﾚｷｰﾌﾟ1ｷﾛ粒剤 | D577: ﾋﾟﾗｿﾞｷｼﾌｪﾝ・ﾍﾞﾝｿﾞﾋﾞｼｸﾛﾝ粒剤 | E577: 1 | F577: kg | G577: 2835 | H577: 1 | I577: 1 | J577: =IF(ISERROR(I577/E577*G577/H577),"",I577/E577*G577/H577) -> 2835 | K577: H28農協聞き取り
B578: 1505 | C578: ｵﾘｾﾞﾒｰﾄ1ｷﾛ粒剤 | D578: ﾌﾟﾛﾍﾞﾅｿﾞｰﾙ粒剤 | E578: 1 | F578: kg | G578: 2380 | H578: 1 | I578: 1 | J578: 2380 | K578: 2014追加・Ｈ29参考価格
B579: 979 | C579: ｵﾘﾌﾞﾗｲﾄ1ｷﾛ粒剤 | D579: ﾒﾄﾐﾉｽﾄﾛﾋﾞﾝ粒剤 | E579: 1 | F579: kg | G579: 2630 | H579: 1 | I579: 3 | J579: 7890 | K579: 2014価格改定・Ｈ29予約価格
B580: 1226 | C580: ｼｸﾛﾊﾟｯｸ粒剤(60g/個) | D580: ｼｸﾛﾌﾟﾛﾄﾘﾝ粒剤 | E580: 0.6 | F580: kg | G580: 2030 | H580: 1 | I580: 0.6 | J580: 2030 | K580: 0.6ｋｇ H28店頭調査
B581: 1435 | C581: ﾄｯﾌﾟｶﾞﾝ250ｸﾞﾗﾑ | D581: ﾋﾟﾘﾐﾉﾊﾞｯｸﾒﾁﾙ･ﾌﾞﾛﾓﾌﾞﾁﾄﾞ･ﾍﾞﾝｽﾙﾌﾛﾝﾒﾁﾙ･ﾍﾟﾝﾄｷｻｿﾞﾝ剤 | E581: 0.25 | F581: kg | G581: 3397 | H581: 1 | I581: 0.25 | J581: 3397 | K581: 0.25ｋｇ H28農協聞き取り
A617: 16 | B617: =技術体系表!$C$17 -> 水稲・飼料用米(つぶみのり・つぶゆたか，大区画・移植，15ha規模，胆沢平野) | J617: =SUM(J618:J657) -> 12711.475
B618: 1506 | C618: ﾀﾁｶﾞﾚｴｰｽM液剤 | D618: ﾋﾄﾞﾛｷｼｲｿｷｻｿﾞｰﾙ･ﾒﾀﾗｷｼﾙM液剤 | E618: 0.5 | F618: l | G618: 4730 | H618: 1 | I618: 0.01125 | J618: =IF(ISERROR(I618/E618*G618/H618),"",I618/E618*G618/H618) -> 106.425 | K618: 0.5L 2014追加
B619: 1029 | C619: ﾀﾞｺﾆｰﾙ1000 | D619: TPN水和剤 | E619: 0.25 | F619: l | G619: 1140 | H619: 1 | I619: 0.01125 | J619: 51.3 | K619: 0.25Ｌ Ｈ29参考価格
B620: 1348 | C620: 嵐ｽﾀｰｸﾙ箱粒剤 | D620: ｼﾞﾉﾃﾌﾗﾝ･ｵﾘｻｽﾄﾛﾋﾞﾝ粒剤 | E620: 1 | F620: kg | G620: 4590 | H620: 1 | I620: 1.125 | J620: 5163.75 | K620: 2014価格改定
B621: 1000 | C621: ｺﾗﾄｯﾌﾟ1ｷﾛ粒剤12 | D621: ﾋﾟﾛｷﾛﾝ粒剤 | E621: 1 | F621: kg | G621: 2500 | H621: 1 | I621: 1.5 | J621: 3750 | K621: 2014価格改定
B622: 1500 | C622: ﾔｲﾊﾞ1ｷﾛ粒剤 | D622: ﾋﾟﾘﾐｽﾙﾌｧﾝ・ﾌｪﾝﾄﾗｻﾞﾐﾄﾞ剤 | E622: 1 | F622: kg | G622: 3640 | H622: 1 | I622: 1 | J622: 3640 | K622: 2014追加
A658: 17 | B658: =技術体系表!$C$18 -> 飼料用米(つぶみのり・つぶゆたか，移植，30ha規模，胆沢平野) | J658: =SUM(J659:J698) -> 12711.475
B659: 1506 | C659: ﾀﾁｶﾞﾚｴｰｽM液剤 | D659: ﾋﾄﾞﾛｷｼｲｿｷｻｿﾞｰﾙ･ﾒﾀﾗｷｼﾙM液剤 | E659: 0.5 | F659: l | G659: 4730 | H659: 1 | I659: 0.01125 | J659: =IF(ISERROR(I659/E659*G659/H659),"",I659/E659*G659/H659) -> 106.425 | K659: 0.5L 2014追加
B660: 1029 | C660: ﾀﾞｺﾆｰﾙ1000 | D660: TPN水和剤 | E660: 0.25 | F660: l | G660: 1140 | H660: 1 | I660: 0.01125 | J660: 51.3 | K660: 0.25Ｌ Ｈ29参考価格
B661: 1348 | C661: 嵐ｽﾀｰｸﾙ箱粒剤 | D661: ｼﾞﾉﾃﾌﾗﾝ･ｵﾘｻｽﾄﾛﾋﾞﾝ粒剤 | E661: 1 | F661: kg | G661: 4590 | H661: 1 | I661: 1.125 | J661: 5163.75 | K661: 2014価格改定
B662: 1000 | C662: ｺﾗﾄｯﾌﾟ1ｷﾛ粒剤12 | D662: ﾋﾟﾛｷﾛﾝ粒剤 | E662: 1 | F662: kg | G662: 2500 | H662: 1 | I662: 1.5 | J662: 3750 | K662: 2014価格改定
B663: 1500 | C663: ﾔｲﾊﾞ1ｷﾛ粒剤 | D663: ﾋﾟﾘﾐｽﾙﾌｧﾝ・ﾌｪﾝﾄﾗｻﾞﾐﾄﾞ剤 | E663: 1 | F663: kg | G663: 3640 | H663: 1 | I663: 1 | J663: 3640 | K663: 2014追加
A699: 18 | B699: =技術体系表!$C$19 -> 水稲・飼料用米(つぶみのり・つぶゆたか，大区画・直播，15ha規模，胆沢平野) | J699: =SUM(J700:J739) -> 13272
B700: 1504 | C700: ﾌﾟﾚｷｰﾌﾟ1ｷﾛ粒剤 | D700: ﾋﾟﾗｿﾞｷｼﾌｪﾝ・ﾍﾞﾝｿﾞﾋﾞｼｸﾛﾝ粒剤 | E700: 1 | F700: kg | G700: 2835 | H700: 1 | I700: 1 | J700: =IF(ISERROR(I700/E700*G700/H700),"",I700/E700*G700/H700) -> 2835 | K700: H28農協聞き取り
B701: 1505 | C701: ｵﾘｾﾞﾒｰﾄ1ｷﾛ粒剤 | D701: ﾌﾟﾛﾍﾞﾅｿﾞｰﾙ粒剤 | E701: 1 | F701: kg | G701: 2380 | H701: 1 | I701: 1 | J701: 2380 | K701: 2014追加・Ｈ29参考価格
B702: 979 | C702: ｵﾘﾌﾞﾗｲﾄ1ｷﾛ粒剤 | D702: ﾒﾄﾐﾉｽﾄﾛﾋﾞﾝ粒剤 | E702: 1 | F702: kg | G702: 2630 | H702: 1 | I702: 1 | J702: 2630 | K702: 2014価格改定・Ｈ29予約価格
B703: 1226 | C703: ｼｸﾛﾊﾟｯｸ粒剤(60g/個) | D703: ｼｸﾛﾌﾟﾛﾄﾘﾝ粒剤 | E703: 0.6 | F703: kg | G703: 2030 | H703: 1 | I703: 0.6 | J703: 2030 | K703: 0.6ｋｇ H28店頭調査
B704: 1435 | C704: ﾄｯﾌﾟｶﾞﾝ250ｸﾞﾗﾑ | D704: ﾋﾟﾘﾐﾉﾊﾞｯｸﾒﾁﾙ･ﾌﾞﾛﾓﾌﾞﾁﾄﾞ･ﾍﾞﾝｽﾙﾌﾛﾝﾒﾁﾙ･ﾍﾟﾝﾄｷｻｿﾞﾝ剤 | E704: 0.25 | F704: kg | G704: 3397 | H704: 1 | I704: 0.25 | J704: 3397 | K704: 0.25ｋｇ H28農協聞き取り
A740: 19 | B740: =技術体系表!$C$20 -> 水稲・飼料用米(つぶみのり・つぶゆたか，大区画・直播，30ha規模，胆沢平野) | J740: =SUM(J741:J780) -> 13272
B741: 1504 | C741: ﾌﾟﾚｷｰﾌﾟ1ｷﾛ粒剤 | D741: ﾋﾟﾗｿﾞｷｼﾌｪﾝ・ﾍﾞﾝｿﾞﾋﾞｼｸﾛﾝ粒剤 | E741: 1 | F741: kg | G741: 2835 | H741: 1 | I741: 1 | J741: =IF(ISERROR(I741/E741*G741/H741),"",I741/E741*G741/H741) -> 2835 | K741: H28農協聞き取り
B742: 1505 | C742: ｵﾘｾﾞﾒｰﾄ1ｷﾛ粒剤 | D742: ﾌﾟﾛﾍﾞﾅｿﾞｰﾙ粒剤 | E742: 1 | F742: kg | G742: 2380 | H742: 1 | I742: 1 | J742: 2380 | K742: 2014追加・Ｈ29参考価格
B743: 979 | C743: ｵﾘﾌﾞﾗｲﾄ1ｷﾛ粒剤 | D743: ﾒﾄﾐﾉｽﾄﾛﾋﾞﾝ粒剤 | E743: 1 | F743: kg | G743: 2630 | H743: 1 | I743: 1 | J743: 2630 | K743: 2014価格改定・Ｈ29予約価格
B744: 1226 | C744: ｼｸﾛﾊﾟｯｸ粒剤(60g/個) | D744: ｼｸﾛﾌﾟﾛﾄﾘﾝ粒剤 | E744: 0.6 | F744: kg | G744: 2030 | H744: 1 | I744: 0.6 | J744: 2030 | K744: 0.6ｋｇ H28店頭調査
B745: 1435 | C745: ﾄｯﾌﾟｶﾞﾝ250ｸﾞﾗﾑ | D745: ﾋﾟﾘﾐﾉﾊﾞｯｸﾒﾁﾙ･ﾌﾞﾛﾓﾌﾞﾁﾄﾞ･ﾍﾞﾝｽﾙﾌﾛﾝﾒﾁﾙ･ﾍﾟﾝﾄｷｻｿﾞﾝ剤 | E745: 0.25 | F745: kg | G745: 3397 | H745: 1 | I745: 0.25 | J745: 3397 | K745: 0.25ｋｇ H28農協聞き取り
A781: 20 | B781: =技術体系表!$C$21 -> 大豆(ﾘｭｳﾎｳ，水田転作・小畦立，7ha規模，胆沢平野) | J781: =SUM(J782:J821) -> 4700.516667
B782: 1238 | C782: ｽﾐﾁｵﾝ乳剤 | D782: MEP乳剤 | E782: 0.5 | F782: l | G782: 1640 | H782: 1 | I782: 0.28 | J782: =IF(ISERROR(I782/E782*G782/H782),"",I782/E782*G782/H782) -> 918.4 | K782: 0.5L H28春予約価格
B783: 1114 | C783: ﾏﾈｰｼﾞDF | D783: ｲﾐﾍﾞﾝｺﾅｿﾞｰﾙ水和剤 | E783: 0.1 | F783: kg | G783: 1930 | H783: 1 | I783: 0.033 | J783: 636.9 | K783: 0.1ｋｇ H28春予約価格
B784: 1509 | C784: ｸﾙｰｻﾞｰMAXX | D784: ﾁｱﾒﾄｷｻﾑ･ﾌﾙｼﾞｵｷｿﾆﾙ・ﾒﾀﾗｷｼﾑM水和剤 | E784: 0.24 | F784: l | G784: 10759 | H784: 1 | I784: 0.028 | J784: 1255.216667 | K784: 0.24L H29春予約価格
B785: 1510 | C785: ﾗｸｻｰ乳剤 | D785: ｱﾗｸﾛｰﾙ・ﾘﾆｭﾛﾝ乳剤 | E785: 2 | F785: l | G785: 7560 | H785: 1 | I785: 0.5 | J785: 1890 | K785: H29春予約価格
A822: 21 | B822: =技術体系表!$C$22 -> 小麦(ﾅﾝﾌﾞｺﾑｷﾞ，水田転作，7ha規模，胆沢平野) | J822: =SUM(J823:J862) -> 3211.058
B823: 1063 | C823: ﾊﾞｼﾀｯｸ水和剤75 | D823: ﾒﾌﾟﾛﾆﾙ水和剤 | E823: 0.5 | F823: l | G823: 2382 | H823: 1 | I823: 0.067 | J823: =IF(ISERROR(I823/E823*G823/H823),"",I823/E823*G823/H823) -> 319.188 | K823: 0.5L H28農協聞き取り
B824: 1038 | C824: ﾁﾙﾄ乳剤25 | D824: ﾌﾟﾛﾋﾟｺﾅｿﾞｰﾙ乳剤 | E824: 0.5 | F824: l | G824: 5012 | H824: 1 | I824: 0.05 | J824: =IF(ISERROR(I824/E824*G824/H824),"",I824/E824*G824/H824) -> 501.2 | K824: 0.5L H28農協聞き取り
B825: 1012 | C825: ｼﾙﾊﾞｷｭｱﾌﾛｱﾌﾞﾙ | D825: ﾃﾌﾞｺﾅｿﾞｰﾙ水和剤 | E825: 5 | F825: l | G825: 70973 | H825: 1 | I825: 0.05 | J825: 709.73 | K825: Ｈ29概算価格
B826: 1051 | C826: ﾄﾘﾌﾐﾝ水和剤 | D826: ﾄﾘﾌﾙﾐｿﾞｰﾙ水和剤 | E826: 0.5 | F826: kg | G826: 6189 | H826: 1 | I826: 0.03 | J826: 371.34 | K826: 0.5ｋｇ H29予約価格
B827: 1511 | C827: ﾎﾞｸｻｰ | E827: 0.5 | F827: l | G827: 1637 | H827: 1 | I827: 0.4 | J827: 1309.6 | K827: 0.5L H28農協聞き取り
A863: 22 | B863: =技術体系表!$C$23 -> 受委託(限定ふるさと米，苗生産・販売，3375箱規模，胆沢平野) | J863: =SUM(J864:J903) -> 0
J864: =IF(ISERROR(I864/E864*G864/H864),"",I864/E864*G864/H864) -> 
A904: 23 | B904: =技術体系表!$C$24 -> 受委託(限定ふるさと米，耕起・代掻，15ha規模，胆沢平野) | J904: =SUM(J905:J944) -> 0
J905: =IF(ISERROR(I905/E905*G905/H905),"",I905/E905*G905/H905) -> 
A945: 24 | B945: =技術体系表!$C$25 -> 受委託(限定ふるさと米，田植，15ha規模，胆沢平野) | J945: =SUM(J946:J985) -> 0
J946: =IF(ISERROR(I946/E946*G946/H946),"",I946/E946*G946/H946) -> 
A986: 25 | B986: =技術体系表!$C$26 -> 受委託(限定ふるさと米，収穫運搬，15ha規模，胆沢平野) | J986: =SUM(J987:J1026) -> 0
J987: =IF(ISERROR(I987/E987*G987/H987),"",I987/E987*G987/H987) -> 
A1027: 26 | B1027: =技術体系表!$C$27 -> 受委託(限定ふるさと米，乾燥調製，81000kg規模，胆沢平野) | J1027: =SUM(J1028:J1067) -> 0
J1028: =IF(ISERROR(I1028/E1028*G1028/H1028),"",I1028/E1028*G1028/H1028) -> 
A1068: 27 | B1068: =技術体系表!$C$28 -> WCS(つぶゆたか，移植，15ha規模，胆沢平野) | J1068: =SUM(J1069:J1108) -> 12450.1
B1069: 1029 | C1069: ﾀﾞｺﾆｰﾙ1000 | D1069: TPN水和剤 | E1069: 0.25 | F1069: l | G1069: 1140 | H1069: 1 | I1069: 0.01125 | J1069: =IF(ISERROR(I1069/E1069*G1069/H1069),"",I1069/E1069*G1069/H1069) -> 51.3 | K1069: 0.25Ｌ Ｈ29参考価格
B1070: 1348 | C1070: 嵐ｽﾀｰｸﾙ箱粒剤 | D1070: ｼﾞﾉﾃﾌﾗﾝ･ｵﾘｻｽﾄﾛﾋﾞﾝ粒剤 | E1070: 1 | F1070: kg | G1070: 4590 | H1070: 1 | I1070: 1.125 | J1070: 5163.75 | K1070: 2014価格改定
B1071: 1000 | C1071: ｺﾗﾄｯﾌﾟ1ｷﾛ粒剤12 | D1071: ﾋﾟﾛｷﾛﾝ粒剤 | E1071: 1 | F1071: kg | G1071: 2500 | H1071: 1 | I1071: 1.5 | J1071: 3750 | K1071: 2014価格改定
B1072: 1035 | C1072: ﾀﾁｶﾞﾚﾝ液剤 | D1072: ﾋﾄﾞﾛｷｼｲｿｷｻｿﾞｰﾙ液剤 | E1072: 0.5 | F1072: l | G1072: 3780 | H1072: 1 | I1072: 0.01125 | J1072: 85.05 | K1072: 0.5L 2014価格改定
B1073: 1502 | C1073: ﾋﾞｸﾄﾘｰZ1ｷﾛ粒剤 | D1073: ﾋﾟﾗｸﾛﾆﾙ・ﾌﾟﾛﾋﾟﾘｽﾙﾌﾛﾝﾞ剤 | E1073: 1 | F1073: kg | G1073: 3400 | H1073: 1 | I1073: 1 | J1073: 3400 | K1073: 2014追加
A1109: 28 | B1109: =技術体系表!$C$29 -> WCS(つぶゆたか，直播，15ha規模，胆沢平野) | J1109: =SUM(J1110:J1149) -> 16733
B1110: 1505 | C1110: ｵﾘｾﾞﾒｰﾄ1ｷﾛ粒剤 | D1110: ﾌﾟﾛﾍﾞﾅｿﾞｰﾙ粒剤 | E1110: 1 | F1110: kg | G1110: 2380 | H1110: 1 | I1110: 1 | J1110: =IF(ISERROR(I1110/E1110*G1110/H1110),"",I1110/E1110*G1110/H1110) -> 2380 | K1110: 2014追加・Ｈ29参考価格
B1111: 1501 | C1111: ｻﾝﾊﾞｰﾄﾞ1ｷﾛ粒剤30 | D1111: ﾋﾟﾗｿﾞﾚｰﾄ粒剤 | E1111: 1 | F1111: kg | G1111: 3550 | H1111: 1 | I1111: 1 | J1111: 3550 | K1111: 2014追加
B1112: 1000 | C1112: ｺﾗﾄｯﾌﾟ1ｷﾛ粒剤12 | D1112: ﾋﾟﾛｷﾛﾝ粒剤 | E1112: 1 | F1112: kg | G1112: 2500 | H1112: 1 | I1112: 1.5 | J1112: 3750 | K1112: 2014価格改定
B1113: 1232 | C1113: ｽﾀｰｸﾙ粒剤 | D1113: ｼﾞﾉﾃﾌﾗﾝ粒剤 | E1113: 3 | F1113: kg | G1113: 3273 | H1113: 1 | I1113: 3 | J1113: 3273 | K1113: H28春予約価格
B1114: 1503 | C1114: ﾄｯﾌﾟｶﾞﾝGT1ｷﾛ粒剤75 | D1114: ﾋﾟﾘﾐﾉﾊﾞｯｸﾒﾁﾙ・ﾌﾟﾛﾓﾌﾞﾁﾄﾞ・ﾍﾞﾝｽﾙﾌﾛﾝﾒﾁﾙ・ﾍﾟﾝﾄｷｻｿﾞﾝ粒剤 | E1114: 1 | F1114: kg | G1114: 3780 | H1114: 1 | I1114: 1 | J1114: 3780 | K1114: 2014追加
A1150: 29 | B1150: =技術体系表!$C$30 -> 牧草(混播牧草，乾草調製(ﾛｰﾙﾍﾞｰﾙ)，5ha規模，胆沢平野) | J1150: =SUM(J1151:J1190) -> 289
B1151: 1428 | C1151: ﾀｯﾁﾀﾞｳﾝiQ | D1151: ｸﾞﾘﾎｻｰﾄｶﾘｳﾑ塩液剤 | E1151: 1 | F1151: l | G1151: 2890 | H1151: 1 | I1151: 0.1 | J1151: =IF(ISERROR(I1151/E1151*G1151/H1151),"",I1151/E1151*G1151/H1151) -> 289 | K1151: 2014価格改定
A1191: 30 | B1191: =技術体系表!$C$31 -> 牧草(混播牧草，ｸﾞﾗｽｻｲﾚｰｼﾞ(ﾛｰﾙﾍﾞｰﾙ)，5ha規模，胆沢平野) | J1191: =SUM(J1192:J1231) -> 289
B1192: 1428 | C1192: ﾀｯﾁﾀﾞｳﾝiQ | D1192: ｸﾞﾘﾎｻｰﾄｶﾘｳﾑ塩液剤 | E1192: 1 | F1192: l | G1192: 2890 | H1192: 1 | I1192: 0.1 | J1192: =IF(ISERROR(I1192/E1192*G1192/H1192),"",I1192/E1192*G1192/H1192) -> 289 | K1192: 2014価格改定
A1232: 31 | B1232: =技術体系表!$C$32 -> ﾋﾟｰﾏﾝ(京鈴，雨よけﾊｳｽ栽培，30a規模，県下全域) | J1232: =SUM(J1233:J1272) -> 30841.12138
B1233: 1029 | C1233: ﾀﾞｺﾆｰﾙ1000 | D1233: TPN水和剤 | E1233: 0.25 | F1233: l | G1233: 1140 | H1233: 1 | I1233: 0.8253333333 | J1233: =IF(ISERROR(I1233/E1233*G1233/H1233),"",I1233/E1233*G1233/H1233) -> 3763.52 | K1233: 0.25Ｌ Ｈ29参考価格
B1234: 1162 | C1234: ｱﾄﾞﾏｲﾔｰ1粒剤 | D1234: ｲﾐﾀﾞｸﾛﾌﾟﾘﾄﾞ粒剤 | E1234: 0.95 | F1234: kg | G1234: 1232 | H1234: 1 | I1234: 1.232 | J1234: =IF(ISERROR(I1234/E1234*G1234/H1234),"",I1234/E1234*G1234/H1234) -> 1597.709474 | K1234: 0.95kg Ｈ29申込概算価格
B1235: 1152 | C1235: ｱｰﾃﾞﾝﾄ水和剤 | D1235: ｱｸﾘﾅﾄﾘﾝ水和剤 | E1235: 0.5 | F1235: kg | G1235: 4330 | H1235: 1 | I1235: 0.15 | J1235: 1299 | K1235: 0.5kg
B1236: 1005 | C1236: ｻﾌﾟﾛｰﾙ乳剤 | D1236: ﾄﾘﾎﾘﾝ乳剤 | E1236: 0.5 | F1236: l | G1236: 5240 | H1236: 1 | I1236: 0.3 | J1236: 3144 | K1236: 0.5L
B1237: 1208 | C1237: ｸﾛﾋﾟｸﾃｰﾌﾟ | D1237: ｸﾛﾙﾋﾟｸﾘﾝくん蒸剤 | E1237: 28 | F1237: m | G1237: 3900 | H1237: 1 | I1237: 3.716666667 | J1237: 517.6785714
B1238: 1318 | C1238: ﾍﾞｽﾄｶﾞｰﾄﾞ水溶剤 | D1238: ﾆﾃﾝﾋﾟﾗﾑ水溶剤 | E1238: 0.5 | F1238: kg | G1238: 4820 | H1238: 1 | I1238: 0.02533333333 | J1238: 244.2133333 | K1238: 0.5ｋｇ
B1239: 1145 | C1239: DDVP乳剤50 | D1239: DDVP乳剤 | E1239: 0.5 | F1239: l | G1239: 1080 | H1239: 1 | I1239: 0.15 | J1239: 324 | K1239: 0.5ｌ
B1240: 1165 | C1240: ｱﾄﾞﾏｲﾔｰ顆粒水和剤 | D1240: ｲﾐﾀﾞｸﾛﾌﾟﾘﾄﾞ水和剤 | E1240: 0.05 | F1240: kg | G1240: 2360 | H1240: 1 | I1240: 0.02 | J1240: 944 | K1240: 0.05ｋｇ
B1241: 1234 | C1241: ｽﾋﾟﾉｴｰｽ顆粒水和剤 | D1241: ｽﾋﾟﾉｻﾄﾞ水和剤 | E1241: 0.1 | F1241: kg | G1241: 5620 | H1241: 1 | I1241: 0.06 | J1241: 3372 | K1241: 0.1ｋｇ
B1242: 1211 | C1242: ｺﾃﾂﾌﾛｱﾌﾞﾙ | D1242: ｸﾛﾙﾌｪﾅﾋﾟﾙ水和剤 | E1242: 0.5 | F1242: l | G1242: 11300 | H1242: 1 | I1242: 0.25 | J1242: 5650 | K1242: 0.5ｌ
B1243: 984 | C1243: ｶｽﾐﾝﾎﾞﾙﾄﾞｰ | D1243: ｶｽｶﾞﾏｲｼﾝ･銅水和剤 | E1243: 0.5 | F1243: kg | G1243: 2430 | H1243: 1 | I1243: 0.2 | J1243: 972 | K1243: 0.5ｋｇ
B1244: 1019 | C1244: ｽﾄﾛﾋﾞｰﾌﾛｱﾌﾞﾙ | D1244: ｸﾚｿｷｼﾑﾒﾁﾙ水和剤 | E1244: 0.5 | F1244: l | G1244: 8190 | H1244: 1 | I1244: 0.1 | J1244: 1638 | K1244: 0.5Ｌ
B1245: 1009 | C1245: ｼﾞｰﾌｧｲﾝ水和剤 | D1245: 炭酸水素ﾅﾄﾘｳﾑ･銅水和剤 | E1245: 0.5 | F1245: kg | G1245: 1930 | H1245: 1 | I1245: 0.3 | J1245: 1158 | K1245: 0.5kg
B1246: 1333 | C1246: ﾓｽﾋﾟﾗﾝ水溶剤 | D1246: ｱｾﾀﾐﾌﾟﾘﾄﾞ水溶剤 | E1246: 0.5 | F1246: kg | G1246: 9110 | H1246: 1 | I1246: 0.05 | J1246: 911 | K1246: 0.5ｋｇ
B1247: 1259 | C1247: ﾁｪｽ顆粒水和剤 | D1247: ﾋﾟﾒﾄﾛｼﾞﾝ水和剤 | E1247: 0.1 | F1247: kg | G1247: 2510 | H1247: 1 | I1247: 0.06 | J1247: 1506 | K1247: 0.1ｋｇ
B1248: 1497 | C1248: ﾐｯｸｽﾊﾟﾜｰ | D1248: 展着剤 | E1248: 0.5 | F1248: l | G1248: 1180 | H1248: 1 | I1248: 0.7 | J1248: 1652 | K1248: 0.5ｌ
B1249: 1143 | C1249: ﾛﾌﾞﾗｰﾙ水和剤 | D1249: ｲﾌﾟﾛｼﾞｵﾝ水和剤 | E1249: 0.5 | F1249: kg | G1249: 5370 | H1249: 1 | I1249: 0.2 | J1249: 2148 | K1249: 0.5ｋｇ
A1273: 32 | B1273: =技術体系表!$C$33 -> ﾋﾟｰﾏﾝ(京ゆたか7，露地栽培，1ha規模，県下全域) | J1273: =SUM(J1274:J1313) -> 13955.04597
B1274: 1029 | C1274: ﾀﾞｺﾆｰﾙ1000 | D1274: TPN水和剤 | E1274: 0.25 | F1274: l | G1274: 1140 | H1274: 1 | I1274: 0.178 | J1274: =IF(ISERROR(I1274/E1274*G1274/H1274),"",I1274/E1274*G1274/H1274) -> 811.68 | K1274: 0.25Ｌ Ｈ29参考価格
B1275: 1162 | C1275: ｱﾄﾞﾏｲﾔｰ1粒剤 | D1275: ｲﾐﾀﾞｸﾛﾌﾟﾘﾄﾞ粒剤 | E1275: 0.95 | F1275: kg | G1275: 1232 | H1275: 1 | I1275: 1.332 | J1275: 1727.393684 | K1275: 0.95kg Ｈ29申込概算価格
B1276: 1023 | C1276: ｽﾐﾚｯｸｽ水和剤 | D1276: ﾌﾟﾛｼﾐﾄﾞﾝ水和剤 | E1276: 0.5 | F1276: kg | G1276: 6180 | H1276: 1 | I1276: 0.2333 | J1276: 2883.588 | K1276: 0.5ｋｇ
B1277: 1343 | C1277: ﾛﾃﾞｨｰ乳剤 | D1277: ﾌｪﾝﾌﾟﾛﾊﾟﾄﾘﾝ乳剤 | E1277: 0.5 | F1277: l | G1277: 4580 | H1277: 1 | I1277: 0.1 | J1277: 916 | K1277: 0.5ｌ
B1278: 1208 | C1278: ｸﾛﾋﾟｸﾃｰﾌﾟ | D1278: ｸﾛﾙﾋﾟｸﾘﾝくん蒸剤 | E1278: 28 | F1278: m | G1278: 3900 | H1278: 1 | I1278: 4.11 | J1278: 572.4642857
B1279: 1318 | C1279: ﾍﾞｽﾄｶﾞｰﾄﾞ水溶剤 | D1279: ﾆﾃﾝﾋﾟﾗﾑ水溶剤 | E1279: 0.5 | F1279: kg | G1279: 4820 | H1279: 1 | I1279: 0.178 | J1279: 1715.92 | K1279: 0.5ｋｇ
B1280: 1145 | C1280: DDVP乳剤50 | D1280: DDVP乳剤 | E1280: 0.5 | F1280: l | G1280: 1080 | H1280: 1 | I1280: 0.35 | J1280: 756 | K1280: 0.5ｌ
B1281: 984 | C1281: ｶｽﾐﾝﾎﾞﾙﾄﾞｰ | D1281: ｶｽｶﾞﾏｲｼﾝ･銅水和剤 | E1281: 0.5 | F1281: kg | G1281: 2430 | H1281: 1 | I1281: 0.2 | J1281: 972 | K1281: 0.5ｋｇ
B1282: 1243 | C1282: ｾﾞﾝﾀｰﾘ顆粒水和剤 | D1282: BT水和剤 | E1282: 0.5 | F1282: kg | G1282: 7230 | H1282: 1 | I1282: 0.2 | J1282: 2892 | K1282: 0.5ｋｇ
B1283: 1497 | C1283: ﾐｯｸｽﾊﾟﾜｰ | D1283: 展着剤 | E1283: 0.5 | F1283: l | G1283: 1180 | H1283: 1 | I1283: 0.3 | J1283: 708 | K1283: 0.5ｌ
A1314: 33 | B1314: =技術体系表!$C$34 -> 0 | J1314: =SUM(J1315:J1354) -> 0
J1315: =IF(ISERROR(I1315/E1315*G1315/H1315),"",I1315/E1315*G1315/H1315) -> 
A1355: 34 | B1355: =技術体系表!$C$35 -> 0 | J1355: =SUM(J1356:J1395) -> 0
J1356: =IF(ISERROR(I1356/E1356*G1356/H1356),"",I1356/E1356*G1356/H1356) -> 
A1396: 35 | B1396: =技術体系表!$C$36 -> 0 | J1396: =SUM(J1397:J1436) -> 0
J1397: =IF(ISERROR(I1397/E1397*G1397/H1397),"",I1397/E1397*G1397/H1397) -> 
A1437: 36 | B1437: =技術体系表!$C$37 -> 0 | J1437: =SUM(J1438:J1477) -> 0
J1438: =IF(ISERROR(I1438/E1438*G1438/H1438),"",I1438/E1438*G1438/H1438) -> 
A1478: 37 | B1478: =技術体系表!$C$38 -> 0 | J1478: =SUM(J1479:J1518) -> 0
J1479: =IF(ISERROR(I1479/E1479*G1479/H1479),"",I1479/E1479*G1479/H1479) -> 
A1519: 38 | B1519: =技術体系表!$C$39 -> 0 | J1519: =SUM(J1520:J1559) -> 0
J1520: =IF(ISERROR(I1520/E1520*G1520/H1520),"",I1520/E1520*G1520/H1520) -> 
A1560: 39 | B1560: =技術体系表!$C$40 -> 0 | J1560: =SUM(J1561:J1600) -> 0
J1561: =IF(ISERROR(I1561/E1561*G1561/H1561),"",I1561/E1561*G1561/H1561) -> 
A1601: 40 | B1601: =技術体系表!$C$41 -> 0 | J1601: =SUM(J1602:J1641) -> 0
J1602: =IF(ISERROR(I1602/E1602*G1602/H1602),"",I1602/E1602*G1602/H1602) -> 
A1642: 41 | B1642: =技術体系表!$C$42 -> 0 | J1642: =SUM(J1643:J1682) -> 0
J1643: =IF(ISERROR(I1643/E1643*G1643/H1643),"",I1643/E1643*G1643/H1643) -> 
J1644: =IF(ISERROR(I1644/E1644*G1644/H1644),"",I1644/E1644*G1644/H1644) -> 
A1683: 42 | B1683: =技術体系表!$C$43 -> 0 | J1683: =SUM(J1684:J1723) -> 0
J1684: =IF(ISERROR(I1684/E1684*G1684/H1684),"",I1684/E1684*G1684/H1684) -> 
A1724: 43 | B1724: =技術体系表!$C$44 -> 0 | J1724: =SUM(J1725:J1764) -> 0
J1725: =IF(ISERROR(I1725/E1725*G1725/H1725),"",I1725/E1725*G1725/H1725) -> 
A1765: 44 | B1765: =技術体系表!$C$45 -> 0 | J1765: =SUM(J1766:J1805) -> 0
J1766: =IF(ISERROR(I1766/E1766*G1766/H1766),"",I1766/E1766*G1766/H1766) -> 
A1806: 45 | B1806: =技術体系表!$C$46 -> 0 | J1806: =SUM(J1807:J1846) -> 0
J1807: =IF(ISERROR(I1807/E1807*G1807/H1807),"",I1807/E1807*G1807/H1807) -> 
A1847: 46 | B1847: =技術体系表!$C$47 -> 0 | J1847: =SUM(J1848:J1887) -> 0
J1848: =IF(ISERROR(I1848/E1848*G1848/H1848),"",I1848/E1848*G1848/H1848) -> 
A1888: 47 | B1888: =技術体系表!$C$48 -> 0 | J1888: =SUM(J1889:J1928) -> 0
J1889: =IF(ISERROR(I1889/E1889*G1889/H1889),"",I1889/E1889*G1889/H1889) -> 
A1929: 48 | B1929: =技術体系表!$C$49 -> 0 | J1929: =SUM(J1930:J1969) -> 0
... 26 more rows

Sheet 光熱（修正）
A1: No | B1: ｺｰﾄﾞ | C1: 資 材 名 | D1: 銘 柄 等 級 | E1: 包装単位 | F1: 単位 | G1: 標準価格 (円) | H1: 使用 年数 | I1: 使用数量 | J1: 単位 (10a当り) | K1: 価 額 (円) | L1: 備 考
A2: 1 | B2: =試算計画表!E14 -> 0 | K2: =SUM(K3:K17) -> 0
J3: =IF(F3="","",F3) ->  | K3: =IF(ISERROR(I3/E3*G3/H3),"",I3/E3*G3/H3) -> 
J4: =IF(F4="","",F4) ->  | K4: =IF(ISERROR(I4/E4*G4/H4),"",I4/E4*G4/H4) -> 
A18: 2 | B18: =試算計画表!F14 -> 0 | K18: =SUM(K19:K33) -> 0
K19: =IF(ISERROR(I19/E19*G19/H19),"",I19/E19*G19/H19) -> 
A34: 3 | B34: =試算計画表!G14 -> 0 | K34: =SUM(K35:K49) -> 0
K35: =IF(ISERROR(I35/E35*G35/H35),"",I35/E35*G35/H35) -> 
A50: 4 | B50: =試算計画表!H14 -> 0 | K50: =SUM(K51:K65) -> 0
K51: =IF(ISERROR(I51/E51*G51/H51),"",I51/E51*G51/H51) -> 
A66: 5 | B66: =試算計画表!I14 -> 0 | K66: =SUM(K67:K81) -> 0
K67: =IF(ISERROR(I67/E67*G67/H67),"",I67/E67*G67/H67) -> 
J68: =IF(F68="","",F68) -> 
A82: 6 | B82: =試算計画表!J14 -> 0 | K82: =SUM(K83:K97) -> 0
K83: =IF(ISERROR(I83/E83*G83/H83),"",I83/E83*G83/H83) -> 
A98: 7 | B98: =試算計画表!K14 -> 0 | K98: =SUM(K99:K113) -> 0
K99: =IF(ISERROR(I99/E99*G99/H99),"",I99/E99*G99/H99) -> 
A114: 8 | B114: =試算計画表!L14 -> 0 | K114: =SUM(K115:K129) -> 0
K115: =IF(ISERROR(I115/E115*G115/H115),"",I115/E115*G115/H115) -> 
A130: 9 | B130: =試算計画表!M14 -> 0 | K130: =SUM(K131:K145) -> 0
K131: =IF(ISERROR(I131/E131*G131/H131),"",I131/E131*G131/H131) -> 
J132: =IF(F132="","",F132) -> 
A146: 10 | B146: =試算計画表!N14 -> 0 | K146: =SUM(K147:K161) -> 0
K147: =IF(ISERROR(I147/E147*G147/H147),"",I147/E147*G147/H147) -> 

Sheet 光熱 (hidden)
A1: No | B1: ｺｰﾄﾞ | C1: 資 材 名 | D1: 銘 柄 等 級 | E1: 包装単位 | F1: 単位 | G1: 標準価格 | H1: 使用 年数 | I1: 使用数量 | J1: 価 額 | K1: 備 考
A2: 1 | B2: =技術体系表!$C$2 -> 水稲・主食用米(限定ふるさと米，移植，5.1ha規模，胆沢平野／胆沢東部・前沢) | J2: =SUM(J3:J17) -> 4180.773147
B3: 1521 | C3: ガソリン | E3: 1 | F3: l | G3: 152.78 | H3: 1 | I3: 2.317039216 | J3: =IF(ISERROR(I3/E3*G3/H3),"",I3/E3*G3/H3) -> 353.9972514 | K3: 2014価格改定
B4: 1522 | C4: 軽油 | E4: 1 | F4: l | G4: 131.99 | H4: 1 | I4: 17.5645098 | J4: =IF(ISERROR(I4/E4*G4/H4),"",I4/E4*G4/H4) -> 2318.339649 | K4: 2014価格改定
B5: 1523 | C5: 灯油 | E5: 1 | F5: l | G5: 93.46 | H5: 1 | I5: 12.90917647 | J5: 1206.491633 | K5: 2014価格改定
B6: 1525 | C6: 混合油 | E6: 1 | F6: l | G6: 171.43 | H6: 1 | I6: 0.5417647059 | J6: 92.87472353 | K6: 2014価格改定
B7: 1526 | C7: 電気(単相100V) | D7: 単相100V | E7: 1 | F7: kWh | G7: 17.93 | H7: 1 | I7: 0.7156254902 | J7: 12.83116504 | K7: 2014価格改定
B8: 1527 | C8: 電気(三相200V) | D8: 三相200V | E8: 1 | F8: kWh | G8: 12.52 | H8: 1 | I8: 15.67401961 | J8: 196.2387255 | K8: 2014価格改定
A18: 2 | B18: =技術体系表!$C$3 -> 水稲・主食用米(限定ふるさと米，移植，5.1ha規模，胆沢平野／胆沢西部・金ケ崎西部) | J18: =SUM(J19:J33) -> 4208.201947
B19: 1521 | C19: ガソリン | E19: 1 | F19: l | G19: 152.78 | H19: 1 | I19: 2.317039216 | J19: =IF(ISERROR(I19/E19*G19/H19),"",I19/E19*G19/H19) -> 353.9972514 | K19: 2014価格改定
B20: 1522 | C20: 軽油 | E20: 1 | F20: l | G20: 131.99 | H20: 1 | I20: 17.5645098 | J20: 2318.339649 | K20: 2014価格改定
B21: 1523 | C21: 灯油 | E21: 1 | F21: l | G21: 93.46 | H21: 1 | I21: 12.90917647 | J21: 1206.491633 | K21: 2014価格改定
B22: 1525 | C22: 混合油 | E22: 1 | F22: l | G22: 171.43 | H22: 1 | I22: 0.7017647059 | J22: 120.3035235 | K22: 2014価格改定
B23: 1526 | C23: 電気(単相100V) | D23: 単相100V | E23: 1 | F23: kWh | G23: 17.93 | H23: 1 | I23: 0.7156254902 | J23: 12.83116504 | K23: 2014価格改定
B24: 1527 | C24: 電気(三相200V) | D24: 三相200V | E24: 1 | F24: kWh | G24: 12.52 | H24: 1 | I24: 15.67401961 | J24: 196.2387255 | K24: 2014価格改定
A34: 3 | B34: =技術体系表!$C$4 -> 水稲・主食用米(限定ふるさと米，移植，5.1ha規模，胆沢平野／水沢・金ケ崎東部) | J34: =SUM(J35:J49) -> 4180.773147
B35: 1521 | C35: ガソリン | E35: 1 | F35: l | G35: 152.78 | H35: 1 | I35: 2.317039216 | J35: =IF(ISERROR(I35/E35*G35/H35),"",I35/E35*G35/H35) -> 353.9972514 | K35: 2014価格改定
B36: 1522 | C36: 軽油 | E36: 1 | F36: l | G36: 131.99 | H36: 1 | I36: 17.5645098 | J36: 2318.339649 | K36: 2014価格改定
B37: 1523 | C37: 灯油 | E37: 1 | F37: l | G37: 93.46 | H37: 1 | I37: 12.90917647 | J37: 1206.491633 | K37: 2014価格改定
B38: 1525 | C38: 混合油 | E38: 1 | F38: l | G38: 171.43 | H38: 1 | I38: 0.5417647059 | J38: 92.87472353 | K38: 2014価格改定
B39: 1526 | C39: 電気(単相100V) | D39: 単相100V | E39: 1 | F39: kWh | G39: 17.93 | H39: 1 | I39: 0.7156254902 | J39: 12.83116504 | K39: 2014価格改定
B40: 1527 | C40: 電気(三相200V) | D40: 三相200V | E40: 1 | F40: kWh | G40: 12.52 | H40: 1 | I40: 15.67401961 | J40: 196.2387255 | K40: 2014価格改定
A50: 4 | B50: =技術体系表!$C$5 -> 水稲・主食用米(限定ふるさと米，移植，15ha規模，胆沢平野／胆沢東部・前沢) | J50: =SUM(J51:J65) -> 4177.340503
B51: 1521 | C51: ガソリン | E51: 1 | F51: l | G51: 152.78 | H51: 1 | I51: 3.89712 | J51: =IF(ISERROR(I51/E51*G51/H51),"",I51/E51*G51/H51) -> 595.4019936 | K51: 2014価格改定
B52: 1522 | C52: 軽油 | E52: 1 | F52: l | G52: 131.99 | H52: 1 | I52: 18.24373333 | J52: 2407.990363 | K52: 2014価格改定
B53: 1523 | C53: 灯油 | E53: 1 | F53: l | G53: 93.46 | H53: 1 | I53: 10.69848 | J53: 999.8799408 | K53: 2014価格改定
B54: 1526 | C54: 電気(単相100V) | D54: 単相100V | E54: 1 | F54: kWh | G54: 17.93 | H54: 1 | I54: 0.3968353333 | J54: 7.115257527 | K54: 2014価格改定
B55: 1527 | C55: 電気(三相200V) | D55: 三相200V | E55: 1 | F55: kWh | G55: 12.52 | H55: 1 | I55: 13.3349 | J55: 166.952948 | K55: 2014価格改定
A66: 5 | B66: =技術体系表!$C$6 -> 水稲・主食用米(限定ふるさと米，移植，15ha規模，胆沢平野／胆沢西部・金ケ崎西部) | J66: =SUM(J67:J81) -> 4177.340503
B67: 1521 | C67: ガソリン | E67: 1 | F67: l | G67: 152.78 | H67: 1 | I67: 3.89712 | J67: =IF(ISERROR(I67/E67*G67/H67),"",I67/E67*G67/H67) -> 595.4019936 | K67: 2014価格改定
B68: 1522 | C68: 軽油 | E68: 1 | F68: l | G68: 131.99 | H68: 1 | I68: 18.24373333 | J68: 2407.990363 | K68: 2014価格改定
B69: 1523 | C69: 灯油 | E69: 1 | F69: l | G69: 93.46 | H69: 1 | I69: 10.69848 | J69: 999.8799408 | K69: 2014価格改定
B70: 1526 | C70: 電気(単相100V) | D70: 単相100V | E70: 1 | F70: kWh | G70: 17.93 | H70: 1 | I70: 0.3968353333 | J70: 7.115257527 | K70: 2014価格改定
B71: 1527 | C71: 電気(三相200V) | D71: 三相200V | E71: 1 | F71: kWh | G71: 12.52 | H71: 1 | I71: 13.3349 | J71: 166.952948 | K71: 2014価格改定
A82: 6 | B82: =技術体系表!$C$7 -> 水稲・主食用米(限定ふるさと米，移植，15ha規模，胆沢平野／水沢・金ケ崎東部) | J82: =SUM(J83:J97) -> 4177.340503
B83: 1521 | C83: ガソリン | E83: 1 | F83: l | G83: 152.78 | H83: 1 | I83: 3.89712 | J83: =IF(ISERROR(I83/E83*G83/H83),"",I83/E83*G83/H83) -> 595.4019936 | K83: 2014価格改定
B84: 1522 | C84: 軽油 | E84: 1 | F84: l | G84: 131.99 | H84: 1 | I84: 18.24373333 | J84: 2407.990363 | K84: 2014価格改定
B85: 1523 | C85: 灯油 | E85: 1 | F85: l | G85: 93.46 | H85: 1 | I85: 10.69848 | J85: 999.8799408 | K85: 2014価格改定
B86: 1526 | C86: 電気(単相100V) | D86: 単相100V | E86: 1 | F86: kWh | G86: 17.93 | H86: 1 | I86: 0.3968353333 | J86: 7.115257527 | K86: 2014価格改定
B87: 1527 | C87: 電気(三相200V) | D87: 三相200V | E87: 1 | F87: kWh | G87: 12.52 | H87: 1 | I87: 13.3349 | J87: 166.952948 | K87: 2014価格改定
A98: 7 | B98: =技術体系表!$C$8 -> 水稲・主食用米(限定ふるさと米，移植，30ha規模，胆沢平野／胆沢東部・前沢) | J98: =SUM(J99:J113) -> 3908.569749
B99: 1521 | C99: ガソリン | E99: 1 | F99: l | G99: 152.78 | H99: 1 | I99: 3.330613333 | J99: =IF(ISERROR(I99/E99*G99/H99),"",I99/E99*G99/H99) -> 508.8511051 | K99: 2014価格改定
B100: 1522 | C100: 軽油 | E100: 1 | F100: l | G100: 131.99 | H100: 1 | I100: 19.36763333 | J100: 2556.333924 | K100: 2014価格改定
B101: 1523 | C101: 灯油 | E101: 1 | F101: l | G101: 93.46 | H101: 1 | I101: 7.40664 | J101: 692.2245744 | K101: 2014価格改定
B102: 1526 | C102: 電気(単相100V) | D102: 単相100V | E102: 1 | F102: kWh | G102: 17.93 | H102: 1 | I102: 0.3969396667 | J102: 7.117128223 | K102: 2014価格改定
B103: 1527 | C103: 電気(三相200V) | D103: 三相200V | E103: 1 | F103: kWh | G103: 12.52 | H103: 1 | I103: 11.50503333 | J103: 144.0430173 | K103: 2014価格改定
A114: 8 | B114: =技術体系表!$C$9 -> 水稲・主食用米(限定ふるさと米，移植，30ha規模，胆沢平野／胆沢西部・金ケ崎西部) | J114: =SUM(J115:J129) -> 3753.481499
B115: 1521 | C115: ガソリン | E115: 1 | F115: l | G115: 152.78 | H115: 1 | I115: 3.330613333 | J115: =IF(ISERROR(I115/E115*G115/H115),"",I115/E115*G115/H115) -> 508.8511051 | K115: 2014価格改定
B116: 1522 | C116: 軽油 | E116: 1 | F116: l | G116: 131.99 | H116: 1 | I116: 18.19263333 | J116: 2401.245674 | K116: 2014価格改定
B117: 1523 | C117: 灯油 | E117: 1 | F117: l | G117: 93.46 | H117: 1 | I117: 7.40664 | J117: 692.2245744 | K117: 2014価格改定
B118: 1526 | C118: 電気(単相100V) | D118: 単相100V | E118: 1 | F118: kWh | G118: 17.93 | H118: 1 | I118: 0.3969396667 | J118: 7.117128223 | K118: 2014価格改定
B119: 1527 | C119: 電気(三相200V) | D119: 三相200V | E119: 1 | F119: kWh | G119: 12.52 | H119: 1 | I119: 11.50503333 | J119: 144.0430173 | K119: 2014価格改定
A130: 9 | B130: =技術体系表!$C$10 -> 水稲・主食用米(限定ふるさと米，移植，30ha規模，胆沢平野／水沢・金ケ崎東部) | J130: =SUM(J131:J145) -> 3908.569749
B131: 1521 | C131: ガソリン | E131: 1 | F131: l | G131: 152.78 | H131: 1 | I131: 3.330613333 | J131: =IF(ISERROR(I131/E131*G131/H131),"",I131/E131*G131/H131) -> 508.8511051 | K131: 2014価格改定
B132: 1522 | C132: 軽油 | E132: 1 | F132: l | G132: 131.99 | H132: 1 | I132: 19.36763333 | J132: 2556.333924 | K132: 2014価格改定
B133: 1523 | C133: 灯油 | E133: 1 | F133: l | G133: 93.46 | H133: 1 | I133: 7.40664 | J133: 692.2245744 | K133: 2014価格改定
B134: 1526 | C134: 電気(単相100V) | D134: 単相100V | E134: 1 | F134: kWh | G134: 17.93 | H134: 1 | I134: 0.3969396667 | J134: 7.117128223 | K134: 2014価格改定
B135: 1527 | C135: 電気(三相200V) | D135: 三相200V | E135: 1 | F135: kWh | G135: 12.52 | H135: 1 | I135: 11.50503333 | J135: 144.0430173 | K135: 2014価格改定
A146: 10 | B146: =技術体系表!$C$11 -> 水稲・主食用米(慣行米，直播，15ha規模，胆沢平野／胆沢東部・前沢) | J146: =SUM(J147:J161) -> 4292.184148
B147: 1521 | C147: ガソリン | E147: 1 | F147: l | G147: 152.78 | H147: 1 | I147: 3.03332 | J147: =IF(ISERROR(I147/E147*G147/H147),"",I147/E147*G147/H147) -> 463.4306296 | K147: 2014価格改定
B148: 1522 | C148: 軽油 | E148: 1 | F148: l | G148: 131.99 | H148: 1 | I148: 19.138 | J148: 2526.02462 | K148: 2014価格改定
B149: 1523 | C149: 灯油 | E149: 1 | F149: l | G149: 93.46 | H149: 1 | I149: 10.69848 | J149: 999.8799408 | K149: 2014価格改定
B150: 1525 | C150: 混合油 | E150: 1 | F150: l | G150: 171.43 | H150: 1 | I150: 0.02083333333 | J150: 3.571458333 | K150: 2014価格改定
B151: 1526 | C151: 電気(単相100V) | D151: 単相100V | E151: 1 | F151: kWh | G151: 17.93 | H151: 1 | I151: 0.3643766667 | J151: 6.533273633 | K151: 2014価格改定
B152: 1527 | C152: 電気(三相200V) | D152: 三相200V | E152: 1 | F152: kWh | G152: 12.52 | H152: 1 | I152: 23.38212667 | J152: 292.7442259 | K152: 2014価格改定
A162: 11 | B162: =技術体系表!$C$12 -> 水稲・主食用米(慣行米，直播，15ha規模，胆沢平野／胆沢西部・金ケ崎西部) | J162: =SUM(J163:J177) -> 4292.184148
B163: 1521 | C163: ガソリン | E163: 1 | F163: l | G163: 152.78 | H163: 1 | I163: 3.03332 | J163: =IF(ISERROR(I163/E163*G163/H163),"",I163/E163*G163/H163) -> 463.4306296 | K163: 2014価格改定
B164: 1522 | C164: 軽油 | E164: 1 | F164: l | G164: 131.99 | H164: 1 | I164: 19.138 | J164: =IF(ISERROR(I164/E164*G164/H164),"",I164/E164*G164/H164) -> 2526.02462 | K164: 2014価格改定
B165: 1523 | C165: 灯油 | E165: 1 | F165: l | G165: 93.46 | H165: 1 | I165: 10.69848 | J165: 999.8799408 | K165: 2014価格改定
B166: 1525 | C166: 混合油 | E166: 1 | F166: l | G166: 171.43 | H166: 1 | I166: 0.02083333333 | J166: 3.571458333 | K166: 2014価格改定
B167: 1526 | C167: 電気(単相100V) | D167: 単相100V | E167: 1 | F167: kWh | G167: 17.93 | H167: 1 | I167: 0.3643766667 | J167: 6.533273633 | K167: 2014価格改定
B168: 1527 | C168: 電気(三相200V) | D168: 三相200V | E168: 1 | F168: kWh | G168: 12.52 | H168: 1 | I168: 23.38212667 | J168: 292.7442259 | K168: 2014価格改定
A178: 12 | B178: =技術体系表!$C$13 -> 水稲・主食用米(慣行米，直播，15ha規模，胆沢平野／水沢・金ケ崎東部) | J178: =SUM(J179:J193) -> 4292.184148
B179: 1521 | C179: ガソリン | E179: 1 | F179: l | G179: 152.78 | H179: 1 | I179: 3.03332 | J179: =IF(ISERROR(I179/E179*G179/H179),"",I179/E179*G179/H179) -> 463.4306296 | K179: 2014価格改定
B180: 1522 | C180: 軽油 | E180: 1 | F180: l | G180: 131.99 | H180: 1 | I180: 19.138 | J180: 2526.02462 | K180: 2014価格改定
B181: 1523 | C181: 灯油 | E181: 1 | F181: l | G181: 93.46 | H181: 1 | I181: 10.69848 | J181: 999.8799408 | K181: 2014価格改定
B182: 1525 | C182: 混合油 | E182: 1 | F182: l | G182: 171.43 | H182: 1 | I182: 0.02083333333 | J182: 3.571458333 | K182: 2014価格改定
B183: 1526 | C183: 電気(単相100V) | D183: 単相100V | E183: 1 | F183: kWh | G183: 17.93 | H183: 1 | I183: 0.3643766667 | J183: 6.533273633 | K183: 2014価格改定
B184: 1527 | C184: 電気(三相200V) | D184: 三相200V | E184: 1 | F184: kWh | G184: 12.52 | H184: 1 | I184: 23.38212667 | J184: 292.7442259 | K184: 2014価格改定
A194: 13 | B194: =技術体系表!$C$14 -> 水稲・主食用米(慣行米，直播，30ha規模，胆沢平野／胆沢東部・前沢) | J194: =SUM(J195:J209) -> 3866.396225
B195: 1521 | C195: ガソリン | E195: 1 | F195: l | G195: 152.78 | H195: 1 | I195: 2.45358 | J195: =IF(ISERROR(I195/E195*G195/H195),"",I195/E195*G195/H195) -> 374.8579524 | K195: 2014価格改定
B196: 1522 | C196: 軽油 | E196: 1 | F196: l | G196: 131.99 | H196: 1 | I196: 19.08763333 | J196: 2519.376724 | K196: 2014価格改定
B197: 1523 | C197: 灯油 | E197: 1 | F197: l | G197: 93.46 | H197: 1 | I197: 7.40664 | J197: 692.2245744 | K197: 2014価格改定
B198: 1525 | C198: 混合油 | E198: 1 | F198: l | G198: 171.43 | H198: 1 | I198: 0.02083333333 | J198: 3.571458333 | K198: 2014価格改定
B199: 1526 | C199: 電気(単相100V) | D199: 単相100V | E199: 1 | F199: kWh | G199: 17.93 | H199: 1 | I199: 0.3643483333 | J199: 6.532765617 | K199: 2014価格改定
B200: 1527 | C200: 電気(三相200V) | D200: 三相200V | E200: 1 | F200: kWh | G200: 12.52 | H200: 1 | I200: 21.55213667 | J200: 269.8327511 | K200: 2014価格改定
A210: 14 | B210: =技術体系表!$C$15 -> 水稲・主食用米(慣行米，直播，30ha規模，胆沢平野／胆沢西部・金ケ崎西部) | J210: =SUM(J211:J225) -> 3866.396225
B211: 1521 | C211: ガソリン | E211: 1 | F211: l | G211: 152.78 | H211: 1 | I211: 2.45358 | J211: =IF(ISERROR(I211/E211*G211/H211),"",I211/E211*G211/H211) -> 374.8579524 | K211: 2014価格改定
B212: 1522 | C212: 軽油 | E212: 1 | F212: l | G212: 131.99 | H212: 1 | I212: 19.08763333 | J212: 2519.376724 | K212: 2014価格改定
B213: 1523 | C213: 灯油 | E213: 1 | F213: l | G213: 93.46 | H213: 1 | I213: 7.40664 | J213: 692.2245744 | K213: 2014価格改定
B214: 1525 | C214: 混合油 | E214: 1 | F214: l | G214: 171.43 | H214: 1 | I214: 0.02083333333 | J214: 3.571458333 | K214: 2014価格改定
B215: 1526 | C215: 電気(単相100V) | D215: 単相100V | E215: 1 | F215: kWh | G215: 17.93 | H215: 1 | I215: 0.3643483333 | J215: 6.532765617 | K215: 2014価格改定
B216: 1527 | C216: 電気(三相200V) | D216: 三相200V | E216: 1 | F216: kWh | G216: 12.52 | H216: 1 | I216: 21.55213667 | J216: 269.8327511 | K216: 2014価格改定
A226: 15 | B226: =技術体系表!$C$16 -> 水稲・主食用米(慣行米，直播，30ha規模，胆沢平野／水沢・金ケ崎東部) | J226: =SUM(J227:J241) -> 3866.396225
B227: 1521 | C227: ガソリン | E227: 1 | F227: l | G227: 152.78 | H227: 1 | I227: 2.45358 | J227: =IF(ISERROR(I227/E227*G227/H227),"",I227/E227*G227/H227) -> 374.8579524 | K227: 2014価格改定
B228: 1522 | C228: 軽油 | E228: 1 | F228: l | G228: 131.99 | H228: 1 | I228: 19.08763333 | J228: 2519.376724 | K228: 2014価格改定
B229: 1523 | C229: 灯油 | E229: 1 | F229: l | G229: 93.46 | H229: 1 | I229: 7.40664 | J229: 692.2245744 | K229: 2014価格改定
B230: 1525 | C230: 混合油 | E230: 1 | F230: l | G230: 171.43 | H230: 1 | I230: 0.02083333333 | J230: 3.571458333 | K230: 2014価格改定
B231: 1526 | C231: 電気(単相100V) | D231: 単相100V | E231: 1 | F231: kWh | G231: 17.93 | H231: 1 | I231: 0.3643483333 | J231: 6.532765617 | K231: 2014価格改定
B232: 1527 | C232: 電気(三相200V) | D232: 三相200V | E232: 1 | F232: kWh | G232: 12.52 | H232: 1 | I232: 21.55213667 | J232: 269.8327511 | K232: 2014価格改定
A242: 16 | B242: =技術体系表!$C$17 -> 水稲・飼料用米(つぶみのり・つぶゆたか，大区画・移植，15ha規模，胆沢平野) | J242: =SUM(J243:J257) -> 3216.450812
B243: 1521 | C243: ガソリン | E243: 1 | F243: l | G243: 152.78 | H243: 1 | I243: 3.285653333 | J243: =IF(ISERROR(I243/E243*G243/H243),"",I243/E243*G243/H243) -> 501.9821163 | K243: 2014価格改定
B244: 1522 | C244: 軽油 | E244: 1 | F244: l | G244: 131.99 | H244: 1 | I244: 20.03524 | J244: 2644.451328 | K244: 2014価格改定
B245: 1526 | C245: 電気(単相100V) | D245: 単相100V | E245: 1 | F245: kWh | G245: 17.93 | H245: 1 | I245: 0.03382533333 | J245: 0.6064882267 | K245: 2014価格改定
B246: 1527 | C246: 電気(三相200V) | D246: 三相200V | E246: 1 | F246: kWh | G246: 12.52 | H246: 1 | I246: 5.544 | J246: 69.41088 | K246: 2014価格改定
A258: 17 | B258: =技術体系表!$C$18 -> 飼料用米(つぶみのり・つぶゆたか，移植，30ha規模，胆沢平野) | J258: =SUM(J259:J273) -> 3122.890577
B259: 1521 | C259: ガソリン | E259: 1 | F259: l | G259: 152.78 | H259: 1 | I259: 2.763613333 | J259: =IF(ISERROR(I259/E259*G259/H259),"",I259/E259*G259/H259) -> 422.2248451 | K259: 2014価格改定
B260: 1522 | C260: 軽油 | E260: 1 | F260: l | G260: 131.99 | H260: 1 | I260: 19.93065 | J260: 2630.646494 | K260: 2014価格改定
B261: 1526 | C261: 電気(単相100V) | D261: 単相100V | E261: 1 | F261: kWh | G261: 17.93 | H261: 1 | I261: 0.03392966667 | J261: 0.6083589233 | K261: 2014価格改定
B262: 1527 | C262: 電気(三相200V) | D262: 三相200V | E262: 1 | F262: kWh | G262: 12.52 | H262: 1 | I262: 5.544 | J262: 69.41088 | K262: 2014価格改定
A274: 18 | B274: =技術体系表!$C$19 -> 水稲・飼料用米(つぶみのり・つぶゆたか，大区画・直播，15ha規模，胆沢平野) | J274: =SUM(J275:J289) -> 3100.039905
B275: 1521 | C275: ガソリン | E275: 1 | F275: l | G275: 152.78 | H275: 1 | I275: 2.53952 | J275: =IF(ISERROR(I275/E275*G275/H275),"",I275/E275*G275/H275) -> 387.9878656 | K275: 2014価格改定
B276: 1522 | C276: 軽油 | E276: 1 | F276: l | G276: 131.99 | H276: 1 | I276: 19.03133333 | J276: 2511.945687 | K276: 2014価格改定
B277: 1525 | C277: 混合油 | E277: 1 | F277: l | G277: 171.43 | H277: 1 | I277: 0.02083333333 | J277: 3.571458333 | K277: 2014価格改定
B278: 1526 | C278: 電気(単相100V) | D278: 単相100V | E278: 1 | F278: kWh | G278: 17.93 | H278: 1 | I278: 0.02128 | J278: 0.3815504 | K278: 2014価格改定
B279: 1527 | C279: 電気(三相200V) | D279: 三相200V | E279: 1 | F279: kWh | G279: 12.52 | H279: 1 | I279: 15.6672 | J279: 196.153344 | K279: 2014価格改定
A290: 19 | B290: =技術体系表!$C$20 -> 水稲・飼料用米(つぶみのり・つぶゆたか，大区画・直播，30ha規模，胆沢平野) | J290: =SUM(J291:J305) -> 3000.424757
B291: 1521 | C291: ガソリン | E291: 1 | F291: l | G291: 152.78 | H291: 1 | I291: 1.959813333 | J291: =IF(ISERROR(I291/E291*G291/H291),"",I291/E291*G291/H291) -> 299.4202811 | K291: 2014価格改定
B292: 1522 | C292: 軽油 | E292: 1 | F292: l | G292: 131.99 | H292: 1 | I292: 18.94763333 | J292: 2500.898124 | K292: 2014価格改定
B293: 1525 | C293: 混合油 | E293: 1 | F293: l | G293: 171.43 | H293: 1 | I293: 0.02083333333 | J293: 3.571458333 | K293: 2014価格改定
B294: 1526 | C294: 電気(単相100V) | D294: 単相100V | E294: 1 | F294: kWh | G294: 17.93 | H294: 1 | I294: 0.02128 | J294: 0.3815504 | K294: 2014価格改定
B295: 1527 | C295: 電気(三相200V) | D295: 三相200V | E295: 1 | F295: kWh | G295: 12.52 | H295: 1 | I295: 15.6672 | J295: 196.153344 | K295: 2014価格改定
A306: 20 | B306: =技術体系表!$C$21 -> 大豆(ﾘｭｳﾎｳ，水田転作・小畦立，7ha規模，胆沢平野) | J306: =SUM(J307:J321) -> 4493.33037
B307: 1521 | C307: ガソリン | E307: 1 | F307: l | G307: 152.78 | H307: 1 | I307: 0.06828571429 | J307: =IF(ISERROR(I307/E307*G307/H307),"",I307/E307*G307/H307) -> 10.43269143 | K307: 2014価格改定
B308: 1522 | C308: 軽油 | E308: 1 | F308: l | G308: 131.99 | H308: 1 | I308: 30.79088571 | J308: 4064.089005 | K308: 2014価格改定
B309: 1523 | C309: 灯油 | E309: 1 | F309: l | G309: 93.46 | H309: 1 | I309: 4.242857143 | J309: 396.5374286 | K309: 2014価格改定
B310: 1526 | C310: 電気(単相100V) | D310: 単相100V | E310: 1 | F310: kWh | G310: 17.93 | H310: 1 | I310: 0.08548571429 | J310: 1.532758857 | K310: 2014価格改定
B311: 1527 | C311: 電気(三相200V) | D311: 三相200V | E311: 1 | F311: kWh | G311: 12.52 | H311: 1 | I311: 1.656428571 | J311: 20.73848571 | K311: 2014価格改定
A322: 21 | B322: =技術体系表!$C$22 -> 小麦(ﾅﾝﾌﾞｺﾑｷﾞ，水田転作，7ha規模，胆沢平野) | J322: =SUM(J323:J337) -> 4075.335316
B323: 1521 | C323: ガソリン | E323: 1 | F323: l | G323: 152.78 | H323: 1 | I323: 0.03642857143 | J323: =IF(ISERROR(I323/E323*G323/H323),"",I323/E323*G323/H323) -> 5.565557143 | K323: 2014価格改定
B324: 1522 | C324: 軽油 | E324: 1 | F324: l | G324: 131.99 | H324: 1 | I324: 22.54957143 | J324: =IF(ISERROR(I324/E324*G324/H324),"",I324/E324*G324/H324) -> 2976.317933 | K324: 2014価格改定
B325: 1523 | C325: 灯油 | E325: 1 | F325: l | G325: 93.46 | H325: 1 | I325: 10.8 | J325: 1009.368 | K325: 2014価格改定
B326: 1526 | C326: 電気(単相100V) | D326: 単相100V | E326: 1 | F326: kWh | G326: 17.93 | H326: 1 | I326: 0.11 | J326: 1.9723 | K326: 2014価格改定
B327: 1527 | C327: 電気(三相200V) | D327: 三相200V | E327: 1 | F327: kWh | G327: 12.52 | H327: 1 | I327: 6.558428571 | J327: 82.11152571 | K327: 2014価格改定
A338: 22 | B338: =技術体系表!$C$23 -> 受委託(限定ふるさと米，苗生産・販売，3375箱規模，胆沢平野) | J338: =SUM(J339:J353) -> 3.968356395
B339: 1521 | C339: ガソリン | E339: 1 | F339: l | G339: 152.78 | H339: 1 | I339: 0.005605925926 | J339: =IF(ISERROR(I339/E339*G339/H339),"",I339/E339*G339/H339) -> 0.856473363 | K339: 2014価格改定
B340: 1526 | C340: 電気(単相100V) | D340: 単相100V | E340: 1 | F340: kWh | G340: 17.93 | H340: 1 | I340: 0.001503348148 | J340: 0.0269550323 | K340: 2014価格改定
B341: 1527 | C341: 電気(三相200V) | D341: 三相200V | E341: 1 | F341: kWh | G341: 12.52 | H341: 1 | I341: 0.2464 | J341: 3.084928 | K341: 2014価格改定
A354: 23 | B354: =技術体系表!$C$24 -> 受委託(限定ふるさと米，耕起・代掻，15ha規模，胆沢平野) | J354: =SUM(J355:J369) -> 1072.656332
B355: 1522 | C355: 軽油 | E355: 1 | F355: l | G355: 131.99 | H355: 1 | I355: 8.1268 | J355: =IF(ISERROR(I355/E355*G355/H355),"",I355/E355*G355/H355) -> 1072.656332 | K355: 2014価格改定
A370: 24 | B370: =技術体系表!$C$25 -> 受委託(限定ふるさと米，田植，15ha規模，胆沢平野) | J370: =SUM(J371:J385) -> 1692.691009
B371: 1521 | C371: ガソリン | E371: 1 | F371: l | G371: 152.78 | H371: 1 | I371: 1.0572 | J371: =IF(ISERROR(I371/E371*G371/H371),"",I371/E371*G371/H371) -> 161.519016 | K371: 2014価格改定
B372: 1522 | C372: 軽油 | E372: 1 | F372: l | G372: 131.99 | H372: 1 | I372: 11.60066667 | J372: 1531.171993 | K372: 2014価格改定
A386: 25 | B386: =技術体系表!$C$26 -> 受委託(限定ふるさと米，収穫運搬，15ha規模，胆沢平野) | J386: =SUM(J387:J401) -> 1692.691009
B387: 1521 | C387: ガソリン | E387: 1 | F387: l | G387: 152.78 | H387: 1 | I387: 1.0572 | J387: =IF(ISERROR(I387/E387*G387/H387),"",I387/E387*G387/H387) -> 161.519016 | K387: 2014価格改定
B388: 1522 | C388: 軽油 | E388: 1 | F388: l | G388: 131.99 | H388: 1 | I388: 11.60066667 | J388: 1531.171993 | K388: 2014価格改定
A402: 26 | B402: =技術体系表!$C$27 -> 受委託(限定ふるさと米，乾燥調製，81000kg規模，胆沢平野) | J402: =SUM(J403:J417) -> 2.324144483
B403: 1521 | C403: ガソリン | E403: 1 | F403: l | G403: 152.78 | H403: 1 | I403: 0.000967654321 | J403: =IF(ISERROR(I403/E403*G403/H403),"",I403/E403*G403/H403) -> 0.1478382272 | K403: 2014価格改定
B404: 1522 | C404: 軽油 | E404: 1 | F404: l | G404: 131.99 | H404: 1 | I404: 0.001 | J404: 0.13199 | K404: 2014価格改定
B405: 1523 | C405: 灯油 | E405: 1 | F405: l | G405: 93.46 | H405: 1 | I405: 0.019812 | J405: 1.85162952 | K405: 2014価格改定
B406: 1526 | C406: 電気(単相100V) | D406: 単相100V | E406: 1 | F406: kWh | G406: 17.93 | H406: 1 | I406: 0.0006722407407 | J406: 0.01205327648 | K406: 2014価格改定
B407: 1527 | C407: 電気(三相200V) | D407: 三相200V | E407: 1 | F407: kWh | G407: 12.52 | H407: 1 | I407: 0.01442759259 | J407: 0.1806334593 | K407: 2014価格改定
A418: 27 | B418: =技術体系表!$C$28 -> WCS(つぶゆたか，移植，15ha規模，胆沢平野) | J418: =SUM(J419:J433) -> 2648.468751
B419: 1521 | C419: ガソリン | E419: 1 | F419: l | G419: 152.78 | H419: 1 | I419: 2.97232 | J419: =IF(ISERROR(I419/E419*G419/H419),"",I419/E419*G419/H419) -> 454.1110496 | K419: 2014価格改定
B420: 1522 | C420: 軽油 | E420: 1 | F420: l | G420: 131.99 | H420: 1 | I420: 16.09470667 | J420: 2124.340333 | K420: 2014価格改定
B421: 1526 | C421: 電気(単相100V) | D421: 単相100V | E421: 1 | F421: kWh | G421: 17.93 | H421: 1 | I421: 0.03382533333 | J421: 0.6064882267 | K421: 2014価格改定
B422: 1527 | C422: 電気(三相200V) | D422: 三相200V | E422: 1 | F422: kWh | G422: 12.52 | H422: 1 | I422: 5.544 | J422: 69.41088 | K422: 2014価格改定
A434: 28 | B434: =技術体系表!$C$29 -> WCS(つぶゆたか，直播，15ha規模，胆沢平野) | J434: =SUM(J435:J449) -> 2690.704369
B435: 1521 | C435: ガソリン | E435: 1 | F435: l | G435: 152.78 | H435: 1 | I435: 2.272853333 | J435: =IF(ISERROR(I435/E435*G435/H435),"",I435/E435*G435/H435) -> 347.2465323 | K435: 2014価格改定
B436: 1522 | C436: 軽油 | E436: 1 | F436: l | G436: 131.99 | H436: 1 | I436: 16.2658 | J436: 2146.922942 | K436: 2014価格改定
B437: 1526 | C437: 電気(単相100V) | D437: 単相100V | E437: 1 | F437: kWh | G437: 17.93 | H437: 1 | I437: 0.02128 | J437: 0.3815504 | K437: 2014価格改定
B438: 1527 | C438: 電気(三相200V) | D438: 三相200V | E438: 1 | F438: kWh | G438: 12.52 | H438: 1 | I438: 15.6672 | J438: 196.153344 | K438: 2014価格改定
A450: 29 | B450: =技術体系表!$C$30 -> 牧草(混播牧草，乾草調製(ﾛｰﾙﾍﾞｰﾙ)，5ha規模，胆沢平野) | J450: =SUM(J451:J465) -> 8905.312504
B451: 1522 | C451: 軽油 | E451: 1 | F451: l | G451: 131.99 | H451: 1 | I451: 67.4696 | J451: =IF(ISERROR(I451/E451*G451/H451),"",I451/E451*G451/H451) -> 8905.312504 | K451: 2014価格改定
A466: 30 | B466: =技術体系表!$C$31 -> 牧草(混播牧草，ｸﾞﾗｽｻｲﾚｰｼﾞ(ﾛｰﾙﾍﾞｰﾙ)，5ha規模，胆沢平野) | J466: =SUM(J467:J481) -> 7295.74725
B467: 1522 | C467: 軽油 | E467: 1 | F467: l | G467: 131.99 | H467: 1 | I467: 55.275 | J467: =IF(ISERROR(I467/E467*G467/H467),"",I467/E467*G467/H467) -> 7295.74725 | K467: 2014価格改定
A482: 31 | B482: =技術体系表!$C$32 -> ﾋﾟｰﾏﾝ(京鈴，雨よけﾊｳｽ栽培，30a規模，県下全域) | J482: =SUM(J483:J497) -> 31962.70087
B483: 1521 | C483: ガソリン | E483: 1 | F483: l | G483: 152.78 | H483: 1 | I483: 79.093 | J483: =IF(ISERROR(I483/E483*G483/H483),"",I483/E483*G483/H483) -> 12083.82854 | K483: 2014価格改定
B484: 1522 | C484: 軽油 | E484: 1 | F484: l | G484: 131.99 | H484: 1 | I484: 31.16666667 | J484: =IF(ISERROR(I484/E484*G484/H484),"",I484/E484*G484/H484) -> 4113.688333 | K484: 2014価格改定
B485: 1527 | C485: 電気(三相200V) | D485: 三相200V | E485: 1 | F485: kWh | G485: 12.52 | H485: 1 | I485: 1259.2 | J485: 15765.184 | K485: 2014価格改定
A498: 32 | B498: =技術体系表!$C$33 -> ﾋﾟｰﾏﾝ(京ゆたか7，露地栽培，1ha規模，県下全域) | J498: =SUM(J499:J513) -> 8806.5603
B499: 1521 | C499: ガソリン | E499: 1 | F499: l | G499: 152.78 | H499: 1 | I499: 24.72 | J499: =IF(ISERROR(I499/E499*G499/H499),"",I499/E499*G499/H499) -> 3776.7216 | K499: 2014価格改定
B500: 1522 | C500: 軽油 | E500: 1 | F500: l | G500: 131.99 | H500: 1 | I500: 10.85 | J500: 1432.0915 | K500: 2014価格改定
B501: 1527 | C501: 電気(三相200V) | D501: 三相200V | E501: 1 | F501: kWh | G501: 12.52 | H501: 1 | I501: 287.36 | J501: 3597.7472 | K501: 2014価格改定
A514: 33 | B514: =技術体系表!$C$34 -> 0 | J514: =SUM(J515:J529) -> 0
J515: =IF(ISERROR(I515/E515*G515/H515),"",I515/E515*G515/H515) -> 
A530: 34 | B530: =技術体系表!$C$35 -> 0 | J530: =SUM(J531:J545) -> 0
J531: =IF(ISERROR(I531/E531*G531/H531),"",I531/E531*G531/H531) -> 
A546: 35 | B546: =技術体系表!$C$36 -> 0 | J546: =SUM(J547:J561) -> 0
J547: =IF(ISERROR(I547/E547*G547/H547),"",I547/E547*G547/H547) -> 
A562: 36 | B562: =技術体系表!$C$37 -> 0 | J562: =SUM(J563:J577) -> 0
J563: =IF(ISERROR(I563/E563*G563/H563),"",I563/E563*G563/H563) -> 
A578: 37 | B578: =技術体系表!$C$38 -> 0 | J578: =SUM(J579:J593) -> 0
J579: =IF(ISERROR(I579/E579*G579/H579),"",I579/E579*G579/H579) -> 
A594: 38 | B594: =技術体系表!$C$39 -> 0 | J594: =SUM(J595:J609) -> 0
J595: =IF(ISERROR(I595/E595*G595/H595),"",I595/E595*G595/H595) -> 
A610: 39 | B610: =技術体系表!$C$40 -> 0 | J610: =SUM(J611:J625) -> 0
J611: =IF(ISERROR(I611/E611*G611/H611),"",I611/E611*G611/H611) -> 
A626: 40 | B626: =技術体系表!$C$41 -> 0 | J626: =SUM(J627:J641) -> 0
J627: =IF(ISERROR(I627/E627*G627/H627),"",I627/E627*G627/H627) -> 
A642: 41 | B642: =技術体系表!$C$42 -> 0 | J642: =SUM(J643:J657) -> 0
J643: =IF(ISERROR(I643/E643*G643/H643),"",I643/E643*G643/H643) -> 
J644: =IF(ISERROR(I644/E644*G644/H644),"",I644/E644*G644/H644) -> 
A658: 42 | B658: =技術体系表!$C$43 -> 0 | J658: =SUM(J659:J673) -> 0
J659: =IF(ISERROR(I659/E659*G659/H659),"",I659/E659*G659/H659) -> 
A674: 43 | B674: =技術体系表!$C$44 -> 0 | J674: =SUM(J675:J689) -> 0
J675: =IF(ISERROR(I675/E675*G675/H675),"",I675/E675*G675/H675) -> 
A690: 44 | B690: =技術体系表!$C$45 -> 0 | J690: =SUM(J691:J705) -> 0
J691: =IF(ISERROR(I691/E691*G691/H691),"",I691/E691*G691/H691) -> 
A706: 45 | B706: =技術体系表!$C$46 -> 0 | J706: =SUM(J707:J721) -> 0
... 32 more rows

Sheet 諸材料（修正）
A1: No | B1: ｺｰﾄﾞ | C1: 資 材 名 | D1: 銘 柄 等 級 | E1: 包装単位 | F1: 単位 | G1: 標準価格 (円) | H1: 使用 年数 | I1: 使用数量 | J1: 単位 (10a当り) | K1: 価 額 (円) | L1: 備 考
A2: 1 | B2: =試算計画表!E14 -> 0 | K2: =SUM(K3:K42) -> 0
J3: =IF(F3="","",F3) ->  | K3: =IF(ISERROR(I3/E3*G3/H3),"",I3/E3*G3/H3) -> 
J4: =IF(F4="","",F4) ->  | K4: =IF(ISERROR(I4/E4*G4/H4),"",I4/E4*G4/H4) -> 
A43: 2 | B43: =試算計画表!F14 -> 0 | K43: =SUM(K44:K83) -> 0
K44: =IF(ISERROR(I44/E44*G44/H44),"",I44/E44*G44/H44) -> 
J68: =IF(F68="","",F68) -> 
A84: 3 | B84: =試算計画表!G14 -> 0 | K84: =SUM(K85:K124) -> 0
K85: =IF(ISERROR(I85/E85*G85/H85),"",I85/E85*G85/H85) -> 
K108: =IF(ISERROR(I108/E108*G108/H108),"",I108/E108*G108/H108) -> 
A125: 4 | B125: =試算計画表!H14 -> 0 | K125: =SUM(K126:K165) -> 0
K126: =IF(ISERROR(I126/E126*G126/H126),"",I126/E126*G126/H126) -> 
J132: =IF(F132="","",F132) -> 
A166: 5 | B166: =試算計画表!I14 -> 0 | K166: =SUM(K167:K206) -> 0
K167: =IF(ISERROR(I167/E167*G167/H167),"",I167/E167*G167/H167) -> 
K172: =IF(ISERROR(I172/E172*G172/H172),"",I172/E172*G172/H172) -> 
J196: =IF(F196="","",F196) -> 
A207: 6 | B207: =試算計画表!J14 -> 0 | K207: =SUM(K208:K247) -> 0
K208: =IF(ISERROR(I208/E208*G208/H208),"",I208/E208*G208/H208) -> 
K236: =IF(ISERROR(I236/E236*G236/H236),"",I236/E236*G236/H236) -> 
A248: 7 | B248: =試算計画表!K14 -> 0 | K248: =SUM(K249:K288) -> 0
K249: =IF(ISERROR(I249/E249*G249/H249),"",I249/E249*G249/H249) -> 
J260: =IF(F260="","",F260) -> 
A289: 8 | B289: =試算計画表!L14 -> 0 | K289: =SUM(K290:K329) -> 0
K290: =IF(ISERROR(I290/E290*G290/H290),"",I290/E290*G290/H290) -> 
K300: =IF(ISERROR(I300/E300*G300/H300),"",I300/E300*G300/H300) -> 
J324: =IF(F324="","",F324) -> 
A330: 9 | B330: =試算計画表!M14 -> 0 | K330: =SUM(K331:K370) -> 0
K331: =IF(ISERROR(I331/E331*G331/H331),"",I331/E331*G331/H331) -> 
K364: =IF(ISERROR(I364/E364*G364/H364),"",I364/E364*G364/H364) -> 
A371: 10 | B371: =試算計画表!N14 -> 0 | K371: =SUM(K372:K411) -> 0
K372: =IF(ISERROR(I372/E372*G372/H372),"",I372/E372*G372/H372) -> 
J388: =IF(F388="","",F388) -> 

Sheet 諸材料 (hidden)
A1: No | B1: ｺｰﾄﾞ | C1: 資 材 名 | D1: 銘 柄 等 級 | E1: 包装単位 | F1: 単位 | G1: 標準価格 | H1: 使用 年数 | I1: 使用数量 | J1: 価 額 | K1: 備 考
A2: 1 | B2: =技術体系表!$C$2 -> 水稲・主食用米(限定ふるさと米，移植，5.1ha規模，胆沢平野／胆沢東部・前沢) | J2: =SUM(J3:J42) -> 2337.370196
B3: 2196 | C3: 等辺山形鋼(50×50×6，6) | D3: 50×50×6mm，6m | E3: 1 | F3: 本 | G3: 2360 | H3: 8 | I3: 0.7843137255 | J3: =IF(ISERROR(I3/E3*G3/H3),"",I3/E3*G3/H3) -> 231.372549
B4: 2123 | C4: ｱﾝｶｰﾋﾟﾝ(9×200) | D4: φ9mm×200mm | E4: 1 | F4: 本 | G4: 30 | H4: 3 | I4: 1.960784314 | J4: =IF(ISERROR(I4/E4*G4/H4),"",I4/E4*G4/H4) -> 19.60784314
B5: 2374 | C5: ﾈｯﾄ袋(籾消毒用，40×65) | D5: 籾消毒用，40×65cm | E5: 1 | F5: 枚 | G5: 70 | H5: 2 | I5: 0.7254901961 | J5: 25.39215686
B6: 2539 | C6: 岩手ふるさと培土e苗 | E6: 20 | F6: kg | G6: 654 | H6: 1 | I6: 63.02745098 | J6: 2060.997647 | K6: H29春予約価格
A43: 2 | B43: =技術体系表!$C$3 -> 水稲・主食用米(限定ふるさと米，移植，5.1ha規模，胆沢平野／胆沢西部・金ケ崎西部) | J43: =SUM(J44:J83) -> 2337.370196
B44: 2196 | C44: 等辺山形鋼(50×50×6，6) | D44: 50×50×6mm，6m | E44: 1 | F44: 本 | G44: 2360 | H44: 8 | I44: 0.7843137255 | J44: =IF(ISERROR(I44/E44*G44/H44),"",I44/E44*G44/H44) -> 231.372549
B45: 2123 | C45: ｱﾝｶｰﾋﾟﾝ(9×200) | D45: φ9mm×200mm | E45: 1 | F45: 本 | G45: 30 | H45: 3 | I45: 1.960784314 | J45: 19.60784314
B46: 2374 | C46: ﾈｯﾄ袋(籾消毒用，40×65) | D46: 籾消毒用，40×65cm | E46: 1 | F46: 枚 | G46: 70 | H46: 2 | I46: 0.7254901961 | J46: 25.39215686
B47: 2539 | C47: 岩手ふるさと培土e苗 | E47: 20 | F47: kg | G47: 654 | H47: 1 | I47: 63.02745098 | J47: 2060.997647 | K47: H29春予約価格
A84: 3 | B84: =技術体系表!$C$4 -> 水稲・主食用米(限定ふるさと米，移植，5.1ha規模，胆沢平野／水沢・金ケ崎東部) | J84: =SUM(J85:J124) -> 2337.370196
B85: 2196 | C85: 等辺山形鋼(50×50×6，6) | D85: 50×50×6mm，6m | E85: 1 | F85: 本 | G85: 2360 | H85: 8 | I85: 0.7843137255 | J85: =IF(ISERROR(I85/E85*G85/H85),"",I85/E85*G85/H85) -> 231.372549
B86: 2123 | C86: ｱﾝｶｰﾋﾟﾝ(9×200) | D86: φ9mm×200mm | E86: 1 | F86: 本 | G86: 30 | H86: 3 | I86: 1.960784314 | J86: 19.60784314
B87: 2374 | C87: ﾈｯﾄ袋(籾消毒用，40×65) | D87: 籾消毒用，40×65cm | E87: 1 | F87: 枚 | G87: 70 | H87: 2 | I87: 0.7254901961 | J87: 25.39215686
B88: 2539 | C88: 岩手ふるさと培土e苗 | E88: 20 | F88: kg | G88: 654 | H88: 1 | I88: 63.02745098 | J88: 2060.997647 | K88: H29春予約価格
J108: =IF(ISERROR(I108/E108*G108/H108),"",I108/E108*G108/H108) -> 
A125: 4 | B125: =技術体系表!$C$5 -> 水稲・主食用米(限定ふるさと米，移植，15ha規模，胆沢平野／胆沢東部・前沢) | J125: =SUM(J126:J165) -> 2341.3
B126: 2196 | C126: 等辺山形鋼(50×50×6，6) | D126: 50×50×6mm，6m | E126: 1 | F126: 本 | G126: 2360 | H126: 8 | I126: 0.8 | J126: =IF(ISERROR(I126/E126*G126/H126),"",I126/E126*G126/H126) -> 236
B127: 2123 | C127: ｱﾝｶｰﾋﾟﾝ(9×200) | D127: φ9mm×200mm | E127: 1 | F127: 本 | G127: 30 | H127: 3 | I127: 2 | J127: 20
B128: 2374 | C128: ﾈｯﾄ袋(籾消毒用，40×65) | D128: 籾消毒用，40×65cm | E128: 1 | F128: 枚 | G128: 70 | H128: 2 | I128: 0.72 | J128: 25.2
B129: 2539 | C129: 岩手ふるさと培土e苗 | E129: 20 | F129: kg | G129: 654 | H129: 1 | I129: 63 | J129: 2060.1 | K129: H29春予約価格
A166: 5 | B166: =技術体系表!$C$6 -> 水稲・主食用米(限定ふるさと米，移植，15ha規模，胆沢平野／胆沢西部・金ケ崎西部) | J166: =SUM(J167:J206) -> 2341.3
B167: 2196 | C167: 等辺山形鋼(50×50×6，6) | D167: 50×50×6mm，6m | E167: 1 | F167: 本 | G167: 2360 | H167: 8 | I167: 0.8 | J167: =IF(ISERROR(I167/E167*G167/H167),"",I167/E167*G167/H167) -> 236
B168: 2123 | C168: ｱﾝｶｰﾋﾟﾝ(9×200) | D168: φ9mm×200mm | E168: 1 | F168: 本 | G168: 30 | H168: 3 | I168: 2 | J168: 20
B169: 2374 | C169: ﾈｯﾄ袋(籾消毒用，40×65) | D169: 籾消毒用，40×65cm | E169: 1 | F169: 枚 | G169: 70 | H169: 2 | I169: 0.72 | J169: 25.2
B170: 2539 | C170: 岩手ふるさと培土e苗 | E170: 20 | F170: kg | G170: 654 | H170: 1 | I170: 63 | J170: 2060.1 | K170: H29春予約価格
J172: =IF(ISERROR(I172/E172*G172/H172),"",I172/E172*G172/H172) -> 
A207: 6 | B207: =技術体系表!$C$7 -> 水稲・主食用米(限定ふるさと米，移植，15ha規模，胆沢平野／水沢・金ケ崎東部) | J207: =SUM(J208:J247) -> 2341.3
B208: 2196 | C208: 等辺山形鋼(50×50×6，6) | D208: 50×50×6mm，6m | E208: 1 | F208: 本 | G208: 2360 | H208: 8 | I208: 0.8 | J208: =IF(ISERROR(I208/E208*G208/H208),"",I208/E208*G208/H208) -> 236
B209: 2123 | C209: ｱﾝｶｰﾋﾟﾝ(9×200) | D209: φ9mm×200mm | E209: 1 | F209: 本 | G209: 30 | H209: 3 | I209: 2 | J209: 20
B210: 2374 | C210: ﾈｯﾄ袋(籾消毒用，40×65) | D210: 籾消毒用，40×65cm | E210: 1 | F210: 枚 | G210: 70 | H210: 2 | I210: 0.72 | J210: 25.2
B211: 2539 | C211: 岩手ふるさと培土e苗 | E211: 20 | F211: kg | G211: 654 | H211: 1 | I211: 63 | J211: 2060.1 | K211: H29春予約価格
J236: =IF(ISERROR(I236/E236*G236/H236),"",I236/E236*G236/H236) -> 
A248: 7 | B248: =技術体系表!$C$8 -> 水稲・主食用米(限定ふるさと米，移植，30ha規模，胆沢平野／胆沢東部・前沢) | J248: =SUM(J249:J288) -> 2341.3
B249: 2196 | C249: 等辺山形鋼(50×50×6，6) | D249: 50×50×6mm，6m | E249: 1 | F249: 本 | G249: 2360 | H249: 8 | I249: 0.8 | J249: =IF(ISERROR(I249/E249*G249/H249),"",I249/E249*G249/H249) -> 236
B250: 2123 | C250: ｱﾝｶｰﾋﾟﾝ(9×200) | D250: φ9mm×200mm | E250: 1 | F250: 本 | G250: 30 | H250: 3 | I250: 2 | J250: 20
B251: 2374 | C251: ﾈｯﾄ袋(籾消毒用，40×65) | D251: 籾消毒用，40×65cm | E251: 1 | F251: 枚 | G251: 70 | H251: 2 | I251: 0.72 | J251: 25.2
B252: 2539 | C252: 岩手ふるさと培土e苗 | E252: 20 | F252: kg | G252: 654 | H252: 1 | I252: 63 | J252: 2060.1 | K252: H29春予約価格
A289: 8 | B289: =技術体系表!$C$9 -> 水稲・主食用米(限定ふるさと米，移植，30ha規模，胆沢平野／胆沢西部・金ケ崎西部) | J289: =SUM(J290:J329) -> 2341.3
B290: 2196 | C290: 等辺山形鋼(50×50×6，6) | D290: 50×50×6mm，6m | E290: 1 | F290: 本 | G290: 2360 | H290: 8 | I290: 0.8 | J290: =IF(ISERROR(I290/E290*G290/H290),"",I290/E290*G290/H290) -> 236
B291: 2123 | C291: ｱﾝｶｰﾋﾟﾝ(9×200) | D291: φ9mm×200mm | E291: 1 | F291: 本 | G291: 30 | H291: 3 | I291: 2 | J291: 20
B292: 2374 | C292: ﾈｯﾄ袋(籾消毒用，40×65) | D292: 籾消毒用，40×65cm | E292: 1 | F292: 枚 | G292: 70 | H292: 2 | I292: 0.72 | J292: 25.2
B293: 2539 | C293: 岩手ふるさと培土e苗 | E293: 20 | F293: kg | G293: 654 | H293: 1 | I293: 63 | J293: 2060.1 | K293: H29春予約価格
J300: =IF(ISERROR(I300/E300*G300/H300),"",I300/E300*G300/H300) -> 
A330: 9 | B330: =技術体系表!$C$10 -> 水稲・主食用米(限定ふるさと米，移植，30ha規模，胆沢平野／水沢・金ケ崎東部) | J330: =SUM(J331:J370) -> 2341.3
B331: 2196 | C331: 等辺山形鋼(50×50×6，6) | D331: 50×50×6mm，6m | E331: 1 | F331: 本 | G331: 2360 | H331: 8 | I331: 0.8 | J331: =IF(ISERROR(I331/E331*G331/H331),"",I331/E331*G331/H331) -> 236
B332: 2123 | C332: ｱﾝｶｰﾋﾟﾝ(9×200) | D332: φ9mm×200mm | E332: 1 | F332: 本 | G332: 30 | H332: 3 | I332: 2 | J332: 20
B333: 2374 | C333: ﾈｯﾄ袋(籾消毒用，40×65) | D333: 籾消毒用，40×65cm | E333: 1 | F333: 枚 | G333: 70 | H333: 2 | I333: 0.72 | J333: 25.2
B334: 2539 | C334: 岩手ふるさと培土e苗 | E334: 20 | F334: kg | G334: 654 | H334: 1 | I334: 63 | J334: 2060.1 | K334: H29春予約価格
J364: =IF(ISERROR(I364/E364*G364/H364),"",I364/E364*G364/H364) -> 
A371: 10 | B371: =技術体系表!$C$11 -> 水稲・主食用米(慣行米，直播，15ha規模，胆沢平野／胆沢東部・前沢) | J371: =SUM(J372:J411) -> 854.24
B372: 2374 | C372: ﾈｯﾄ袋(籾消毒用，40×65) | D372: 籾消毒用，40×65cm | E372: 1 | F372: 枚 | G372: 70 | H372: 2 | I372: 0.8 | J372: =IF(ISERROR(I372/E372*G372/H372),"",I372/E372*G372/H372) -> 28
B373: 2536 | C373: 還元鉄粉 | E373: 25 | F373: kg | G373: 10500 | H373: 1 | I373: 1.6 | J373: 672 | K373: 2014追加
B374: 2537 | C374: 焼石膏 | E374: 25 | F374: kg | G374: 7350 | H374: 1 | I374: 0.16 | J374: 47.04 | K374: 2014追加
B375: 2538 | C375: ｼﾘｶｹﾞﾙ | E375: 10 | F375: kg | G375: 13400 | H375: 1 | I375: 0.08 | J375: 107.2 | K375: 2014追加
A412: 11 | B412: =技術体系表!$C$12 -> 水稲・主食用米(慣行米，直播，15ha規模，胆沢平野／胆沢西部・金ケ崎西部) | J412: =SUM(J413:J452) -> 854.24
B413: 2374 | C413: ﾈｯﾄ袋(籾消毒用，40×65) | D413: 籾消毒用，40×65cm | E413: 1 | F413: 枚 | G413: 70 | H413: 2 | I413: 0.8 | J413: =IF(ISERROR(I413/E413*G413/H413),"",I413/E413*G413/H413) -> 28
B414: 2536 | C414: 還元鉄粉 | E414: 25 | F414: kg | G414: 10500 | H414: 1 | I414: 1.6 | J414: =IF(ISERROR(I414/E414*G414/H414),"",I414/E414*G414/H414) -> 672 | K414: 2014追加
B415: 2537 | C415: 焼石膏 | E415: 25 | F415: kg | G415: 7350 | H415: 1 | I415: 0.16 | J415: 47.04 | K415: 2014追加
B416: 2538 | C416: ｼﾘｶｹﾞﾙ | E416: 10 | F416: kg | G416: 13400 | H416: 1 | I416: 0.08 | J416: 107.2 | K416: 2014追加
A453: 12 | B453: =技術体系表!$C$13 -> 水稲・主食用米(慣行米，直播，15ha規模，胆沢平野／水沢・金ケ崎東部) | J453: =SUM(J454:J493) -> 854.24
B454: 2374 | C454: ﾈｯﾄ袋(籾消毒用，40×65) | D454: 籾消毒用，40×65cm | E454: 1 | F454: 枚 | G454: 70 | H454: 2 | I454: 0.8 | J454: =IF(ISERROR(I454/E454*G454/H454),"",I454/E454*G454/H454) -> 28
B455: 2536 | C455: 還元鉄粉 | E455: 25 | F455: kg | G455: 10500 | H455: 1 | I455: 1.6 | J455: 672 | K455: 2014追加
B456: 2537 | C456: 焼石膏 | E456: 25 | F456: kg | G456: 7350 | H456: 1 | I456: 0.16 | J456: 47.04 | K456: 2014追加
B457: 2538 | C457: ｼﾘｶｹﾞﾙ | E457: 10 | F457: kg | G457: 13400 | H457: 1 | I457: 0.08 | J457: 107.2 | K457: 2014追加
A494: 13 | B494: =技術体系表!$C$14 -> 水稲・主食用米(慣行米，直播，30ha規模，胆沢平野／胆沢東部・前沢) | J494: =SUM(J495:J534) -> 854.24
B495: 2374 | C495: ﾈｯﾄ袋(籾消毒用，40×65) | D495: 籾消毒用，40×65cm | E495: 1 | F495: 枚 | G495: 70 | H495: 2 | I495: 0.8 | J495: =IF(ISERROR(I495/E495*G495/H495),"",I495/E495*G495/H495) -> 28
B496: 2536 | C496: 還元鉄粉 | E496: 25 | F496: kg | G496: 10500 | H496: 1 | I496: 1.6 | J496: 672 | K496: 2014追加
B497: 2537 | C497: 焼石膏 | E497: 25 | F497: kg | G497: 7350 | H497: 1 | I497: 0.16 | J497: 47.04 | K497: 2014追加
B498: 2538 | C498: ｼﾘｶｹﾞﾙ | E498: 10 | F498: kg | G498: 13400 | H498: 1 | I498: 0.08 | J498: 107.2 | K498: 2014追加
A535: 14 | B535: =技術体系表!$C$15 -> 水稲・主食用米(慣行米，直播，30ha規模，胆沢平野／胆沢西部・金ケ崎西部) | J535: =SUM(J536:J575) -> 854.24
B536: 2374 | C536: ﾈｯﾄ袋(籾消毒用，40×65) | D536: 籾消毒用，40×65cm | E536: 1 | F536: 枚 | G536: 70 | H536: 2 | I536: 0.8 | J536: =IF(ISERROR(I536/E536*G536/H536),"",I536/E536*G536/H536) -> 28
B537: 2536 | C537: 還元鉄粉 | E537: 25 | F537: kg | G537: 10500 | H537: 1 | I537: 1.6 | J537: 672 | K537: 2014追加
B538: 2537 | C538: 焼石膏 | E538: 25 | F538: kg | G538: 7350 | H538: 1 | I538: 0.16 | J538: 47.04 | K538: 2014追加
B539: 2538 | C539: ｼﾘｶｹﾞﾙ | E539: 10 | F539: kg | G539: 13400 | H539: 1 | I539: 0.08 | J539: 107.2 | K539: 2014追加
A576: 15 | B576: =技術体系表!$C$16 -> 水稲・主食用米(慣行米，直播，30ha規模，胆沢平野／水沢・金ケ崎東部) | J576: =SUM(J577:J616) -> 854.24
B577: 2374 | C577: ﾈｯﾄ袋(籾消毒用，40×65) | D577: 籾消毒用，40×65cm | E577: 1 | F577: 枚 | G577: 70 | H577: 2 | I577: 0.8 | J577: =IF(ISERROR(I577/E577*G577/H577),"",I577/E577*G577/H577) -> 28
B578: 2536 | C578: 還元鉄粉 | E578: 25 | F578: kg | G578: 10500 | H578: 1 | I578: 1.6 | J578: 672 | K578: 2014追加
B579: 2537 | C579: 焼石膏 | E579: 25 | F579: kg | G579: 7350 | H579: 1 | I579: 0.16 | J579: 47.04 | K579: 2014追加
B580: 2538 | C580: ｼﾘｶｹﾞﾙ | E580: 10 | F580: kg | G580: 13400 | H580: 1 | I580: 0.08 | J580: 107.2 | K580: 2014追加
A617: 16 | B617: =技術体系表!$C$17 -> 水稲・飼料用米(つぶみのり・つぶゆたか，大区画・移植，15ha規模，胆沢平野) | J617: =SUM(J618:J657) -> 3071.2
B618: 2196 | C618: 等辺山形鋼(50×50×6，6) | D618: 50×50×6mm，6m | E618: 1 | F618: 本 | G618: 2360 | H618: 8 | I618: 0.8 | J618: =IF(ISERROR(I618/E618*G618/H618),"",I618/E618*G618/H618) -> 236
B619: 2123 | C619: ｱﾝｶｰﾋﾟﾝ(9×200) | D619: φ9mm×200mm | E619: 1 | F619: 本 | G619: 30 | H619: 3 | I619: 2 | J619: 20
B620: 2374 | C620: ﾈｯﾄ袋(籾消毒用，40×65) | D620: 籾消毒用，40×65cm | E620: 1 | F620: 枚 | G620: 70 | H620: 2 | I620: 0.72 | J620: 25.2
B621: 1549 | C621: 三研合成培土L | E621: 20 | F621: kg | G621: 620 | H621: 1 | I621: 90 | J621: 2790 | K621: 2014価格改定
A658: 17 | B658: =技術体系表!$C$18 -> 飼料用米(つぶみのり・つぶゆたか，移植，30ha規模，胆沢平野) | J658: =SUM(J659:J698) -> 3071.2
B659: 2196 | C659: 等辺山形鋼(50×50×6，6) | D659: 50×50×6mm，6m | E659: 1 | F659: 本 | G659: 2360 | H659: 8 | I659: 0.8 | J659: =IF(ISERROR(I659/E659*G659/H659),"",I659/E659*G659/H659) -> 236
B660: 2123 | C660: ｱﾝｶｰﾋﾟﾝ(9×200) | D660: φ9mm×200mm | E660: 1 | F660: 本 | G660: 30 | H660: 3 | I660: 2 | J660: 20
B661: 2374 | C661: ﾈｯﾄ袋(籾消毒用，40×65) | D661: 籾消毒用，40×65cm | E661: 1 | F661: 枚 | G661: 70 | H661: 2 | I661: 0.72 | J661: 25.2
B662: 1549 | C662: 三研合成培土L | E662: 20 | F662: kg | G662: 620 | H662: 1 | I662: 90 | J662: 2790 | K662: 2014価格改定
A699: 18 | B699: =技術体系表!$C$19 -> 水稲・飼料用米(つぶみのり・つぶゆたか，大区画・直播，15ha規模，胆沢平野) | J699: =SUM(J700:J739) -> 1060.8
B700: 2374 | C700: ﾈｯﾄ袋(籾消毒用，40×65) | D700: 籾消毒用，40×65cm | E700: 1 | F700: 枚 | G700: 70 | H700: 2 | I700: 0.8 | J700: =IF(ISERROR(I700/E700*G700/H700),"",I700/E700*G700/H700) -> 28
B701: 2536 | C701: 還元鉄粉 | E701: 25 | F701: kg | G701: 10500 | H701: 1 | I701: 2 | J701: 840 | K701: 2014追加
B702: 2537 | C702: 焼石膏 | E702: 25 | F702: kg | G702: 7350 | H702: 1 | I702: 0.2 | J702: 58.8 | K702: 2014追加
B703: 2538 | C703: ｼﾘｶｹﾞﾙ | E703: 10 | F703: kg | G703: 13400 | H703: 1 | I703: 0.1 | J703: 134 | K703: 2014追加
A740: 19 | B740: =技術体系表!$C$20 -> 水稲・飼料用米(つぶみのり・つぶゆたか，大区画・直播，30ha規模，胆沢平野) | J740: =SUM(J741:J780) -> 1060.8
B741: 2374 | C741: ﾈｯﾄ袋(籾消毒用，40×65) | D741: 籾消毒用，40×65cm | E741: 1 | F741: 枚 | G741: 70 | H741: 2 | I741: 0.8 | J741: =IF(ISERROR(I741/E741*G741/H741),"",I741/E741*G741/H741) -> 28
B742: 2536 | C742: 還元鉄粉 | E742: 25 | F742: kg | G742: 10500 | H742: 1 | I742: 2 | J742: 840 | K742: 2014追加
B743: 2537 | C743: 焼石膏 | E743: 25 | F743: kg | G743: 7350 | H743: 1 | I743: 0.2 | J743: 58.8 | K743: 2014追加
B744: 2538 | C744: ｼﾘｶｹﾞﾙ | E744: 10 | F744: kg | G744: 13400 | H744: 1 | I744: 0.1 | J744: 134 | K744: 2014追加
A781: 20 | B781: =技術体系表!$C$21 -> 大豆(ﾘｭｳﾎｳ，水田転作・小畦立，7ha規模，胆沢平野) | J781: =SUM(J782:J821) -> 12.6
B782: 2376 | C782: ﾌﾚｺﾝﾊﾞｯｸ(0.5t) | D782: 0.5t | E782: 1 | F782: 枚 | G782: 490 | H782: 5 | I782: 0.1285714286 | J782: =IF(ISERROR(I782/E782*G782/H782),"",I782/E782*G782/H782) -> 12.6
A822: 21 | B822: =技術体系表!$C$22 -> 小麦(ﾅﾝﾌﾞｺﾑｷﾞ，水田転作，7ha規模，胆沢平野) | J822: =SUM(J823:J862) -> 71.4
B823: 2376 | C823: ﾌﾚｺﾝﾊﾞｯｸ(0.5t) | D823: 0.5t | E823: 1 | F823: 枚 | G823: 490 | H823: 5 | I823: 0.7285714286 | J823: =IF(ISERROR(I823/E823*G823/H823),"",I823/E823*G823/H823) -> 71.4
J824: =IF(ISERROR(I824/E824*G824/H824),"",I824/E824*G824/H824) -> 
A863: 22 | B863: =技術体系表!$C$23 -> 受委託(限定ふるさと米，苗生産・販売，3375箱規模，胆沢平野) | J863: =SUM(J864:J903) -> 93.87481481
B864: 2196 | C864: 等辺山形鋼(50×50×6，6) | D864: 50×50×6mm，6m | E864: 1 | F864: 本 | G864: 2360 | H864: 8 | I864: 0.001037037037 | J864: =IF(ISERROR(I864/E864*G864/H864),"",I864/E864*G864/H864) -> 0.3059259259
B865: 2123 | C865: ｱﾝｶｰﾋﾟﾝ(9×200) | D865: φ9mm×200mm | E865: 1 | F865: 本 | G865: 30 | H865: 3 | I865: 0.08888888889 | J865: 0.8888888889
B866: 2374 | C866: ﾈｯﾄ袋(籾消毒用，40×65) | D866: 籾消毒用，40×65cm | E866: 1 | F866: 枚 | G866: 70 | H866: 2 | I866: 0.032 | J866: 1.12
B867: 2539 | C867: 岩手ふるさと培土e苗 | E867: 20 | F867: kg | G867: 654 | H867: 1 | I867: 2.8 | J867: 91.56 | K867: H29春予約価格
A904: 23 | B904: =技術体系表!$C$24 -> 受委託(限定ふるさと米，耕起・代掻，15ha規模，胆沢平野) | J904: =SUM(J905:J944) -> 0
J905: =IF(ISERROR(I905/E905*G905/H905),"",I905/E905*G905/H905) -> 
A945: 24 | B945: =技術体系表!$C$25 -> 受委託(限定ふるさと米，田植，15ha規模，胆沢平野) | J945: =SUM(J946:J985) -> 0
J946: =IF(ISERROR(I946/E946*G946/H946),"",I946/E946*G946/H946) -> 
A986: 25 | B986: =技術体系表!$C$26 -> 受委託(限定ふるさと米，収穫運搬，15ha規模，胆沢平野) | J986: =SUM(J987:J1026) -> 0
J987: =IF(ISERROR(I987/E987*G987/H987),"",I987/E987*G987/H987) -> 
A1027: 26 | B1027: =技術体系表!$C$27 -> 受委託(限定ふるさと米，乾燥調製，81000kg規模，胆沢平野) | J1027: =SUM(J1028:J1067) -> 0
J1028: =IF(ISERROR(I1028/E1028*G1028/H1028),"",I1028/E1028*G1028/H1028) -> 
A1068: 27 | B1068: =技術体系表!$C$28 -> WCS(つぶゆたか，移植，15ha規模，胆沢平野) | J1068: =SUM(J1069:J1108) -> 3071.2
B1069: 2196 | C1069: 等辺山形鋼(50×50×6，6) | D1069: 50×50×6mm，6m | E1069: 1 | F1069: 本 | G1069: 2360 | H1069: 8 | I1069: 0.8 | J1069: =IF(ISERROR(I1069/E1069*G1069/H1069),"",I1069/E1069*G1069/H1069) -> 236
B1070: 2123 | C1070: ｱﾝｶｰﾋﾟﾝ(9×200) | D1070: φ9mm×200mm | E1070: 1 | F1070: 本 | G1070: 30 | H1070: 3 | I1070: 2 | J1070: 20
B1071: 2374 | C1071: ﾈｯﾄ袋(籾消毒用，40×65) | D1071: 籾消毒用，40×65cm | E1071: 1 | F1071: 枚 | G1071: 70 | H1071: 2 | I1071: 0.72 | J1071: 25.2
B1072: 1549 | C1072: 三研合成培土L | E1072: 20 | F1072: kg | G1072: 620 | H1072: 1 | I1072: 90 | J1072: 2790 | K1072: 2014価格改定
A1109: 28 | B1109: =技術体系表!$C$29 -> WCS(つぶゆたか，直播，15ha規模，胆沢平野) | J1109: =SUM(J1110:J1149) -> 1060.8
B1110: 2374 | C1110: ﾈｯﾄ袋(籾消毒用，40×65) | D1110: 籾消毒用，40×65cm | E1110: 1 | F1110: 枚 | G1110: 70 | H1110: 2 | I1110: 0.8 | J1110: =IF(ISERROR(I1110/E1110*G1110/H1110),"",I1110/E1110*G1110/H1110) -> 28
B1111: 2536 | C1111: 還元鉄粉 | E1111: 25 | F1111: kg | G1111: 10500 | H1111: 1 | I1111: 2 | J1111: 840 | K1111: 2014追加
B1112: 2537 | C1112: 焼石膏 | E1112: 25 | F1112: kg | G1112: 7350 | H1112: 1 | I1112: 0.2 | J1112: 58.8 | K1112: 2014追加
B1113: 2538 | C1113: ｼﾘｶｹﾞﾙ | E1113: 10 | F1113: kg | G1113: 13400 | H1113: 1 | I1113: 0.1 | J1113: 134 | K1113: 2014追加
A1150: 29 | B1150: =技術体系表!$C$30 -> 牧草(混播牧草，乾草調製(ﾛｰﾙﾍﾞｰﾙ)，5ha規模，胆沢平野) | J1150: =SUM(J1151:J1190) -> 1870.8
B1151: 2445 | C1151: ﾍﾞｰﾗ用ﾄﾜｲﾝ(PP，12000ft) | D1151: PP，12000ft | E1151: 1 | F1151: 個 | G1151: 2700 | H1151: 1 | I1151: 0.1 | J1151: =IF(ISERROR(I1151/E1151*G1151/H1151),"",I1151/E1151*G1151/H1151) -> 270 | K1151: 2014価格改定
B1152: 2432 | C1152: ｽﾄﾚｯﾁﾌｨﾙﾑ(25×500×1800) | D1152: 25ﾐｸﾛﾝ×500mm×1800m | E1152: 1 | F1152: 巻 | G1152: 8700 | H1152: 1 | I1152: 0.184 | J1152: 1600.8 | K1152: 2014価格改定
A1191: 30 | B1191: =技術体系表!$C$31 -> 牧草(混播牧草，ｸﾞﾗｽｻｲﾚｰｼﾞ(ﾛｰﾙﾍﾞｰﾙ)，5ha規模，胆沢平野) | J1191: =SUM(J1192:J1231) -> 2133.6
B1192: 2445 | C1192: ﾍﾞｰﾗ用ﾄﾜｲﾝ(PP，12000ft) | D1192: PP，12000ft | E1192: 1 | F1192: 個 | G1192: 2700 | H1192: 1 | I1192: 0.12 | J1192: =IF(ISERROR(I1192/E1192*G1192/H1192),"",I1192/E1192*G1192/H1192) -> 324 | K1192: 2014価格改定
B1193: 2432 | C1193: ｽﾄﾚｯﾁﾌｨﾙﾑ(25×500×1800) | D1193: 25ﾐｸﾛﾝ×500mm×1800m | E1193: 1 | F1193: 巻 | G1193: 8700 | H1193: 1 | I1193: 0.208 | J1193: 1809.6 | K1193: 2014価格改定
A1232: 31 | B1232: =技術体系表!$C$32 -> ﾋﾟｰﾏﾝ(京鈴，雨よけﾊｳｽ栽培，30a規模，県下全域) | J1232: =SUM(J1233:J1272) -> 113805.7522
B1233: 2177 | C1233: ﾀﾞﾝﾎﾟｰﾙ(5.5×240) | D1233: φ5.5mm×240cm | E1233: 100 | F1233: 本 | G1233: 8740 | H1233: 5 | I1233: 814 | J1233: =IF(ISERROR(I1233/E1233*G1233/H1233),"",I1233/E1233*G1233/H1233) -> 14228.72
B1234: 2356 | C1234: ｾﾙﾄﾚｲ(128穴) | D1234: 128穴 | E1234: 100 | F1234: 枚 | G1234: 10100 | H1234: 3 | I1234: 10 | J1234: =IF(ISERROR(I1234/E1234*G1234/H1234),"",I1234/E1234*G1234/H1234) -> 336.6666667
B1235: 2396 | C1235: ﾎﾟﾘﾎﾟｯﾄ(丸，10.5) | D1235: 丸，10.5cm | E1235: 3000 | F1235: 個 | G1235: 5350 | H1235: 1 | I1235: 1266.666667 | J1235: 2258.888889
B1236: 1587 | C1236: 黒ﾏﾙﾁ(0.02×1500) | D1236: 厚さ0.02×幅1500mm | E1236: 200 | F1236: m | G1236: 2880 | H1236: 1 | I1236: 592 | J1236: 8524.8
B1237: 2021 | C1237: 番線(2.5) | D1237: 2.5mm | E1237: 1000 | F1237: m | G1237: 7710 | H1237: 3 | I1237: 1248 | J1237: 3207.36
B1238: 2016 | C1238: ﾊﾞｲﾝﾀﾞｰ紐(PP) | D1238: PP，1400m | E1238: 1400 | F1238: m | G1238: 800 | H1238: 1 | I1238: 12320 | J1238: 7040
B1239: 1781 | C1239: ｻﾝﾎｯﾄ(0.05×2100) | D1239: 厚さ0.05×幅2100mm | E1239: 100 | F1239: m | G1239: 18100 | H1239: 3 | I1239: 37 | J1239: 2232.333333
B1240: 1562 | C1240: ｿｲﾙﾌﾚﾝﾄﾞ | E1240: 15 | F1240: l | G1240: 950 | H1240: 1 | I1240: 30 | J1240: 1900 | K1240: Ｈ29参考価格
B1241: 2061 | C1241: 潅水ﾁｭｰﾌﾞ(ｽﾐﾁｭｰﾌﾞ，25-果菜) | D1241: ｽﾐﾁｭｰﾌﾞ，25-果菜，200m | E1241: 200 | F1241: m | G1241: 8800 | H1241: 3 | I1241: 1120 | J1241: 16426.66667
B1242: 2012 | C1242: ﾃｰﾌﾟﾅｰ用針 | D1242: 4800本入 | E1242: 4800 | F1242: 本 | G1242: 450 | H1242: 1 | I1242: 1232 | J1242: 115.5
B1243: 1794 | C1243: ｼﾙﾊﾞｰﾎﾟﾘﾄｳ(0.05×2300) | D1243: 厚さ0.05×幅2300mm | E1243: 100 | F1243: m | G1243: 28500 | H1243: 3 | I1243: 592 | J1243: 56240
B1244: 1568 | C1244: 山土 | E1244: 1000 | F1244: l | G1244: 4320 | H1244: 1 | I1244: 253.3333333 | J1244: 1094.4
B1245: 2011 | C1245: ﾃｰﾌﾟﾅｰ用ﾃｰﾌﾟ | D1245: 40m×10巻 | E1245: 400 | F1245: m | G1245: 650 | H1245: 1 | I1245: 123.3333333 | J1245: 200.4166667
A1273: 32 | B1273: =技術体系表!$C$33 -> ﾋﾟｰﾏﾝ(京ゆたか7，露地栽培，1ha規模，県下全域) | J1273: =SUM(J1274:J1313) -> 69824.04918
B1274: 2177 | C1274: ﾀﾞﾝﾎﾟｰﾙ(5.5×240) | D1274: φ5.5mm×240cm | E1274: 100 | F1274: 本 | G1274: 8740 | H1274: 5 | I1274: 37.8 | J1274: =IF(ISERROR(I1274/E1274*G1274/H1274),"",I1274/E1274*G1274/H1274) -> 660.744
B1275: 2356 | C1275: ｾﾙﾄﾚｲ(128穴) | D1275: 128穴 | E1275: 100 | F1275: 枚 | G1275: 10100 | H1275: 3 | I1275: 11 | J1275: 370.3333333
B1276: 2396 | C1276: ﾎﾟﾘﾎﾟｯﾄ(丸，10.5) | D1276: 丸，10.5cm | E1276: 3000 | F1276: 個 | G1276: 5350 | H1276: 1 | I1276: 1400 | J1276: 2496.666667
B1277: 1616 | C1277: 生分解性ﾏﾙﾁ(0.02×950) | D1277: 厚さ0.02×幅950mm | E1277: 200 | F1277: m | G1277: 5550 | H1277: 1 | I1277: 688.2 | J1277: 19097.55
B1278: 2137 | C1278: ｲﾎﾞ竹(11×90) | D1278: φ11mm×90cm | E1278: 100 | F1278: 本 | G1278: 6990 | H1278: 5 | I1278: 1332 | J1278: 18621.36
B1279: 2186 | C1279: 直管ﾊﾟｲﾌﾟ(19.1×1.2×3.6) | D1279: φ19.1mm×1.2mm×3.6m | E1279: 1 | F1279: 本 | G1279: 760 | H1279: 5 | I1279: 96.2 | J1279: 14622.4
B1280: 2021 | C1280: 番線(2.5) | D1280: 2.5mm | E1280: 1000 | F1280: m | G1280: 7710 | H1280: 3 | I1280: 2686.2 | J1280: 6903.534
B1281: 1781 | C1281: ｻﾝﾎｯﾄ(0.05×2100) | D1281: 厚さ0.05×幅2100mm | E1281: 100 | F1281: m | G1281: 18100 | H1281: 3 | I1281: 39 | J1281: 2353
B1282: 1562 | C1282: ｿｲﾙﾌﾚﾝﾄﾞ | E1282: 15 | F1282: l | G1282: 950 | H1282: 1 | I1282: 33 | J1282: 2090 | K1282: Ｈ29参考価格
B1283: 2017 | C1283: ﾊﾞｲﾝﾀﾞｰ紐(ｻｲｻﾞﾙ) | D1283: ｻｲｻﾞﾙ，850m | E1283: 850 | F1283: m | G1283: 1300 | H1283: 1 | I1283: 914.64 | J1283: 1398.861176
B1284: 1568 | C1284: 山土 | E1284: 1000 | F1284: l | G1284: 4320 | H1284: 1 | I1284: 280 | J1284: 1209.6
A1314: 33 | B1314: =技術体系表!$C$34 -> 0 | J1314: =SUM(J1315:J1354) -> 0
J1315: =IF(ISERROR(I1315/E1315*G1315/H1315),"",I1315/E1315*G1315/H1315) -> 
A1355: 34 | B1355: =技術体系表!$C$35 -> 0 | J1355: =SUM(J1356:J1395) -> 0
J1356: =IF(ISERROR(I1356/E1356*G1356/H1356),"",I1356/E1356*G1356/H1356) -> 
A1396: 35 | B1396: =技術体系表!$C$36 -> 0 | J1396: =SUM(J1397:J1436) -> 0
J1397: =IF(ISERROR(I1397/E1397*G1397/H1397),"",I1397/E1397*G1397/H1397) -> 
A1437: 36 | B1437: =技術体系表!$C$37 -> 0 | J1437: =SUM(J1438:J1477) -> 0
J1438: =IF(ISERROR(I1438/E1438*G1438/H1438),"",I1438/E1438*G1438/H1438) -> 
A1478: 37 | B1478: =技術体系表!$C$38 -> 0 | J1478: =SUM(J1479:J1518) -> 0
J1479: =IF(ISERROR(I1479/E1479*G1479/H1479),"",I1479/E1479*G1479/H1479) -> 
A1519: 38 | B1519: =技術体系表!$C$39 -> 0 | J1519: =SUM(J1520:J1559) -> 0
J1520: =IF(ISERROR(I1520/E1520*G1520/H1520),"",I1520/E1520*G1520/H1520) -> 
A1560: 39 | B1560: =技術体系表!$C$40 -> 0 | J1560: =SUM(J1561:J1600) -> 0
J1561: =IF(ISERROR(I1561/E1561*G1561/H1561),"",I1561/E1561*G1561/H1561) -> 
A1601: 40 | B1601: =技術体系表!$C$41 -> 0 | J1601: =SUM(J1602:J1641) -> 0
J1602: =IF(ISERROR(I1602/E1602*G1602/H1602),"",I1602/E1602*G1602/H1602) -> 
A1642: 41 | B1642: =技術体系表!$C$42 -> 0 | J1642: =SUM(J1643:J1682) -> 0
J1643: =IF(ISERROR(I1643/E1643*G1643/H1643),"",I1643/E1643*G1643/H1643) -> 
J1644: =IF(ISERROR(I1644/E1644*G1644/H1644),"",I1644/E1644*G1644/H1644) -> 
A1683: 42 | B1683: =技術体系表!$C$43 -> 0 | J1683: =SUM(J1684:J1723) -> 0
J1684: =IF(ISERROR(I1684/E1684*G1684/H1684),"",I1684/E1684*G1684/H1684) -> 
A1724: 43 | B1724: =技術体系表!$C$44 -> 0 | J1724: =SUM(J1725:J1764) -> 0
J1725: =IF(ISERROR(I1725/E1725*G1725/H1725),"",I1725/E1725*G1725/H1725) -> 
A1765: 44 | B1765: =技術体系表!$C$45 -> 0 | J1765: =SUM(J1766:J1805) -> 0
J1766: =IF(ISERROR(I1766/E1766*G1766/H1766),"",I1766/E1766*G1766/H1766) -> 
A1806: 45 | B1806: =技術体系表!$C$46 -> 0 | J1806: =SUM(J1807:J1846) -> 0
J1807: =IF(ISERROR(I1807/E1807*G1807/H1807),"",I1807/E1807*G1807/H1807) -> 
A1847: 46 | B1847: =技術体系表!$C$47 -> 0 | J1847: =SUM(J1848:J1887) -> 0
J1848: =IF(ISERROR(I1848/E1848*G1848/H1848),"",I1848/E1848*G1848/H1848) -> 
A1888: 47 | B1888: =技術体系表!$C$48 -> 0 | J1888: =SUM(J1889:J1928) -> 0
J1889: =IF(ISERROR(I1889/E1889*G1889/H1889),"",I1889/E1889*G1889/H1889) -> 
A1929: 48 | B1929: =技術体系表!$C$49 -> 0 | J1929: =SUM(J1930:J1969) -> 0
J1930: =IF(ISERROR(I1930/E1930*G1930/H1930),"",I1930/E1930*G1930/H1930) -> 
A1970: 49 | B1970: =技術体系表!$C$50 -> 0 | J1970: =SUM(J1971:J2010) -> 0
J1971: =IF(ISERROR(I1971/E1971*G1971/H1971),"",I1971/E1971*G1971/H1971) -> 
A2011: 50 | B2011: =技術体系表!$C$51 -> 0 | J2011: =SUM(J2012:J2051) -> 0
J2012: =IF(ISERROR(I2012/E2012*G2012/H2012),"",I2012/E2012*G2012/H2012) -> 
A2052: 51 | B2052: =技術体系表!$C$52 -> 0 | J2052: =SUM(J2053:J2092) -> 0
J2053: =IF(ISERROR(I2053/E2053*G2053/H2053),"",I2053/E2053*G2053/H2053) -> 
... 19 more rows

Sheet 小農具（修正）
A1: No | B1: ｺｰﾄﾞ | C1: 資 材 名 | D1: 銘 柄 等 級 | E1: 包装単位 | F1: 単位 | G1: 標準価格 (円) | H1: 使用 年数 | I1: 使用数量 | J1: 単位 (10a当り) | K1: 価 額 (円) | L1: 備 考
A2: 1 | B2: =試算計画表!E14 -> 0 | K2: =SUM(K3:K42) -> 0
J3: =IF(F3="","",F3) ->  | K3: =IF(ISERROR(I3/E3*G3/H3),"",I3/E3*G3/H3) -> 
J4: =IF(F4="","",F4) ->  | K4: =IF(ISERROR(I4/E4*G4/H4),"",I4/E4*G4/H4) -> 
K11: =IF(ISERROR(I11/E11*G11/H11),"",I11/E11*G11/H11) -> 
A43: 2 | B43: =試算計画表!F14 -> 0 | K43: =SUM(K44:K83) -> 0
K44: =IF(ISERROR(I44/E44*G44/H44),"",I44/E44*G44/H44) -> 
J68: =IF(F68="","",F68) -> 
A84: 3 | B84: =試算計画表!G14 -> 0 | K84: =SUM(K85:K124) -> 0
K85: =IF(ISERROR(I85/E85*G85/H85),"",I85/E85*G85/H85) -> 
K108: =IF(ISERROR(I108/E108*G108/H108),"",I108/E108*G108/H108) -> 
A125: 4 | B125: =試算計画表!H14 -> 0 | K125: =SUM(K126:K165) -> 0
K126: =IF(ISERROR(I126/E126*G126/H126),"",I126/E126*G126/H126) -> 
J132: =IF(F132="","",F132) -> 
A166: 5 | B166: =試算計画表!I14 -> 0 | K166: =SUM(K167:K206) -> 0
K167: =IF(ISERROR(I167/E167*G167/H167),"",I167/E167*G167/H167) -> 
K172: =IF(ISERROR(I172/E172*G172/H172),"",I172/E172*G172/H172) -> 
J196: =IF(F196="","",F196) -> 
A207: 6 | B207: =試算計画表!J14 -> 0 | K207: =SUM(K208:K247) -> 0
K208: =IF(ISERROR(I208/E208*G208/H208),"",I208/E208*G208/H208) -> 
K236: =IF(ISERROR(I236/E236*G236/H236),"",I236/E236*G236/H236) -> 
A248: 7 | B248: =試算計画表!K14 -> 0 | K248: =SUM(K249:K288) -> 0
K249: =IF(ISERROR(I249/E249*G249/H249),"",I249/E249*G249/H249) -> 
J260: =IF(F260="","",F260) -> 
A289: 8 | B289: =試算計画表!L14 -> 0 | K289: =SUM(K290:K329) -> 0
K290: =IF(ISERROR(I290/E290*G290/H290),"",I290/E290*G290/H290) -> 
K300: =IF(ISERROR(I300/E300*G300/H300),"",I300/E300*G300/H300) -> 
J324: =IF(F324="","",F324) -> 
A330: 9 | B330: =試算計画表!M14 -> 0 | K330: =SUM(K331:K370) -> 0
K331: =IF(ISERROR(I331/E331*G331/H331),"",I331/E331*G331/H331) -> 
K364: =IF(ISERROR(I364/E364*G364/H364),"",I364/E364*G364/H364) -> 
A371: 10 | B371: =試算計画表!N14 -> 0 | K371: =SUM(K372:K411) -> 0
J388: =IF(F388="","",F388) -> 

Sheet 小農具 (hidden)
A1: No | B1: ｺｰﾄﾞ | C1: 資 材 名 | D1: 銘 柄 等 級 | E1: 包装単位 | F1: 単位 | G1: 標準価格 | H1: 使用 年数 | I1: 使用数量 | J1: 価 額 | K1: 備 考
A2: 1 | B2: =技術体系表!$C$2 -> 水稲・主食用米(限定ふるさと米，移植，5.1ha規模，胆沢平野／胆沢東部・前沢) | J2: =SUM(J3:J42) -> 2064.444444
B3: 2891 | C3: ｱﾙﾐ三脚(180) | D3: 高さ180cm | E3: 1 | F3: 台 | G3: 20300 | H3: 5 | I3: 0.05882352941 | J3: =IF(ISERROR(I3/E3*G3/H3),"",I3/E3*G3/H3) -> 238.8235294
B4: 2568 | C4: 鍬 | E4: 1 | F4: 本 | G4: 2860 | H4: 3 | I4: 0.03921568627 | J4: =IF(ISERROR(I4/E4*G4/H4),"",I4/E4*G4/H4) -> 37.38562092
B5: 2598 | C5: ﾚｰｷ(ｱﾙﾐ) | D5: ｱﾙﾐ | E5: 1 | F5: 本 | G5: 2010 | H5: 3 | I5: 0.01960784314 | J5: 13.1372549
B6: 2658 | C6: ﾎﾟﾘ容器(角型，200L) | D6: 角型，200L，862×657×635mm | E6: 1 | F6: 個 | G6: 32800 | H6: 5 | I6: 0.05882352941 | J6: 385.8823529
B7: 2600 | C7: 育苗箱(水稲用，300×600×37) | D7: 水稲用，300×600×37mm | E7: 120 | F7: 枚 | G7: 19500 | H7: 5 | I7: 22.50980392 | J7: 731.5686275
B8: 2722 | C8: ﾛｰﾗｰｺﾝﾍﾞｱ(10，30×300) | D8: ﾋﾟｯﾁ10cm，30×300cm | E8: 1 | F8: 台 | G8: 44000 | H8: 5 | I8: 0.03921568627 | J8: 345.0980392
B9: 2853 | C9: ﾋﾞﾆｰﾙﾎｰｽ(18×24) | D9: 18mm×24mm | E9: 1 | F9: m | G9: 340 | H9: 3 | I9: 0.5882352941 | J9: 66.66666667
B10: 2577 | C10: ｽｺｯﾌﾟ(丸型) | D10: 丸型 | E10: 1 | F10: 本 | G10: 1320 | H10: 3 | I10: 0.03921568627 | J10: 17.25490196
B11: 2715 | C11: 苗ｺﾝﾃﾅ(ｱﾙﾐ，水平型，96) | D11: ｱﾙﾐ，水平型，96枚用 | E11: 1 | F11: 台 | G11: 48000 | H11: 5 | I11: 0.01960784314 | J11: =IF(ISERROR(I11/E11*G11/H11),"",I11/E11*G11/H11) -> 188.2352941
B12: 2835 | C12: 散粒器(手動，9L) | D12: 手動，9L | E12: 1 | F12: 台 | G12: 10300 | H12: 5 | I12: 0.01960784314 | J12: 40.39215686
A43: 2 | B43: =技術体系表!$C$3 -> 水稲・主食用米(限定ふるさと米，移植，5.1ha規模，胆沢平野／胆沢西部・金ケ崎西部) | J43: =SUM(J44:J83) -> 2064.444444
B44: 2891 | C44: ｱﾙﾐ三脚(180) | D44: 高さ180cm | E44: 1 | F44: 台 | G44: 20300 | H44: 5 | I44: 0.05882352941 | J44: =IF(ISERROR(I44/E44*G44/H44),"",I44/E44*G44/H44) -> 238.8235294
B45: 2568 | C45: 鍬 | E45: 1 | F45: 本 | G45: 2860 | H45: 3 | I45: 0.03921568627 | J45: 37.38562092
B46: 2598 | C46: ﾚｰｷ(ｱﾙﾐ) | D46: ｱﾙﾐ | E46: 1 | F46: 本 | G46: 2010 | H46: 3 | I46: 0.01960784314 | J46: 13.1372549
B47: 2658 | C47: ﾎﾟﾘ容器(角型，200L) | D47: 角型，200L，862×657×635mm | E47: 1 | F47: 個 | G47: 32800 | H47: 5 | I47: 0.05882352941 | J47: 385.8823529
B48: 2600 | C48: 育苗箱(水稲用，300×600×37) | D48: 水稲用，300×600×37mm | E48: 120 | F48: 枚 | G48: 19500 | H48: 5 | I48: 22.50980392 | J48: 731.5686275
B49: 2722 | C49: ﾛｰﾗｰｺﾝﾍﾞｱ(10，30×300) | D49: ﾋﾟｯﾁ10cm，30×300cm | E49: 1 | F49: 台 | G49: 44000 | H49: 5 | I49: 0.03921568627 | J49: 345.0980392
B50: 2853 | C50: ﾋﾞﾆｰﾙﾎｰｽ(18×24) | D50: 18mm×24mm | E50: 1 | F50: m | G50: 340 | H50: 3 | I50: 0.5882352941 | J50: 66.66666667
B51: 2577 | C51: ｽｺｯﾌﾟ(丸型) | D51: 丸型 | E51: 1 | F51: 本 | G51: 1320 | H51: 3 | I51: 0.03921568627 | J51: 17.25490196
B52: 2715 | C52: 苗ｺﾝﾃﾅ(ｱﾙﾐ，水平型，96) | D52: ｱﾙﾐ，水平型，96枚用 | E52: 1 | F52: 台 | G52: 48000 | H52: 5 | I52: 0.01960784314 | J52: 188.2352941
B53: 2835 | C53: 散粒器(手動，9L) | D53: 手動，9L | E53: 1 | F53: 台 | G53: 10300 | H53: 5 | I53: 0.01960784314 | J53: 40.39215686
A84: 3 | B84: =技術体系表!$C$4 -> 水稲・主食用米(限定ふるさと米，移植，5.1ha規模，胆沢平野／水沢・金ケ崎東部) | J84: =SUM(J85:J124) -> 2064.444444
B85: 2891 | C85: ｱﾙﾐ三脚(180) | D85: 高さ180cm | E85: 1 | F85: 台 | G85: 20300 | H85: 5 | I85: 0.05882352941 | J85: =IF(ISERROR(I85/E85*G85/H85),"",I85/E85*G85/H85) -> 238.8235294
B86: 2568 | C86: 鍬 | E86: 1 | F86: 本 | G86: 2860 | H86: 3 | I86: 0.03921568627 | J86: 37.38562092
B87: 2598 | C87: ﾚｰｷ(ｱﾙﾐ) | D87: ｱﾙﾐ | E87: 1 | F87: 本 | G87: 2010 | H87: 3 | I87: 0.01960784314 | J87: 13.1372549
B88: 2658 | C88: ﾎﾟﾘ容器(角型，200L) | D88: 角型，200L，862×657×635mm | E88: 1 | F88: 個 | G88: 32800 | H88: 5 | I88: 0.05882352941 | J88: 385.8823529
B89: 2600 | C89: 育苗箱(水稲用，300×600×37) | D89: 水稲用，300×600×37mm | E89: 120 | F89: 枚 | G89: 19500 | H89: 5 | I89: 22.50980392 | J89: 731.5686275
B90: 2722 | C90: ﾛｰﾗｰｺﾝﾍﾞｱ(10，30×300) | D90: ﾋﾟｯﾁ10cm，30×300cm | E90: 1 | F90: 台 | G90: 44000 | H90: 5 | I90: 0.03921568627 | J90: 345.0980392
B91: 2853 | C91: ﾋﾞﾆｰﾙﾎｰｽ(18×24) | D91: 18mm×24mm | E91: 1 | F91: m | G91: 340 | H91: 3 | I91: 0.5882352941 | J91: 66.66666667
B92: 2577 | C92: ｽｺｯﾌﾟ(丸型) | D92: 丸型 | E92: 1 | F92: 本 | G92: 1320 | H92: 3 | I92: 0.03921568627 | J92: 17.25490196
B93: 2715 | C93: 苗ｺﾝﾃﾅ(ｱﾙﾐ，水平型，96) | D93: ｱﾙﾐ，水平型，96枚用 | E93: 1 | F93: 台 | G93: 48000 | H93: 5 | I93: 0.01960784314 | J93: 188.2352941
B94: 2835 | C94: 散粒器(手動，9L) | D94: 手動，9L | E94: 1 | F94: 台 | G94: 10300 | H94: 5 | I94: 0.01960784314 | J94: 40.39215686
J108: =IF(ISERROR(I108/E108*G108/H108),"",I108/E108*G108/H108) -> 
A125: 4 | B125: =技術体系表!$C$5 -> 水稲・主食用米(限定ふるさと米，移植，15ha規模，胆沢平野／胆沢東部・前沢) | J125: =SUM(J126:J165) -> 1510.827778
B126: 2891 | C126: ｱﾙﾐ三脚(180) | D126: 高さ180cm | E126: 1 | F126: 台 | G126: 20300 | H126: 5 | I126: 0.02 | J126: =IF(ISERROR(I126/E126*G126/H126),"",I126/E126*G126/H126) -> 81.2
B127: 2568 | C127: 鍬 | E127: 1 | F127: 本 | G127: 2860 | H127: 3 | I127: 0.01333333333 | J127: 12.71111111
B128: 2598 | C128: ﾚｰｷ(ｱﾙﾐ) | D128: ｱﾙﾐ | E128: 1 | F128: 本 | G128: 2010 | H128: 3 | I128: 0.006666666667 | J128: 4.466666667
B129: 2658 | C129: ﾎﾟﾘ容器(角型，200L) | D129: 角型，200L，862×657×635mm | E129: 1 | F129: 個 | G129: 32800 | H129: 5 | I129: 0.06 | J129: 393.6
B130: 2600 | C130: 育苗箱(水稲用，300×600×37) | D130: 水稲用，300×600×37mm | E130: 120 | F130: 枚 | G130: 19500 | H130: 5 | I130: 22.5 | J130: 731.25
B131: 2722 | C131: ﾛｰﾗｰｺﾝﾍﾞｱ(10，30×300) | D131: ﾋﾟｯﾁ10cm，30×300cm | E131: 1 | F131: 台 | G131: 44000 | H131: 5 | I131: 0.01333333333 | J131: 117.3333333
B132: 2853 | C132: ﾋﾞﾆｰﾙﾎｰｽ(18×24) | D132: 18mm×24mm | E132: 1 | F132: m | G132: 340 | H132: 3 | I132: 0.2 | J132: 22.66666667
B133: 2577 | C133: ｽｺｯﾌﾟ(丸型) | D133: 丸型 | E133: 1 | F133: 本 | G133: 1320 | H133: 3 | I133: 0.01333333333 | J133: 5.866666667
B134: 2715 | C134: 苗ｺﾝﾃﾅ(ｱﾙﾐ，水平型，96) | D134: ｱﾙﾐ，水平型，96枚用 | E134: 1 | F134: 台 | G134: 48000 | H134: 5 | I134: 0.01333333333 | J134: 128
B135: 2835 | C135: 散粒器(手動，9L) | D135: 手動，9L | E135: 1 | F135: 台 | G135: 10300 | H135: 5 | I135: 0.006666666667 | J135: 13.73333333
A166: 5 | B166: =技術体系表!$C$6 -> 水稲・主食用米(限定ふるさと米，移植，15ha規模，胆沢平野／胆沢西部・金ケ崎西部) | J166: =SUM(J167:J206) -> 1510.827778
B167: 2891 | C167: ｱﾙﾐ三脚(180) | D167: 高さ180cm | E167: 1 | F167: 台 | G167: 20300 | H167: 5 | I167: 0.02 | J167: =IF(ISERROR(I167/E167*G167/H167),"",I167/E167*G167/H167) -> 81.2
B168: 2568 | C168: 鍬 | E168: 1 | F168: 本 | G168: 2860 | H168: 3 | I168: 0.01333333333 | J168: 12.71111111
B169: 2598 | C169: ﾚｰｷ(ｱﾙﾐ) | D169: ｱﾙﾐ | E169: 1 | F169: 本 | G169: 2010 | H169: 3 | I169: 0.006666666667 | J169: 4.466666667
B170: 2658 | C170: ﾎﾟﾘ容器(角型，200L) | D170: 角型，200L，862×657×635mm | E170: 1 | F170: 個 | G170: 32800 | H170: 5 | I170: 0.06 | J170: 393.6
B171: 2600 | C171: 育苗箱(水稲用，300×600×37) | D171: 水稲用，300×600×37mm | E171: 120 | F171: 枚 | G171: 19500 | H171: 5 | I171: 22.5 | J171: 731.25
B172: 2722 | C172: ﾛｰﾗｰｺﾝﾍﾞｱ(10，30×300) | D172: ﾋﾟｯﾁ10cm，30×300cm | E172: 1 | F172: 台 | G172: 44000 | H172: 5 | I172: 0.01333333333 | J172: =IF(ISERROR(I172/E172*G172/H172),"",I172/E172*G172/H172) -> 117.3333333
B173: 2853 | C173: ﾋﾞﾆｰﾙﾎｰｽ(18×24) | D173: 18mm×24mm | E173: 1 | F173: m | G173: 340 | H173: 3 | I173: 0.2 | J173: 22.66666667
B174: 2577 | C174: ｽｺｯﾌﾟ(丸型) | D174: 丸型 | E174: 1 | F174: 本 | G174: 1320 | H174: 3 | I174: 0.01333333333 | J174: 5.866666667
B175: 2715 | C175: 苗ｺﾝﾃﾅ(ｱﾙﾐ，水平型，96) | D175: ｱﾙﾐ，水平型，96枚用 | E175: 1 | F175: 台 | G175: 48000 | H175: 5 | I175: 0.01333333333 | J175: 128
B176: 2835 | C176: 散粒器(手動，9L) | D176: 手動，9L | E176: 1 | F176: 台 | G176: 10300 | H176: 5 | I176: 0.006666666667 | J176: 13.73333333
A207: 6 | B207: =技術体系表!$C$7 -> 水稲・主食用米(限定ふるさと米，移植，15ha規模，胆沢平野／水沢・金ケ崎東部) | J207: =SUM(J208:J247) -> 1510.827778
B208: 2891 | C208: ｱﾙﾐ三脚(180) | D208: 高さ180cm | E208: 1 | F208: 台 | G208: 20300 | H208: 5 | I208: 0.02 | J208: =IF(ISERROR(I208/E208*G208/H208),"",I208/E208*G208/H208) -> 81.2
B209: 2568 | C209: 鍬 | E209: 1 | F209: 本 | G209: 2860 | H209: 3 | I209: 0.01333333333 | J209: 12.71111111
B210: 2598 | C210: ﾚｰｷ(ｱﾙﾐ) | D210: ｱﾙﾐ | E210: 1 | F210: 本 | G210: 2010 | H210: 3 | I210: 0.006666666667 | J210: 4.466666667
B211: 2658 | C211: ﾎﾟﾘ容器(角型，200L) | D211: 角型，200L，862×657×635mm | E211: 1 | F211: 個 | G211: 32800 | H211: 5 | I211: 0.06 | J211: 393.6
B212: 2600 | C212: 育苗箱(水稲用，300×600×37) | D212: 水稲用，300×600×37mm | E212: 120 | F212: 枚 | G212: 19500 | H212: 5 | I212: 22.5 | J212: 731.25
B213: 2722 | C213: ﾛｰﾗｰｺﾝﾍﾞｱ(10，30×300) | D213: ﾋﾟｯﾁ10cm，30×300cm | E213: 1 | F213: 台 | G213: 44000 | H213: 5 | I213: 0.01333333333 | J213: 117.3333333
B214: 2853 | C214: ﾋﾞﾆｰﾙﾎｰｽ(18×24) | D214: 18mm×24mm | E214: 1 | F214: m | G214: 340 | H214: 3 | I214: 0.2 | J214: 22.66666667
B215: 2577 | C215: ｽｺｯﾌﾟ(丸型) | D215: 丸型 | E215: 1 | F215: 本 | G215: 1320 | H215: 3 | I215: 0.01333333333 | J215: 5.866666667
B216: 2715 | C216: 苗ｺﾝﾃﾅ(ｱﾙﾐ，水平型，96) | D216: ｱﾙﾐ，水平型，96枚用 | E216: 1 | F216: 台 | G216: 48000 | H216: 5 | I216: 0.01333333333 | J216: 128
B217: 2835 | C217: 散粒器(手動，9L) | D217: 手動，9L | E217: 1 | F217: 台 | G217: 10300 | H217: 5 | I217: 0.006666666667 | J217: 13.73333333
J236: =IF(ISERROR(I236/E236*G236/H236),"",I236/E236*G236/H236) -> 
A248: 7 | B248: =技術体系表!$C$8 -> 水稲・主食用米(限定ふるさと米，移植，30ha規模，胆沢平野／胆沢東部・前沢) | J248: =SUM(J249:J288) -> 1317.838889
B249: 2891 | C249: ｱﾙﾐ三脚(180) | D249: 高さ180cm | E249: 1 | F249: 台 | G249: 20300 | H249: 5 | I249: 0.01 | J249: =IF(ISERROR(I249/E249*G249/H249),"",I249/E249*G249/H249) -> 40.6
B250: 2568 | C250: 鍬 | E250: 1 | F250: 本 | G250: 2860 | H250: 3 | I250: 0.006666666667 | J250: 6.355555556
B251: 2598 | C251: ﾚｰｷ(ｱﾙﾐ) | D251: ｱﾙﾐ | E251: 1 | F251: 本 | G251: 2010 | H251: 3 | I251: 0.003333333333 | J251: 2.233333333
B252: 2658 | C252: ﾎﾟﾘ容器(角型，200L) | D252: 角型，200L，862×657×635mm | E252: 1 | F252: 個 | G252: 32800 | H252: 5 | I252: 0.06 | J252: 393.6
B253: 2600 | C253: 育苗箱(水稲用，300×600×37) | D253: 水稲用，300×600×37mm | E253: 120 | F253: 枚 | G253: 19500 | H253: 5 | I253: 22.5 | J253: 731.25
B254: 2722 | C254: ﾛｰﾗｰｺﾝﾍﾞｱ(10，30×300) | D254: ﾋﾟｯﾁ10cm，30×300cm | E254: 1 | F254: 台 | G254: 44000 | H254: 5 | I254: 0.006666666667 | J254: 58.66666667
B255: 2853 | C255: ﾋﾞﾆｰﾙﾎｰｽ(18×24) | D255: 18mm×24mm | E255: 1 | F255: m | G255: 340 | H255: 3 | I255: 0.1 | J255: 11.33333333
B256: 2577 | C256: ｽｺｯﾌﾟ(丸型) | D256: 丸型 | E256: 1 | F256: 本 | G256: 1320 | H256: 3 | I256: 0.006666666667 | J256: 2.933333333
B257: 2715 | C257: 苗ｺﾝﾃﾅ(ｱﾙﾐ，水平型，96) | D257: ｱﾙﾐ，水平型，96枚用 | E257: 1 | F257: 台 | G257: 48000 | H257: 5 | I257: 0.006666666667 | J257: 64
B258: 2835 | C258: 散粒器(手動，9L) | D258: 手動，9L | E258: 1 | F258: 台 | G258: 10300 | H258: 5 | I258: 0.003333333333 | J258: 6.866666667
A289: 8 | B289: =技術体系表!$C$9 -> 水稲・主食用米(限定ふるさと米，移植，30ha規模，胆沢平野／胆沢西部・金ケ崎西部) | J289: =SUM(J290:J329) -> 1317.838889
B290: 2891 | C290: ｱﾙﾐ三脚(180) | D290: 高さ180cm | E290: 1 | F290: 台 | G290: 20300 | H290: 5 | I290: 0.01 | J290: =IF(ISERROR(I290/E290*G290/H290),"",I290/E290*G290/H290) -> 40.6
B291: 2568 | C291: 鍬 | E291: 1 | F291: 本 | G291: 2860 | H291: 3 | I291: 0.006666666667 | J291: 6.355555556
B292: 2598 | C292: ﾚｰｷ(ｱﾙﾐ) | D292: ｱﾙﾐ | E292: 1 | F292: 本 | G292: 2010 | H292: 3 | I292: 0.003333333333 | J292: 2.233333333
B293: 2658 | C293: ﾎﾟﾘ容器(角型，200L) | D293: 角型，200L，862×657×635mm | E293: 1 | F293: 個 | G293: 32800 | H293: 5 | I293: 0.06 | J293: 393.6
B294: 2600 | C294: 育苗箱(水稲用，300×600×37) | D294: 水稲用，300×600×37mm | E294: 120 | F294: 枚 | G294: 19500 | H294: 5 | I294: 22.5 | J294: 731.25
B295: 2722 | C295: ﾛｰﾗｰｺﾝﾍﾞｱ(10，30×300) | D295: ﾋﾟｯﾁ10cm，30×300cm | E295: 1 | F295: 台 | G295: 44000 | H295: 5 | I295: 0.006666666667 | J295: 58.66666667
B296: 2853 | C296: ﾋﾞﾆｰﾙﾎｰｽ(18×24) | D296: 18mm×24mm | E296: 1 | F296: m | G296: 340 | H296: 3 | I296: 0.1 | J296: 11.33333333
B297: 2577 | C297: ｽｺｯﾌﾟ(丸型) | D297: 丸型 | E297: 1 | F297: 本 | G297: 1320 | H297: 3 | I297: 0.006666666667 | J297: 2.933333333
B298: 2715 | C298: 苗ｺﾝﾃﾅ(ｱﾙﾐ，水平型，96) | D298: ｱﾙﾐ，水平型，96枚用 | E298: 1 | F298: 台 | G298: 48000 | H298: 5 | I298: 0.006666666667 | J298: 64
B299: 2835 | C299: 散粒器(手動，9L) | D299: 手動，9L | E299: 1 | F299: 台 | G299: 10300 | H299: 5 | I299: 0.003333333333 | J299: 6.866666667
J300: =IF(ISERROR(I300/E300*G300/H300),"",I300/E300*G300/H300) -> 
A330: 9 | B330: =技術体系表!$C$10 -> 水稲・主食用米(限定ふるさと米，移植，30ha規模，胆沢平野／水沢・金ケ崎東部) | J330: =SUM(J331:J370) -> 1317.838889
B331: 2891 | C331: ｱﾙﾐ三脚(180) | D331: 高さ180cm | E331: 1 | F331: 台 | G331: 20300 | H331: 5 | I331: 0.01 | J331: =IF(ISERROR(I331/E331*G331/H331),"",I331/E331*G331/H331) -> 40.6
B332: 2568 | C332: 鍬 | E332: 1 | F332: 本 | G332: 2860 | H332: 3 | I332: 0.006666666667 | J332: 6.355555556
B333: 2598 | C333: ﾚｰｷ(ｱﾙﾐ) | D333: ｱﾙﾐ | E333: 1 | F333: 本 | G333: 2010 | H333: 3 | I333: 0.003333333333 | J333: 2.233333333
B334: 2658 | C334: ﾎﾟﾘ容器(角型，200L) | D334: 角型，200L，862×657×635mm | E334: 1 | F334: 個 | G334: 32800 | H334: 5 | I334: 0.06 | J334: 393.6
B335: 2600 | C335: 育苗箱(水稲用，300×600×37) | D335: 水稲用，300×600×37mm | E335: 120 | F335: 枚 | G335: 19500 | H335: 5 | I335: 22.5 | J335: 731.25
B336: 2722 | C336: ﾛｰﾗｰｺﾝﾍﾞｱ(10，30×300) | D336: ﾋﾟｯﾁ10cm，30×300cm | E336: 1 | F336: 台 | G336: 44000 | H336: 5 | I336: 0.006666666667 | J336: 58.66666667
B337: 2853 | C337: ﾋﾞﾆｰﾙﾎｰｽ(18×24) | D337: 18mm×24mm | E337: 1 | F337: m | G337: 340 | H337: 3 | I337: 0.1 | J337: 11.33333333
B338: 2577 | C338: ｽｺｯﾌﾟ(丸型) | D338: 丸型 | E338: 1 | F338: 本 | G338: 1320 | H338: 3 | I338: 0.006666666667 | J338: 2.933333333
B339: 2715 | C339: 苗ｺﾝﾃﾅ(ｱﾙﾐ，水平型，96) | D339: ｱﾙﾐ，水平型，96枚用 | E339: 1 | F339: 台 | G339: 48000 | H339: 5 | I339: 0.006666666667 | J339: 64
B340: 2835 | C340: 散粒器(手動，9L) | D340: 手動，9L | E340: 1 | F340: 台 | G340: 10300 | H340: 5 | I340: 0.003333333333 | J340: 6.866666667
J364: =IF(ISERROR(I364/E364*G364/H364),"",I364/E364*G364/H364) -> 
A371: 10 | B371: =技術体系表!$C$11 -> 水稲・主食用米(慣行米，直播，15ha規模，胆沢平野／胆沢東部・前沢) | J371: =SUM(J372:J411) -> 5.866666667
B372: 2577 | C372: ｽｺｯﾌﾟ(丸型) | D372: 丸型 | E372: 1 | F372: 本 | G372: 1320 | H372: 3 | I372: 0.01333333333 | J372: =IF(ISERROR(I372/E372*G372/H372),"",I372/E372*G372/H372) -> 5.866666667
A412: 11 | B412: =技術体系表!$C$12 -> 水稲・主食用米(慣行米，直播，15ha規模，胆沢平野／胆沢西部・金ケ崎西部) | J412: =SUM(J413:J452) -> 5.866666667
B413: 2577 | C413: ｽｺｯﾌﾟ(丸型) | D413: 丸型 | E413: 1 | F413: 本 | G413: 1320 | H413: 3 | I413: 0.01333333333 | J413: =IF(ISERROR(I413/E413*G413/H413),"",I413/E413*G413/H413) -> 5.866666667
J414: =IF(ISERROR(I414/E414*G414/H414),"",I414/E414*G414/H414) -> 
J421: =IF(ISERROR(I421/E421*G421/H421),"",I421/E421*G421/H421) -> 
J422: =IF(ISERROR(I422/E422*G422/H422),"",I422/E422*G422/H422) -> 
A453: 12 | B453: =技術体系表!$C$13 -> 水稲・主食用米(慣行米，直播，15ha規模，胆沢平野／水沢・金ケ崎東部) | J453: =SUM(J454:J493) -> 5.866666667
B454: 2577 | C454: ｽｺｯﾌﾟ(丸型) | D454: 丸型 | E454: 1 | F454: 本 | G454: 1320 | H454: 3 | I454: 0.01333333333 | J454: =IF(ISERROR(I454/E454*G454/H454),"",I454/E454*G454/H454) -> 5.866666667
A494: 13 | B494: =技術体系表!$C$14 -> 水稲・主食用米(慣行米，直播，30ha規模，胆沢平野／胆沢東部・前沢) | J494: =SUM(J495:J534) -> 2.933333333
B495: 2577 | C495: ｽｺｯﾌﾟ(丸型) | D495: 丸型 | E495: 1 | F495: 本 | G495: 1320 | H495: 3 | I495: 0.006666666667 | J495: =IF(ISERROR(I495/E495*G495/H495),"",I495/E495*G495/H495) -> 2.933333333
A535: 14 | B535: =技術体系表!$C$15 -> 水稲・主食用米(慣行米，直播，30ha規模，胆沢平野／胆沢西部・金ケ崎西部) | J535: =SUM(J536:J575) -> 2.933333333
B536: 2577 | C536: ｽｺｯﾌﾟ(丸型) | D536: 丸型 | E536: 1 | F536: 本 | G536: 1320 | H536: 3 | I536: 0.006666666667 | J536: =IF(ISERROR(I536/E536*G536/H536),"",I536/E536*G536/H536) -> 2.933333333
A576: 15 | B576: =技術体系表!$C$16 -> 水稲・主食用米(慣行米，直播，30ha規模，胆沢平野／水沢・金ケ崎東部) | J576: =SUM(J577:J616) -> 2.933333333
B577: 2577 | C577: ｽｺｯﾌﾟ(丸型) | D577: 丸型 | E577: 1 | F577: 本 | G577: 1320 | H577: 3 | I577: 0.006666666667 | J577: =IF(ISERROR(I577/E577*G577/H577),"",I577/E577*G577/H577) -> 2.933333333
A617: 16 | B617: =技術体系表!$C$17 -> 水稲・飼料用米(つぶみのり・つぶゆたか，大区画・移植，15ha規模，胆沢平野) | J617: =SUM(J618:J657) -> 1510.827778
B618: 2891 | C618: ｱﾙﾐ三脚(180) | D618: 高さ180cm | E618: 1 | F618: 台 | G618: 20300 | H618: 5 | I618: 0.02 | J618: =IF(ISERROR(I618/E618*G618/H618),"",I618/E618*G618/H618) -> 81.2
B619: 2568 | C619: 鍬 | E619: 1 | F619: 本 | G619: 2860 | H619: 3 | I619: 0.01333333333 | J619: 12.71111111
B620: 2598 | C620: ﾚｰｷ(ｱﾙﾐ) | D620: ｱﾙﾐ | E620: 1 | F620: 本 | G620: 2010 | H620: 3 | I620: 0.006666666667 | J620: 4.466666667
B621: 2658 | C621: ﾎﾟﾘ容器(角型，200L) | D621: 角型，200L，862×657×635mm | E621: 1 | F621: 個 | G621: 32800 | H621: 5 | I621: 0.06 | J621: 393.6
B622: 2600 | C622: 育苗箱(水稲用，300×600×37) | D622: 水稲用，300×600×37mm | E622: 120 | F622: 枚 | G622: 19500 | H622: 5 | I622: 22.5 | J622: 731.25
B623: 2722 | C623: ﾛｰﾗｰｺﾝﾍﾞｱ(10，30×300) | D623: ﾋﾟｯﾁ10cm，30×300cm | E623: 1 | F623: 台 | G623: 44000 | H623: 5 | I623: 0.01333333333 | J623: 117.3333333
B624: 2853 | C624: ﾋﾞﾆｰﾙﾎｰｽ(18×24) | D624: 18mm×24mm | E624: 1 | F624: m | G624: 340 | H624: 3 | I624: 0.2 | J624: 22.66666667
B625: 2577 | C625: ｽｺｯﾌﾟ(丸型) | D625: 丸型 | E625: 1 | F625: 本 | G625: 1320 | H625: 3 | I625: 0.01333333333 | J625: 5.866666667
B626: 2715 | C626: 苗ｺﾝﾃﾅ(ｱﾙﾐ，水平型，96) | D626: ｱﾙﾐ，水平型，96枚用 | E626: 1 | F626: 台 | G626: 48000 | H626: 5 | I626: 0.01333333333 | J626: 128
B627: 2835 | C627: 散粒器(手動，9L) | D627: 手動，9L | E627: 1 | F627: 台 | G627: 10300 | H627: 5 | I627: 0.006666666667 | J627: 13.73333333
A658: 17 | B658: =技術体系表!$C$18 -> 飼料用米(つぶみのり・つぶゆたか，移植，30ha規模，胆沢平野) | J658: =SUM(J659:J698) -> 1317.838889
B659: 2891 | C659: ｱﾙﾐ三脚(180) | D659: 高さ180cm | E659: 1 | F659: 台 | G659: 20300 | H659: 5 | I659: 0.01 | J659: =IF(ISERROR(I659/E659*G659/H659),"",I659/E659*G659/H659) -> 40.6
B660: 2568 | C660: 鍬 | E660: 1 | F660: 本 | G660: 2860 | H660: 3 | I660: 0.006666666667 | J660: 6.355555556
B661: 2598 | C661: ﾚｰｷ(ｱﾙﾐ) | D661: ｱﾙﾐ | E661: 1 | F661: 本 | G661: 2010 | H661: 3 | I661: 0.003333333333 | J661: 2.233333333
B662: 2658 | C662: ﾎﾟﾘ容器(角型，200L) | D662: 角型，200L，862×657×635mm | E662: 1 | F662: 個 | G662: 32800 | H662: 5 | I662: 0.06 | J662: 393.6
B663: 2600 | C663: 育苗箱(水稲用，300×600×37) | D663: 水稲用，300×600×37mm | E663: 120 | F663: 枚 | G663: 19500 | H663: 5 | I663: 22.5 | J663: 731.25
B664: 2722 | C664: ﾛｰﾗｰｺﾝﾍﾞｱ(10，30×300) | D664: ﾋﾟｯﾁ10cm，30×300cm | E664: 1 | F664: 台 | G664: 44000 | H664: 5 | I664: 0.006666666667 | J664: 58.66666667
B665: 2853 | C665: ﾋﾞﾆｰﾙﾎｰｽ(18×24) | D665: 18mm×24mm | E665: 1 | F665: m | G665: 340 | H665: 3 | I665: 0.1 | J665: 11.33333333
B666: 2577 | C666: ｽｺｯﾌﾟ(丸型) | D666: 丸型 | E666: 1 | F666: 本 | G666: 1320 | H666: 3 | I666: 0.006666666667 | J666: 2.933333333
B667: 2715 | C667: 苗ｺﾝﾃﾅ(ｱﾙﾐ，水平型，96) | D667: ｱﾙﾐ，水平型，96枚用 | E667: 1 | F667: 台 | G667: 48000 | H667: 5 | I667: 0.006666666667 | J667: 64
B668: 2835 | C668: 散粒器(手動，9L) | D668: 手動，9L | E668: 1 | F668: 台 | G668: 10300 | H668: 5 | I668: 0.003333333333 | J668: 6.866666667
A699: 18 | B699: =技術体系表!$C$19 -> 水稲・飼料用米(つぶみのり・つぶゆたか，大区画・直播，15ha規模，胆沢平野) | J699: =SUM(J700:J739) -> 5.866666667
B700: 2577 | C700: ｽｺｯﾌﾟ(丸型) | D700: 丸型 | E700: 1 | F700: 本 | G700: 1320 | H700: 3 | I700: 0.01333333333 | J700: =IF(ISERROR(I700/E700*G700/H700),"",I700/E700*G700/H700) -> 5.866666667
A740: 19 | B740: =技術体系表!$C$20 -> 水稲・飼料用米(つぶみのり・つぶゆたか，大区画・直播，30ha規模，胆沢平野) | J740: =SUM(J741:J780) -> 2.933333333
B741: 2577 | C741: ｽｺｯﾌﾟ(丸型) | D741: 丸型 | E741: 1 | F741: 本 | G741: 1320 | H741: 3 | I741: 0.006666666667 | J741: =IF(ISERROR(I741/E741*G741/H741),"",I741/E741*G741/H741) -> 2.933333333
A781: 20 | B781: =技術体系表!$C$21 -> 大豆(ﾘｭｳﾎｳ，水田転作・小畦立，7ha規模，胆沢平野) | J781: =SUM(J782:J821) -> 94.48979592
B782: 2911 | C782: 小畦立用ｱﾀｯﾁﾒﾝﾄ | E782: 1 | F782: 台 | G782: 46300 | H782: 7 | I782: 0.01428571429 | J782: =IF(ISERROR(I782/E782*G782/H782),"",I782/E782*G782/H782) -> 94.48979592
A822: 21 | B822: =技術体系表!$C$22 -> 小麦(ﾅﾝﾌﾞｺﾑｷﾞ，水田転作，7ha規模，胆沢平野) | J822: =SUM(J823:J862) -> 0
J823: =IF(ISERROR(I823/E823*G823/H823),"",I823/E823*G823/H823) -> 
J824: =IF(ISERROR(I824/E824*G824/H824),"",I824/E824*G824/H824) -> 
J831: =IF(ISERROR(I831/E831*G831/H831),"",I831/E831*G831/H831) -> 
J832: =IF(ISERROR(I832/E832*G832/H832),"",I832/E832*G832/H832) -> 
A863: 22 | B863: =技術体系表!$C$23 -> 受委託(限定ふるさと米，苗生産・販売，3375箱規模，胆沢平野) | J863: =SUM(J864:J903) -> 60.58790123
B864: 2891 | C864: ｱﾙﾐ三脚(180) | D864: 高さ180cm | E864: 1 | F864: 台 | G864: 20300 | H864: 5 | I864: 0.0008888888889 | J864: =IF(ISERROR(I864/E864*G864/H864),"",I864/E864*G864/H864) -> 3.608888889
B865: 2568 | C865: 鍬 | E865: 1 | F865: 本 | G865: 2860 | H865: 3 | I865: 0.0005925925926 | J865: 0.5649382716
B866: 2598 | C866: ﾚｰｷ(ｱﾙﾐ) | D866: ｱﾙﾐ | E866: 1 | F866: 本 | G866: 2010 | H866: 3 | I866: 0.0002962962963 | J866: 0.1985185185
B867: 2658 | C867: ﾎﾟﾘ容器(角型，200L) | D867: 角型，200L，862×657×635mm | E867: 1 | F867: 個 | G867: 32800 | H867: 5 | I867: 0.002666666667 | J867: 17.49333333
B868: 2600 | C868: 育苗箱(水稲用，300×600×37) | D868: 水稲用，300×600×37mm | E868: 120 | F868: 枚 | G868: 19500 | H868: 5 | I868: 1 | J868: 32.5
B869: 2722 | C869: ﾛｰﾗｰｺﾝﾍﾞｱ(10，30×300) | D869: ﾋﾟｯﾁ10cm，30×300cm | E869: 1 | F869: 台 | G869: 44000 | H869: 5 | I869: 0.0005925925926 | J869: 5.214814815
B870: 2853 | C870: ﾋﾞﾆｰﾙﾎｰｽ(18×24) | D870: 18mm×24mm | E870: 1 | F870: m | G870: 340 | H870: 3 | I870: 0.008888888889 | J870: 1.007407407
A904: 23 | B904: =技術体系表!$C$24 -> 受委託(限定ふるさと米，耕起・代掻，15ha規模，胆沢平野) | J904: =SUM(J905:J944) -> 0
J905: =IF(ISERROR(I905/E905*G905/H905),"",I905/E905*G905/H905) -> 
A945: 24 | B945: =技術体系表!$C$25 -> 受委託(限定ふるさと米，田植，15ha規模，胆沢平野) | J945: =SUM(J946:J985) -> 0
J946: =IF(ISERROR(I946/E946*G946/H946),"",I946/E946*G946/H946) -> 
A986: 25 | B986: =技術体系表!$C$26 -> 受委託(限定ふるさと米，収穫運搬，15ha規模，胆沢平野) | J986: =SUM(J987:J1026) -> 0
J987: =IF(ISERROR(I987/E987*G987/H987),"",I987/E987*G987/H987) -> 
A1027: 26 | B1027: =技術体系表!$C$27 -> 受委託(限定ふるさと米，乾燥調製，81000kg規模，胆沢平野) | J1027: =SUM(J1028:J1067) -> 0
J1028: =IF(ISERROR(I1028/E1028*G1028/H1028),"",I1028/E1028*G1028/H1028) -> 
A1068: 27 | B1068: =技術体系表!$C$28 -> WCS(つぶゆたか，移植，15ha規模，胆沢平野) | J1068: =SUM(J1069:J1108) -> 1510.827778
B1069: 2891 | C1069: ｱﾙﾐ三脚(180) | D1069: 高さ180cm | E1069: 1 | F1069: 台 | G1069: 20300 | H1069: 5 | I1069: 0.02 | J1069: =IF(ISERROR(I1069/E1069*G1069/H1069),"",I1069/E1069*G1069/H1069) -> 81.2
B1070: 2568 | C1070: 鍬 | E1070: 1 | F1070: 本 | G1070: 2860 | H1070: 3 | I1070: 0.01333333333 | J1070: 12.71111111
B1071: 2598 | C1071: ﾚｰｷ(ｱﾙﾐ) | D1071: ｱﾙﾐ | E1071: 1 | F1071: 本 | G1071: 2010 | H1071: 3 | I1071: 0.006666666667 | J1071: 4.466666667
B1072: 2658 | C1072: ﾎﾟﾘ容器(角型，200L) | D1072: 角型，200L，862×657×635mm | E1072: 1 | F1072: 個 | G1072: 32800 | H1072: 5 | I1072: 0.06 | J1072: 393.6
B1073: 2600 | C1073: 育苗箱(水稲用，300×600×37) | D1073: 水稲用，300×600×37mm | E1073: 120 | F1073: 枚 | G1073: 19500 | H1073: 5 | I1073: 22.5 | J1073: 731.25
B1074: 2722 | C1074: ﾛｰﾗｰｺﾝﾍﾞｱ(10，30×300) | D1074: ﾋﾟｯﾁ10cm，30×300cm | E1074: 1 | F1074: 台 | G1074: 44000 | H1074: 5 | I1074: 0.01333333333 | J1074: 117.3333333
B1075: 2853 | C1075: ﾋﾞﾆｰﾙﾎｰｽ(18×24) | D1075: 18mm×24mm | E1075: 1 | F1075: m | G1075: 340 | H1075: 3 | I1075: 0.2 | J1075: 22.66666667
B1076: 2577 | C1076: ｽｺｯﾌﾟ(丸型) | D1076: 丸型 | E1076: 1 | F1076: 本 | G1076: 1320 | H1076: 3 | I1076: 0.01333333333 | J1076: 5.866666667
B1077: 2715 | C1077: 苗ｺﾝﾃﾅ(ｱﾙﾐ，水平型，96) | D1077: ｱﾙﾐ，水平型，96枚用 | E1077: 1 | F1077: 台 | G1077: 48000 | H1077: 5 | I1077: 0.01333333333 | J1077: 128
B1078: 2835 | C1078: 散粒器(手動，9L) | D1078: 手動，9L | E1078: 1 | F1078: 台 | G1078: 10300 | H1078: 5 | I1078: 0.006666666667 | J1078: 13.73333333
A1109: 28 | B1109: =技術体系表!$C$29 -> WCS(つぶゆたか，直播，15ha規模，胆沢平野) | J1109: =SUM(J1110:J1149) -> 5.866666667
B1110: 2577 | C1110: ｽｺｯﾌﾟ(丸型) | D1110: 丸型 | E1110: 1 | F1110: 本 | G1110: 1320 | H1110: 3 | I1110: 0.01333333333 | J1110: =IF(ISERROR(I1110/E1110*G1110/H1110),"",I1110/E1110*G1110/H1110) -> 5.866666667
A1150: 29 | B1150: =技術体系表!$C$30 -> 牧草(混播牧草，乾草調製(ﾛｰﾙﾍﾞｰﾙ)，5ha規模，胆沢平野) | J1150: =SUM(J1151:J1190) -> 0
J1151: =IF(ISERROR(I1151/E1151*G1151/H1151),"",I1151/E1151*G1151/H1151) -> 
A1191: 30 | B1191: =技術体系表!$C$31 -> 牧草(混播牧草，ｸﾞﾗｽｻｲﾚｰｼﾞ(ﾛｰﾙﾍﾞｰﾙ)，5ha規模，胆沢平野) | J1191: =SUM(J1192:J1231) -> 0
J1192: =IF(ISERROR(I1192/E1192*G1192/H1192),"",I1192/E1192*G1192/H1192) -> 
A1232: 31 | B1232: =技術体系表!$C$32 -> ﾋﾟｰﾏﾝ(京鈴，雨よけﾊｳｽ栽培，30a規模，県下全域) | J1232: =SUM(J1233:J1272) -> 28991.55556
B1233: 2864 | C1233: ﾎｰｽﾘｰﾙｾｯﾄ(18×23，40m) | D1233: 18mm×23mm，40m | E1233: 1 | F1233: 台 | G1233: 11700 | H1233: 5 | I1233: 0.3333333333 | J1233: =IF(ISERROR(I1233/E1233*G1233/H1233),"",I1233/E1233*G1233/H1233) -> 780
B1234: 2590 | C1234: 鋏(摘果用) | D1234: 摘果用 | E1234: 1 | F1234: 本 | G1234: 980 | H1234: 3 | I1234: 1.333333333 | J1234: =IF(ISERROR(I1234/E1234*G1234/H1234),"",I1234/E1234*G1234/H1234) -> 435.5555556
B1235: 2577 | C1235: ｽｺｯﾌﾟ(丸型) | D1235: 丸型 | E1235: 1 | F1235: 本 | G1235: 1320 | H1235: 3 | I1235: 0.6666666667 | J1235: 293.3333333
B1236: 2627 | C1236: 散布桶(10L) | D1236: 10L，370×280×170mm | E1236: 1 | F1236: 個 | G1236: 1200 | H1236: 3 | I1236: 0.3333333333 | J1236: 133.3333333
B1237: 2897 | C1237: 液肥混入器(FPS-2) | D1237: FPS-2，口径20mm，800倍 | E1237: 1 | F1237: 台 | G1237: 4320 | H1237: 5 | I1237: 4 | J1237: 3456
B1238: 2614 | C1238: ｺﾝﾃﾅ(31.3L) | D1238: 31.3L，530×363×208mm | E1238: 1 | F1238: 個 | G1238: 1380 | H1238: 5 | I1238: 6.666666667 | J1238: 1840
B1239: 2740 | C1239: ｻｰﾓｽﾀｯﾄ(単/三相200V，16A) | D1239: 単/三相200V，16A | E1239: 1 | F1239: 台 | G1239: 17100 | H1239: 5 | I1239: 1.666666667 | J1239: 5700
B1240: 2844 | C1240: 背負式噴霧器(手動，15L) | D1240: 手動，15L | E1240: 1 | F1240: 台 | G1240: 17800 | H1240: 5 | I1240: 0.3333333333 | J1240: 1186.666667
B1241: 2666 | C1241: ﾛｰﾘｰﾀﾝｸ(200L) | D1241: 200L，900×575×575mm | E1241: 1 | F1241: 個 | G1241: 18100 | H1241: 5 | I1241: 0.3333333333 | J1241: =IF(ISERROR(I1241/E1241*G1241/H1241),"",I1241/E1241*G1241/H1241) -> 1206.666667
B1242: 2699 | C1242: 台車(ｺﾝﾃﾅ積載，520×370) | D1242: ｺﾝﾃﾅ積載，520×370mm | E1242: 1 | F1242: 台 | G1242: 11300 | H1242: 5 | I1242: 1.333333333 | J1242: =IF(ISERROR(I1242/E1242*G1242/H1242),"",I1242/E1242*G1242/H1242) -> 3013.333333
B1243: 2761 | C1243: 電熱温床線(三相200V，500W，40m) | D1243: 三相200V，500W，40m | E1243: 1 | F1243: 巻 | G1243: 7180 | H1243: 5 | I1243: 0.3333333333 | J1243: 478.6666667
B1244: 2944 | C1244: ﾃｰﾌﾟﾅｰ | E1244: 1 | F1244: 台 | G1244: 5910 | H1244: 5 | I1244: 0.6666666667 | J1244: 788
B1245: 2763 | C1245: 電熱温床線(三相200V，1000W，120m) | D1245: 三相200V，1000W，120m | E1245: 1 | F1245: 巻 | G1245: 12100 | H1245: 5 | I1245: 4 | J1245: 9680
A1273: 32 | B1273: =技術体系表!$C$33 -> ﾋﾟｰﾏﾝ(京ゆたか7，露地栽培，1ha規模，県下全域) | J1273: =SUM(J1274:J1313) -> 9293.333333
... 70 more rows

Sheet その他資材（修正）
A1: No | B1: ｺｰﾄﾞ | C1: 資 材 名 | D1: 銘 柄 等 級 | E1: 包装単位 | F1: 単位 | G1: 標準価格 (円) | H1: 使用 年数 | I1: 使用数量 | J1: 単位 (10a当り) | K1: 価 額 (円) | L1: 備 考
A2: 1 | B2: =試算計画表!E14 -> 0 | K2: =SUM(K3:K7) -> 0
J3: =IF(F3="","",F3) ->  | K3: =IF(ISERROR(I3/E3*G3/H3),"",I3/E3*G3/H3) -> 
J4: =IF(F4="","",F4) -> 
A8: 2 | B8: =試算計画表!F14 -> 0 | K8: =SUM(K9:K13) -> 0
A14: 3 | B14: =試算計画表!G14 -> 0 | K14: =SUM(K15:K19) -> 0
A20: 4 | B20: =試算計画表!H14 -> 0 | K20: =SUM(K21:K25) -> 0
A26: 5 | B26: =試算計画表!I14 -> 0 | K26: =SUM(K27:K31) -> 0
A32: 6 | B32: =試算計画表!J14 -> 0 | K32: =SUM(K33:K37) -> 0
A38: 7 | B38: =試算計画表!K14 -> 0 | K38: =SUM(K39:K43) -> 0
A44: 8 | B44: =試算計画表!L14 -> 0 | K44: =SUM(K45:K49) -> 0
A50: 9 | B50: =試算計画表!M14 -> 0 | K50: =SUM(K51:K55) -> 0
A56: 10 | B56: =試算計画表!N14 -> 0 | K56: =SUM(K57:K61) -> 0
J57: =IF(F57="","",F57) -> 
J61: =IF(F61="","",F61) -> 

Sheet その他資材 (hidden)
A1: No | B1: ｺｰﾄﾞ | C1: 資 材 名 | D1: 銘 柄 等 級 | E1: 包装単位 | F1: 単位 | G1: 標準価格 | H1: 使用 年数 | I1: 使用数量 | J1: 価 額 | K1: 備 考
A2: 1 | B2: =技術体系表!C2 -> 水稲・主食用米(限定ふるさと米，移植，5.1ha規模，胆沢平野／胆沢東部・前沢) | J2: =SUM(J3:J7) -> 96.73786667
B3: 1527 | C3: 電気(三相200V) | D3: 三相200V | E3: 1 | F3: kWh | G3: 12.52 | H3: 1 | I3: 7.726666667 | J3: =IF(ISERROR(I3/E3*G3/H3),"",I3/E3*G3/H3) -> 96.73786667 | K3: 循環式乾燥機
A8: 2 | B8: =技術体系表!C3 -> 水稲・主食用米(限定ふるさと米，移植，5.1ha規模，胆沢平野／胆沢西部・金ケ崎西部) | J8: =SUM(J9:J13) -> 96.73786667
B9: 1527 | C9: 電気(三相200V) | D9: 三相200V | E9: 1 | F9: kWh | G9: 12.52 | H9: 1 | I9: 7.726666667 | J9: 96.73786667 | K9: 循環式乾燥機
A14: 3 | B14: =技術体系表!C4 -> 水稲・主食用米(限定ふるさと米，移植，5.1ha規模，胆沢平野／水沢・金ケ崎東部) | J14: =SUM(J15:J19) -> 96.73786667
B15: 1527 | C15: 電気(三相200V) | D15: 三相200V | E15: 1 | F15: kWh | G15: 12.52 | H15: 1 | I15: 7.726666667 | J15: 96.73786667 | K15: 循環式乾燥機
A20: 4 | B20: =技術体系表!C5 -> 水稲・主食用米(限定ふるさと米，移植，15ha規模，胆沢平野／胆沢東部・前沢) | J20: =SUM(J21:J25) -> 80.170568
B21: 1527 | C21: 電気(三相200V) | D21: 三相200V | E21: 1 | F21: kWh | G21: 12.52 | H21: 1 | I21: 6.4034 | J21: 80.170568 | K21: 循環式乾燥機
A26: 5 | B26: =技術体系表!C6 -> 水稲・主食用米(限定ふるさと米，移植，15ha規模，胆沢平野／胆沢西部・金ケ崎西部) | J26: =SUM(J27:J31) -> 80.170568
B27: 1527 | C27: 電気(三相200V) | D27: 三相200V | E27: 1 | F27: kWh | G27: 12.52 | H27: 1 | I27: 6.4034 | J27: 80.170568 | K27: 循環式乾燥機
A32: 6 | B32: =技術体系表!C7 -> 水稲・主食用米(限定ふるさと米，移植，15ha規模，胆沢平野／水沢・金ケ崎東部) | J32: =SUM(J33:J37) -> 80.170568
B33: 1527 | C33: 電気(三相200V) | D33: 三相200V | E33: 1 | F33: kWh | G33: 12.52 | H33: 1 | I33: 6.4034 | J33: 80.170568 | K33: 循環式乾燥機
A38: 7 | B38: =技術体系表!C8 -> 水稲・主食用米(限定ふるさと米，移植，30ha規模，胆沢平野／胆沢東部・前沢) | J38: =SUM(J39:J43) -> 57.26063733
B39: 1527 | C39: 電気(三相200V) | D39: 三相200V | E39: 1 | F39: kWh | G39: 12.52 | H39: 1 | I39: 4.573533333 | J39: 57.26063733 | K39: 循環式乾燥機
A44: 8 | B44: =技術体系表!C9 -> 水稲・主食用米(限定ふるさと米，移植，30ha規模，胆沢平野／胆沢西部・金ケ崎西部) | J44: =SUM(J45:J49) -> 57.26063733
B45: 1527 | C45: 電気(三相200V) | D45: 三相200V | E45: 1 | F45: kWh | G45: 12.52 | H45: 1 | I45: 4.573533333 | J45: 57.26063733 | K45: 循環式乾燥機
A50: 9 | B50: =技術体系表!C10 -> 水稲・主食用米(限定ふるさと米，移植，30ha規模，胆沢平野／水沢・金ケ崎東部) | J50: =SUM(J51:J55) -> 57.26063733
B51: 1527 | C51: 電気(三相200V) | D51: 三相200V | E51: 1 | F51: kWh | G51: 12.52 | H51: 1 | I51: 4.573533333 | J51: 57.26063733 | K51: 循環式乾燥機
A56: 10 | B56: =技術体系表!C11 -> 水稲・主食用米(慣行米，直播，15ha規模，胆沢平野／胆沢東部・前沢) | J56: =SUM(J57:J61) -> 80.170568
B57: 1527 | C57: 電気(三相200V) | D57: 三相200V | E57: 1 | F57: kWh | G57: 12.52 | H57: 1 | I57: 6.4034 | J57: 80.170568 | K57: 循環式乾燥機
A62: 11 | B62: =技術体系表!C12 -> 水稲・主食用米(慣行米，直播，15ha規模，胆沢平野／胆沢西部・金ケ崎西部) | J62: =SUM(J63:J67) -> 80.170568
B63: 1527 | C63: 電気(三相200V) | D63: 三相200V | E63: 1 | F63: kWh | G63: 12.52 | H63: 1 | I63: 6.4034 | J63: =IF(ISERROR(I63/E63*G63/H63),"",I63/E63*G63/H63) -> 80.170568 | K63: 循環式乾燥機
J64: =IF(ISERROR(I64/E64*G64/H64),"",I64/E64*G64/H64) -> 
J65: =IF(ISERROR(I65/E65*G65/H65),"",I65/E65*G65/H65) -> 
J66: =IF(ISERROR(I66/E66*G66/H66),"",I66/E66*G66/H66) -> 
J67: =IF(ISERROR(I67/E67*G67/H67),"",I67/E67*G67/H67) -> 
A68: 12 | B68: =技術体系表!C13 -> 水稲・主食用米(慣行米，直播，15ha規模，胆沢平野／水沢・金ケ崎東部) | J68: =SUM(J69:J73) -> 80.170568
B69: 1527 | C69: 電気(三相200V) | D69: 三相200V | E69: 1 | F69: kWh | G69: 12.52 | H69: 1 | I69: 6.4034 | J69: =IF(ISERROR(I69/E69*G69/H69),"",I69/E69*G69/H69) -> 80.170568 | K69: 循環式乾燥機
J70: =IF(ISERROR(I70/E70*G70/H70),"",I70/E70*G70/H70) -> 
J71: =IF(ISERROR(I71/E71*G71/H71),"",I71/E71*G71/H71) -> 
J72: =IF(ISERROR(I72/E72*G72/H72),"",I72/E72*G72/H72) -> 
J73: =IF(ISERROR(I73/E73*G73/H73),"",I73/E73*G73/H73) -> 
A74: 13 | B74: =技術体系表!C14 -> 水稲・主食用米(慣行米，直播，30ha規模，胆沢平野／胆沢東部・前沢) | J74: =SUM(J75:J79) -> 57.26063733
B75: 1527 | C75: 電気(三相200V) | D75: 三相200V | E75: 1 | F75: kWh | G75: 12.52 | H75: 1 | I75: 4.573533333 | J75: =IF(ISERROR(I75/E75*G75/H75),"",I75/E75*G75/H75) -> 57.26063733 | K75: 循環式乾燥機
J76: =IF(ISERROR(I76/E76*G76/H76),"",I76/E76*G76/H76) -> 
J77: =IF(ISERROR(I77/E77*G77/H77),"",I77/E77*G77/H77) -> 
J78: =IF(ISERROR(I78/E78*G78/H78),"",I78/E78*G78/H78) -> 
J79: =IF(ISERROR(I79/E79*G79/H79),"",I79/E79*G79/H79) -> 
A80: 14 | B80: =技術体系表!C15 -> 水稲・主食用米(慣行米，直播，30ha規模，胆沢平野／胆沢西部・金ケ崎西部) | J80: =SUM(J81:J85) -> 57.26063733
B81: 1527 | C81: 電気(三相200V) | D81: 三相200V | E81: 1 | F81: kWh | G81: 12.52 | H81: 1 | I81: 4.573533333 | J81: =IF(ISERROR(I81/E81*G81/H81),"",I81/E81*G81/H81) -> 57.26063733 | K81: 循環式乾燥機
J82: =IF(ISERROR(I82/E82*G82/H82),"",I82/E82*G82/H82) -> 
J83: =IF(ISERROR(I83/E83*G83/H83),"",I83/E83*G83/H83) -> 
J84: =IF(ISERROR(I84/E84*G84/H84),"",I84/E84*G84/H84) -> 
J85: =IF(ISERROR(I85/E85*G85/H85),"",I85/E85*G85/H85) -> 
A86: 15 | B86: =技術体系表!C16 -> 水稲・主食用米(慣行米，直播，30ha規模，胆沢平野／水沢・金ケ崎東部) | J86: =SUM(J87:J91) -> 57.26063733
B87: 1527 | C87: 電気(三相200V) | D87: 三相200V | E87: 1 | F87: kWh | G87: 12.52 | H87: 1 | I87: 4.573533333 | J87: =IF(ISERROR(I87/E87*G87/H87),"",I87/E87*G87/H87) -> 57.26063733 | K87: 循環式乾燥機
J88: =IF(ISERROR(I88/E88*G88/H88),"",I88/E88*G88/H88) -> 
J89: =IF(ISERROR(I89/E89*G89/H89),"",I89/E89*G89/H89) -> 
J90: =IF(ISERROR(I90/E90*G90/H90),"",I90/E90*G90/H90) -> 
J91: =IF(ISERROR(I91/E91*G91/H91),"",I91/E91*G91/H91) -> 
A92: 16 | B92: =技術体系表!C17 -> 水稲・飼料用米(つぶみのり・つぶゆたか，大区画・移植，15ha規模，胆沢平野) | J92: =SUM(J93:J97) -> 0
J93: =IF(ISERROR(I93/E93*G93/H93),"",I93/E93*G93/H93) -> 
J94: =IF(ISERROR(I94/E94*G94/H94),"",I94/E94*G94/H94) -> 
J95: =IF(ISERROR(I95/E95*G95/H95),"",I95/E95*G95/H95) -> 
J96: =IF(ISERROR(I96/E96*G96/H96),"",I96/E96*G96/H96) -> 
J97: =IF(ISERROR(I97/E97*G97/H97),"",I97/E97*G97/H97) -> 
A98: 17 | B98: =技術体系表!C18 -> 飼料用米(つぶみのり・つぶゆたか，移植，30ha規模，胆沢平野) | J98: =SUM(J99:J103) -> 0
J99: =IF(ISERROR(I99/E99*G99/H99),"",I99/E99*G99/H99) -> 
J100: =IF(ISERROR(I100/E100*G100/H100),"",I100/E100*G100/H100) -> 
J101: =IF(ISERROR(I101/E101*G101/H101),"",I101/E101*G101/H101) -> 
J102: =IF(ISERROR(I102/E102*G102/H102),"",I102/E102*G102/H102) -> 
J103: =IF(ISERROR(I103/E103*G103/H103),"",I103/E103*G103/H103) -> 
A104: 18 | B104: =技術体系表!C19 -> 水稲・飼料用米(つぶみのり・つぶゆたか，大区画・直播，15ha規模，胆沢平野) | J104: =SUM(J105:J109) -> 0
J105: =IF(ISERROR(I105/E105*G105/H105),"",I105/E105*G105/H105) -> 
J106: =IF(ISERROR(I106/E106*G106/H106),"",I106/E106*G106/H106) -> 
J107: =IF(ISERROR(I107/E107*G107/H107),"",I107/E107*G107/H107) -> 
J108: =IF(ISERROR(I108/E108*G108/H108),"",I108/E108*G108/H108) -> 
J109: =IF(ISERROR(I109/E109*G109/H109),"",I109/E109*G109/H109) -> 
A110: 19 | B110: =技術体系表!C20 -> 水稲・飼料用米(つぶみのり・つぶゆたか，大区画・直播，30ha規模，胆沢平野) | J110: =SUM(J111:J115) -> 0
J111: =IF(ISERROR(I111/E111*G111/H111),"",I111/E111*G111/H111) -> 
J112: =IF(ISERROR(I112/E112*G112/H112),"",I112/E112*G112/H112) -> 
J113: =IF(ISERROR(I113/E113*G113/H113),"",I113/E113*G113/H113) -> 
J114: =IF(ISERROR(I114/E114*G114/H114),"",I114/E114*G114/H114) -> 
J115: =IF(ISERROR(I115/E115*G115/H115),"",I115/E115*G115/H115) -> 
A116: 20 | B116: =技術体系表!C21 -> 大豆(ﾘｭｳﾎｳ，水田転作・小畦立，7ha規模，胆沢平野) | J116: =SUM(J117:J121) -> 17.85888571
B117: 1527 | C117: 電気(三相200V) | D117: 三相200V | E117: 1 | F117: kWh | G117: 12.52 | H117: 1 | I117: 1.426428571 | J117: =IF(ISERROR(I117/E117*G117/H117),"",I117/E117*G117/H117) -> 17.85888571 | K117: 静置式乾燥機
J118: =IF(ISERROR(I118/E118*G118/H118),"",I118/E118*G118/H118) -> 
J119: =IF(ISERROR(I119/E119*G119/H119),"",I119/E119*G119/H119) -> 
J120: =IF(ISERROR(I120/E120*G120/H120),"",I120/E120*G120/H120) -> 
J121: =IF(ISERROR(I121/E121*G121/H121),"",I121/E121*G121/H121) -> 
A122: 21 | B122: =技術体系表!C22 -> 小麦(ﾅﾝﾌﾞｺﾑｷﾞ，水田転作，7ha規模，胆沢平野) | J122: =SUM(J123:J127) -> 72.84672571
B123: 1527 | C123: 電気(三相200V) | D123: 三相200V | E123: 1 | F123: kWh | G123: 12.52 | H123: 1 | I123: 5.818428571 | J123: =IF(ISERROR(I123/E123*G123/H123),"",I123/E123*G123/H123) -> 72.84672571 | K123: 循環式乾燥機
J124: =IF(ISERROR(I124/E124*G124/H124),"",I124/E124*G124/H124) -> 
J125: =IF(ISERROR(I125/E125*G125/H125),"",I125/E125*G125/H125) -> 
J126: =IF(ISERROR(I126/E126*G126/H126),"",I126/E126*G126/H126) -> 
J127: =IF(ISERROR(I127/E127*G127/H127),"",I127/E127*G127/H127) -> 
A128: 22 | B128: =技術体系表!C23 -> 受委託(限定ふるさと米，苗生産・販売，3375箱規模，胆沢平野) | J128: =SUM(J129:J133) -> 0
J129: =IF(ISERROR(I129/E129*G129/H129),"",I129/E129*G129/H129) -> 
J130: =IF(ISERROR(I130/E130*G130/H130),"",I130/E130*G130/H130) -> 
J131: =IF(ISERROR(I131/E131*G131/H131),"",I131/E131*G131/H131) -> 
J132: =IF(ISERROR(I132/E132*G132/H132),"",I132/E132*G132/H132) -> 
J133: =IF(ISERROR(I133/E133*G133/H133),"",I133/E133*G133/H133) -> 
A134: 23 | B134: =技術体系表!C24 -> 受委託(限定ふるさと米，耕起・代掻，15ha規模，胆沢平野) | J134: =SUM(J135:J139) -> 0
J135: =IF(ISERROR(I135/E135*G135/H135),"",I135/E135*G135/H135) -> 
J136: =IF(ISERROR(I136/E136*G136/H136),"",I136/E136*G136/H136) -> 
J137: =IF(ISERROR(I137/E137*G137/H137),"",I137/E137*G137/H137) -> 
J138: =IF(ISERROR(I138/E138*G138/H138),"",I138/E138*G138/H138) -> 
J139: =IF(ISERROR(I139/E139*G139/H139),"",I139/E139*G139/H139) -> 
A140: 24 | B140: =技術体系表!C25 -> 受委託(限定ふるさと米，田植，15ha規模，胆沢平野) | J140: =SUM(J141:J145) -> 0
J141: =IF(ISERROR(I141/E141*G141/H141),"",I141/E141*G141/H141) -> 
J142: =IF(ISERROR(I142/E142*G142/H142),"",I142/E142*G142/H142) -> 
J143: =IF(ISERROR(I143/E143*G143/H143),"",I143/E143*G143/H143) -> 
J144: =IF(ISERROR(I144/E144*G144/H144),"",I144/E144*G144/H144) -> 
J145: =IF(ISERROR(I145/E145*G145/H145),"",I145/E145*G145/H145) -> 
A146: 25 | B146: =技術体系表!C26 -> 受委託(限定ふるさと米，収穫運搬，15ha規模，胆沢平野) | J146: =SUM(J147:J151) -> 0
J147: =IF(ISERROR(I147/E147*G147/H147),"",I147/E147*G147/H147) -> 
J148: =IF(ISERROR(I148/E148*G148/H148),"",I148/E148*G148/H148) -> 
J149: =IF(ISERROR(I149/E149*G149/H149),"",I149/E149*G149/H149) -> 
J150: =IF(ISERROR(I150/E150*G150/H150),"",I150/E150*G150/H150) -> 
J151: =IF(ISERROR(I151/E151*G151/H151),"",I151/E151*G151/H151) -> 
A152: 26 | B152: =技術体系表!C27 -> 受委託(限定ふるさと米，乾燥調製，81000kg規模，胆沢平野) | J152: =SUM(J153:J157) -> 0.1484640148
B153: 1527 | C153: 電気(三相200V) | D153: 三相200V | E153: 1 | F153: kWh | G153: 12.52 | H153: 1 | I153: 0.01185814815 | J153: =IF(ISERROR(I153/E153*G153/H153),"",I153/E153*G153/H153) -> 0.1484640148 | K153: 循環式乾燥機
J154: =IF(ISERROR(I154/E154*G154/H154),"",I154/E154*G154/H154) -> 
J155: =IF(ISERROR(I155/E155*G155/H155),"",I155/E155*G155/H155) -> 
J156: =IF(ISERROR(I156/E156*G156/H156),"",I156/E156*G156/H156) -> 
J157: =IF(ISERROR(I157/E157*G157/H157),"",I157/E157*G157/H157) -> 
A158: 27 | B158: =技術体系表!C28 -> WCS(つぶゆたか，移植，15ha規模，胆沢平野) | J158: =SUM(J159:J163) -> 0
J159: =IF(ISERROR(I159/E159*G159/H159),"",I159/E159*G159/H159) -> 
J160: =IF(ISERROR(I160/E160*G160/H160),"",I160/E160*G160/H160) -> 
J161: =IF(ISERROR(I161/E161*G161/H161),"",I161/E161*G161/H161) -> 
J162: =IF(ISERROR(I162/E162*G162/H162),"",I162/E162*G162/H162) -> 
J163: =IF(ISERROR(I163/E163*G163/H163),"",I163/E163*G163/H163) -> 
A164: 28 | B164: =技術体系表!C29 -> WCS(つぶゆたか，直播，15ha規模，胆沢平野) | J164: =SUM(J165:J169) -> 0
J165: =IF(ISERROR(I165/E165*G165/H165),"",I165/E165*G165/H165) -> 
J166: =IF(ISERROR(I166/E166*G166/H166),"",I166/E166*G166/H166) -> 
J167: =IF(ISERROR(I167/E167*G167/H167),"",I167/E167*G167/H167) -> 
J168: =IF(ISERROR(I168/E168*G168/H168),"",I168/E168*G168/H168) -> 
J169: =IF(ISERROR(I169/E169*G169/H169),"",I169/E169*G169/H169) -> 
A170: 29 | B170: =技術体系表!C30 -> 牧草(混播牧草，乾草調製(ﾛｰﾙﾍﾞｰﾙ)，5ha規模，胆沢平野) | J170: =SUM(J171:J175) -> 0
J171: =IF(ISERROR(I171/E171*G171/H171),"",I171/E171*G171/H171) -> 
J172: =IF(ISERROR(I172/E172*G172/H172),"",I172/E172*G172/H172) -> 
J173: =IF(ISERROR(I173/E173*G173/H173),"",I173/E173*G173/H173) -> 
J174: =IF(ISERROR(I174/E174*G174/H174),"",I174/E174*G174/H174) -> 
J175: =IF(ISERROR(I175/E175*G175/H175),"",I175/E175*G175/H175) -> 
A176: 30 | B176: =技術体系表!C31 -> 牧草(混播牧草，ｸﾞﾗｽｻｲﾚｰｼﾞ(ﾛｰﾙﾍﾞｰﾙ)，5ha規模，胆沢平野) | J176: =SUM(J177:J181) -> 0
J177: =IF(ISERROR(I177/E177*G177/H177),"",I177/E177*G177/H177) -> 
J178: =IF(ISERROR(I178/E178*G178/H178),"",I178/E178*G178/H178) -> 
J179: =IF(ISERROR(I179/E179*G179/H179),"",I179/E179*G179/H179) -> 
J180: =IF(ISERROR(I180/E180*G180/H180),"",I180/E180*G180/H180) -> 
J181: =IF(ISERROR(I181/E181*G181/H181),"",I181/E181*G181/H181) -> 
A182: 31 | B182: =技術体系表!C32 -> ﾋﾟｰﾏﾝ(京鈴，雨よけﾊｳｽ栽培，30a規模，県下全域) | J182: =SUM(J183:J187) -> 15765.184
B183: 1527 | C183: 電気(三相200V) | D183: 三相200V | E183: 1 | F183: kWh | G183: 12.52 | H183: 1 | I183: 1259.2 | J183: =IF(ISERROR(I183/E183*G183/H183),"",I183/E183*G183/H183) -> 15765.184 | K183: 電熱温床線
J184: =IF(ISERROR(I184/E184*G184/H184),"",I184/E184*G184/H184) -> 
J185: =IF(ISERROR(I185/E185*G185/H185),"",I185/E185*G185/H185) -> 
J186: =IF(ISERROR(I186/E186*G186/H186),"",I186/E186*G186/H186) -> 
J187: =IF(ISERROR(I187/E187*G187/H187),"",I187/E187*G187/H187) -> 
A188: 32 | B188: =技術体系表!C33 -> ﾋﾟｰﾏﾝ(京ゆたか7，露地栽培，1ha規模，県下全域) | J188: =SUM(J189:J193) -> 3597.7472
B189: 1527 | C189: 電気(三相200V) | D189: 三相200V | E189: 1 | F189: kWh | G189: 12.52 | H189: 1 | I189: 287.36 | J189: =IF(ISERROR(I189/E189*G189/H189),"",I189/E189*G189/H189) -> 3597.7472 | K189: 電熱温床線
J190: =IF(ISERROR(I190/E190*G190/H190),"",I190/E190*G190/H190) -> 
J191: =IF(ISERROR(I191/E191*G191/H191),"",I191/E191*G191/H191) -> 
J192: =IF(ISERROR(I192/E192*G192/H192),"",I192/E192*G192/H192) -> 
J193: =IF(ISERROR(I193/E193*G193/H193),"",I193/E193*G193/H193) -> 
A194: 33 | B194: =技術体系表!C34 -> 0 | J194: =SUM(J195:J199) -> 0
J195: =IF(ISERROR(I195/E195*G195/H195),"",I195/E195*G195/H195) -> 
J196: =IF(ISERROR(I196/E196*G196/H196),"",I196/E196*G196/H196) -> 
J197: =IF(ISERROR(I197/E197*G197/H197),"",I197/E197*G197/H197) -> 
J198: =IF(ISERROR(I198/E198*G198/H198),"",I198/E198*G198/H198) -> 
J199: =IF(ISERROR(I199/E199*G199/H199),"",I199/E199*G199/H199) -> 
A200: 34 | B200: =技術体系表!C35 -> 0 | J200: =SUM(J201:J205) -> 0
J201: =IF(ISERROR(I201/E201*G201/H201),"",I201/E201*G201/H201) -> 
J202: =IF(ISERROR(I202/E202*G202/H202),"",I202/E202*G202/H202) -> 
J203: =IF(ISERROR(I203/E203*G203/H203),"",I203/E203*G203/H203) -> 
J204: =IF(ISERROR(I204/E204*G204/H204),"",I204/E204*G204/H204) -> 
J205: =IF(ISERROR(I205/E205*G205/H205),"",I205/E205*G205/H205) -> 
A206: 35 | B206: =技術体系表!C36 -> 0 | J206: =SUM(J207:J211) -> 0
J207: =IF(ISERROR(I207/E207*G207/H207),"",I207/E207*G207/H207) -> 
J208: =IF(ISERROR(I208/E208*G208/H208),"",I208/E208*G208/H208) -> 
J209: =IF(ISERROR(I209/E209*G209/H209),"",I209/E209*G209/H209) -> 
J210: =IF(ISERROR(I210/E210*G210/H210),"",I210/E210*G210/H210) -> 
J211: =IF(ISERROR(I211/E211*G211/H211),"",I211/E211*G211/H211) -> 
A212: 36 | B212: =技術体系表!C37 -> 0 | J212: =SUM(J213:J217) -> 0
J213: =IF(ISERROR(I213/E213*G213/H213),"",I213/E213*G213/H213) -> 
J214: =IF(ISERROR(I214/E214*G214/H214),"",I214/E214*G214/H214) -> 
J215: =IF(ISERROR(I215/E215*G215/H215),"",I215/E215*G215/H215) -> 
J216: =IF(ISERROR(I216/E216*G216/H216),"",I216/E216*G216/H216) -> 
J217: =IF(ISERROR(I217/E217*G217/H217),"",I217/E217*G217/H217) -> 
A218: 37 | B218: =技術体系表!C38 -> 0 | J218: =SUM(J219:J223) -> 0
J219: =IF(ISERROR(I219/E219*G219/H219),"",I219/E219*G219/H219) -> 
J220: =IF(ISERROR(I220/E220*G220/H220),"",I220/E220*G220/H220) -> 
J221: =IF(ISERROR(I221/E221*G221/H221),"",I221/E221*G221/H221) -> 
J222: =IF(ISERROR(I222/E222*G222/H222),"",I222/E222*G222/H222) -> 
J223: =IF(ISERROR(I223/E223*G223/H223),"",I223/E223*G223/H223) -> 
A224: 38 | B224: =技術体系表!C39 -> 0 | J224: =SUM(J225:J229) -> 0
J225: =IF(ISERROR(I225/E225*G225/H225),"",I225/E225*G225/H225) -> 
J226: =IF(ISERROR(I226/E226*G226/H226),"",I226/E226*G226/H226) -> 
J227: =IF(ISERROR(I227/E227*G227/H227),"",I227/E227*G227/H227) -> 
J228: =IF(ISERROR(I228/E228*G228/H228),"",I228/E228*G228/H228) -> 
J229: =IF(ISERROR(I229/E229*G229/H229),"",I229/E229*G229/H229) -> 
A230: 39 | B230: =技術体系表!C40 -> 0 | J230: =SUM(J231:J235) -> 0
J231: =IF(ISERROR(I231/E231*G231/H231),"",I231/E231*G231/H231) -> 
J232: =IF(ISERROR(I232/E232*G232/H232),"",I232/E232*G232/H232) -> 
J233: =IF(ISERROR(I233/E233*G233/H233),"",I233/E233*G233/H233) -> 
J234: =IF(ISERROR(I234/E234*G234/H234),"",I234/E234*G234/H234) -> 
J235: =IF(ISERROR(I235/E235*G235/H235),"",I235/E235*G235/H235) -> 
A236: 40 | B236: =技術体系表!C41 -> 0 | J236: =SUM(J237:J241) -> 0
J237: =IF(ISERROR(I237/E237*G237/H237),"",I237/E237*G237/H237) -> 
J238: =IF(ISERROR(I238/E238*G238/H238),"",I238/E238*G238/H238) -> 
J239: =IF(ISERROR(I239/E239*G239/H239),"",I239/E239*G239/H239) -> 
J240: =IF(ISERROR(I240/E240*G240/H240),"",I240/E240*G240/H240) -> 
... 121 more rows

Sheet 機械（修正）
A1: No | B1: 重複チェック | C1: ｺｰﾄﾞ | D1: 機 械 名 | E1: 性 能 ・ 型 式 | F1: 標準価格 (円) | G1: 使用 数量 | H1: 使用 割合 (％) | I1: 使用 割合 (調整後) | J1: 法 定 耐 用 年 数 法 | S1: 実 耐 用 年 数 法
J2: 耐用 年数 (年) | K2: 残存 割合 (％) | L2: 償却 係数 (％) | M2: 修理 係数 (％) | N2: 車庫 係数 (％) | O2: 資本利子 保険料 (％) | P2: 年 間 固定比率 (％) | Q2: 機 械 償却費 (円) | R2: 施設費（法定耐用） | S2: 耐用 年数 (年) | T2: 残存 割合 (％) | U2: 償却 係数 (％) | V2: 修理 係数 (％) | W2: 車庫 係数 (％) | X2: 資本利子 保険料 (％) | Y2: 年 間 固定比率 (％) | Z2: 機 械 償却費 (円) | AA2: 調 整 機械費 (円)
A3: 1 | B3: =試算計画表!E14 -> 0 | R3: =SUM(R4:R43) -> 0 | AA3: =SUM(AA4:AA43) -> 0
B4: =IF(COUNTIF($D$4:$D$412,D4)>1,"★","") ->  | L4: =IF(ISERROR((100-K4)/J4),"",(100-K4)/J4) ->  | P4: =IF(SUM(L4:O4)=0,"",SUM(L4:O4)) ->  | Q4: =IF(ISERROR(F4*G4*P4/100),"",F4*G4*P4/100) ->  | R4: =IF(ISERROR(Q4*I4/100),"",Q4*I4/100) ->  | U4: =IF(ISERROR((100-T4)/S4),"",(100-T4)/S4) ->  | Y4: =IF(SUM(U4:X4)=0,"",SUM(U4:X4)) ->  | Z4: =IF(ISERROR(F4*G4*Y4/100),"",F4*G4*Y4/100) ->  | AA4: =IF(ISERROR(Z4*I4/100),"",Z4*I4/100) -> 
